Workbook

Sheet LDC Info
AA3: Algoma Power Inc.
AA4: Atikokan Hydro Inc.
AA5: Attawapiskat Power Corporation
AA6: Bluewater Power Distribution Corp.
AA7: Brant County Power
AA8: Brantford Power Inc.
AA9: Burlington Hydro Inc.
AA10: Cambridge and North Dumfries Hydro
AA11: Canadian Niagara Power Inc. – Eastern Ontario Power/Fort Erie/Port Colborne
AA12: Centre Wellington Hydro Ltd.
N13: Version 2.0 | AA13: Chapleau Public Utilities Corporation
D14: Utility Name | E14: Haldimand County Hydro Inc. | AA14: COLLUS Power Corp.
AA15: Cooperative Hydro Embrun Inc.
D16: Assigned EB Number | E16: EB-2013-0134 | AA16: E.L.K. Energy Inc.
AA17: Enersource Hydro Mississauga Inc.
D18: Name of Contact and Title | E18: Jacqueline A. Scott, Finance Manager | AA18: Entegrus Powerlines Inc.
AA19: ENWIN Utilities Ltd.
D20: Phone Number | E20: 905-765-5211 ext.2237 | AA20: Erie Thames Powerlines Corp.
AA21: Espanola Regional Hydro Distribution Corporation
D22: Email Address | E22: jscott@hchydro.ca | AA22: Essex Powerlines Corporation
AA23: Festival Hydro Inc.
D24: Test Year | E24: 2014 | AA24: Fort Albany Power Corporation
AA25: Fort Frances Power Corporation
D26: Bridge Year | E26: =E24-1 -> 2013 | AA26: Greater Sudbury Hydro Inc.
AA27: Grimsby Power Inc.
D28: Last Rebasing Year | E28: 2010 | AA28: Guelph Hydro Electric Systems Inc.
AA29: Haldimand County Hydro Inc.
A30: Identify the accounting standard used for the test year
E31: CGAAP
A33: Did you update your depreciation and capitalization policies?
A36: When did you update your depreciation and capitalization policies?
E37: 2013-01-01
A39: Identify the year that the applicant has adopted or is expected to adopt IFRS for financial reporting purposes
E40: 2014 or Later
A42: Identify the year that the applicant has made the required changes to capitalization and depreciation expense policies under CGAAP or ASPE
E43: 2013
A45: Are you applying for cost recovery for the test and/or future year(s) for Green Energy initiatives?
E46: Yes
A48: ="Is " & E14 & " an embedded distributor?" -> Is Haldimand County Hydro Inc. an embedded distributor? | E48: Yes
A52: Once all selections have been made above, press the following button to reveal the appropriate worksheets.
A56: To unhide all worksheets in this workbook, press the following button:
B59: Notes | AA59: Guelph Hydro Electric Systems Inc.
AA60: Halton Hills Hydro Inc.
C61: Pale green cells represent input cells. | AA61: Hearst Power Distribution Co. Ltd.
AA62: Horizon Utilities Corporation
C63: Pale blue cells represent drop-down lists. The applicant should select the appropriate item from the drop-down list. | AA63: Hydro 2000 Inc.
AA64: Hydro Hawkesbury Inc.
C65: White cells contain fixed values, automatically generated values or formulae. | AA65: Hydro One Brampton Networks Inc.
AA66: Hydro One Networks Inc.
AA67: Hydro One Remote Communities Inc.
AA68: Hydro Ottawa Limited
AA69: Innisfil Hydro Dist. Systems Limited
AA70: Kashechewan Power Corporation
AA71: Kenora Hydro Electric Corporation Ltd.
AA72: Kingston Hydro Corporation
AA73: Kitchener-Wilmot Hydro Inc.
AA74: Lakefront Utilities Inc.
AA75: Lakeland Power Distribution Ltd.
AA76: London Hydro Inc.
AA77: Midland Power Utility Corporation
AA78: Milton Hydro Distribution Inc.
AA79: Newmarket – Tay Power Distribution Ltd.
AA80: Niagara Peninsula Energy Inc.
AA81: Niagara-on-the-Lake Hydro Inc.
AA82: Norfolk Power Distribution Ltd.
AA83: North Bay Hydro Distribution Limited
AA84: Northern Ontario Wires Inc.
AA85: Oakville Hydro Distribution Inc.
AA86: Orangeville Hydro Limited
AA87: Orillia Power Distribution Corp.
AA88: Oshawa PUC Networks Inc.
AA89: Ottawa River Power Corporation
AA90: Parry Sound Power Corporation
AA91: Peterborough Distribution Inc.
AA92: PowerStream Inc.
AA93: PUC Distribution Inc.
AA94: Renfrew Hydro Inc.
AA95: Rideau St. Lawrence Distribution Inc.
AA96: St. Thomas Energy Inc.
AA97: Sioux Lookout Hydro Inc.
AA98: Thunder Bay Hydro Electricity Distribution
AA99: Tillsonburg Hydro Inc.
AA100: Toronto Hydro-Electric System Limited
AA101: Veridian Connections Inc.
AA102: Wasaga Distribution Inc.
AA103: Waterloo North Hydro Inc.
AA104: Welland Hydro Electric System Corp.
AA105: Wellington North Power Inc.
AA106: West Coast Huron Energy Inc.
AA107: Westario Power Inc.
AA108: Whitby Hydro Electric Corporation
AA109: Woodstock Hydro Services Inc.

Sheet Table of Contents
A15: 1 | B15: LDC Information Sheet | E15: 35 | F15: Appendix 2-DB: Overhead Expense (CGAAP or ASPE)
A16: 2 | B16: Index | E16: 36 | F16: Appendix 2-EA: PP&E Deferral Account (2012 IFRS Adopters)
A17: 3 | B17: Cost of Service Application Flowchart | E17: 37 | F17: Appendix 2-EB: PP&E Deferral Account (2013 IFRS Adopters)
A18: 4 | B18: List of Key References | E18: 38 | F18: Appendix 2-EC: PP&E Deferral Account (2014 IFRS Adopters)
A19: 5 | B19: Appendix 2-AA: Capital Projects Table | E19: 39 | F19: Appendix 2-ED: Account 1576 - Accounting Changes Under CGAAP (2012 Changes)
A20: 6 | B20: Appendix 2-AB: Capital Expenditures | E20: 40 | F20: Appendix 2-EE: Account 1576 - Accounting Changes Under CGAAP (2013 Changes)
A21: 7 | B21: Appendix 2-BA1: Fixed Asset Continuity Schedule (CGAAP/ASPE/USGAAP) | E21: 41 | F21: Appendix 2-FA: Renewable Generation Connection Investment Summary
A22: 8 | B22: Appendix 2-BA2: Fixed Asset Continuity Schedule (MIFRS) | E22: 42 | F22: Appendix 2-FB: Calculation of Renewable Generation Connection Direct Benefits/Provincial Amount: Renewable Enabling Improvement Investments
A23: 9 | B23: Appendix 2-BB: Service Life Comparison | E23: 43 | F23: Appendix 2-FC: Calculation of Renewable Generation Connection Direct Benefits/Provincial Amount: Renewable Expansion Investments
A24: 10 | B24: General Instructions to MIFRS Appendices | E24: 44 | F24: Appendix 2-G: Service Reliability Indicators
A25: 11 | B25: Appendix 2-CA: 2011 Depreciation and Amortization Expense (CGAAP) | E25: 45 | F25: Appendix 2-H: Other Operating Revenue
A26: 12 | B26: Appendix 2-CB: 2011 Depreciation and Amortization Expense (MIFRS) | E26: 46 | F26: Appendix 2-I: Load Forecast CDM Adjustment Work Form
A27: 13 | B27: Appendix 2-CC: 2012 Depreciation and Amortization Expense (MIFRS) | E27: 47 | F27: Appendix 2-JA: Summary of Recoverable OM&A Expenses
A28: 14 | B28: Appendix 2-CD: 2013 Depreciation and Amortization Expense (MIFRS) | E28: 48 | F28: Appendix 2-JB: Recoverable OM&A Cost Driver Table
A29: 15 | B29: Appendix 2-CE: 2014 Depreciation and Amortization Expense (MIFRS) | E29: 49 | F29: Appendix 2-JC: OMA Programs Table
A30: 16 | B30: Appendix 2-CF: 2012 Depreciation and Amortization Expense (CGAAP) | E30: 50 | F30: Appendix 2-K: Employee Costs
A31: 17 | B31: Appendix 2-CG: 2012 Depreciation and Amortization Expense (MIFRS) | E31: 51 | F31: Appendix 2-L: Recoverable OM&A Cost per Customer and per FTE
A32: 18 | B32: Appendix 2-CH: 2013 Depreciation and Amortization Expense (MIFRS) | E32: 52 | F32: Appendix 2-M: Regulatory Cost Schedule
A33: 19 | B33: Appendix 2-CI: 2014 Depreciation and Amortization Expense (MIFRS) | E33: 53 | F33: Appendix 2-N: Shared Services and Corporate Cost Allocation
A34: 20 | B34: Appendix 2-CJ: 2012 Depreciation and Amortization Expense (CGAAP) | E34: 54 | F34: Appendix 2-OA: Capital Structure and Cost of Capital
A35: 21 | B35: Appendix 2-CK: 2013 Depreciation and Amortization Expense (CGAAP) | E35: 55 | F35: Appendix 2-OB: Debt Instruments
A36: 22 | B36: Appendix 2-CL: 2013 Depreciation and Amortization Expense (MIFRS) | E36: 56 | F36: Appendix 2-P: Cost Allocation
A37: 23 | B37: Appendix 2-CM: 2014 Depreciation and Amortization Expense (MIFRS) | E37: 57 | F37: Appendix 2-Q: Cost of Serving Embedded Distributor(s)
A38: 24 | B38: General Instructions to CGAAP-ASPE Appendices | E38: 58 | F38: Appendix 2-R: Loss Factors
A39: 25 | B39: Appendix 2-CN: 2012 Depreciation and Amortization Expense (Old CGAAP) | E39: 59 | F39: Appendix 2-S: Stranded Meter Treatment
A40: 26 | B40: Appendix 2-CO: 2012 Depreciation and Amortization Expense (New CGAAP) | E40: 60 | F40: Appendix 2-TA: Account 1592, PILs and Tax Variances
A41: 27 | B41: Appendix 2-CP: 2013 Depreciation and Amortization Expense (New CGAAP) | E41: 61 | F41: Appendix 2-TB: Account 1592, HST-OVAT Input Tax Credits
A42: 28 | B42: Appendix 2-CQ: 2014 Depreciation and Amortization Expense (New CGAAP) | E42: 62 | F42: Appendix 2-U: One-Time Incremental IFRS Transition Costs
A43: 29 | B43: Appendix 2-CR: 2012 Depreciation and Amortization Expense (Old CGAAP) | E43: 63 | F43: Appendix 2-V: Revenue Reconciliation
A44: 30 | B44: Appendix 2-CS: 2013 Depreciation and Amortization Expense (Old CGAAP) | E44: 64 | F44: Appendix 2-W: Bill Impacts
A45: 31 | B45: Appendix 2-CT: 2013 Depreciation and Amortization Expense (New CGAAP) | E45: 65 | F45: Appendix 2-YA: Transition to MIFRS Summary Impacts
A46: 32 | B46: Appendix 2-CU: 2014 Depreciation and Amortization Expense (New CGAAP) | E46: 66 | F46: Appendix 2-YB: Accounting Changes under CGAAP/ASPE Summary Impacts
A47: 33 | B47: Appendix 2-CV: Depreciation and Amortization Expense (USGAAP) | E47: 67 | F47: App.2-Z: Tariff Schedule
A48: 34 | B48: Appendix 2-DA: Overhead Expense (MIFRS)
B51: Legend
B52: To be completed by MIFRS filers
B53: To be completed by CGAAP and ASPE filers
B54: To be completed by USGAAP filers
B55: To be completed by both CGAAP, ASPE and USGAAP filers

Sheet COS Flowchart
B4: Cost of Service Rate Application Schematic
B6: The Cost of Service Rate Application Schematic is a flowchart appended to Chapter 2 of the Filing Requirements as a guide for the components of an application and how demand and costs interrelate to derive the revenue requirement and then how the revenue requirement is allocated between classes and through fixed/variable splits to derive rates that will be compensatory for the annual revenue requirement, based on the the forecasted demand. There is no form to be filled out; therefore, this Schedule is not required to be filed.

Sheet List of Key References
B3: List of Key References
A5: A list of key references for understanding the Filing Requirements has been embedded in the document below. To access the list of references and associated hyperlinks doublt click the icon below.

Sheet App.2-AA_Capital Projects
A1: Legend - Investment Category | H1: File Number: | I1: =EBNUMBER -> EB-2013-0134
A2: per HCHI's Distribution System Plan | H2: Exhibit: | I2: 2
A3: System Access | B3: A | H3: Tab: | I3: 5
A4: System Renewal | B4: B | H4: Schedule: | I4: 2
A5: System Service | B5: C | H5: Page: | I5: 3 to 6
A6: General Plant | B6: D
H7: Date: | I7: 2013-11-15
A9: Appendix 2-AA
A10: Capital Projects Table
A13: Projects | B13: Investment Category | C13: =D13-1 -> 2008 | D13: =E13-1 -> 2009 | E13: =F13-1 -> 2010 | F13: =G13-1 -> 2011 | G13: =BridgeYear - 1 -> 2012 | H13: =BridgeYear & " Bridge Year" -> 2013 Bridge Year | I13: =TestYear & " Test Year" -> 2014 Test Year
A14: Reporting Basis | D14: CGAAP | E14: CGAAP | F14: CGAAP | G14: CGAAP | H14: CGAAP | I14: CGAAP
A15: Distribution Stations (1820)
A16: Dunnville TS Breaker Position | B16: A | H16: 29835 | I16: 441675
A17: Dunnville TS Make Ready Work | B17: A | I17: 5000
A18: Sub-Total | C18: =SUM(C16:C17) -> 0 | D18: =SUM(D16:D17) -> 0 | E18: 0 | F18: 0 | G18: 0 | H18: 29835 | I18: 446675
A20: Poles, Towers, and Fixtures (1830)
A21: Dunnville TS Make Ready Work | B21: A | I21: 20000
A22: Pole Replacement Program | B22: B | D22: =183293+24655 -> 207948 | E22: =538387+14203 -> 552590 | F22: =400191+52592 -> 452783 | G22: =242002+41688+36973 -> 320663 | H22: =139195+28510 -> 167705 | I22: =158177+32397 -> 190574
A23: Moulton-Sherbrooke Townline-Rattlesnake Road Conversion, Dunnville | B23: C | D23: =30818 -> 30818
A24: Construction of Line from Hagersville to Jarvis | B24: C | D24: =11980+660 -> 12640
A25: Conversion of Line from Hagersville to Jarvis | B25: C | D25: 69091
A26: Conversion of Central Lane Phase II | B26: C | D26: 12774
A27: Eliminate Selkirk North 8kV Distribution Station | B27: B | D27: =67763+2679 -> 70442
A28: Purchase Hydro One F2 Feeder out of Argyle Distribution Station | B28: C | D28: 23436
A29: Lakeshore Road Re-Build (Melville Lane Area) | B29: C | D29: =127007+2760 -> 129767 | E29: 1426
A30: Eliminate Nanticoke Distribution Station (2008 Carryover) | B30: B | D30: 518
A31: Elimate Feeds from Lythmore Distribution Station (Ph.1-East) | B31: B | E31: =39421+223 -> 39644
A32: Conversion to Supply Innophos and Sherbrooke Area to 31M1 Feeder | B32: C | E32: =53006 -> 53006
A33: 27M5 Feeder Extension Caledonia (3-phase project) | B33: C | F33: =704463 -> 704463 | G33: =389479+5935 -> 395414
A34: Maple Street, Dunnville - Line Conversion to 27.6 kV | B34: C | F34: =472 -> 472 | G34: =11622 -> 11622
A35: Alder Street, Dunnville - Conversion- Underground Rebuild | B35: C | F35: =8437+3574+2866 -> 14877 | G35: =4750+4750+14861+40604 -> 64965 | H35: =2929 -> 2929
A36: Highway #3, Jarvis - Line Conversion from 8 kV to 27.6 kV | B36: C | F36: =27823+1983 -> 29806 | G36: =309 -> 309
A37: 27.6 kV Conversion into Cayuga | B37: C | F37: =172222+1972 -> 174194 | G37: =483 -> 483
A38: Conversion to Supply Innophos and Sherbrooke Area to 31M1 Feeder | B38: C | F38: =67475 -> 67475
A39: Install One Load Break Switch | B39: C | F39: =1972 -> 1972
A40: Townsend Back-up Feeder | B40: C | G40: =145094+3799 -> 148893 | H40: =1440 -> 1440
A41: Lakeshore Road Conversion - Haldimand Road 50 to Bookers Rd. | B41: C | G41: =6960 -> 6960 | H41: =63000+13500+19149 -> 95649
A42: Contributed Capital - Lakeshore Rd.Conversion (Grand Renewable Energy Park project) | B42: C | H42: -50000
A43: Conversion of Highway #54 to 27.6 kV | B43: C | H43: =462707+76418 -> 539125
A44: Conversion to 27.6 kV, Stromness (Overloaded Step-down Trx.) | B44: C | H44: =222250+52500 -> 274750
A45: Conversion to 27.6 kV Orkney, Inverness, Sutherland Streets, Caledonia | B45: C | H45: =152000+52500 -> 204500
A46: Conversion to 27.6 kV - Kohler Road | B46: C | H46: =112842 -> 112842
A47: Renewable Energy Cost Cap Investments | B47: A | H47: =2811+248 -> 3059 | I47: =76500 -> 76500
A48: Caithness Street, Caledonia - Road Reconstruction | B48: C | I48: =37500+8000 -> 45500
A49: Conversion of York Village to 27.6 kV | B49: C | I49: =112000+30000 -> 142000
A50: Conversion of Lakeshore Road (West of Kohler to 27.6 kV) | B50: C | I50: =160000+34000 -> 194000
A51: Conversion of Step-down Transformer on Fisherville Road | B51: C | I51: =354000+66000 -> 420000
A52: Partial Conversion of Step-down (SD-37) Transformer, Oneida | B52: C | I52: =145000+31000 -> 176000
A53: Betterments | B53: A | D53: 126868 | E53: 119053 | F53: 38543 | G53: 172956 | H53: =295933+39828 -> 335761 | I53: =146983+30105 -> 177088
A54: Line Extensions | B54: A | D54: 148505 | E54: 146745 | F54: 139652 | G54: 96506 | H54: =141159+28912 -> 170071 | I54: =144272+29550 -> 173822
A55: Contributed Capital - Regular | B55: A | D55: -55025 | E55: -52400 | F55: -56270 | G55: -53226 | H55: -38153 | I55: -38153
A56: Contributed Capital - Subdivisions / Developer Rebates | B56: A
A57: Assumption of Assets - Subdivisions | B57: A
A58: Contributed Capital - Other | B58: A | D58: -63089 | E58: -2828
A59: Assumption of Assets - Other (Wind Farm / HONI Metering Points) | B59: A | D59: 63091 | E59: 2828
A60: Sub-Total | C60: =SUM(C21:C59) -> 0 | D60: 777784 | E60: 860064 | F60: 1567967 | G60: 1165545 | H60: 1819678 | I60: 1577331
A62: Overhead Conductor (1835)
A63: Dunnville TS Make Ready Work | B63: A | I63: 15900
A64: Pole Replacement Program | B64: B | D64: =166421+67233 -> 233654 | E64: =358134+42239 -> 400373 | F64: =231538+41092 -> 272630 | G64: =72389+34550+28443+4520 -> 139902 | H64: =101908+6828 -> 108736 | I64: =115804+7759 -> 123563
A65: Moulton-Sherbrooke Townline-Rattlesnake Road Conversion, Dunnville | B65: C | D65: 41042
A66: Construction of Line from Hagersville to Jarvis | B66: C | D66: =149826+30152 -> 179978
A67: Conversion of Line from Hagersville to Jarvis | B67: C | D67: =140139 -> 140139
A68: Conversion of Central Lane Phase II | B68: C | D68: =70136+36909 -> 107045
A69: Eliminate Selkirk North 8kV Distribution Station | B69: B | D69: =260285+1516 -> 261801
A70: Purchase Hydro One F2 Feeder out of Argyle Distribution Station | B70: C | D70: 100266
A71: Lakeshore Road Re-Build (Melville Lane Area) | B71: C | D71: =103013+34507 -> 137520 | E71: -401
A72: Elimate Feeds from Lythmore Distribution Station (Ph.1-East) | B72: B | E72: =62337+8293 -> 70630
A73: Install One Load Break Switch | B73: C | E73: 23392
A74: Conversion to Supply Innophos and Sherbrooke Area to 31M1 Feeder | B74: C | E74: 66798
A75: 27M5 Feeder Extension Caledonia (3-phase project) | B75: C | F75: =429176+14177 -> 443353 | G75: =1095964+66332 -> 1162296
A76: Maple Street, Dunnville - Line Conversion to 27.6 kV | B76: C | F76: =203 -> 203 | G76: =27414+2128 -> 29542
A77: Alder Street, Dunnville - Conversion- Underground Rebuild | B77: C | F77: =8682+1404 -> 10086 | G77: =5000+5000+1453+4071 -> 15524 | H77: =359 -> 359
A78: Highway #3, Jarvis - Line Conversion from 8 kV to 27.6 kV | B78: C | F78: =49292+9505 -> 58797 | G78: =510 -> 510
A79: 27.6 kV Conversion into Cayuga | B79: C | F79: =296663+46138 -> 342801
A80: Conversion to Supply Innophos and Sherbrooke Area to 31M1 Feeder | B80: C | F80: =179561+532 -> 180093
A81: Rebuild of Argyle Street, Caledonia (Sutherland St. to railway) | B81: C | H81: =7010 -> 7010
A82: Townsend Back-up Feeder | B82: C | G82: =122749+13293 -> 136042 | H82: =535 -> 535
A83: Lakeshore Road Conversion - Haldimand Road 50 to Bookers Rd. | B83: C | G83: =20000 -> 20000 | H83: =25500+7500+3410+3006 -> 39416
A84: Conversion of Highway #54 to 27.6 kV | B84: C | H84: =394110+104234 -> 498344
A85: Conversion to 27.6 kV, Stromness (Overloaded Step-down Trx.) | B85: C | H85: =62500+15000 -> 77500
A86: Conversion to 27.6 kV Orkney, Inverness, Sutherland Streets, Caledonia | B86: C | H86: =88000+22500 -> 110500
A87: Conversion to 27.6 kV - Kohler Road | B87: C | H87: =66228+8600 -> 74828
A88: Renewable Energy Cost Cap Investments | B88: A | H88: =699+67 -> 766 | I88: =76500 -> 76500
A89: Caithness Street, Caledonia - Road Reconstruction | B89: C | I89: =37500+8000 -> 45500
A90: Conversion of York Village to 27.6 kV | B90: C | I90: =60000+42500 -> 102500
A91: Conversion of Lakeshore Road (West of Kohler to 27.6 kV) | B91: C | I91: =140000+30000 -> 170000
A92: Conversion of Step-down Transformer on Fisherville Road | B92: C | I92: =275000+55000 -> 330000
A93: Partial Conversion of Step-down (SD-37) Transformer, Oneida | B93: C | I93: =60000+14000 -> 74000
A94: Betterments | B94: A | D94: 161472 | E94: 190667 | F94: 85300 | G94: 73646 | H94: =218375+23691 -> 242066 | I94: =87134+17847 -> 104981
A95: Line Extensions | B95: A | D95: 108893 | E95: 122424 | F95: 113278 | G95: 222024 | H95: =73828+15121 -> 88949 | I95: =75456+15455 -> 90911
A96: Contributed Capital - Regular | B96: A | D96: -2103 | E96: -1788 | F96: -7821.18 | G96: -119 | H96: -5254 | I96: -5254
A97: Contributed Capital - Subdivisions / Developer Rebates | B97: A | D97: =18664-68875 -> -50211
A98: Assumption of Assets - Subdivisions | B98: A | D98: 68875
A99: Contributed Capital - Other | B99: A | D99: -80810 | E99: -21282
A100: Assumption of Assets - Other (Wind Farm / HONI Metering Points) | B100: A | D100: 80810 | E100: 21282
A101: Sub-Total | C101: =SUM(C63:C100) -> 0 | D101: 1488371 | E101: 872095 | F101: 1498719.82 | G101: 1799367 | H101: 1243755 | I101: 1128601
A103: Underground Conduit (1840)
A104: Pole Replacement Program | B104: B | D104: 2694 | E104: =656+815 -> 1471 | G104: =204+484 -> 688 | H104: =1376+282 -> 1658 | I104: =1564+320 -> 1884
A105: Construction of Line from Hagersville to Jarvis | B105: C | D105: 847
A106: Conversion of Central Lane, Dunnville Phase II | B106: C | D106: 1016
A107: Eliminate Selkirk North 8kV Distribution Station | B107: B | D107: -50
A108: Lakeshore Road Re-Build (Melville Lane Area) | B108: C | D108: =162+2337 -> 2499
A109: 27M5 Feeder Extension Caledonia (3-phase project) | B109: C | G109: =1333 -> 1333
A110: Maple Street, Dunnville - Line Conversion to 27.6 kV | B110: C | F110: =593 -> 593 | G110: =3618+48 -> 3666
A111: Alder Street, Dunnville - Conversion- Underground Rebuild | B111: C | F111: =46781+70141 -> 116922 | G111: =49913+49913+9031-1403 -> 107454 | H111: =72211 -> 72211
A112: Highway #3, Jarvis - Line Conversion from 8 kV to 27.6 kV | B112: C | F112: =2126+700 -> 2826 | G112: =-185 -> -185
A113: 27.6 kV Conversion into Cayuga | B113: C | F113: =105 -> 105
A114: Conversion to Supply Innophos and Sherbrooke Area to 31M1 Feeder | B114: C | F114: =150 -> 150
A115: Rebuild of Argyle Street, Caledonia (Sutherland St. to railway) | B115: C | G115: =267336+10000 -> 277336 | H115: =115459+37957 -> 153416
A116: Townsend Back-up Feeder | B116: C | G116: =30992 -> 30992 | H116: =1022 -> 1022
A117: Lakeshore Road Conversion - Haldimand Road 50 to Bookers Rd. | B117: C | G117: =15160 -> 15160 | H117: =134375+20625+21275 -> 176275
A118: Contributed Capital - Lakeshore Rd.Conversion (Grand Renewable Energy Park project) | B118: C | H118: -100000
A119: Main & Queen Streets, Dunnville - Road Re-construction | B119: C | G119: =139328 -> 139328
A120: Conversion to 27.6 kV Orkney, Inverness, Sutherland Streets, Caledonia | B120: C | H120: =28000 -> 28000
A121: Conversion to 27.6 kV - Kohler Road | B121: C | H121: =40 -> 40
A122: Caithness Street, Caledonia - Road Reconstruction | B122: C | I122: =218400+69000 -> 287400
A123: York Bridge Duct Installation - Engineering Design | B123: A | I123: =15000 -> 15000
A124: Talbot Street, Cayuga - Road Reconstruction | B124: C | I124: =270000+44000 -> 314000
A125: Betterments | B125: A | D125: 18155 | E125: 62154 | F125: -10531 | G125: 3753 | H125: =3312+678 -> 3990 | I125: =2488+510 -> 2998
A126: Line Extensions | B126: A | D126: 52124 | E126: 669 | F126: 8551 | G126: 152890 | H126: =16802+3441 -> 20243 | I126: =17173+3517 -> 20690
A127: Contributed Capital - Regular | B127: A | D127: -26358 | E127: -29193 | F127: -34817 | G127: -33854 | H127: -16303 | I127: -16303
A128: Sub-Total | C128: =SUM(C104:C127) -> 0 | D128: 50927 | E128: 35101 | F128: 83799 | G128: 698561 | H128: 340552 | I128: 625669
A130: Underground Conductor (1845)
A131: Pole Replacement Program | B131: B | D131: =1093+13756 -> 14849 | E131: =5779 -> 5779 | F131: =3258 -> 3258 | G131: =6550+4006 -> 10556
A132: Conversion of Central Lane, Dunnville Phase II | B132: C | D132: =512+3377 -> 3889
A133: Eliminate Selkirk North 8kV Distribution Station | B133: B | D133: 14580
A134: Lakeshore Road Re-Build (Melville Lane Area) | B134: C | D134: 9437
A135: Elimate Feeds from Lythmore Distribution Station (Ph.1-East) | B135: B | E135: =189+1220 -> 1409
A136: Alder Street, Dunnville - Conversion- Underground Rebuild | B136: C | E136: 27097 | F136: =21643+11692+46326 -> 79661 | G136: =50083+30000+8978+12150 -> 101211 | H136: =71111+340 -> 71451
A137: 27M5 Feeder Extension Caledonia (3-phase project) | B137: c | G137: =8409+15819 -> 24228
A138: Maple Street, Dunnville - Line Conversion to 27.6 kV | B138: C | G138: =13421 -> 13421
A139: 27.6 kV Conversion into Cayuga | B139: C | F139: =4760 -> 4760
A140: Rebuild of Argyle Street, Caledonia (Sutherland St. to railway) | B140: C | F140: =3537+213 -> 3750 | G140: =35000+2104+3537+213 -> 40854 | H140: =-25361+21936 -> -3425
A141: Townsend Back-up Feeder | B141: C | G141: =29236 -> 29236 | H141: =76555 -> 76555
A142: Lakeshore Road Conversion - Haldimand Road 50 to Bookers Rd. | B142: C | G142: =22740 -> 22740 | H142: =23146+10223+91500+26500 -> 151369
A143: Contributed Capital - Lakeshore Rd.Conversion (Grand Renewable Energy Park project) | B143: C | H143: -50000
A144: Conversion to 27.6 kV Orkney, Inverness, Sutherland Streets, Caledonia | B144: C | H144: =26500 -> 26500
A145: Caithness Street, Caledonia - Road Reconstruction | B145: C | I145: =41600+132500+32500 -> 206600
A146: York Bridge Duct Installation - Engineering Design | B146: A | I146: =5000 -> 5000
A147: Talbot Street, Cayuga - Road Reconstruction | B147: C | I147: =112500+24000 -> 136500
A148: Betterments | B148: A | D148: 3435 | E148: 13598 | G148: 61421 | H148: =94387+19332 -> 113719 | I148: =70904+14522 -> 85426
A149: Line Extensions | B149: A | D149: 7043 | E149: 60728 | F149: 70324 | G149: 72821 | H149: =3864+791 -> 4655 | I149: =3949+809 -> 4758
A150: Contributed Capital - Regular | B150: A | D150: -36826 | E150: -41612 | F150: -39944 | G150: -50110 | H150: =-46994 -> -46994 | I150: =-46994 -> -46994
A151: Contributed Capital - Subdivisions / Developer Rebates | B151: A | D151: =60004-249130 -> -189126 | E151: =80922-151954 -> -71032 | F151: 10437 | G151: =37945-33575 -> 4370 | H151: =95703-308719 -> -213016 | I151: =53808-173575 -> -119767
A152: Assumption of Assets - Subdivisions | B152: A | D152: 249130 | E152: 151954 | G152: 33575 | H152: 308719 | I152: 173575
A153: Sub-Total | C153: =SUM(C131:C152) -> 0 | D153: 76411 | E153: 147921 | F153: 132246 | G153: 364323 | H153: 439533 | I153: 445098
A155: Transformers (1850)
A156: Pole Replacement Program | B156: B | D156: =45930+3667 -> 49597 | E156: =57899+8218 -> 66117 | F156: =22729+17799 -> 40528 | G156: =20316+3158+3153 -> 26627 | H156: =43078+8823 -> 51901 | I156: =48952+10027 -> 58979
A157: Moulton-Sherbrooke Townline-Rattlesnake Road Conversion, Dunnville | B157: C | D157: 42652
A158: Construction of Line from Hagersville to Jarvis | B158: C | D158: =99502+7579 -> 107081
A159: Conversion of Line from Hagersville to Jarvis | B159: C | D159: 5809
A160: Conversion of Central Lane, Dunnville Phase II | B160: C | D160: 27984
A161: Eliminate Selkirk North 8kV Distribution Station | B161: B | D161: 71483
A162: Lakeshore Road Re-Build (Melville Lane Area) | B162: C | D162: =34225+1406 -> 35631
A163: Elimate Feeds from Lythmore Distribution Station (Ph.1-East) | B163: B | E163: =72518 -> 72518
A164: Conversion to Supply Innophos and Sherbrooke Area to 31M1 Feeder | B164: C | E164: 17148
A165: 27M5 Feeder Extension Caledonia (3-phase project) | B165: C | F165: =126713 -> 126713 | G165: =105221+10264 -> 115485
A166: Maple Street, Dunnville - Line Conversion to 27.6 kV | B166: C | F166: =16995 -> 16995 | G166: =84308+2371 -> 86679
A167: Alder Street, Dunnville - Conversion- Underground Rebuild | B167: C | F167: =42673+6533 -> 49206 | G167: =75000+46316-5984 -> 115332 | H167: =-9473+4522 -> -4951
A168: Highway #3, Jarvis - Line Conversion from 8 kV to 27.6 kV | B168: C | F168: =31660+324 -> 31984
A169: 27.6 kV Conversion into Cayuga | B169: C | F169: =80876 -> 80876 | G169: =1844 -> 1844
A170: Conversion to Supply Innophos and Sherbrooke Area to 31M1 Feeder | B170: C | F170: =73794 -> 73794
A171: Rebuild of Argyle Street, Caledonia (Sutherland St. to railway) | B171: C | G171: =5618 -> 5618 | H171: -5000
A172: Townsend Back-up Feeder | B172: C | G172: =49639 -> 49639
A173: Lakeshore Road Conversion - Haldimand Road 50 to Bookers Rd. | B173: C | G173: =30000 -> 30000 | H173: =87500+24791 -> 112291
A174: Conversion of Highway #54 to 27.6 kV | B174: C | H174: =32000+77530 -> 109530
A175: Conversion to 27.6 kV, Stromness (Overloaded Step-down Trx.) | B175: C | H175: =29250+68500 -> 97750
A176: Conversion to 27.6 kV Orkney, Inverness, Sutherland Streets, Caledonia | B176: C | H176: =37500 -> 37500
A177: Conversion to 27.6 kV - Kohler Road | B177: C | H177: =46087 -> 46087
A178: Caithness Street, Caledonia - Road Reconstruction | B178: C | I178: =65000 -> 65000
A179: Conversion of York Village to 27.6 kV | B179: C | I179: =55500 -> 55500
A180: Dunnville TS Make Ready Work | B180: A | I180: =4000 -> 4000
A181: Conversion of Lakeshore Road (West of Kohler to 27.6 kV) | B181: C | I181: =32000 -> 32000
A182: Conversion of Step-down Transformer on Fisherville Road | B182: C | I182: =29250+20750 -> 50000
A183: Partial Conversion of Step-down (SD-37) Transformer, Oneida | B183: C | I183: =50000 -> 50000
A184: Talbot Street, Cayuga - Road Reconstruction | B184: C | I184: =49500 -> 49500
A185: Betterments | B185: A | D185: 51642 | E185: 58377 | F185: 121549 | G185: 123409 | H185: =89135+18257 -> 107392 | I185: =66959+13714 -> 80673
A186: Line Extensions | B186: A | D186: 199073 | E186: 215404 | F186: 179651 | G186: 210641 | H186: =160084+32788 -> 192872 | I186: =163615+33512 -> 197127
A187: Spare Transformer Capital | D187: =266923-304511 -> -37588 | E187: 19904 | F187: =217570-286827 -> -69257 | G187: =213830-217570 -> -3740
A188: Contributed Capital - Regular | B188: A | D188: -601 | E188: -80996 | F188: -3265 | G188: -47267 | H188: =-31658 -> -31658 | I188: -31658
A189: Contributed Capital - Subdivisions / Developer Rebates | B189: A | D189: =33523-115212 -> -81689 | E189: =26356-34026 -> -7670 | F189: 2291 | G189: =15569-12303 -> 3266 | H189: =35397-114184 -> -78787 | I189: =19902-64199 -> -44297
A190: Assumption of Assets - Subdivisions | B190: A | D190: 115212 | E190: 34026 | G190: 12303 | H190: 114184 | I190: 64199
A191: Sub-Total | C191: =SUM(C156:C190) -> 0 | D191: 586286 | E191: 394828 | F191: 651065 | G191: 729836 | H191: 749111 | I191: 631023
A193: Overhead / Underground Services (1855)
A194: Overhead Services | B194: A | D194: =45963+473 -> 46436 | E194: =49542+744 -> 50286 | F194: 71123 | G194: =47652+572 -> 48224 | H194: 110516 | I194: 111072
A195: Underground Services | B195: A | D195: 56127 | E195: 74677 | F195: 101461 | G195: 83067 | H195: 130127 | I195: 136725
A196: Dunnville TS Make Ready Work | B196: A | I196: 2500
A197: Contributed Capital - Regular | B197: A | D197: -31912 | E197: -7825 | F197: -16925 | G197: -1422 | H197: =-23692-20126 -> -43818 | I197: =-24179-19639 -> -43818
A198: Sub-Total | C198: =SUM(C194:C197) -> 0 | D198: =SUM(D194:D197) -> 70651 | E198: 117138 | F198: 155659 | G198: 129869 | H198: 196825 | I198: 206479
A200: Meters (1860)
A201: Primary Meter Services | B201: A | D201: -7536 | E201: 7820 | F201: 91603 | G201: =-30565 -> -30565 | H201: =9480+9520 -> 19000 | I201: =36440 -> 36440
A202: Secondary Meter Services | B202: A | D202: 7419 | E202: 3838 | F202: 42438 | G202: =18166 -> 18166 | H202: =11060+118390 -> 129450 | I202: =16160+133025 -> 149185
A203: Meters - Smart Meter Disposition (EB-2012-0272) | B203: A | G203: =590712+3091408 -> 3682120
A204: Dunnville TS Make Ready Work | B204: A | I204: =41100+18500 -> 59600
A205: Spare Meter Capital | D205: =78441-43303 -> 35138 | E205: 8952 | F205: =135569-87393 -> 48176 | G205: =94676-135569 -> -40893
A206: Contributed Capital - Regular | B206: A | D206: -5294 | E206: -16265 | F206: -20155 | G206: -12025 | H206: =-1158-6663 -> -7821 | I206: =-847-6974 -> -7821
A207: Contributed Capital - Other | B207: A | D207: =-67169-44800-44883 -> -156852 | E207: 2392
A208: Assumption of Assets - Other (Wind Farm / HONI Metering Points) | B208: A | D208: =67169+44800+39532 -> 151501 | E208: -2392
A209: Sub-Total | C209: =SUM(C201:C208) -> 0 | D209: 24376 | E209: 4345 | F209: 162062 | G209: 3616803 | H209: =SUM(H201:H208) -> 140629 | I209: 237404
A211: General Plant
... 105 more rows

Sheet App.2-AB_Capital Expenditures
S1: File Number: | U1: =EBNUMBER -> EB-2013-0134
S2: Exhibit: | U2: 2
S3: Tab: | U3: 5
S4: Schedule: | U4: 2
S5: Page: | U5: 2
S7: Date: | U7: 2013-11-15
A9: Appendix 2-AB
A10: Table 2 - Capital Expenditure Summary from Chapter 5 Consolidated Distribution System Plan Filing Requirements
A12: First year of Forecast Period: | B12: =TestYear -> 2014
A13: CATEGORY | B13: Historical Period (previous plan1 & actual) | Q13: Forecast Period (planned)
B14: =E14-1 -> 2009 | E14: =H14-1 -> 2010 | H14: =K14-1 -> 2011 | K14: =N14-1 -> 2012 | N14: =Q14-1 -> 2013 | Q14: =B12 -> 2014 | R14: =Q14+1 -> 2015 | S14: =R14+1 -> 2016 | T14: 2017 | U14: 2018
B15: Plan | C15: Actual | D15: Var | E15: Plan | F15: Actual | G15: Var | H15: Plan | I15: Actual | J15: Var | K15: Plan | L15: Actual | M15: Var | N15: Plan | O15: Actual2 | P15: Var
B16: $ '000 | D16: % | E16: $ '000 | G16: % | H16: $ '000 | J16: % | K16: $ '000 | M16: % | N16: $ '000 | P16: % | Q16: $ '000
A17: System Access | C17: 928 | D17: =IF(ISERROR((C17-B17)/B17),"--",(C17-B17)/B17) -> -- | F17: 1004 | G17: =IF(ISERROR((F17-E17)/E17),"--",(F17-E17)/E17) -> -- | I17: 887 | J17: =IF(ISERROR((I17-H17)/H17),"--",(I17-H17)/H17) -> -- | L17: =1166+3682 -> 4848 | M17: =IF(ISERROR((L17-K17)/K17),"--",(L17-K17)/K17) -> -- | O17: 1644 | P17: =IF(ISERROR((O17-N17)/N17),"--",(O17-N17)/N17) -> -- | Q17: 1978 | R17: 1456 | S17: 1330 | T17: 1406 | U17: 1365
A18: System Renewal | C18: 928 | D18: =IF(ISERROR((C18-B18)/B18),"--",(C18-B18)/B18) -> -- | F18: 1210 | G18: =IF(ISERROR((F18-E18)/E18),"--",(F18-E18)/E18) -> -- | I18: 769 | J18: =IF(ISERROR((I18-H18)/H18),"--",(I18-H18)/H18) -> -- | L18: 498 | M18: =IF(ISERROR((L18-K18)/K18),"--",(L18-K18)/K18) -> -- | O18: 330 | P18: =IF(ISERROR((O18-N18)/N18),"--",(O18-N18)/N18) -> -- | Q18: 375 | R18: 950 | S18: 1425 | T18: 1300 | U18: 1350
A19: System Service | C19: 1221 | D19: -- | F19: 189 | G19: -- | I19: 2617 | J19: -- | L19: 3203 | M19: -- | O19: 2986 | P19: -- | Q19: 2946 | R19: 2200 | S19: 2175 | T19: 2410 | U19: 2100
A20: General Plant | C20: 1114 | D20: -- | F20: 825 | G20: -- | I20: 676 | J20: -- | L20: =538+51+62 -> 651 | M20: -- | O20: 541 | P20: -- | Q20: 680 | R20: 698 | S20: 489 | T20: 437 | U20: 464
A21: TOTAL EXPENDITURE | B21: =SUM(B17:B20) -> 0 | C21: =SUM(C17:C20) -> 4191 | D21: -- | E21: 0 | F21: 3228 | G21: -- | H21: 0 | I21: 4949 | J21: -- | K21: 0 | L21: 9200 | M21: -- | N21: 0 | O21: 5501 | P21: -- | Q21: 5979 | R21: 5304 | S21: 5419 | T21: 5553 | U21: =SUM(U17:U20) -> 5279
A22: System O&M | C22: 2909 | D22: -- | F22: 2794 | G22: -- | I22: 3078 | J22: -- | L22: 3158 | M22: -- | O22: 3539 | P22: -- | Q22: 3606 | R22: 3664 | S22: 3722 | T22: 3782 | U22: 3842
A24: Notes to the Table:
A25: 1. Historical “previous plan” data is not required unless a plan has previously been filed
A26: 2. Indicate the number of months of 'actual' data included in the last year of the Historical Period (normally a 'bridge' year): | N26: 7
A28: Explanatory Notes on Variances (complete only if applicable)
A29: Notes on shifts in forecast vs. histrical budgets by category
A30: Investments in single pole replacements (System Renewal) as a result of the annual capital project Pole Replacement Program have decreased by approximately 50 - 60 % ($500,000) starting in 2012 as compared to prior years. This is on account of the majority of poles that required immediate replacement have now been completed. Pole inspection cycles are now in their second inspection cycle and the number of very poor poles inspected is less than in prior years.
A31: 1) Investments in single pole replacements (System Renewal) as a result of the pole replacement program has decreased about 50 - 60 % ($500,000) starting in 2012 from previous years as the majority of poles that required ASAP replacement have been completed. Pole inspection cycles are now in their second inspection cycle and the number of very poor poles inspected is less than previous years.
A32: Notes on year over year Plan vs. Actual variances for Total Expenditures
A33: Not required as a Distribution System Plan has not previously been filed as this is the initial Chapter 5 filing.
A34: Not required as this is an initial Chapter 5 filing and there was no previous plan filed.
A35: Notes on Plan vs. Actual variance trends for individual expenditure categories

Sheet App.2-BA1_Fix Asset Cont.CGAAP
L1: File Number: | M1: =EBNUMBER -> EB-2013-0134
L2: Exhibit: | M2: 2
L3: Tab: | M3: 2
L4: Schedule: | M4: 1
L5: Page: | M5: 6 to 11
L7: Date: | M7: 2013-11-15
A9: Appendix 2-BA
A10: Fixed Asset Continuity Schedule - CGAAP/ASPE/USGAAP
E12: Year | F12: 2014
D14: Cost | J14: Accumulated Depreciation
A15: CCA Class | B15: OEB | C15: Description | D15: Opening Balance | E15: Additions | F15: Disposals | G15: Closing Balance | I15: Opening Balance | J15: Additions | K15: Disposals | L15: Closing Balance | M15: Net Book Value
A16: CEC | B16: 1609 | C16: Distribution Station Equipment <50 kV - Capital Contribution Paid | D16: 29835 | E16: 441675 | G16: =D16+E16+F16 -> 471510 | I16: -332 | J16: -5571 | L16: =I16+J16+K16 -> -5903 | M16: =G16+L16 -> 465607
A17: 47 | B17: 1820 | C17: Distribution Station Equipment <50 kV | D17: 466497 | E17: 5000 | G17: 471497 | I17: -193385 | J17: -8091 | L17: -201476 | M17: 270021
A18: 47 | B18: 1830 | C18: Poles, Towers & Fixtures - Wood Poles | D18: 22450856 | E18: 1615483 | G18: 24066339 | I18: -9568640 | J18: -322835 | L18: -9891475 | M18: 14174864
A19: 47 | B19: 1830 | C19: Poles, Towers & Fixtures - Metal/Concrete Poles | D19: 84427 | G19: 84427 | I19: -45403 | J19: -835 | L19: -46238 | M19: 38189
A20: 47 | B20: 1835 | C20: Overhead Conductors & Devices - Conductor | D20: 13848271 | E20: 1117956 | G20: 14966227 | I20: -3928857 | J20: -234423 | L20: -4163280 | M20: 10802947
A21: 47 | B21: 1835 | C21: Overhead Conductors & Devices - Switches | D21: 510902 | E21: 15900 | G21: 526802 | I21: -280401 | J21: -7437 | L21: -287838 | M21: 238964
A22: 47 | B22: 1835 | C22: Overhead Conductors & Devices - Reclosures | D22: 446811 | G22: 446811 | I22: -191612 | J22: -8446 | L22: -200058 | M22: 246753
A23: 47 | B23: 1840 | C23: Underground Conduit - Duct | D23: 1823051 | E23: 641971 | G23: 2465022 | I23: -177505 | J23: -41113 | L23: -218618 | M23: 2246404
A24: 47 | B24: 1845 | C24: Underground Conductors & Devices - Cable (Non-Duct) | D24: 6252395 | G24: 6252395 | I24: -3135091 | J24: -174523 | L24: -3309614 | M24: 2942781
A25: 47 | B25: 1845 | C25: Underground Conductors & Devices - Cable (In Duct) | D25: 2067803 | E25: 570260 | G25: 2638063 | I25: -715832 | J25: -48562 | L25: -764394 | M25: 1873669
A26: 47 | B26: 1845 | C26: Underground Conductors & Devices - Switchgear | D26: 131598 | E26: 41600 | G26: 173198 | I26: -25860 | J26: -4884 | L26: -30744 | M26: 142454
A27: 47 | B27: 1850 | C27: Line Transformers - Pole Top | D27: 10021466 | E27: 499028 | G27: 10520494 | I27: -4132312 | J27: -202097 | L27: -4334409 | M27: 6186085
A28: 47 | B28: 1850 | C28: Line Transformers - Padmount | D28: 2636571 | E28: 178699 | G28: 2815270 | I28: -757096 | J28: -58864 | L28: -815960 | M28: 1999310
A29: 47 | B29: 1850 | C29: Line Transformers - Step-Down (Rabbits) | D29: 375595 | E29: 29250 | G29: 404845 | I29: -98787 | J29: -8550 | L29: -107337 | M29: 297508
A30: 47 | B30: 1850 | C30: Line Transformers - Spare Capital | D30: 213830 | G30: 213830 | I30: 0 | L30: 0 | M30: 213830
A31: 47 | B31: 1855 | C31: Services - Overhead | D31: 1094794 | E31: 113572 | G31: 1208366 | I31: -308138 | J31: -15798 | L31: -323936 | M31: 884430
A32: 47 | B32: 1855 | C32: Services - Underground | D32: 1828941 | E32: 136725 | G32: 1965666 | I32: -580577 | J32: -48152 | L32: -628729 | M32: 1336937
A33: 47 | B33: 1860 | C33: Meters - Primary Metering Units | D33: 139449 | E33: 77540 | G33: 216989 | I33: -29043 | J33: -9012 | L33: -38055 | M33: 178934
A34: 47 | B34: 1860 | C34: Meters - Interval Meters & Other Metering Equipment | D34: 1163484 | E34: 34660 | G34: 1198144 | I34: -368932 | J34: -192515 | L34: -561447 | M34: 636697
A35: 47 | B35: 1860 | C35: Meters - Smart Meters | D35: 3843152 | E35: 133025 | G35: 3976177 | I35: -1004734 | J35: -252371 | L35: -1257105 | M35: 2719072
A36: 47 | B36: 1860 | C36: Meters - Stranded Conventional Meters | D36: 0 | G36: 0 | I36: 0 | L36: 0 | M36: 0
A37: 47 | B37: 1860 | C37: Meters - Spare Capital | D37: 94676 | G37: 94676 | I37: 0 | L37: 0 | M37: 94676
A38: N/A | B38: 1905 | C38: Land | D38: 127139 | G38: 127139 | I38: 0 | L38: 0 | M38: 127139
A39: CEC | B39: 1612 | C39: Land Rights (Formally known as Account 1906) | D39: 695389 | G39: =D39+E39+F39 -> 695389 | I39: -280612 | J39: -20720 | L39: =I39+J39+K39 -> -301332 | M39: =G39+L39 -> 394057
A40: 1 b | B40: 1908 | C40: Buildings & Fixtures | D40: 2190518 | G40: =D40+E40+F40 -> 2190518 | I40: -519483 | J40: -51730 | L40: =I40+J40+K40 -> -571213 | M40: =G40+L40 -> 1619305
A41: 8 | B41: 1915 | C41: Office Furniture & Equipment (10 years) | D41: 370636 | E41: 5000 | G41: 375636 | I41: -284261 | J41: -22044 | L41: -306305 | M41: 69331
A42: 50 | B42: 1920 | C42: Computer Equipment - Hardware | D42: 642220 | E42: 109344 | G42: 751564 | I42: -463918 | J42: -65786 | L42: -529704 | M42: 221860
A43: 50 | B43: 1611 | C43: Computer Software (Formally known as Account 1925) | D43: 2961069 | E43: 280645 | G43: =D43+E43+F43 -> 3241714 | I43: -2425998 | J43: -221292 | L43: =I43+J43+K43 -> -2647290 | M43: =G43+L43 -> 594424
A44: 10 | B44: 1930 | C44: Transportation Equipment - Bucket Trucks | D44: 1966603 | G44: =D44+E44+F44 -> 1966603 | I44: -1002062 | J44: -105859 | L44: =I44+J44+K44 -> -1107921 | M44: =G44+L44 -> 858682
A45: 10 | B45: 1930 | C45: Transportation Equipment - Pickups and Vans | D45: 404487 | E45: 218400 | G45: 622887 | I45: -266326 | J45: -55172 | L45: -321498 | M45: 301389
A46: 10 | B46: 1930 | C46: Transportation Equipment - Trailers | D46: 83837 | G46: 83837 | I46: -53151 | J46: -2000 | L46: -55151 | M46: 28686
A47: 8 | B47: 1940 | C47: Tools, Shop & Garage Equipment | D47: 830723 | E47: 67250 | G47: 897973 | I47: -511359 | J47: -56600 | L47: -567959 | M47: 330014
A48: 8 | B48: 1955 | C48: Communications Equipment | D48: 68074 | G48: 68074 | I48: -61802 | J48: -3861 | L48: -65663 | M48: 2411
A49: 47 | B49: 1995 | C49: Contributions & Grants - Wood Poles | D49: -827945 | E49: -38153 | G49: -866098 | I49: 198330 | J49: 14792 | L49: 213122 | M49: -652976
A50: 47 | B50: 1995 | C50: Contributions & Grants - Metal / Concrete Poles | D50: 0 | G50: 0 | I50: 0 | J50: 0 | L50: 0 | M50: 0
A51: 47 | B51: 1995 | C51: Contributions & Grants - O/H Conductor | D51: -212202 | E51: -5254 | G51: -217456 | I51: 43701 | J51: 3863 | L51: 47564 | M51: -169892
A52: 47 | B52: 1995 | C52: Contributions & Grants - O/H Line Switches | D52: -8391 | G52: -8391 | I52: 1889 | J52: 167 | L52: 2056 | M52: -6335
A53: 47 | B53: 1995 | C53: Contributions & Grants - O/H Reclosures | D53: -7345 | G53: -7345 | I53: 1674 | J53: 167 | L53: 1841 | M53: -5504
A54: 47 | B54: 1995 | C54: Contributions & Grants - U/G Conduit | D54: -420246 | E54: -16303 | G54: -436549 | I54: 72830 | J54: 7820 | L54: 80650 | M54: -355899
A55: 47 | B55: 1995 | C55: Contributions & Grants - U/G Conductor (Non-Duct) | D55: -1081893 | G55: -1081893 | I55: 297721 | J55: 34702 | L55: 332423 | M55: -749470
A56: 47 | B56: 1995 | C56: Contributions & Grants - U/G Conductor (In Duct) | D56: -552992 | E56: -166761 | G56: -719753 | I56: 68404 | J56: 15293 | L56: 83697 | M56: -636056
A57: 47 | B57: 1995 | C57: Contributions & Grants - Pole Top Transformers | D57: -699676 | E57: -31658 | G57: -731334 | I57: 195051 | J57: 15900 | L57: 210951 | M57: -520383
A58: 47 | B58: 1995 | C58: Contributions & Grants - Padmount Transformers | D58: -250056 | E58: -44297 | G58: -294353 | I58: 50849 | J58: 6297 | L58: 57146 | M58: -237207
A59: 47 | B59: 1995 | C59: Contributions & Grants - Step-Down Transformers | D59: -22227 | G59: -22227 | I59: 6472 | J59: 490 | L59: 6962 | M59: -15265
A60: 47 | B60: 1995 | C60: Contributions & Grants - O/H Services | D60: -169604 | E60: -19639 | G60: -189243 | I60: 42324 | J60: 2555 | L60: 44879 | M60: -144364
A61: 47 | B61: 1995 | C61: Contributions & Grants - U/G Services | D61: -281734 | E61: -24179 | G61: -305913 | I61: 76281 | J61: 7740 | L61: 84021 | M61: -221892
A62: 47 | B62: 1995 | C62: Contributions & Grants - Primary Metering Units | D62: -156852 | G62: -156852 | I62: 30390 | J62: 8431 | L62: 38821 | M62: -118031
A63: 47 | B63: 1995 | C63: Contributions & Grants - Intervals & Other Metering Equipment | D63: -29619 | E63: -1672 | G63: -31291 | I63: 9023 | J63: 2875 | L63: 11898 | M63: -19393
A64: 47 | B64: 1995 | C64: Contributions & Grants - Smart Meters | D64: -104694 | E64: -6149 | G64: -110843 | I64: 31168 | J64: 10094 | L64: 41262 | M64: -69581
B65: etc.
C66: Sub-Total | D66: =SUM(D16:D65) -> 75039623 | E66: =SUM(E16:E65) -> 5978918 | F66: =SUM(F16:F65) -> 0 | G66: =SUM(G16:G65) -> 81018541 | I66: =SUM(I16:I65) -> -30285402 | J66: =SUM(J16:J65) -> -2117957 | K66: =SUM(K16:K65) -> 0 | L66: =SUM(L16:L65) -> -32403359 | M66: =SUM(M16:M65) -> 48615182
C67: Less Socialized Renewable Energy Generation Investments (input as negative) | G67: =D67+E67+F67 -> 0 | L67: =I67+J67+K67 -> 0 | M67: =G67+L67 -> 0
C68: Less Other Non Rate-Regulated Utility Assets (input as negative) | G68: 0 | L68: 0 | M68: 0
C69: Total PP&E | D69: =SUM(D66:D68) -> 75039623 | E69: =SUM(E66:E68) -> 5978918 | F69: 0 | G69: 81018541 | I69: =SUM(I66:I68) -> -30285402 | J69: -2117957 | K69: 0 | L69: -32403359 | M69: 48615182
G71: Less: CDM-OPA Allocated Costs - Depreciation Expense
G72: Building | J72: 916
G73: Office Equipment | J73: 390
G74: Computer Hardware | J74: 1164
G75: Computer Software | J75: 1499
G76: Net Depreciation Expense | J76: =J69+(J72+J73+J74+J75) -> -2113988
A78: Notes:
A80: 1 | B80: Tables in the format outlined above covering all fixed asset accounts should be submitted for the Test Year, Bridge Year and all relevant historical years. At a minimum , the applicant must provide data for the earlier of: 1) all historical years back to its last rebasing; or 2) at least three years of historical actuals, in addition to Bridge Year and Test Year forecasts.
A83: 2 | B83: The "CCA Class" for fixed assets should agree with the CCA Class used for tax purposes in Tax Returns. Fixed Assets sub-components may be used where the underlying asset components are classified under multiple CCA Classes for tax purposes. If an applicant uses any different classes from those shown in the table, an explanation should be provided. (also see note 3 below).
A86: 3 | B86: The table may need to be customized for a utility's asset categories or for any new asset accounts announced or authorized by the Board.
A88: 4 | B88: The additions column (F) must not include construction work in progress (CWIP).
A91: Appendix 2-BA
A92: Fixed Asset Continuity Schedule - CGAAP/ASPE/USGAAP
E94: Year | F94: 2013 | G94: CGAAP Including Accounting Change to Useful Lives
D96: Cost | J96: Accumulated Depreciation
A97: CCA Class | B97: OEB | C97: Description | D97: Opening Balance | E97: Additions | F97: Disposals | G97: Closing Balance | I97: Opening Balance | J97: Additions | K97: Disposals | L97: Closing Balance | M97: Net Book Value
A98: CEC | B98: 1609 | C98: Distribution Station Equipment <50 kV - Capital Contribution Paid | D98: 0 | E98: 29835 | G98: =D98+E98+F98 -> 29835 | I98: 0 | J98: -332 | L98: =I98+J98+K98 -> -332 | M98: =G98+L98 -> 29503
A99: 47 | B99: 1820 | C99: Distribution Station Equipment <50 kV | D99: 466497 | G99: 466497 | I99: -185350 | J99: -8035 | L99: -193385 | M99: 273112
A100: 47 | B100: 1830 | C100: Poles, Towers & Fixtures - Wood Poles | D100: 20543025 | E100: 1907831 | G100: 22450856 | I100: -9281040 | J100: =-19078-268521-1 -> -287600 | L100: -9568640 | M100: 12882216
A101: 47 | B101: 1830 | C101: Poles, Towers & Fixtures - Metal/Concrete Poles | D101: 84427 | G101: 84427 | I101: -44568 | J101: -835 | L101: -45403 | M101: 39024
A102: 47 | B102: 1835 | C102: Overhead Conductors & Devices - Conductor | D102: 12599263 | E102: 1249008 | G102: 13848271 | I102: -3718103 | J102: =-12490-198263-1 -> -210754 | L102: -3928857 | M102: 9919414
A103: 47 | B103: 1835 | C103: Overhead Conductors & Devices - Switches | D103: 510902 | G103: 510902 | I103: -273141 | J103: -7260 | L103: -280401 | M103: 230501
A104: 47 | B104: 1835 | C104: Overhead Conductors & Devices - Reclosures | D104: 446811 | G104: =D104+E104+F104 -> 446811 | I104: -183166 | J104: -8446 | L104: =I104+J104+K104 -> -191612 | M104: =G104+L104 -> 255199
A105: 47 | B105: 1840 | C105: Underground Conduit - Duct | D105: 1366196 | E105: 456855 | G105: 1823051 | I105: -147380 | J105: =-4569-25556 -> -30125 | L105: -177505 | M105: 1645546
A106: 47 | B106: 1845 | C106: Underground Conductors & Devices - Cable (Non-Duct) | D106: 6219026 | E106: 33369 | G106: 6252395 | I106: -2961123 | J106: =-556-173411-1 -> -173968 | L106: -3135091 | M106: 3117304
A107: 47 | B107: 1845 | C107: Underground Conductors & Devices - Cable (In Duct) | D107: 1428183 | E107: 639620 | G107: =D107+E107+F107 -> 2067803 | I107: -682394 | J107: =-7995-25443 -> -33438 | L107: =I107+J107+K107 -> -715832 | M107: =G107+L107 -> 1351971
A108: 47 | B108: 1845 | C108: Underground Conductors & Devices - Switchgear | D108: 55043 | E108: 76555 | G108: 131598 | I108: -22945 | J108: =-1276-1639 -> -2915 | L108: -25860 | M108: 105738
A109: 47 | B109: 1850 | C109: Line Transformers - Pole Top | D109: 9439683 | E109: 581783 | G109: 10021466 | I109: -3943726 | J109: =-7272-181314 -> -188586 | L109: -4132312 | M109: 5889154
A110: 47 | B110: 1850 | C110: Line Transformers - Padmount | D110: 2420047 | E110: 216524 | G110: =D110+E110+F110 -> 2636571 | I110: -703172 | J110: =-2707-51217 -> -53924 | L110: =I110+J110+K110 -> -757096 | M110: =G110+L110 -> 1879475
A111: 47 | B111: 1850 | C111: Line Transformers - Step-Down (Rabbits) | D111: 314345 | E111: 61250 | G111: =D111+E111+F111 -> 375595 | I111: -91369 | J111: =-766-6652 -> -7418 | L111: =I111+J111+K111 -> -98787 | M111: =G111+L111 -> 276808
A112: 47 | B112: 1850 | C112: Line Transformers - Spare Capital | D112: 213830 | G112: =D112+E112+F112 -> 213830 | I112: 0 | L112: =I112+J112+K112 -> 0 | M112: =G112+L112 -> 213830
A113: 47 | B113: 1855 | C113: Services - Overhead | D113: 984278 | E113: 110516 | G113: 1094794 | I113: -294207 | J113: =-921-13010 -> -13931 | L113: -308138 | M113: 786656
A114: 47 | B114: 1855 | C114: Services - Underground | D114: 1698814 | E114: 130127 | G114: 1828941 | I114: -536237 | J114: =-1859-42481 -> -44340 | L114: -580577 | M114: 1248364
A115: 47 | B115: 1860 | C115: Meters - Primary Metering Units | D115: 129969 | E115: 9480 | G115: 139449 | I115: -22207 | J115: =-237-6599 -> -6836 | L115: -29043 | M115: 110406
A116: 47 | B116: 1860 | C116: Meters - Interval Meters & Other Metering Equipment | D116: 1142904 | E116: 20580 | G116: =D116+E116+F116 -> 1163484 | I116: -150783 | J116: =-686-217463 -> -218149 | L116: =I116+J116+K116 -> -368932 | M116: =G116+L116 -> 794552
A117: 47 | B117: 1860 | C117: Meters - Smart Meters | D117: 3724762 | E117: 118390 | G117: 3843152 | I117: -757661 | J117: =-3946-243126-1 -> -247073 | L117: -1004734 | M117: 2838418
A118: 47 | B118: 1860 | C118: Meters - Stranded Conventional Meters | D118: 1666572 | F118: -1666572 | G118: 0 | I118: -1140139 | J118: =-42501 -> -42501 | K118: 1182640 | L118: 0 | M118: 0
A119: 47 | B119: 1860 | C119: Meters - Spare Capital | D119: 94676 | G119: =D119+E119+F119 -> 94676 | I119: 0 | L119: =I119+J119+K119 -> 0 | M119: =G119+L119 -> 94676
A120: N/A | B120: 1905 | C120: Land | D120: 127139 | G120: 127139 | L120: 0 | M120: 127139
A121: CEC | B121: 1612 | C121: Land Rights (Formally known as Account 1906) | D121: 695389 | G121: =D121+E121+F121 -> 695389 | I121: -259892 | J121: -20720 | L121: =I121+J121+K121 -> -280612 | M121: =G121+L121 -> 414777
A122: 1 b | B122: 1908 | C122: Buildings & Fixtures | D122: 2190518 | G122: 2190518 | I122: -467768 | J122: -51715 | L122: -519483 | M122: 1671035
A123: 8 | B123: 1915 | C123: Office Furniture & Equipment (10 years) | D123: 365636 | E123: 5000 | G123: 370636 | I123: -261240 | J123: =-22771-250 -> -23021 | L123: -284261 | M123: 86375
A124: 50 | B124: 1920 | C124: Computer Equipment - Hardware | D124: 585095 | E124: 57125 | G124: 642220 | I124: -395997 | J124: =-5713-62208 -> -67921 | L124: -463918 | M124: 178302
A125: 50 | B125: 1611 | C125: Computer Software (Formally known as Account 1925) | D125: 2765069 | E125: 196000 | G125: =D125+E125+F125 -> 2961069 | I125: -2101504 | J125: =-19600-304894 -> -324494 | L125: =I125+J125+K125 -> -2425998 | M125: =G125+L125 -> 535071
A126: 10 | B126: 1930 | C126: Transportation Equipment - Bucket Trucks | D126: 1759603 | E126: 207000 | G126: =D126+E126+F126 -> 1966603 | I126: -904828 | J126: =-8625-88609 -> -97234 | L126: =I126+J126+K126 -> -1002062 | M126: =G126+L126 -> 964541
A127: 10 | B127: 1930 | C127: Transportation Equipment - Pickups and Vans | D127: 364206 | E127: 40281 | G127: =D127+E127+F127 -> 404487 | I127: -227321 | J127: =-2518-36487 -> -39005 | L127: =I127+J127+K127 -> -266326 | M127: =G127+L127 -> 138161
A128: 10 | B128: 1930 | C128: Transportation Equipment - Trailers | D128: 83837 | G128: 83837 | I128: -51151 | J128: -2000 | L128: -53151 | M128: 30686
A129: 8 | B129: 1940 | C129: Tools, Shop & Garage Equipment | D129: 795038 | E129: 35685 | G129: 830723 | I129: -451778 | J129: =-1784-57797 -> -59581 | L129: -511359 | M129: 319364
A130: 8 | B130: 1955 | C130: Communications Equipment | D130: 68074 | G130: 68074 | I130: -57942 | J130: -3860 | L130: -61802 | M130: 6272
A131: 47 | B131: 1995 | C131: Contributions & Grants - Wood Poles | D131: -739792 | E131: -88153 | G131: -827945 | I131: 184802 | J131: =882+12647-1 -> 13528 | L131: 198330 | M131: -629615
A132: 47 | B132: 1995 | C132: Contributions & Grants - Metal / Concrete Poles | D132: 0 | G132: 0 | I132: 0 | J132: 0 | L132: 0 | M132: 0
A133: 47 | B133: 1995 | C133: Contributions & Grants - O/H Conductor | D133: -206948 | E133: -5254 | G133: -212202 | I133: 39943 | J133: =53+3705 -> 3758 | L133: 43701 | M133: -168501
A134: 47 | B134: 1995 | C134: Contributions & Grants - O/H Line Switches | D134: -8391 | G134: -8391 | I134: 1722 | J134: =167 -> 167 | L134: 1889 | M134: -6502
A135: 47 | B135: 1995 | C135: Contributions & Grants - O/H Reclosures | D135: -7345 | G135: -7345 | I135: 1507 | J135: 167 | L135: 1674 | M135: -5671
A136: 47 | B136: 1995 | C136: Contributions & Grants - U/G Conduit | D136: -303943 | E136: -116303 | G136: -420246 | I136: 66336 | J136: =1163+5331 -> 6494 | L136: 72830 | M136: -347416
A137: 47 | B137: 1995 | C137: Contributions & Grants - U/G Conductor (Non-Duct) | D137: -1081893 | G137: -1081893 | I137: 263019 | J137: 34702 | L137: 297721 | M137: -784172
A138: 47 | B138: 1995 | C138: Contributions & Grants - U/G Conductor (In Duct) | D138: -242982 | E138: -310010 | G138: =D138+E138+F138 -> -552992 | I138: 59071 | J138: =3875+5458 -> 9333 | L138: =I138+J138+K138 -> 68404 | M138: =G138+L138 -> -484588
A139: 47 | B139: 1995 | C139: Contributions & Grants - Pole Top Transformers | D139: -668018 | E139: -31658 | G139: -699676 | I139: 179942 | J139: =396+14713 -> 15109 | L139: 195051 | M139: -504625
A140: 47 | B140: 1995 | C140: Contributions & Grants - Padmount Transformers | D140: -171269 | E140: -78787 | G140: =D140+E140+F140 -> -250056 | I140: 46091 | J140: =985+3773 -> 4758 | L140: =I140+J140+K140 -> 50849 | M140: =G140+L140 -> -199207
A141: 47 | B141: 1995 | C141: Contributions & Grants - Step-Down Transformers | D141: -22227 | G141: -22227 | I141: 5982 | J141: 490 | L141: 6472 | M141: -15755
A142: 47 | B142: 1995 | C142: Contributions & Grants - O/H Services | D142: -149478 | E142: -20126 | G142: -169604 | I142: 40101 | J142: =168+2055 -> 2223 | L142: 42324 | M142: -127280
A143: 47 | B143: 1995 | C143: Contributions & Grants - U/G Services | D143: -258042 | E143: -23692 | G143: -281734 | I143: 69225 | J143: =338+6718 -> 7056 | L143: 76281 | M143: -205453
A144: 47 | B144: 1995 | C144: Contributions & Grants - Primary Metering Units | D144: -156852 | G144: =D144+E144+F144 -> -156852 | I144: 21959 | J144: 8431 | L144: =I144+J144+K144 -> 30390 | M144: =G144+L144 -> -126462
A145: 47 | B145: 1995 | C145: Contributions & Grants - Intervals & Other Metering Equipment | D145: -28461 | E145: -1158 | G145: -29619 | I145: 6242 | J145: =39+2742 -> 2781 | L145: 9023 | M145: -20596
A146: 47 | B146: 1995 | C146: Contributions & Grants - Smart Meters | D146: -98031 | E146: -6663 | G146: -104694 | I146: 21501 | J146: =222+9445 -> 9667 | L146: 31168 | M146: -73526
B147: etc.
C148: Sub-Total | D148: =SUM(D98:D147) -> 71205185 | E148: =SUM(E98:E147) -> 5501010 | F148: =SUM(F98:F147) -> -1666572 | G148: =SUM(G98:G147) -> 75039623 | I148: =SUM(I98:I147) -> -29310689 | J148: =SUM(J98:J147) -> -2157353 | K148: =SUM(K98:K147) -> 1182640 | L148: =SUM(L98:L147) -> -30285402 | M148: =SUM(M98:M147) -> 44754221
C149: Less Socialized Renewable Energy Generation Investments (input as negative) | G149: =D149+E149+F149 -> 0 | L149: =I149+J149+K149 -> 0 | M149: =G149+L149 -> 0
C150: Less Other Non Rate-Regulated Utility Assets (input as negative) | G150: 0 | L150: 0 | M150: 0
C151: Total PP&E | D151: =SUM(D148:D150) -> 71205185 | E151: =SUM(E148:E150) -> 5501010 | F151: -1666572 | G151: 75039623 | I151: =SUM(I148:I150) -> -29310689 | J151: -2157353 | K151: 1182640 | L151: -30285402 | M151: 44754221
G153: Less: CDM-OPA Allocated Costs - Depreciation Expense
G154: Building | J154: 946
G155: Office Equipment | J155: 421
G156: Computer Hardware | J156: 1243
G157: Computer Software | J157: 1207
G158: Net Depreciation Expense | J158: =J151+(J154+J155+J156+J157) -> -2153536
A161: Appendix 2-BA
A162: Fixed Asset Continuity Schedule - CGAAP/ASPE/USGAAP
E164: Year | F164: 2013 | G164: Former CGAAP - Without Accounting Change to Useful Lives
D166: Cost | J166: Accumulated Depreciation
A167: CCA Class | B167: OEB | C167: Description | D167: Opening Balance | E167: Additions | F167: Disposals | G167: Closing Balance | I167: Opening Balance | J167: Additions | K167: Disposals | L167: Closing Balance | M167: Net Book Value
A168: CEC | B168: 1609 | C168: Distribution Station Equipment <50 kV - Capital Contribution Paid | D168: 0 | E168: 29835 | G168: =D168+E168+F168 -> 29835 | I168: 0 | J168: =-17763-J169 -> -497 | L168: =I168+J168+K168 -> -497 | M168: =G168+L168 -> 29338
A169: 47 | B169: 1820 | C169: Distribution Station Equipment <50 kV | D169: 466497 | G169: =D169+E169+F169 -> 466497 | I169: -185350 | J169: -17266 | L169: =I169+J169+K169 -> -202616 | M169: =G169+L169 -> 263881
A170: 47 | B170: 1830 | C170: Poles, Towers & Fixtures | D170: 20627452 | E170: 1907831 | G170: 22535283 | I170: -9325608 | J170: -995416 | L170: -10321024 | M170: 12214259
A171: 47 | B171: 1835 | C171: Overhead Conductors & Devices | D171: 13556975 | E171: 1249008 | G171: 14805983 | I171: -4174410 | J171: -612066 | L171: -4786476 | M171: 10019507
A172: 47 | B172: 1840 | C172: Underground Conduit | D172: 1366196 | E172: 456855 | G172: 1823051 | I172: -147380 | J172: -65486 | L172: -212866 | M172: 1610185
A173: 47 | B173: 1845 | C173: Underground Conductors & Devices | D173: 7702253 | E173: 749544 | G173: 8451797 | I173: -3666462 | J173: -336723 | L173: -4003185 | M173: 4448612
A174: 47 | B174: 1850 | C174: Line Transformers | D174: 12387905 | E174: 859557 | G174: 13247462 | I174: -4738267 | J174: -520610 | L174: -5258877 | M174: 7988585
A175: 47 | B175: 1855 | C175: Services (Overhead & Underground) | D175: 2683092 | E175: 240643 | G175: 2923735 | I175: -830444 | J175: -112750 | L175: -943194 | M175: 1980541
A176: 47 | B176: 1860 | C176: Meters | D176: =6758883-D177 -> 3034121 | E176: =148450-E177 -> 30060 | F176: -1666572 | G176: 1397609 | I176: =-2070790-I177 -> -1313129 | J176: =-369870-J177 -> -122797 | K176: 1182640 | L176: -253286 | M176: 1144323
A177: 47 | B177: 1860 | C177: Smart Meters | D177: 3724762 | E177: 118390 | G177: =D177+E177+F177 -> 3843152 | I177: -757661 | J177: -247073 | L177: =I177+J177+K177 -> -1004734 | M177: =G177+L177 -> 2838418
A178: N/A | B178: 1905 | C178: Land | D178: 127139 | G178: 127139 | L178: 0 | M178: 127139
A179: CEC | B179: 1612 | C179: Land Rights (Formally known as Account 1906) | D179: 695389 | G179: =D179+E179+F179 -> 695389 | I179: -259892 | J179: -20720 | L179: =I179+J179+K179 -> -280612 | M179: =G179+L179 -> 414777
A180: 1 b | B180: 1908 | C180: Buildings & Fixtures | D180: 2190518 | G180: 2190518 | I180: -467768 | J180: -51715 | L180: -519483 | M180: 1671035
A181: 8 | B181: 1915 | C181: Office Furniture & Equipment (10 years) | D181: 365636 | E181: 5000 | G181: 370636 | I181: -261240 | J181: -23021 | L181: -284261 | M181: 86375
A182: 50 | B182: 1920 | C182: Computer Equipment - Hardware | D182: 585095 | E182: 57125 | G182: 642220 | I182: -395997 | J182: -67921 | L182: -463918 | M182: 178302
A183: 50 | B183: 1611 | C183: Computer Software (Formally known as Account 1925) | D183: 2765069 | E183: 196000 | G183: =D183+E183+F183 -> 2961069 | I183: -2101504 | J183: -324494 | L183: =I183+J183+K183 -> -2425998 | M183: =G183+L183 -> 535071
A184: 10 | B184: 1930 | C184: Transportation Equipment | D184: 2207646 | E184: 247281 | G184: 2454927 | I184: -1183300 | J184: -206206 | L184: -1389506 | M184: 1065421
A185: 8 | B185: 1940 | C185: Tools, Shop & Garage Equipment | D185: 795038 | E185: 35685 | G185: 830723 | I185: -451778 | J185: -59581 | L185: -511359 | M185: 319364
A186: 8 | B186: 1955 | C186: Communications Equipment | D186: 68074 | G186: 68074 | I186: -57942 | J186: -3860 | L186: -61802 | M186: 6272
A187: 47 | B187: 1995 | C187: Contributions & Grants | D187: -4143672 | E187: -681804 | G187: -4825476 | I187: 1007443 | J187: 171665 | L187: 1179108 | M187: -3646368
B188: etc.
C189: Sub-Total | D189: =SUM(D168:D188) -> 71205185 | E189: =SUM(E168:E188) -> 5501010 | F189: =SUM(F168:F188) -> -1666572 | G189: =SUM(G168:G188) -> 75039623 | I189: =SUM(I168:I188) -> -29310689 | J189: =SUM(J168:J188) -> -3616537 | K189: =SUM(K168:K188) -> 1182640 | L189: =SUM(L168:L188) -> -31744586 | M189: =SUM(M168:M188) -> 43295037
C190: Less Socialized Renewable Energy Generation Investments (input as negative) | G190: =D190+E190+F190 -> 0 | L190: =I190+J190+K190 -> 0 | M190: =G190+L190 -> 0
C191: Less Other Non Rate-Regulated Utility Assets (input as negative) | G191: 0 | L191: 0 | M191: 0
C192: Total PP&E | D192: =SUM(D189:D191) -> 71205185 | E192: =SUM(E189:E191) -> 5501010 | F192: -1666572 | G192: 75039623 | I192: =SUM(I189:I191) -> -29310689 | J192: -3616537 | K192: 1182640 | L192: -31744586 | M192: 43295037
G194: Less: CDM-OPA Allocated Costs - Depreciation Expense
G195: Building | J195: 946
G196: Office Equipment | J196: 421
G197: Computer Hardware | J197: 1243
G198: Computer Software | J198: 1207
G199: Net Depreciation Expense | J199: =J192+(J195+J196+J197+J198) -> -3612720
A202: Appendix 2-BA
A203: Fixed Asset Continuity Schedule - CGAAP/ASPE/USGAAP
E205: Year | F205: 2012
D207: Cost | J207: Accumulated Depreciation
A208: CCA Class | B208: OEB | C208: Description | D208: Opening Balance | E208: Additions | F208: Disposals | G208: Closing Balance | I208: Opening Balance | J208: Additions | K208: Disposals | L208: Closing Balance | M208: Net Book Value
A209: 47 | B209: 1820 | C209: Distribution Station Equipment <50 kV | D209: 466497 | G209: =D209+E209+F209 -> 466497 | I209: -168055 | J209: -17295 | L209: =I209+J209+K209 -> -185350 | M209: =G209+L209 -> 281147
A210: 47 | B210: 1830 | C210: Poles, Towers & Fixtures | D210: 19408683 | E210: 1218769 | G210: 20627452 | I210: -8403354 | J210: -922254 | L210: -9325608 | M210: 11301844
A211: 47 | B211: 1835 | C211: Overhead Conductors & Devices | D211: 11757488 | E211: 1799487 | G211: 13556975 | I211: -3618951 | J211: -555459 | L211: -4174410 | M211: 9382565
A212: 47 | B212: 1840 | C212: Underground Conduit | D212: 633781 | E212: 732415 | G212: 1366196 | I212: -118996 | J212: -28384 | L212: -147380 | M212: 1218816
A213: 47 | B213: 1845 | C213: Underground Conductors & Devices | D213: 7292189 | E213: 410064 | G213: 7702253 | I213: -3352501 | J213: -313961 | L213: -3666462 | M213: 4035791
A214: 47 | B214: 1850 | C214: Line Transformers | D214: 11614068 | E214: 773837 | G214: 12387905 | I214: -4246092 | J214: -492175 | L214: -4738267 | M214: 7649638
A215: 47 | B215: 1855 | C215: Services (Overhead & Underground) | D215: 2551801 | E215: 131291 | G215: 2683092 | I215: -724980 | J215: -105464 | L215: -830444 | M215: 1852648
A216: 47 | B216: 1860 | C216: Meters | D216: 3131706 | E216: =3628828-E217 -> -95933 | F216: -1651 | G216: 3034122 | I216: -1196056 | J216: =-875448-J217 -> -117787 | K216: 714 | L216: -1313129 | M216: 1720993
A217: 47 | B217: 1860 | C217: Smart Meters | D217: 0 | E217: 3724761 | G217: =D217+E217+F217 -> 3724761 | I217: 0 | J217: -757661 | L217: =I217+J217+K217 -> -757661 | M217: =G217+L217 -> 2967100
A218: N/A | B218: 1905 | C218: Land | D218: 131279 | F218: -4140 | G218: 127139 | L218: 0 | M218: 127139
A219: CEC | B219: 1612 | C219: Land Rights (Formally known as Account 1906) | D219: 695389 | G219: =D219+E219+F219 -> 695389 | I219: -239115 | J219: -20777 | L219: =I219+J219+K219 -> -259892 | M219: =G219+L219 -> 435497
A220: 1 b | B220: 1908 | C220: Buildings & Fixtures | D220: 2168016 | E220: 22502 | G220: 2190518 | I220: -416248 | J220: -51520 | L220: -467768 | M220: 1722750
A221: 8 | B221: 1915 | C221: Office Furniture & Equipment (10 years) | D221: 363142 | E221: 4711 | F221: -2217 | G221: 365636 | I221: -233220 | J221: -29830 | K221: 1810 | L221: -261240 | M221: 104396
A222: 50 | B222: 1920 | C222: Computer Equipment - Hardware | D222: 517537 | E222: 118989 | F222: -51431 | G222: 585095 | I222: -366498 | J222: -79968 | K222: 50469 | L222: -395997 | M222: 189098
A223: 50 | B223: 1611 | C223: Computer Software (Formally known as Account 1925) | D223: 2584483 | E223: 231088 | F223: -50502 | G223: =D223+E223+F223 -> 2765069 | I223: -1790777 | J223: -360638 | K223: 49911 | L223: =I223+J223+K223 -> -2101504 | M223: =G223+L223 -> 663565
A224: 10 | B224: 1930 | C224: Transportation Equipment | D224: 2087570 | E224: 186784 | F224: -66708 | G224: 2207646 | I224: -1061751 | J224: -188244 | K224: 66695 | L224: -1183300 | M224: 1024346
A225: 8 | B225: 1940 | C225: Tools, Shop & Garage Equipment | D225: 707839 | E225: 87199 | G225: 795038 | I225: -395186 | J225: -56592 | L225: -451778 | M225: 343260
A226: 8 | B226: 1955 | C226: Communications Equipment | D226: 68074 | G226: 68074 | I226: -54081 | J226: -3861 | L226: -57942 | M226: 10132
... 74 more rows

Sheet App.2-BA2_Fix Asset Cont.MIFRS (hidden)
L1: File Number: | M1: =EBNUMBER -> EB-2013-0134
L2: Exhibit:
L3: Tab:
L4: Schedule:
L5: Page:
L7: Date:
A9: Appendix 2-BA
A10: Fixed Asset Continuity Schedule - MIFRS
E12: Year
D14: Cost | J14: Accumulated Depreciation
A15: CCA Class | B15: OEB | C15: Description | D15: Opening Balance | E15: Additions | F15: Disposals | G15: Closing Balance | I15: Opening Balance | J15: Additions | K15: Disposals | L15: Closing Balance | M15: Net Book Value
A16: 12 | B16: 1611 | C16: Computer Software (Formally known as Account 1925) | G16: =D16+E16+F16 -> 0 | L16: =I16+J16+K16 -> 0 | M16: =G16+L16 -> 0
A17: CEC | B17: 1612 | C17: Land Rights (Formally known as Account 1906) | G17: =D17+E17+F17 -> 0 | L17: =I17+J17+K17 -> 0 | M17: =G17+L17 -> 0
A18: N/A | B18: 1805 | C18: Land | G18: =D18+E18+F18 -> 0 | L18: =I18+J18+K18 -> 0 | M18: =G18+L18 -> 0
A19: 47 | B19: 1808 | C19: Buildings | G19: =D19+E19+F19 -> 0 | L19: =I19+J19+K19 -> 0 | M19: =G19+L19 -> 0
A20: 13 | B20: 1810 | C20: Leasehold Improvements | G20: 0 | L20: 0 | M20: 0
A21: 47 | B21: 1815 | C21: Transformer Station Equipment >50 kV | G21: 0 | L21: 0 | M21: 0
A22: 47 | B22: 1820 | C22: Distribution Station Equipment <50 kV | G22: 0 | L22: 0 | M22: 0
A23: 47 | B23: 1825 | C23: Storage Battery Equipment | G23: 0 | L23: 0 | M23: 0
A24: 47 | B24: 1830 | C24: Poles, Towers & Fixtures | G24: 0 | L24: 0 | M24: 0
A25: 47 | B25: 1835 | C25: Overhead Conductors & Devices | G25: 0 | L25: 0 | M25: 0
A26: 47 | B26: 1840 | C26: Underground Conduit | G26: 0 | L26: 0 | M26: 0
A27: 47 | B27: 1845 | C27: Underground Conductors & Devices | G27: 0 | L27: 0 | M27: 0
A28: 47 | B28: 1850 | C28: Line Transformers | G28: 0 | L28: 0 | M28: 0
A29: 47 | B29: 1855 | C29: Services (Overhead & Underground) | G29: 0 | L29: 0 | M29: 0
A30: 47 | B30: 1860 | C30: Meters | G30: 0 | L30: 0 | M30: 0
A31: 47 | B31: 1860 | C31: Meters (Smart Meters) | G31: 0 | L31: 0 | M31: 0
A32: N/A | B32: 1905 | C32: Land | G32: 0 | L32: 0 | M32: 0
A33: 47 | B33: 1908 | C33: Buildings & Fixtures | G33: 0 | L33: 0 | M33: 0
A34: 13 | B34: 1910 | C34: Leasehold Improvements | G34: 0 | L34: 0 | M34: 0
A35: 8 | B35: 1915 | C35: Office Furniture & Equipment (10 years) | G35: 0 | L35: 0 | M35: 0
A36: 8 | B36: 1915 | C36: Office Furniture & Equipment (5 years) | G36: 0 | L36: 0 | M36: 0
A37: 10 | B37: 1920 | C37: Computer Equipment - Hardware | G37: 0 | L37: 0 | M37: 0
A38: 45 | B38: 1920 | C38: Computer Equip.-Hardware(Post Mar. 22/04) | G38: 0 | L38: 0 | M38: 0
A39: 45.1 | B39: 1920 | C39: Computer Equip.-Hardware(Post Mar. 19/07) | G39: 0 | L39: 0 | M39: 0
A40: 10 | B40: 1930 | C40: Transportation Equipment | G40: 0 | L40: 0 | M40: 0
A41: 8 | B41: 1935 | C41: Stores Equipment | G41: 0 | L41: 0 | M41: 0
A42: 8 | B42: 1940 | C42: Tools, Shop & Garage Equipment | G42: 0 | L42: 0 | M42: 0
A43: 8 | B43: 1945 | C43: Measurement & Testing Equipment | G43: 0 | L43: 0 | M43: 0
A44: 8 | B44: 1950 | C44: Power Operated Equipment | G44: 0 | L44: 0 | M44: 0
A45: 8 | B45: 1955 | C45: Communications Equipment | G45: 0 | L45: 0 | M45: 0
A46: 8 | B46: 1955 | C46: Communication Equipment (Smart Meters) | G46: 0 | L46: 0 | M46: 0
A47: 8 | B47: 1960 | C47: Miscellaneous Equipment | G47: 0 | L47: 0 | M47: 0
A48: 47 | B48: 1970 | C48: Load Management Controls Customer Premises | G48: 0 | L48: 0 | M48: 0
A49: 47 | B49: 1975 | C49: Load Management Controls Utility Premises | G49: 0 | L49: 0 | M49: 0
A50: 47 | B50: 1980 | C50: System Supervisor Equipment | G50: 0 | L50: 0 | M50: 0
A51: 47 | B51: 1985 | C51: Miscellaneous Fixed Assets | G51: 0 | L51: 0 | M51: 0
A52: 47 | B52: 1990 | C52: Other Tangible Property | G52: 0 | L52: 0 | M52: 0
A53: 47 | B53: 1995 | C53: Contributions & Grants | G53: 0 | L53: 0 | M53: 0
B54: etc. | G54: 0 | L54: 0 | M54: 0
G55: 0 | L55: 0 | M55: 0
C56: Sub-Total | D56: =SUM(D16:D55) -> 0 | E56: =SUM(E16:E55) -> 0 | F56: 0 | G56: 0 | I56: =SUM(I16:I55) -> 0 | J56: =SUM(J16:J55) -> 0 | K56: 0 | L56: 0 | M56: 0
C57: Less Socialized Renewable Energy Generation Investments (input as negative) | G57: =D57+E57+F57 -> 0 | L57: =I57+J57+K57 -> 0 | M57: =G57+L57 -> 0
C58: Less Other Non Rate-Regulated Utility Assets (input as negative) | G58: 0 | L58: 0 | M58: 0
C59: Total PP&E | D59: =SUM(D56:D58) -> 0 | E59: =SUM(E56:E58) -> 0 | F59: 0 | G59: 0 | I59: =SUM(I56:I58) -> 0 | J59: 0 | K59: 0 | L59: 0 | M59: 0
C60: Depreciation Expense adj. from gain or loss on the retirement of assets (pool of like assets)
C61: Total | J61: =J59+J60 -> 0
I63: Less: Fully Allocated Depreciation
A64: 10 | C64: Transportation | I64: Transportation
A65: 8 | C65: Stores Equipment | I65: Stores Equipment
I66: Net Depreciation | K66: =J61-K64-K65 -> 0
A68: Notes:
A70: 1 | B70: Tables in the format outlined above covering all fixed asset accounts should be submitted for the Test Year, Bridge Year and all relevant historical years. At a minimum , the applicant must provide data for the earlier of: 1) all historical years back to its last rebasing; or 2) at least three years of historical actuals, in addition to Bridge Year and Test Year forecasts.
A73: 2 | B73: The "CCA Class" for fixed assets should agree with the CCA Class used for tax purposes in Tax Returns. Fixed Assets sub-components may be used where the underlying asset components are classified under multiple CCA Classes for tax purposes. If an applicant uses any different classes from those shown in the table, an explanation should be provided. (also see note 3 below).
A76: 3 | B76: The table may need to be customized for a utility's asset categories or for any new asset accounts announced or authorized by the Board.
A78: 4 | B78: The additions column (F) must not include construction work in progress (CWIP).

Sheet Appendix 2-BB Service Life Comp
M1: File Number: | O1: =EBNUMBER -> EB-2013-0134
M2: Exhibit: | O2: 4
M3: Tab: | O3: 3
M4: Schedule: | O4: 1
M5: Page: | O5: 2
M7: Date: | O7: 2013-11-15
A9: Appendix 2-BB
A10: Service Life Comparison
A11: Table F-1 from Kinetrics Report1
C15: Asset Details | F15: Useful Life | J15: USoA Account Number | K15: USoA Account Description | L15: Current | N15: Proposed
A16: Parent* | B16: # | C16: Category| Component | Type | F16: MIN UL | G16: TUL | H16: MAX UL | L16: Years | M16: Rate | N16: Years | O16: Rate
A17: OH | B17: 1 | C17: Fully Dressed Wood Poles | D17: Overall | F17: 35 | G17: 45 | H17: 75 | J17: 1830 | K17: Poles, Towers, and Fixtures | L17: 25 | M17: =IF(ISERROR(1/L17), "", 1/L17) -> 0.04 | N17: 50 | O17: =IF(ISERROR(1/N17), "", 1/N17) -> 0.02
D18: Cross Arm | E18: Wood | F18: 20 | G18: 40 | H18: 55 | M18: =IF(ISERROR(1/L18), "", 1/L18) ->  | O18: =IF(ISERROR(1/N18), "", 1/N18) -> 
E19: Steel | F19: 30 | G19: 70 | H19: 95
B20: 2 | C20: Fully Dressed Concrete Poles | D20: Overall | F20: 50 | G20: 60 | H20: 80 | J20: 1830 | K20: Poles, Towers, and Fixtures | L20: 25 | M20: 0.04 | N20: 60 | O20: 0.01666666667
D21: Cross Arm | E21: Wood | F21: 20 | G21: 40 | H21: 55
E22: Steel | F22: 30 | G22: 70 | H22: 95
B23: 3 | C23: Fully Dressed Steel Poles | D23: Overall | F23: 60 | G23: 60 | H23: 80 | J23: 1830 | K23: Poles, Towers, and Fixtures | L23: 25 | M23: 0.04 | N23: 60 | O23: 0.01666666667
D24: Cross Arm | E24: Wood | F24: 20 | G24: 40 | H24: 55
E25: Steel | F25: 30 | G25: 70 | H25: 95
B26: 4 | C26: OH Line Switch | F26: 30 | G26: 45 | H26: 55 | J26: 1835 | K26: Overhead Conductor and Devices | L26: 25 | M26: 0.04 | N26: 45 | O26: 0.02222222222
B27: 5 | C27: OH Line Switch Motor | F27: 15 | G27: 25 | H27: 25
B28: 6 | C28: OH Line Switch RTU | F28: 15 | G28: 20 | H28: 20
B29: 7 | C29: OH Integral Switches | F29: 35 | G29: 45 | H29: 60
B30: 8 | C30: OH Conductors | F30: 50 | G30: 60 | H30: 75 | J30: 1835 | K30: Overhead Conductor and Devices | L30: 25 | M30: =IF(ISERROR(1/L30), "", 1/L30) -> 0.04 | N30: 50 | O30: =IF(ISERROR(1/N30), "", 1/N30) -> 0.02
B31: 8 | C31: OH Conductors | F31: 50 | G31: 60 | H31: 75 | J31: 1855 | K31: Services | L31: 25 | M31: 0.04 | N31: 60 | O31: 0.01666666667
B32: 9 | C32: OH Transformers & Voltage Regulators | F32: 30 | G32: 40 | H32: 60 | J32: 1850 | K32: Line Transformers | L32: 25 | M32: 0.04 | N32: 40 | O32: 0.025
B33: 10 | C33: OH Shunt Capacitor Banks | F33: 25 | G33: 30 | H33: 40
B34: 11 | C34: Reclosers | F34: 25 | G34: 40 | H34: 55 | J34: 1835 | K34: Overhead Conductor and Devices | L34: 25 | M34: 0.04 | N34: 40 | O34: 0.025
A35: TS & MS | B35: 12 | C35: Power Transformers | D35: Overall | F35: 30 | G35: 45 | H35: 60 | J35: 1820 | K35: Distribution Station Equipment | L35: 30 | M35: 0.03333333333 | N35: 45 | O35: 0.02222222222
D36: Bushing | F36: 10 | G36: 20 | H36: 30
D37: Tap Changer | F37: 20 | G37: 30 | H37: 60
B38: 13 | C38: Station Service Transformer | F38: 30 | G38: 45 | H38: 55
B39: 14 | C39: Station Grounding Transformer | F39: 30 | G39: 40 | H39: 40
B40: 15 | C40: Station DC System | D40: Overall | F40: 10 | G40: 20 | H40: 30
D41: Battery Bank | F41: 10 | G41: 15 | H41: 15
D42: Charger | F42: 20 | G42: 20 | H42: 30
B43: 16 | C43: Station Metal Clad Switchgear | D43: Overall | F43: 30 | G43: 40 | H43: 60
D44: Removable Breaker | F44: 25 | G44: 40 | H44: 60
B45: 17 | C45: Station Independent Breakers | F45: 35 | G45: 45 | H45: 65 | J45: 1820 | K45: Distribution Station Equipment | L45: 30 | M45: 0.03333333333 | N45: 45 | O45: 0.02222222222
B46: 18 | C46: Station Switch | F46: 30 | G46: 50 | H46: 60
B47: 19 | C47: Electromechanical Relays | F47: 25 | G47: 35 | H47: 50
B48: 20 | C48: Solid State Relays | F48: 10 | G48: 30 | H48: 45
B49: 21 | C49: Digital & Numeric Relays | F49: 15 | G49: 20 | H49: 20
B50: 22 | C50: Rigid Busbars | F50: 30 | G50: 55 | H50: 60
B51: 23 | C51: Steel Structure | F51: 35 | G51: 50 | H51: 90
A52: UG | B52: 24 | C52: Primary Paper Insulated Lead Covered (PILC) Cables | F52: 60 | G52: 65 | H52: 75
B53: 25 | C53: Primary Ethylene-Propylene Rubber (EPR) Cables | F53: 20 | G53: 25 | H53: 25
B54: 26 | C54: Primary Non-Tree Retardant (TR) Cross Linked Polyethylene (XLPE) Cables Direct Buried | F54: 20 | G54: 25 | H54: 30
B55: 27 | C55: Primary Non-TR XLPE Cables in Duct | F55: 20 | G55: 25 | H55: 30
B56: 28 | C56: Primary TR XLPE Cables Direct Buried | F56: 25 | G56: 30 | H56: 35 | J56: 1845 | K56: Underground Conductors and Devices | L56: 25 | M56: 0.04 | N56: 35 | O56: 0.02857142857
B57: 29 | C57: Primary TR XLPE Cables in Duct | F57: 35 | G57: 40 | H57: 55 | J57: 1845 | K57: Underground Conductors and Devices | L57: 25 | M57: 0.04 | N57: 40 | O57: 0.025
B58: 30 | C58: Secondary PILC Cables | F58: 70 | G58: 75 | H58: 80
B59: 31 | C59: Secondary Cables Direct Buried | F59: 25 | G59: 35 | H59: 40 | J59: 1855 | K59: Services | L59: 25 | M59: 0.04 | N59: 35 | O59: 0.02857142857
B60: 32 | C60: Secondary Cables in Duct | F60: 35 | G60: 40 | H60: 60
B61: 33 | C61: Network Tranformers | D61: Overall | F61: 20 | G61: 35 | H61: 50
D62: Protector | F62: 20 | G62: 35 | H62: 40
B63: 34 | C63: Pad-Mounted Transformers | F63: 25 | G63: 40 | H63: 45 | J63: 1850 | K63: Line Transformers | L63: 25 | M63: 0.04 | N63: 40 | O63: 0.025
B64: 35 | C64: Submersible/Vault Transformers | F64: 25 | G64: 35 | H64: 45
B65: 36 | C65: UG Foundation | F65: 35 | G65: 55 | H65: 70
B66: 37 | C66: UG Vaults | D66: Overall | F66: 40 | G66: 60 | H66: 80
D67: Roof | F67: 20 | G67: 30 | H67: 45
B68: 38 | C68: UG Vault Switches | F68: 20 | G68: 35 | H68: 50
B69: 39 | C69: Pad-Mounted Switchgear | F69: 20 | G69: 30 | H69: 45 | J69: 1845 | K69: Underground Conductors and Devices | L69: 25 | M69: 0.04 | N69: 30 | O69: 0.03333333333
B70: 40 | C70: Ducts | F70: 30 | G70: 50 | H70: 85 | J70: 1840 | K70: Underground Conduit | L70: 25 | M70: 0.04 | N70: 50 | O70: 0.02
B71: 41 | C71: Concrete Encased Duct Banks | F71: 35 | G71: 55 | H71: 80
B72: 42 | C72: Cable Chambers | F72: 50 | G72: 60 | H72: 80
A73: S | B73: 43 | C73: Remote SCADA | F73: 15 | G73: 20 | H73: 30
A76: Table F-2 from Kinetrics Report1
C78: Asset Details | F78: Useful Life Range | J78: USoA Account Number | K78: USoA Account Description | L78: Current | N78: Proposed
B79: # | C79: Category| Component | Type | L79: Years | M79: Rate | N79: Years | O79: Rate
B80: 1 | C80: Office Equipment | F80: 5-15 | J80: 1915 | K80: Office Furniture and Equipment | L80: 10 | M80: =IF(ISERROR(1/L80), "", 1/L80) -> 0.1 | N80: 10 | O80: =IF(ISERROR(1/N80), "", 1/N80) -> 0.1
B81: 2 | C81: Vehicles | D81: Trucks & Buckets | F81: 5-15 | J81: 1930 | K81: Transportation Equipment | L81: 8 | M81: =IF(ISERROR(1/L81), "", 1/L81) -> 0.125 | N81: 12 | O81: =IF(ISERROR(1/N81), "", 1/N81) -> 0.08333333333
D82: Trailers | F82: 5-20 | J82: 1930 | K82: Transportation Equipment | L82: 8 | M82: 0.125 | N82: 20 | O82: 0.05
D83: Vans | F83: 5-10 | J83: 1930 | K83: Transportation Equipment | L83: 8 | M83: 0.125 | N83: 8 | O83: 0.125
B84: 3 | C84: Administrative Buildings | F84: 50-75 | J84: 1908 | K84: Buildings and Fixtures | L84: 50 | M84: 0.02 | N84: 50 | O84: 0.02
B85: 4 | C85: Leasehold Improvements | F85: Lease dependent
B86: 5 | C86: Station Buildings | D86: Station Buildings | F86: 50-75
D87: Parking | F87: 25-30
D88: Fence | F88: 25-60
D89: Roof | F89: 20-30
B90: 6 | C90: Computer Equipment | D90: Hardware | F90: 3-5 | J90: 1920 | K90: Computer Equipment - Hardware | L90: 5 | M90: 0.2 | N90: 5 | O90: 0.2
D91: Software | F91: 2-5 | J91: 1611 | K91: Computer Software (formerly a/c 1925) | L91: 5 | M91: 0.2 | N91: 5 | O91: 0.2
B92: 7 | C92: Equipment | D92: Power Operated | F92: 5-10
D93: Stores | F93: 5-10
D94: Tools, Shop, Garage Equipment | F94: 5-10 | J94: 1940 | K94: Tools, Shop and Garage Equipment | L94: 10 | M94: 0.1 | N94: 10 | O94: 0.1
D95: Measurement & Testing Equipment | F95: 5-10
B96: 8 | C96: Communication | D96: Towers | F96: 60-70
D97: Wireless | F97: 2-10 | J97: 1955 | K97: Communication Equipment | L97: 5 | M97: 0.2 | N97: 5 | O97: 0.2
B98: 9 | C98: Residential Energy Meters | F98: 25-35 | J98: 1860 | K98: Meters | L98: 25 | M98: 0.04 | N98: 25 | O98: 0.04
B99: 10 | C99: Industrial/Commercial Energy Meters | F99: 25-35 | J99: 1860 | K99: Meters | L99: 25 | M99: 0.04 | N99: 15 | O99: 0.06666666667
B100: 11 | C100: Wholesale Energy Meters | F100: 15-30 | J100: 1860 | K100: Meters | L100: 25 | M100: 0.04 | N100: 20 | O100: 0.05
B101: 12 | C101: Current & Potential Transformer (CT & PT) | F101: 35-50 | J101: 1860 | K101: Meters | L101: 25 | M101: 0.04 | N101: 15 | O101: 0.06666666667
B102: 13 | C102: Smart Meters | F102: 5-15 | J102: 1860 | K102: Meters | L102: 15 | M102: 0.06666666667 | N102: 15 | O102: 0.06666666667
B103: 14 | C103: Repeaters - Smart Metering | F103: 10-15
B104: 15 | C104: Data Collectors - Smart Metering | F104: 15-20
A107: * TS & MS = Transformer and Municipal Stations UG = Underground Systems S = Monitoring and Control Systems
A109: Note 1: | B109: Tables F-1 and F-2 above are to be used as a reference in order to complete columns J, K, L and N.
B110: See pages 17-19 of Kinetrics Report

Sheet Instruction for App. 2-C MIFRS (hidden)
A1: General Instructions to MIFRS Appendices
A2: Types of Schedules to File
A4: The purpose of this tab is to provide general instructions. The specific instructions to each appendix are listed in footnotes to each appendix.
A6: Applicants filing a MIFRS application should provide the following information regarding Appendix 2-B and Appendix 2-C:
A8: · If an applicant chooses to adopt IFRS for financial reporting in 2012, in its 2014 cost of service application it must file information for the historic year (2012),modified IFRS and also provide forecasts for the bridge year (2013) and test year (2014) information in modified IFRS format. The years required to be filed prior to the historic year 2012 may be provided in CGAAP only, except for the year 2011 which must also be presented in modified IFRS format.
A11: · If an applicant chooses to adopt IFRS for financial reporting in 2013, in its 2014 cost of service application it must file information for the year prior (i.e. 2012 – the historic year) in both CGAAP and modified IFRS format, and present modified IFRS based forecasts for the bridge (2013) and test years (2014). The years required to be filed prior to the historic year 2012 may be provided in CGAAP only.
A14: · If an applicant chooses to adopt IFRS for financial reporting in 2014, in its 2014 cost of service application it must provide the required actual years (2012) and the bridge year (2013) in CGAAP based format. An applicant must present modified IFRS based forecasts for the bridge (2013) and test years (2014).
E18: Date of Adoption of IFRS
E19: for Financial Reporting Purposes:
E20: January 1, 2012 | F20: January 1, 2013 | G20: January 1, 2014
A21: Information | C21: 2010 H & Prior | E21: CGAAP | F21: CGAAP | G21: CGAAP
A22: Required to be | C22: 2011 H | E22: MIFRS & CGAAP | F22: CGAAP | G22: CGAAP
A23: Filed in 2014 | C23: 2012 H | E23: MIFRS | F23: MIFRS & CGAAP | G23: CGAAP
A24: CoS Application: | C24: 2013 B | E24: MIFRS | F24: MIFRS | G24: MIFRS & CGAAP
C25: 2014 T | E25: MIFRS | F25: MIFRS | G25: MIFRS
A27: Date of Transition to IFRS | E27: January 1, 2011 | F27: January 1, 2012 | G27: January 1, 2013
A29: H - historic year regulatory financial information
A30: B - bridge year regulatory financial information
A31: T - test year regulatory financial information
B32: Year in which both CGAAP and MIFRS information required
A34: For those applicants that adopted IFRS on January 1, 2012 for financial reporting purposes, the date of transition is January 1, 2011. For those applicants that adopted IFRS on January 1, 2013 for financial reporting purposes, the date of transition is January 1, 2012. For those applicants that adopted IFRS on January 1, 2014 for financial reporting purposes, the date of transition is January 1, 2013.
A39: Summary of Impacts to Revenue Requirement from Transition to MIFRS - Appendix 2-YA
A40: For modified IFRS applications, the applicants must provide a summary of the dollar impacts of modified IFRS to each component of the revenue requirement (e.g. rate base, operating costs, etc), including the overall impact on the proposed revenue requirement. Accordingly, the applicants must identify financial differences and resulting revenue requirement impacts arising from the adoption of modified IFRS accounting.
A45: Depreciation and Amortization - Appendix 2-C
A46: If an applicant chooses to adopt IFRS for financial reporting in 2012, the applicant must complete Appendix 2-CA to Appendix 2-CE (inclusive).
A47: If an applicant chooses to adopt IFRS for financial reporting in 2013, the applicant must complete Appendix 2-CF to Appendix 2-CI (inclusive).
A48: If an applicant chooses to adopt IFRS for financial reporting in 2014, the applicant must complete Appendix 2-CJ to Appendix 2-CM (inclusive).
A51: Continuity of Historic Cost under MIFRS - Appendix 2-BA2
A53: Regulatory Gross Assets of Property, Plant and Equipment
A54: For an applicant that adopted IFRS on January 1, 2012 for financial reporting purposes, the applicant must establish the continuity of historic cost by using the December 31, 2010 regulatory gross assets of property, plant and equipment as the opening January 1, 2011 regulatory gross assets. The applicant must provide schedules (including Appendix 2-BA2, Fixed Asset Continuity Schedule) which must identify the following details to substantiate the continuity of historic cost for regulatory purposes:
A58: · December 31, 2010 regulatory gross assets of property, plant and equipment, by asset class; and
A59: · January 1, 2011 regulatory gross assets of property, plant and equipment, by asset class.
A61: For an applicant that adopts IFRS on January 1, 2013 for financial reporting purposes, the applicant must establish the continuity of historic cost by using the December 31, 2011 regulatory gross assets of property, plant and equipment as the opening January 1, 2012 regulatory gross assets. The applicant must provide schedules (including Appendix 2-BA2, Fixed Asset Continuity Schedule) which must identify the following details to substantiate the continuity of historic cost for regulatory purposes:
A65: · December 31, 2011 regulatory gross assets of property, plant and equipment, by asset class; and
A66: · January 1, 2012 regulatory gross assets of property, plant and equipment, by asset class.
A68: For an applicant that adopts IFRS on January 1, 2014 for financial reporting purposes, the applicant must establish the continuity of historic cost by using the December 31, 2012 regulatory gross assets of property, plant and equipment as the opening January 1, 2013 regulatory gross assets. The applicant must provide schedules (including Appendix 2-BA2, Fixed Asset Continuity Schedule) which must identify the following details to substantiate the continuity of historic cost for regulatory purposes:
A72: · December 31, 2012 regulatory gross assets of property, plant and equipment, by asset class; and
A73: · January 1, 2013 regulatory gross assets of property, plant and equipment, by asset class.
A75: Accumulated Depreciation
A76: For an applicant that adopted IFRS on January 1, 2012 for financial reporting purposes, the applicant must establish the continuity of historic cost by using the December 31, 2010 regulatory accumulated depreciation as the opening January 1, 2011 regulatory accumulated depreciation. The applicant must provide schedules (including Appendix 2-BA2, Fixed Asset Continuity Schedule) which must identify the following details to substantiate the continuity of historic cost for regulatory purposes:
A79: · December 31, 2010 regulatory accumulated depreciation, by asset class; and
A80: · January 1, 2011 regulatory accumulated depreciation, by asset class.
A82: For an applicant that adopted IFRS on January 1, 2013 for financial reporting purposes, the applicant must establish the continuity of historic cost by using the December 31, 2011 regulatory accumulated depreciation as the opening January 1, 2012 regulatory accumulated depreciation. The applicant must provide schedules (including Appendix 2-BA2, Fixed Asset Continuity Schedule) which must identify the following details to substantiate the continuity of historic cost for regulatory purposes:
A85: · December 31, 2011 regulatory accumulated depreciation, by asset class; and
A86: · January 1, 2012 regulatory accumulated depreciation, by asset class.
A88: For an applicant that adopted IFRS on January 1, 2014 for financial reporting purposes, the applicant must establish the continuity of historic cost by using the December 31, 2012 regulatory accumulated depreciation as the opening January 1, 2013 regulatory accumulated depreciation. The applicant must provide schedules (including Appendix 2-BA2, Fixed Asset Continuity Schedule) which must identify the following details to substantiate the continuity of historic cost for regulatory purposes:
A91: · December 31, 2012 regulatory accumulated depreciation, by asset class; and
A92: · January 1, 2013 regulatory accumulated depreciation, by asset class.
A94: Account 1575, IFRS-CGAAP Transitional PP&E Amounts - Appendix 2-EA, Appendix 2-EB, Appendix 2-EC
A95: Please refer to section 2.12.4 of the Filing Requirements.
A97: Account 1576, Accounting Changes Under CGAAP - Appendix 2-ED, Appendix 2-EE
A98: Please refer to section 2.12.5 of the Filing Requirements.

Sheet App.2-CA_CGAAP_DepExp_2011 (hidden)
K1: File Number: | L1: =EBNUMBER -> EB-2013-0134
K2: Exhibit:
K3: Tab:
K4: Schedule:
K5: Page:
K7: Date:
A9: Appendix 2-CA
A10: Depreciation and Amortization Expense
A11: Assumes the applicant adopted IFRS for financial reporting purposes January 1, 2012
C12: Year | D12: 2011 | E12: CGAAP
A14: Account | B14: Description | C14: Opening Regulatory Gross PP&E as at Jan 1, 2011 | D14: Less Fully Depreciated | E14: Net for Depreciation | F14: Additions | G14: Total for Depreciation | H14: Years | I14: Depreciation Rate | J14: Depreciation Expense | K14: 2011 Depreciation Expense per Appendix 2-B Fixed Assets, Column K (l) | L14: Variance 2
C15: (a) | D15: (b) | E15: (c) | F15: (d) | G15: (e) = (c) + ½ x (d) 1 | H15: (f) | I15: (g) = 1 / (f) | J15: (h) = (e) / (f) | L15: (m) = (h) - (l)
A16: 1611 | B16: Computer Software (Formally known as Account 1925) | E16: =C16-D16 -> 0 | G16: =E16+0.5*F16 -> 0 | I16: =IF(H16=0,0,1/H16) -> 0 | J16: =IF(H16=0,0,G16/H16) -> 0 | L16: =IF(ISERROR(+J16-K16), 0, +J16-K16) -> 0
A17: 1612 | B17: Land Rights (Formally known as Account 1906) | E17: =C17-D17 -> 0 | G17: =E17+0.5*F17 -> 0 | I17: 0 | J17: 0 | L17: 0
A18: 1805 | B18: Land | E18: 0 | G18: 0 | I18: 0 | J18: 0 | L18: 0
A19: 1808 | B19: Buildings | E19: 0 | G19: 0 | I19: 0 | J19: 0 | L19: 0
A20: 1810 | B20: Leasehold Improvements | E20: 0 | G20: 0 | I20: 0 | J20: 0 | L20: 0
A21: 1815 | B21: Transformer Station Equipment >50 kV | E21: 0 | G21: 0 | I21: 0 | J21: 0 | L21: 0
A22: 1820 | B22: Distribution Station Equipment <50 kV | E22: 0 | G22: 0 | I22: 0 | J22: 0 | L22: 0
A23: 1825 | B23: Storage Battery Equipment | E23: 0 | G23: 0 | I23: 0 | J23: 0 | L23: 0
A24: 1830 | B24: Poles, Towers & Fixtures | E24: 0 | G24: 0 | I24: 0 | J24: 0 | L24: 0
A25: 1835 | B25: Overhead Conductors & Devices | E25: 0 | G25: 0 | I25: 0 | J25: 0 | L25: 0
A26: 1840 | B26: Underground Conduit | E26: 0 | G26: 0 | I26: 0 | J26: 0 | L26: 0
A27: 1845 | B27: Underground Conductors & Devices | E27: 0 | G27: 0 | I27: 0 | J27: 0 | L27: 0
A28: 1850 | B28: Line Transformers | E28: 0 | G28: 0 | I28: 0 | J28: 0 | L28: 0
A29: 1855 | B29: Services (Overhead & Underground) | E29: 0 | G29: 0 | I29: 0 | J29: 0 | L29: 0
A30: 1860 | B30: Meters | E30: 0 | G30: 0 | I30: 0 | J30: 0 | L30: 0
A31: 1860 | B31: Meters (Smart Meters) | E31: 0 | G31: 0 | I31: 0 | J31: 0 | L31: 0
A32: 1905 | B32: Land | E32: 0 | G32: 0 | I32: 0 | J32: 0 | L32: 0
A33: 1908 | B33: Buildings & Fixtures | E33: 0 | G33: 0 | I33: 0 | J33: 0 | L33: 0
A34: 1910 | B34: Leasehold Improvements | E34: 0 | G34: 0 | I34: 0 | J34: 0 | L34: 0
A35: 1915 | B35: Office Furniture & Equipment (10 years) | E35: 0 | G35: 0 | I35: 0 | J35: 0 | L35: 0
A36: 1915 | B36: Office Furniture & Equipment (5 years) | E36: 0 | G36: 0 | I36: 0 | J36: 0 | L36: 0
A37: 1920 | B37: Computer Equipment - Hardware | E37: 0 | G37: 0 | I37: 0 | J37: 0 | L37: 0
A38: 1920 | B38: Computer Equip.-Hardware(Post Mar. 22/04) | E38: 0 | G38: 0 | I38: 0 | J38: 0 | L38: 0
A39: 1920 | B39: Computer Equip.-Hardware(Post Mar. 19/07) | E39: 0 | G39: 0 | I39: 0 | J39: 0 | L39: 0
A40: 1930 | B40: Transportation Equipment | E40: 0 | G40: 0 | I40: 0 | J40: 0 | L40: 0
A41: 1935 | B41: Stores Equipment | E41: 0 | G41: 0 | I41: 0 | J41: 0 | L41: 0
A42: 1940 | B42: Tools, Shop & Garage Equipment | E42: 0 | G42: 0 | I42: 0 | J42: 0 | L42: 0
A43: 1945 | B43: Measurement & Testing Equipment | E43: 0 | G43: 0 | I43: 0 | J43: 0 | L43: 0
A44: 1950 | B44: Power Operated Equipment | E44: 0 | G44: 0 | I44: 0 | J44: 0 | L44: 0
A45: 1955 | B45: Communications Equipment | E45: 0 | G45: 0 | I45: 0 | J45: 0 | L45: 0
A46: 1955 | B46: Communication Equipment (Smart Meters) | E46: 0 | G46: 0 | I46: 0 | J46: 0 | L46: 0
A47: 1960 | B47: Miscellaneous Equipment | E47: 0 | G47: 0 | I47: 0 | J47: 0 | L47: 0
A48: 1970 | B48: Load Management Controls Customer Premises | E48: 0 | G48: 0 | I48: 0 | J48: 0 | L48: 0
A49: 1975 | B49: Load Management Controls Utility Premises | E49: 0 | G49: 0 | I49: 0 | J49: 0 | L49: 0
A50: 1980 | B50: System Supervisor Equipment | E50: 0 | G50: 0 | I50: 0 | J50: 0 | L50: 0
A51: 1985 | B51: Miscellaneous Fixed Assets | E51: 0 | G51: 0 | I51: 0 | J51: 0 | L51: 0
A52: 1990 | B52: Other Tangible Property | E52: 0 | G52: 0 | I52: 0 | J52: 0 | L52: 0
A53: 1995 | B53: Contributions & Grants | E53: 0 | G53: 0 | I53: 0 | J53: 0 | L53: 0
A54: etc. | E54: 0 | G54: 0 | I54: 0 | J54: 0 | L54: 0
E55: 0 | G55: 0 | I55: 0 | J55: 0 | L55: 0
B56: Total | C56: =SUM(C16:C55) -> 0 | D56: =SUM(D16:D55) -> 0 | E56: =SUM(E16:E55) -> 0 | F56: =SUM(F16:F55) -> 0 | G56: =SUM(G16:G55) -> 0 | J56: =SUM(J16:J55) -> 0 | K56: =SUM(K16:K55) -> 0 | L56: =SUM(L16:L55) -> 0
A58: Notes:
A60: 1 | B60: Board policy of the "half-year" rule - the applicant must ensure that additions in the year attract a half-year depreciation expense in the first year. Deviations from this standard practice must be supported in the application.
A61: 2 | B61: The applicant must provide an explanation of material variances in evidence.
A63: General | B63: Applicants must provide a breakdown of depreciation and amortization expense in the above format for all relevant accounts. Asset Retirement Obligations (AROs), depreciation and accretion expense should be disclosed separately consistent with the Notes of historical Audited Financial Statements.

Sheet App.2-CB_MIFRS_DepExp_2011 (hidden)
N1: File Number: | O1: =EBNUMBER -> EB-2013-0134
N2: Exhibit:
N3: Tab:
N4: Schedule:
N5: Page:
N7: Date:
A9: Appendix 2-CB
A10: Depreciation and Amortization Expense
A11: Assumes the applicant adopted IFRS for financial reporting purposes January 1, 2012
C12: Year | D12: 2011 | E12: MIFRS
A14: Account | B14: Description | C14: Opening NBV as at Jan 1, 2011 5 | D14: Additions | E14: Average Remaining Life of Opening NBV 4 | F14: Years (new additions only) 3 | G14: Depreciation Rate on New Additions | H14: Depreciation Expense on Opening NBV | I14: Depreciation Expense on Additions 1 | J14: 2011 Depreciation Expense | K14: 2011 Depreciation Expense per Appendix 2-B Fixed Assets, Column K (l) | L14: Variance 2 | M14: Depreciation Expense on 2011 Full Year Additions | N14: Less Depreciation Expense on Assets Fully Depreciated during the year (o) | O14: 2011 Full Year Depreciation 6
C15: (a) | D15: (d) | E15: (i) | F15: (f) | G15: (g) = 1 / (f) | H15: (j) = (a) / (i) | I15: (h)=((d)*0.5)/(f) | J15: (k) = (j) + (h) | L15: (m) = (k) - (l) | M15: (n) = (d)/(f) | O15: (p) = (j) + (n) - (o)
A16: 1611 | B16: Computer Software (Formally known as Account 1925) | G16: =IF(F16=0,0,1/F16) -> 0 | H16: =IF(E16=0,0,+C16/E16) -> 0 | I16: =IF(F16=0,0,+(D16*0.5)/F16) -> 0 | J16: =IF(ISERROR(+H16+I16), 0, +H16+I16) -> 0 | L16: =IF(ISERROR(+J16-K16), 0, +J16-K16) -> 0 | M16: =IF(F16=0,0,+(D16)/F16) -> 0 | O16: =IF(ISERROR(+M16+H16-N16), 0, +M16+H16-N16) -> 0
A17: 1612 | B17: Land Rights (Formally known as Account 1906) | G17: 0 | H17: 0 | I17: 0 | J17: 0 | L17: 0 | M17: 0 | O17: =IF(ISERROR(+M17+H17-N17), 0, +M17+H17-N17) -> 0
A18: 1805 | B18: Land | G18: 0 | H18: 0 | I18: 0 | J18: 0 | L18: 0 | M18: 0 | O18: 0
A19: 1808 | B19: Buildings | G19: 0 | H19: 0 | I19: 0 | J19: 0 | L19: 0 | M19: 0 | O19: 0
A20: 1810 | B20: Leasehold Improvements | G20: 0 | H20: 0 | I20: 0 | J20: 0 | L20: 0 | M20: 0 | O20: 0
A21: 1815 | B21: Transformer Station Equipment >50 kV | G21: 0 | H21: 0 | I21: 0 | J21: 0 | L21: 0 | M21: 0 | O21: 0
A22: 1820 | B22: Distribution Station Equipment <50 kV | G22: 0 | H22: 0 | I22: 0 | J22: 0 | L22: 0 | M22: 0 | O22: 0
A23: 1825 | B23: Storage Battery Equipment | G23: 0 | H23: 0 | I23: 0 | J23: 0 | L23: 0 | M23: 0 | O23: 0
A24: 1830 | B24: Poles, Towers & Fixtures | G24: 0 | H24: 0 | I24: 0 | J24: 0 | L24: 0 | M24: 0 | O24: 0
A25: 1835 | B25: Overhead Conductors & Devices | G25: 0 | H25: 0 | I25: 0 | J25: 0 | L25: 0 | M25: 0 | O25: 0
A26: 1840 | B26: Underground Conduit | G26: 0 | H26: 0 | I26: 0 | J26: 0 | L26: 0 | M26: 0 | O26: 0
A27: 1845 | B27: Underground Conductors & Devices | G27: 0 | H27: 0 | I27: 0 | J27: 0 | L27: 0 | M27: 0 | O27: 0
A28: 1850 | B28: Line Transformers | G28: 0 | H28: 0 | I28: 0 | J28: 0 | L28: 0 | M28: 0 | O28: 0
A29: 1855 | B29: Services (Overhead & Underground) | G29: 0 | H29: 0 | I29: 0 | J29: 0 | L29: 0 | M29: 0 | O29: 0
A30: 1860 | B30: Meters | G30: 0 | H30: 0 | I30: 0 | J30: 0 | L30: 0 | M30: 0 | O30: 0
A31: 1860 | B31: Meters (Smart Meters) | G31: 0 | H31: 0 | I31: 0 | J31: 0 | L31: 0 | M31: 0 | O31: 0
A32: 1905 | B32: Land | G32: 0 | H32: 0 | I32: 0 | J32: 0 | L32: 0 | M32: 0 | O32: 0
A33: 1908 | B33: Buildings & Fixtures | G33: 0 | H33: 0 | I33: 0 | J33: 0 | L33: 0 | M33: 0 | O33: 0
A34: 1910 | B34: Leasehold Improvements | G34: 0 | H34: 0 | I34: 0 | J34: 0 | L34: 0 | M34: 0 | O34: 0
A35: 1915 | B35: Office Furniture & Equipment (10 years) | G35: 0 | H35: 0 | I35: 0 | J35: 0 | L35: 0 | M35: 0 | O35: 0
A36: 1915 | B36: Office Furniture & Equipment (5 years) | G36: 0 | H36: 0 | I36: 0 | J36: 0 | L36: 0 | M36: 0 | O36: 0
A37: 1920 | B37: Computer Equipment - Hardware | G37: 0 | H37: 0 | I37: 0 | J37: 0 | L37: 0 | M37: 0 | O37: 0
A38: 1920 | B38: Computer Equip.-Hardware(Post Mar. 22/04) | G38: 0 | H38: 0 | I38: 0 | J38: 0 | L38: 0 | M38: 0 | O38: 0
A39: 1920 | B39: Computer Equip.-Hardware(Post Mar. 19/07) | G39: 0 | H39: 0 | I39: 0 | J39: 0 | L39: 0 | M39: 0 | O39: 0
A40: 1930 | B40: Transportation Equipment | G40: 0 | H40: 0 | I40: 0 | J40: 0 | L40: 0 | M40: 0 | O40: 0
A41: 1935 | B41: Stores Equipment | G41: 0 | H41: 0 | I41: 0 | J41: 0 | L41: 0 | M41: 0 | O41: 0
A42: 1940 | B42: Tools, Shop & Garage Equipment | G42: 0 | H42: 0 | I42: 0 | J42: 0 | L42: 0 | M42: 0 | O42: 0
A43: 1945 | B43: Measurement & Testing Equipment | G43: 0 | H43: 0 | I43: 0 | J43: 0 | L43: 0 | M43: 0 | O43: 0
A44: 1950 | B44: Power Operated Equipment | G44: 0 | H44: 0 | I44: 0 | J44: 0 | L44: 0 | M44: 0 | O44: 0
A45: 1955 | B45: Communications Equipment | G45: 0 | H45: 0 | I45: 0 | J45: 0 | L45: 0 | M45: 0 | O45: 0
A46: 1955 | B46: Communication Equipment (Smart Meters) | G46: 0 | H46: 0 | I46: 0 | J46: 0 | L46: 0 | M46: 0 | O46: 0
A47: 1960 | B47: Miscellaneous Equipment | G47: 0 | H47: 0 | I47: 0 | J47: 0 | L47: 0 | M47: 0 | O47: 0
A48: 1970 | B48: Load Management Controls Customer Premises | G48: 0 | H48: 0 | I48: 0 | J48: 0 | L48: 0 | M48: 0 | O48: 0
A49: 1975 | B49: Load Management Controls Utility Premises | G49: 0 | H49: 0 | I49: 0 | J49: 0 | L49: 0 | M49: 0 | O49: 0
A50: 1980 | B50: System Supervisor Equipment | G50: 0 | H50: 0 | I50: 0 | J50: 0 | L50: 0 | M50: 0 | O50: 0
A51: 1985 | B51: Miscellaneous Fixed Assets | G51: 0 | H51: 0 | I51: 0 | J51: 0 | L51: 0 | M51: 0 | O51: 0
A52: 1990 | B52: Other Tangible Property | G52: 0 | H52: 0 | I52: 0 | J52: 0 | L52: 0 | M52: 0 | O52: 0
A53: 1995 | B53: Contributions & Grants | G53: 0 | H53: 0 | I53: 0 | J53: 0 | L53: 0 | M53: 0 | O53: 0
A54: etc. | G54: 0 | H54: 0 | I54: 0 | J54: 0 | L54: 0 | M54: 0 | O54: 0
G55: 0 | H55: 0 | I55: 0 | J55: 0 | L55: 0 | M55: 0 | O55: 0
B56: Total | C56: =SUM(C16:C55) -> 0 | D56: =SUM(D16:D55) -> 0 | H56: =SUM(H16:H55) -> 0 | I56: 0 | J56: 0 | K56: 0 | L56: 0 | M56: 0 | N56: =SUM(N16:N55) -> 0 | O56: 0
B57: Depreciation exp. adj. from gain or loss on the retirement of assets (pool of like assets) | J57: 0
B58: Total | J58: =+J57+J56 -> 0
A59: Notes:
A61: 1 | B61: Board policy of the "half-year" rule - the applicant must ensure that additions in the year attract a half-year depreciation expense in the first year. Deviations from this standard practice must be supported in the application.
A62: 2 | B62: The applicant must provide an explanation of material variances in evidence.
A63: 3 | B63: The applicant should ensure that the years for new additions of assets are the asset useful lives determined by management in accordance with IFRS.
A64: 4 | B64: A recalculation should be performed to determine the average remaining life of opening balance of assets (i.e. excluding 2011 additions) under IFRS. For example, Asset A had a useful life of 20 years under CGAAP. On January 1, 2011, the date of transition, Asset A was 3 years depreciated. As a result, Asset A would have a remaining service life of 17 years (20 years less 3 years) under CGAAP as of January 1, 2011. Due to the transition to IFRS, management re-assessed the asset useful lives under IFRS principles and concluded that the revised useful life of Asset A is now 30 years. Therefore, the average remaining useful life of opening balance of Asset A is determined to be 27 years (30 years less 3 years) under IFRS as of January 1, 2011.
A65: 5 | B65: NBV must exclude assets still on the books but which have been fully amortized or depreciated.
A66: 6 | B66: This column refers to the calculated full year depreciation but excludes the depreciation expense on assets fully depreciated during the year. This column is used for the purpose of calculating depreciation expense in the following year on the next worksheet.
A68: General: | B68: Applicants must provide a breakdown of depreciation and amortization expense in the above format for all relevant accounts. Asset Retirement Obligations (AROs), depreciation and accretion expense should be disclosed separately consistent with the Notes of historical Audited Financial Statements.

Sheet App.2-CC_MIFRS_DepExp_2012 (hidden)
J1: File Number: | K1: =EBNUMBER -> EB-2013-0134
J2: Exhibit:
J3: Tab:
J4: Schedule:
J5: Page:
J7: Date:
A9: Appendix 2-CC
A10: Depreciation and Amortization Expense
A11: Assumes the applicant adopted IFRS for financial reporting purposes January 1, 2012
C12: 2012 | D12: MIFRS
A14: Account | B14: Description | C14: Additions | D14: Years (new additions only) | E14: Depreciation Rate on New Additions | F14: 2012 Depreciation Expense 1 | G14: 2012 Depreciation Expense per Apppendix 2-B Fixed Assets, Column K (l) | H14: Variance 2 | I14: Depreciation Expense on 2012 Full Year Additions | J14: Less Depreciation Expense on Assets Fully Depreciated during the year (o) | K14: 2012 Full Year Depreciation 3
C15: (d) | D15: (f) | E15: (g) = 1 / (f) | F15: (h)=2011 Full Year Deprecation + ((d)*0.5)/(f) | H15: (m) = (h) - (l) | I15: (n)=((d))/(f) | K15: (p) = 2011 Full Year Depreciation + (n) - (o)
A16: 1611 | B16: Computer Software (Formally known as Account 1925) | E16: =IF(D16=0,0,1/D16) -> 0 | F16: =IF(D16=0,+'App.2-CB_MIFRS_DepExp_2011'!O16,+'App.2-CB_MIFRS_DepExp_2011'!O16+((C16*0.5)/D16)) -> 0 | H16: =IF(ISERROR(+F16-G16), 0, +F16-G16) -> 0 | I16: =IF(D16=0,0,+(C16)/D16) -> 0 | K16: =IF(ISERROR(+I16+'App.2-CB_MIFRS_DepExp_2011'!O16-J16), 0, +I16+'App.2-CB_MIFRS_DepExp_2011'!O16-J16) -> 0
A17: 1612 | B17: Land Rights (Formally known as Account 1906) | E17: 0 | F17: =IF(D17=0,+'App.2-CB_MIFRS_DepExp_2011'!O17,+'App.2-CB_MIFRS_DepExp_2011'!O17+((C17*0.5)/D17)) -> 0 | H17: 0 | I17: 0 | K17: =IF(ISERROR(+I17+'App.2-CB_MIFRS_DepExp_2011'!O17-J17), 0, +I17+'App.2-CB_MIFRS_DepExp_2011'!O17-J17) -> 0
A18: 1805 | B18: Land | E18: 0 | F18: =IF(D18=0,+'App.2-CB_MIFRS_DepExp_2011'!O18,+'App.2-CB_MIFRS_DepExp_2011'!O18+((C18*0.5)/D18)) -> 0 | H18: 0 | I18: 0 | K18: =IF(ISERROR(+I18+'App.2-CB_MIFRS_DepExp_2011'!O18-J18), 0, +I18+'App.2-CB_MIFRS_DepExp_2011'!O18-J18) -> 0
A19: 1808 | B19: Buildings | E19: 0 | F19: =IF(D19=0,+'App.2-CB_MIFRS_DepExp_2011'!O19,+'App.2-CB_MIFRS_DepExp_2011'!O19+((C19*0.5)/D19)) -> 0 | H19: 0 | I19: 0 | K19: =IF(ISERROR(+I19+'App.2-CB_MIFRS_DepExp_2011'!O19-J19), 0, +I19+'App.2-CB_MIFRS_DepExp_2011'!O19-J19) -> 0
A20: 1810 | B20: Leasehold Improvements | E20: 0 | F20: =IF(D20=0,+'App.2-CB_MIFRS_DepExp_2011'!O20,+'App.2-CB_MIFRS_DepExp_2011'!O20+((C20*0.5)/D20)) -> 0 | H20: 0 | I20: 0 | K20: =IF(ISERROR(+I20+'App.2-CB_MIFRS_DepExp_2011'!O20-J20), 0, +I20+'App.2-CB_MIFRS_DepExp_2011'!O20-J20) -> 0
A21: 1815 | B21: Transformer Station Equipment >50 kV | E21: 0 | F21: =IF(D21=0,+'App.2-CB_MIFRS_DepExp_2011'!O21,+'App.2-CB_MIFRS_DepExp_2011'!O21+((C21*0.5)/D21)) -> 0 | H21: 0 | I21: 0 | K21: =IF(ISERROR(+I21+'App.2-CB_MIFRS_DepExp_2011'!O21-J21), 0, +I21+'App.2-CB_MIFRS_DepExp_2011'!O21-J21) -> 0
A22: 1820 | B22: Distribution Station Equipment <50 kV | E22: 0 | F22: =IF(D22=0,+'App.2-CB_MIFRS_DepExp_2011'!O22,+'App.2-CB_MIFRS_DepExp_2011'!O22+((C22*0.5)/D22)) -> 0 | H22: 0 | I22: 0 | K22: =IF(ISERROR(+I22+'App.2-CB_MIFRS_DepExp_2011'!O22-J22), 0, +I22+'App.2-CB_MIFRS_DepExp_2011'!O22-J22) -> 0
A23: 1825 | B23: Storage Battery Equipment | E23: 0 | F23: =IF(D23=0,+'App.2-CB_MIFRS_DepExp_2011'!O23,+'App.2-CB_MIFRS_DepExp_2011'!O23+((C23*0.5)/D23)) -> 0 | H23: 0 | I23: 0 | K23: =IF(ISERROR(+I23+'App.2-CB_MIFRS_DepExp_2011'!O23-J23), 0, +I23+'App.2-CB_MIFRS_DepExp_2011'!O23-J23) -> 0
A24: 1830 | B24: Poles, Towers & Fixtures | E24: 0 | F24: =IF(D24=0,+'App.2-CB_MIFRS_DepExp_2011'!O24,+'App.2-CB_MIFRS_DepExp_2011'!O24+((C24*0.5)/D24)) -> 0 | H24: 0 | I24: 0 | K24: =IF(ISERROR(+I24+'App.2-CB_MIFRS_DepExp_2011'!O24-J24), 0, +I24+'App.2-CB_MIFRS_DepExp_2011'!O24-J24) -> 0
A25: 1835 | B25: Overhead Conductors & Devices | E25: 0 | F25: =IF(D25=0,+'App.2-CB_MIFRS_DepExp_2011'!O25,+'App.2-CB_MIFRS_DepExp_2011'!O25+((C25*0.5)/D25)) -> 0 | H25: 0 | I25: 0 | K25: =IF(ISERROR(+I25+'App.2-CB_MIFRS_DepExp_2011'!O25-J25), 0, +I25+'App.2-CB_MIFRS_DepExp_2011'!O25-J25) -> 0
A26: 1840 | B26: Underground Conduit | E26: 0 | F26: =IF(D26=0,+'App.2-CB_MIFRS_DepExp_2011'!O26,+'App.2-CB_MIFRS_DepExp_2011'!O26+((C26*0.5)/D26)) -> 0 | H26: 0 | I26: 0 | K26: =IF(ISERROR(+I26+'App.2-CB_MIFRS_DepExp_2011'!O26-J26), 0, +I26+'App.2-CB_MIFRS_DepExp_2011'!O26-J26) -> 0
A27: 1845 | B27: Underground Conductors & Devices | E27: 0 | F27: =IF(D27=0,+'App.2-CB_MIFRS_DepExp_2011'!O27,+'App.2-CB_MIFRS_DepExp_2011'!O27+((C27*0.5)/D27)) -> 0 | H27: 0 | I27: 0 | K27: =IF(ISERROR(+I27+'App.2-CB_MIFRS_DepExp_2011'!O27-J27), 0, +I27+'App.2-CB_MIFRS_DepExp_2011'!O27-J27) -> 0
A28: 1850 | B28: Line Transformers | E28: 0 | F28: =IF(D28=0,+'App.2-CB_MIFRS_DepExp_2011'!O28,+'App.2-CB_MIFRS_DepExp_2011'!O28+((C28*0.5)/D28)) -> 0 | H28: 0 | I28: 0 | K28: =IF(ISERROR(+I28+'App.2-CB_MIFRS_DepExp_2011'!O28-J28), 0, +I28+'App.2-CB_MIFRS_DepExp_2011'!O28-J28) -> 0
A29: 1855 | B29: Services (Overhead & Underground) | E29: 0 | F29: =IF(D29=0,+'App.2-CB_MIFRS_DepExp_2011'!O29,+'App.2-CB_MIFRS_DepExp_2011'!O29+((C29*0.5)/D29)) -> 0 | H29: 0 | I29: 0 | K29: =IF(ISERROR(+I29+'App.2-CB_MIFRS_DepExp_2011'!O29-J29), 0, +I29+'App.2-CB_MIFRS_DepExp_2011'!O29-J29) -> 0
A30: 1860 | B30: Meters | E30: 0 | F30: =IF(D30=0,+'App.2-CB_MIFRS_DepExp_2011'!O30,+'App.2-CB_MIFRS_DepExp_2011'!O30+((C30*0.5)/D30)) -> 0 | H30: 0 | I30: 0 | K30: =IF(ISERROR(+I30+'App.2-CB_MIFRS_DepExp_2011'!O30-J30), 0, +I30+'App.2-CB_MIFRS_DepExp_2011'!O30-J30) -> 0
A31: 1860 | B31: Meters (Smart Meters) | E31: 0 | F31: =IF(D31=0,+'App.2-CB_MIFRS_DepExp_2011'!O31,+'App.2-CB_MIFRS_DepExp_2011'!O31+((C31*0.5)/D31)) -> 0 | H31: 0 | I31: 0 | K31: =IF(ISERROR(+I31+'App.2-CB_MIFRS_DepExp_2011'!O31-J31), 0, +I31+'App.2-CB_MIFRS_DepExp_2011'!O31-J31) -> 0
A32: 1905 | B32: Land | E32: 0 | F32: =IF(D32=0,+'App.2-CB_MIFRS_DepExp_2011'!O32,+'App.2-CB_MIFRS_DepExp_2011'!O32+((C32*0.5)/D32)) -> 0 | H32: 0 | I32: 0 | K32: =IF(ISERROR(+I32+'App.2-CB_MIFRS_DepExp_2011'!O32-J32), 0, +I32+'App.2-CB_MIFRS_DepExp_2011'!O32-J32) -> 0
A33: 1908 | B33: Buildings & Fixtures | E33: 0 | F33: =IF(D33=0,+'App.2-CB_MIFRS_DepExp_2011'!O33,+'App.2-CB_MIFRS_DepExp_2011'!O33+((C33*0.5)/D33)) -> 0 | H33: 0 | I33: 0 | K33: =IF(ISERROR(+I33+'App.2-CB_MIFRS_DepExp_2011'!O33-J33), 0, +I33+'App.2-CB_MIFRS_DepExp_2011'!O33-J33) -> 0
A34: 1910 | B34: Leasehold Improvements | E34: 0 | F34: =IF(D34=0,+'App.2-CB_MIFRS_DepExp_2011'!O34,+'App.2-CB_MIFRS_DepExp_2011'!O34+((C34*0.5)/D34)) -> 0 | H34: 0 | I34: 0 | K34: =IF(ISERROR(+I34+'App.2-CB_MIFRS_DepExp_2011'!O34-J34), 0, +I34+'App.2-CB_MIFRS_DepExp_2011'!O34-J34) -> 0
A35: 1915 | B35: Office Furniture & Equipment (10 years) | E35: 0 | F35: =IF(D35=0,+'App.2-CB_MIFRS_DepExp_2011'!O35,+'App.2-CB_MIFRS_DepExp_2011'!O35+((C35*0.5)/D35)) -> 0 | H35: 0 | I35: 0 | K35: =IF(ISERROR(+I35+'App.2-CB_MIFRS_DepExp_2011'!O35-J35), 0, +I35+'App.2-CB_MIFRS_DepExp_2011'!O35-J35) -> 0
A36: 1915 | B36: Office Furniture & Equipment (5 years) | E36: 0 | F36: =IF(D36=0,+'App.2-CB_MIFRS_DepExp_2011'!O36,+'App.2-CB_MIFRS_DepExp_2011'!O36+((C36*0.5)/D36)) -> 0 | H36: 0 | I36: 0 | K36: =IF(ISERROR(+I36+'App.2-CB_MIFRS_DepExp_2011'!O36-J36), 0, +I36+'App.2-CB_MIFRS_DepExp_2011'!O36-J36) -> 0
A37: 1920 | B37: Computer Equipment - Hardware | E37: 0 | F37: =IF(D37=0,+'App.2-CB_MIFRS_DepExp_2011'!O37,+'App.2-CB_MIFRS_DepExp_2011'!O37+((C37*0.5)/D37)) -> 0 | H37: 0 | I37: 0 | K37: =IF(ISERROR(+I37+'App.2-CB_MIFRS_DepExp_2011'!O37-J37), 0, +I37+'App.2-CB_MIFRS_DepExp_2011'!O37-J37) -> 0
A38: 1920 | B38: Computer Equip.-Hardware(Post Mar. 22/04) | E38: 0 | F38: =IF(D38=0,+'App.2-CB_MIFRS_DepExp_2011'!O38,+'App.2-CB_MIFRS_DepExp_2011'!O38+((C38*0.5)/D38)) -> 0 | H38: 0 | I38: 0 | K38: =IF(ISERROR(+I38+'App.2-CB_MIFRS_DepExp_2011'!O38-J38), 0, +I38+'App.2-CB_MIFRS_DepExp_2011'!O38-J38) -> 0
A39: 1920 | B39: Computer Equip.-Hardware(Post Mar. 19/07) | E39: 0 | F39: =IF(D39=0,+'App.2-CB_MIFRS_DepExp_2011'!O39,+'App.2-CB_MIFRS_DepExp_2011'!O39+((C39*0.5)/D39)) -> 0 | H39: 0 | I39: 0 | K39: =IF(ISERROR(+I39+'App.2-CB_MIFRS_DepExp_2011'!O39-J39), 0, +I39+'App.2-CB_MIFRS_DepExp_2011'!O39-J39) -> 0
A40: 1930 | B40: Transportation Equipment | E40: 0 | F40: =IF(D40=0,+'App.2-CB_MIFRS_DepExp_2011'!O40,+'App.2-CB_MIFRS_DepExp_2011'!O40+((C40*0.5)/D40)) -> 0 | H40: 0 | I40: 0 | K40: =IF(ISERROR(+I40+'App.2-CB_MIFRS_DepExp_2011'!O40-J40), 0, +I40+'App.2-CB_MIFRS_DepExp_2011'!O40-J40) -> 0
A41: 1935 | B41: Stores Equipment | E41: 0 | F41: =IF(D41=0,+'App.2-CB_MIFRS_DepExp_2011'!O41,+'App.2-CB_MIFRS_DepExp_2011'!O41+((C41*0.5)/D41)) -> 0 | H41: 0 | I41: 0 | K41: =IF(ISERROR(+I41+'App.2-CB_MIFRS_DepExp_2011'!O41-J41), 0, +I41+'App.2-CB_MIFRS_DepExp_2011'!O41-J41) -> 0
A42: 1940 | B42: Tools, Shop & Garage Equipment | E42: 0 | F42: =IF(D42=0,+'App.2-CB_MIFRS_DepExp_2011'!O42,+'App.2-CB_MIFRS_DepExp_2011'!O42+((C42*0.5)/D42)) -> 0 | H42: 0 | I42: 0 | K42: =IF(ISERROR(+I42+'App.2-CB_MIFRS_DepExp_2011'!O42-J42), 0, +I42+'App.2-CB_MIFRS_DepExp_2011'!O42-J42) -> 0
A43: 1945 | B43: Measurement & Testing Equipment | E43: 0 | F43: =IF(D43=0,+'App.2-CB_MIFRS_DepExp_2011'!O43,+'App.2-CB_MIFRS_DepExp_2011'!O43+((C43*0.5)/D43)) -> 0 | H43: 0 | I43: 0 | K43: =IF(ISERROR(+I43+'App.2-CB_MIFRS_DepExp_2011'!O43-J43), 0, +I43+'App.2-CB_MIFRS_DepExp_2011'!O43-J43) -> 0
A44: 1950 | B44: Power Operated Equipment | E44: 0 | F44: =IF(D44=0,+'App.2-CB_MIFRS_DepExp_2011'!O44,+'App.2-CB_MIFRS_DepExp_2011'!O44+((C44*0.5)/D44)) -> 0 | H44: 0 | I44: 0 | K44: =IF(ISERROR(+I44+'App.2-CB_MIFRS_DepExp_2011'!O44-J44), 0, +I44+'App.2-CB_MIFRS_DepExp_2011'!O44-J44) -> 0
A45: 1955 | B45: Communications Equipment | E45: 0 | F45: =IF(D45=0,+'App.2-CB_MIFRS_DepExp_2011'!O45,+'App.2-CB_MIFRS_DepExp_2011'!O45+((C45*0.5)/D45)) -> 0 | H45: 0 | I45: 0 | K45: =IF(ISERROR(+I45+'App.2-CB_MIFRS_DepExp_2011'!O45-J45), 0, +I45+'App.2-CB_MIFRS_DepExp_2011'!O45-J45) -> 0
A46: 1955 | B46: Communication Equipment (Smart Meters) | E46: 0 | F46: =IF(D46=0,+'App.2-CB_MIFRS_DepExp_2011'!O46,+'App.2-CB_MIFRS_DepExp_2011'!O46+((C46*0.5)/D46)) -> 0 | H46: 0 | I46: 0 | K46: =IF(ISERROR(+I46+'App.2-CB_MIFRS_DepExp_2011'!O46-J46), 0, +I46+'App.2-CB_MIFRS_DepExp_2011'!O46-J46) -> 0
A47: 1960 | B47: Miscellaneous Equipment | E47: 0 | F47: =IF(D47=0,+'App.2-CB_MIFRS_DepExp_2011'!O47,+'App.2-CB_MIFRS_DepExp_2011'!O47+((C47*0.5)/D47)) -> 0 | H47: 0 | I47: 0 | K47: =IF(ISERROR(+I47+'App.2-CB_MIFRS_DepExp_2011'!O47-J47), 0, +I47+'App.2-CB_MIFRS_DepExp_2011'!O47-J47) -> 0
A48: 1970 | B48: Load Management Controls Customer Premises | E48: 0 | F48: =IF(D48=0,+'App.2-CB_MIFRS_DepExp_2011'!O48,+'App.2-CB_MIFRS_DepExp_2011'!O48+((C48*0.5)/D48)) -> 0 | H48: 0 | I48: 0 | K48: =IF(ISERROR(+I48+'App.2-CB_MIFRS_DepExp_2011'!O48-J48), 0, +I48+'App.2-CB_MIFRS_DepExp_2011'!O48-J48) -> 0
A49: 1975 | B49: Load Management Controls Utility Premises | E49: 0 | F49: =IF(D49=0,+'App.2-CB_MIFRS_DepExp_2011'!O49,+'App.2-CB_MIFRS_DepExp_2011'!O49+((C49*0.5)/D49)) -> 0 | H49: 0 | I49: 0 | K49: =IF(ISERROR(+I49+'App.2-CB_MIFRS_DepExp_2011'!O49-J49), 0, +I49+'App.2-CB_MIFRS_DepExp_2011'!O49-J49) -> 0
A50: 1980 | B50: System Supervisor Equipment | E50: 0 | F50: =IF(D50=0,+'App.2-CB_MIFRS_DepExp_2011'!O50,+'App.2-CB_MIFRS_DepExp_2011'!O50+((C50*0.5)/D50)) -> 0 | H50: 0 | I50: 0 | K50: =IF(ISERROR(+I50+'App.2-CB_MIFRS_DepExp_2011'!O50-J50), 0, +I50+'App.2-CB_MIFRS_DepExp_2011'!O50-J50) -> 0
A51: 1985 | B51: Miscellaneous Fixed Assets | E51: 0 | F51: =IF(D51=0,+'App.2-CB_MIFRS_DepExp_2011'!O51,+'App.2-CB_MIFRS_DepExp_2011'!O51+((C51*0.5)/D51)) -> 0 | H51: 0 | I51: 0 | K51: =IF(ISERROR(+I51+'App.2-CB_MIFRS_DepExp_2011'!O51-J51), 0, +I51+'App.2-CB_MIFRS_DepExp_2011'!O51-J51) -> 0
A52: 1990 | B52: Other Tangible Property | E52: 0 | F52: =IF(D52=0,+'App.2-CB_MIFRS_DepExp_2011'!O52,+'App.2-CB_MIFRS_DepExp_2011'!O52+((C52*0.5)/D52)) -> 0 | H52: 0 | I52: 0 | K52: =IF(ISERROR(+I52+'App.2-CB_MIFRS_DepExp_2011'!O52-J52), 0, +I52+'App.2-CB_MIFRS_DepExp_2011'!O52-J52) -> 0
A53: 1995 | B53: Contributions & Grants | E53: 0 | F53: =IF(D53=0,+'App.2-CB_MIFRS_DepExp_2011'!O53,+'App.2-CB_MIFRS_DepExp_2011'!O53+((C53*0.5)/D53)) -> 0 | H53: 0 | I53: 0 | K53: =IF(ISERROR(+I53+'App.2-CB_MIFRS_DepExp_2011'!O53-J53), 0, +I53+'App.2-CB_MIFRS_DepExp_2011'!O53-J53) -> 0
A54: etc. | E54: 0 | F54: =IF(D54=0,+'App.2-CB_MIFRS_DepExp_2011'!O54,+'App.2-CB_MIFRS_DepExp_2011'!O54+((C54*0.5)/D54)) -> 0 | H54: 0 | I54: 0 | K54: =IF(ISERROR(+I54+'App.2-CB_MIFRS_DepExp_2011'!O54-J54), 0, +I54+'App.2-CB_MIFRS_DepExp_2011'!O54-J54) -> 0
E55: 0 | F55: =IF(D55=0,+'App.2-CB_MIFRS_DepExp_2011'!O55,+'App.2-CB_MIFRS_DepExp_2011'!O55+((C55*0.5)/D55)) -> 0 | H55: 0 | I55: 0 | K55: =IF(ISERROR(+I55+'App.2-CB_MIFRS_DepExp_2011'!O55-J55), 0, +I55+'App.2-CB_MIFRS_DepExp_2011'!O55-J55) -> 0
B56: Total | C56: =SUM(C16:C55) -> 0 | F56: =SUM(F16:F55) -> 0 | G56: 0 | H56: 0 | I56: 0 | J56: 0 | K56: 0
B57: Depreciation exp. adj. from gain or loss on the retirement of assets (pool of like assets) | F57: 0
B58: Total | F58: =+F56+F57 -> 0
A59: Notes:
A60: 1 | B60: Board policy of the "half-year" rule - the applicant must ensure that additions in the year attract a half-year depreciation expense in the first year. Deviations from this standard practice must be supported in the application.
A61: 2 | B61: The applicant must provide an explanation of material variances in evidence.
A62: 3 | B62: This column refers to the calculated full year depreciation but excludes the depreciation expense on assets fully depreciated during the year. This column is used for the purpose of calculating depreciation expense in the following year on the next worksheet.
A64: General: | B64: Applicants must provide a breakdown of depreciation and amortization expense in the above format for all relevant accounts. Asset Retirement Obligations (AROs), depreciation and accretion expense should be disclosed separately consistent with the Notes of historical Audited Financial Statements.

Sheet App.2-CD_MIFRS_DepExp_2013 (hidden)
J1: File Number: | K1: =EBNUMBER -> EB-2013-0134
J2: Exhibit:
J3: Tab:
J4: Schedule:
J5: Page:
J7: Date:
A9: Appendix 2-CD
A10: Depreciation and Amortization Expense
A11: Assumes the applicant adopted IFRS for financial reporting purposes January 1, 2012
C12: 2013 | D12: MIFRS
A14: Account | B14: Description | C14: Additions | D14: Years (new additions only) | E14: Depreciation Rate on New Additions | F14: 2013 Depreciation Expense 1 | G14: 2013 Depreciation Expense per Apppendix 2-B Fixed Assets, Column K (l) | H14: Variance 2 | I14: Depreciation Expense on 2013 Full Year Additions | J14: Less Depreciation Expense on Assets Fully Depreciated during the year (o) | K14: 2013 Full Year Depreciation 3
C15: (d) | D15: (f) | E15: (g) = 1 / (f) | F15: (h)=2012 Full Year Deprecation + ((d)*0.5)/(f) | H15: (m) = (h) - (l) | I15: (n)=((d))/(f) | K15: (p) = 2012 Full Year Depreciation + (n) - (o)
A16: 1611 | B16: Computer Software (Formally known as Account 1925) | E16: =IF(D16=0,0,1/D16) -> 0 | F16: =IF(D16=0,+'App.2-CC_MIFRS_DepExp_2012'!K16,+'App.2-CC_MIFRS_DepExp_2012'!K16+((C16*0.5)/D16)) -> 0 | H16: =IF(ISERROR(+F16-G16), 0, +F16-G16) -> 0 | I16: =IF(D16=0,0,+(C16)/D16) -> 0 | K16: =IF(ISERROR(+I16+'App.2-CC_MIFRS_DepExp_2012'!K16-J16), 0, +I16+'App.2-CC_MIFRS_DepExp_2012'!K16-J16) -> 0
A17: 1612 | B17: Land Rights (Formally known as Account 1906) | E17: 0 | F17: =IF(D17=0,+'App.2-CC_MIFRS_DepExp_2012'!K17,+'App.2-CC_MIFRS_DepExp_2012'!K17+((C17*0.5)/D17)) -> 0 | H17: 0 | I17: 0 | K17: =IF(ISERROR(+I17+'App.2-CC_MIFRS_DepExp_2012'!K17-J17), 0, +I17+'App.2-CC_MIFRS_DepExp_2012'!K17-J17) -> 0
A18: 1805 | B18: Land | E18: 0 | F18: =IF(D18=0,+'App.2-CC_MIFRS_DepExp_2012'!K18,+'App.2-CC_MIFRS_DepExp_2012'!K18+((C18*0.5)/D18)) -> 0 | H18: 0 | I18: 0 | K18: =IF(ISERROR(+I18+'App.2-CC_MIFRS_DepExp_2012'!K18-J18), 0, +I18+'App.2-CC_MIFRS_DepExp_2012'!K18-J18) -> 0
A19: 1808 | B19: Buildings | E19: 0 | F19: =IF(D19=0,+'App.2-CC_MIFRS_DepExp_2012'!K19,+'App.2-CC_MIFRS_DepExp_2012'!K19+((C19*0.5)/D19)) -> 0 | H19: 0 | I19: 0 | K19: =IF(ISERROR(+I19+'App.2-CC_MIFRS_DepExp_2012'!K19-J19), 0, +I19+'App.2-CC_MIFRS_DepExp_2012'!K19-J19) -> 0
A20: 1810 | B20: Leasehold Improvements | E20: 0 | F20: =IF(D20=0,+'App.2-CC_MIFRS_DepExp_2012'!K20,+'App.2-CC_MIFRS_DepExp_2012'!K20+((C20*0.5)/D20)) -> 0 | H20: 0 | I20: 0 | K20: =IF(ISERROR(+I20+'App.2-CC_MIFRS_DepExp_2012'!K20-J20), 0, +I20+'App.2-CC_MIFRS_DepExp_2012'!K20-J20) -> 0
A21: 1815 | B21: Transformer Station Equipment >50 kV | E21: 0 | F21: =IF(D21=0,+'App.2-CC_MIFRS_DepExp_2012'!K21,+'App.2-CC_MIFRS_DepExp_2012'!K21+((C21*0.5)/D21)) -> 0 | H21: 0 | I21: 0 | K21: =IF(ISERROR(+I21+'App.2-CC_MIFRS_DepExp_2012'!K21-J21), 0, +I21+'App.2-CC_MIFRS_DepExp_2012'!K21-J21) -> 0
A22: 1820 | B22: Distribution Station Equipment <50 kV | E22: 0 | F22: =IF(D22=0,+'App.2-CC_MIFRS_DepExp_2012'!K22,+'App.2-CC_MIFRS_DepExp_2012'!K22+((C22*0.5)/D22)) -> 0 | H22: 0 | I22: 0 | K22: =IF(ISERROR(+I22+'App.2-CC_MIFRS_DepExp_2012'!K22-J22), 0, +I22+'App.2-CC_MIFRS_DepExp_2012'!K22-J22) -> 0
A23: 1825 | B23: Storage Battery Equipment | E23: 0 | F23: =IF(D23=0,+'App.2-CC_MIFRS_DepExp_2012'!K23,+'App.2-CC_MIFRS_DepExp_2012'!K23+((C23*0.5)/D23)) -> 0 | H23: 0 | I23: 0 | K23: =IF(ISERROR(+I23+'App.2-CC_MIFRS_DepExp_2012'!K23-J23), 0, +I23+'App.2-CC_MIFRS_DepExp_2012'!K23-J23) -> 0
A24: 1830 | B24: Poles, Towers & Fixtures | E24: 0 | F24: =IF(D24=0,+'App.2-CC_MIFRS_DepExp_2012'!K24,+'App.2-CC_MIFRS_DepExp_2012'!K24+((C24*0.5)/D24)) -> 0 | H24: 0 | I24: 0 | K24: =IF(ISERROR(+I24+'App.2-CC_MIFRS_DepExp_2012'!K24-J24), 0, +I24+'App.2-CC_MIFRS_DepExp_2012'!K24-J24) -> 0
A25: 1835 | B25: Overhead Conductors & Devices | E25: 0 | F25: =IF(D25=0,+'App.2-CC_MIFRS_DepExp_2012'!K25,+'App.2-CC_MIFRS_DepExp_2012'!K25+((C25*0.5)/D25)) -> 0 | H25: 0 | I25: 0 | K25: =IF(ISERROR(+I25+'App.2-CC_MIFRS_DepExp_2012'!K25-J25), 0, +I25+'App.2-CC_MIFRS_DepExp_2012'!K25-J25) -> 0
A26: 1840 | B26: Underground Conduit | E26: 0 | F26: =IF(D26=0,+'App.2-CC_MIFRS_DepExp_2012'!K26,+'App.2-CC_MIFRS_DepExp_2012'!K26+((C26*0.5)/D26)) -> 0 | H26: 0 | I26: 0 | K26: =IF(ISERROR(+I26+'App.2-CC_MIFRS_DepExp_2012'!K26-J26), 0, +I26+'App.2-CC_MIFRS_DepExp_2012'!K26-J26) -> 0
A27: 1845 | B27: Underground Conductors & Devices | E27: 0 | F27: =IF(D27=0,+'App.2-CC_MIFRS_DepExp_2012'!K27,+'App.2-CC_MIFRS_DepExp_2012'!K27+((C27*0.5)/D27)) -> 0 | H27: 0 | I27: 0 | K27: =IF(ISERROR(+I27+'App.2-CC_MIFRS_DepExp_2012'!K27-J27), 0, +I27+'App.2-CC_MIFRS_DepExp_2012'!K27-J27) -> 0
A28: 1850 | B28: Line Transformers | E28: 0 | F28: =IF(D28=0,+'App.2-CC_MIFRS_DepExp_2012'!K28,+'App.2-CC_MIFRS_DepExp_2012'!K28+((C28*0.5)/D28)) -> 0 | H28: 0 | I28: 0 | K28: =IF(ISERROR(+I28+'App.2-CC_MIFRS_DepExp_2012'!K28-J28), 0, +I28+'App.2-CC_MIFRS_DepExp_2012'!K28-J28) -> 0
A29: 1855 | B29: Services (Overhead & Underground) | E29: 0 | F29: =IF(D29=0,+'App.2-CC_MIFRS_DepExp_2012'!K29,+'App.2-CC_MIFRS_DepExp_2012'!K29+((C29*0.5)/D29)) -> 0 | H29: 0 | I29: 0 | K29: =IF(ISERROR(+I29+'App.2-CC_MIFRS_DepExp_2012'!K29-J29), 0, +I29+'App.2-CC_MIFRS_DepExp_2012'!K29-J29) -> 0
A30: 1860 | B30: Meters | E30: 0 | F30: =IF(D30=0,+'App.2-CC_MIFRS_DepExp_2012'!K30,+'App.2-CC_MIFRS_DepExp_2012'!K30+((C30*0.5)/D30)) -> 0 | H30: 0 | I30: 0 | K30: =IF(ISERROR(+I30+'App.2-CC_MIFRS_DepExp_2012'!K30-J30), 0, +I30+'App.2-CC_MIFRS_DepExp_2012'!K30-J30) -> 0
A31: 1860 | B31: Meters (Smart Meters) | E31: 0 | F31: =IF(D31=0,+'App.2-CC_MIFRS_DepExp_2012'!K31,+'App.2-CC_MIFRS_DepExp_2012'!K31+((C31*0.5)/D31)) -> 0 | H31: 0 | I31: 0 | K31: =IF(ISERROR(+I31+'App.2-CC_MIFRS_DepExp_2012'!K31-J31), 0, +I31+'App.2-CC_MIFRS_DepExp_2012'!K31-J31) -> 0
A32: 1905 | B32: Land | E32: 0 | F32: =IF(D32=0,+'App.2-CC_MIFRS_DepExp_2012'!K32,+'App.2-CC_MIFRS_DepExp_2012'!K32+((C32*0.5)/D32)) -> 0 | H32: 0 | I32: 0 | K32: =IF(ISERROR(+I32+'App.2-CC_MIFRS_DepExp_2012'!K32-J32), 0, +I32+'App.2-CC_MIFRS_DepExp_2012'!K32-J32) -> 0
A33: 1908 | B33: Buildings & Fixtures | E33: 0 | F33: =IF(D33=0,+'App.2-CC_MIFRS_DepExp_2012'!K33,+'App.2-CC_MIFRS_DepExp_2012'!K33+((C33*0.5)/D33)) -> 0 | H33: 0 | I33: 0 | K33: =IF(ISERROR(+I33+'App.2-CC_MIFRS_DepExp_2012'!K33-J33), 0, +I33+'App.2-CC_MIFRS_DepExp_2012'!K33-J33) -> 0
A34: 1910 | B34: Leasehold Improvements | E34: 0 | F34: =IF(D34=0,+'App.2-CC_MIFRS_DepExp_2012'!K34,+'App.2-CC_MIFRS_DepExp_2012'!K34+((C34*0.5)/D34)) -> 0 | H34: 0 | I34: 0 | K34: =IF(ISERROR(+I34+'App.2-CC_MIFRS_DepExp_2012'!K34-J34), 0, +I34+'App.2-CC_MIFRS_DepExp_2012'!K34-J34) -> 0
A35: 1915 | B35: Office Furniture & Equipment (10 years) | E35: 0 | F35: =IF(D35=0,+'App.2-CC_MIFRS_DepExp_2012'!K35,+'App.2-CC_MIFRS_DepExp_2012'!K35+((C35*0.5)/D35)) -> 0 | H35: 0 | I35: 0 | K35: =IF(ISERROR(+I35+'App.2-CC_MIFRS_DepExp_2012'!K35-J35), 0, +I35+'App.2-CC_MIFRS_DepExp_2012'!K35-J35) -> 0
A36: 1915 | B36: Office Furniture & Equipment (5 years) | E36: 0 | F36: =IF(D36=0,+'App.2-CC_MIFRS_DepExp_2012'!K36,+'App.2-CC_MIFRS_DepExp_2012'!K36+((C36*0.5)/D36)) -> 0 | H36: 0 | I36: 0 | K36: =IF(ISERROR(+I36+'App.2-CC_MIFRS_DepExp_2012'!K36-J36), 0, +I36+'App.2-CC_MIFRS_DepExp_2012'!K36-J36) -> 0
A37: 1920 | B37: Computer Equipment - Hardware | E37: 0 | F37: =IF(D37=0,+'App.2-CC_MIFRS_DepExp_2012'!K37,+'App.2-CC_MIFRS_DepExp_2012'!K37+((C37*0.5)/D37)) -> 0 | H37: 0 | I37: 0 | K37: =IF(ISERROR(+I37+'App.2-CC_MIFRS_DepExp_2012'!K37-J37), 0, +I37+'App.2-CC_MIFRS_DepExp_2012'!K37-J37) -> 0
A38: 1920 | B38: Computer Equip.-Hardware(Post Mar. 22/04) | E38: 0 | F38: =IF(D38=0,+'App.2-CC_MIFRS_DepExp_2012'!K38,+'App.2-CC_MIFRS_DepExp_2012'!K38+((C38*0.5)/D38)) -> 0 | H38: 0 | I38: 0 | K38: =IF(ISERROR(+I38+'App.2-CC_MIFRS_DepExp_2012'!K38-J38), 0, +I38+'App.2-CC_MIFRS_DepExp_2012'!K38-J38) -> 0
A39: 1920 | B39: Computer Equip.-Hardware(Post Mar. 19/07) | E39: 0 | F39: =IF(D39=0,+'App.2-CC_MIFRS_DepExp_2012'!K39,+'App.2-CC_MIFRS_DepExp_2012'!K39+((C39*0.5)/D39)) -> 0 | H39: 0 | I39: 0 | K39: =IF(ISERROR(+I39+'App.2-CC_MIFRS_DepExp_2012'!K39-J39), 0, +I39+'App.2-CC_MIFRS_DepExp_2012'!K39-J39) -> 0
A40: 1930 | B40: Transportation Equipment | E40: 0 | F40: =IF(D40=0,+'App.2-CC_MIFRS_DepExp_2012'!K40,+'App.2-CC_MIFRS_DepExp_2012'!K40+((C40*0.5)/D40)) -> 0 | H40: 0 | I40: 0 | K40: =IF(ISERROR(+I40+'App.2-CC_MIFRS_DepExp_2012'!K40-J40), 0, +I40+'App.2-CC_MIFRS_DepExp_2012'!K40-J40) -> 0
A41: 1935 | B41: Stores Equipment | E41: 0 | F41: =IF(D41=0,+'App.2-CC_MIFRS_DepExp_2012'!K41,+'App.2-CC_MIFRS_DepExp_2012'!K41+((C41*0.5)/D41)) -> 0 | H41: 0 | I41: 0 | K41: =IF(ISERROR(+I41+'App.2-CC_MIFRS_DepExp_2012'!K41-J41), 0, +I41+'App.2-CC_MIFRS_DepExp_2012'!K41-J41) -> 0
A42: 1940 | B42: Tools, Shop & Garage Equipment | E42: 0 | F42: =IF(D42=0,+'App.2-CC_MIFRS_DepExp_2012'!K42,+'App.2-CC_MIFRS_DepExp_2012'!K42+((C42*0.5)/D42)) -> 0 | H42: 0 | I42: 0 | K42: =IF(ISERROR(+I42+'App.2-CC_MIFRS_DepExp_2012'!K42-J42), 0, +I42+'App.2-CC_MIFRS_DepExp_2012'!K42-J42) -> 0
A43: 1945 | B43: Measurement & Testing Equipment | E43: 0 | F43: =IF(D43=0,+'App.2-CC_MIFRS_DepExp_2012'!K43,+'App.2-CC_MIFRS_DepExp_2012'!K43+((C43*0.5)/D43)) -> 0 | H43: 0 | I43: 0 | K43: =IF(ISERROR(+I43+'App.2-CC_MIFRS_DepExp_2012'!K43-J43), 0, +I43+'App.2-CC_MIFRS_DepExp_2012'!K43-J43) -> 0
A44: 1950 | B44: Power Operated Equipment | E44: 0 | F44: =IF(D44=0,+'App.2-CC_MIFRS_DepExp_2012'!K44,+'App.2-CC_MIFRS_DepExp_2012'!K44+((C44*0.5)/D44)) -> 0 | H44: 0 | I44: 0 | K44: =IF(ISERROR(+I44+'App.2-CC_MIFRS_DepExp_2012'!K44-J44), 0, +I44+'App.2-CC_MIFRS_DepExp_2012'!K44-J44) -> 0
A45: 1955 | B45: Communications Equipment | E45: 0 | F45: =IF(D45=0,+'App.2-CC_MIFRS_DepExp_2012'!K45,+'App.2-CC_MIFRS_DepExp_2012'!K45+((C45*0.5)/D45)) -> 0 | H45: 0 | I45: 0 | K45: =IF(ISERROR(+I45+'App.2-CC_MIFRS_DepExp_2012'!K45-J45), 0, +I45+'App.2-CC_MIFRS_DepExp_2012'!K45-J45) -> 0
A46: 1955 | B46: Communication Equipment (Smart Meters) | E46: 0 | F46: =IF(D46=0,+'App.2-CC_MIFRS_DepExp_2012'!K46,+'App.2-CC_MIFRS_DepExp_2012'!K46+((C46*0.5)/D46)) -> 0 | H46: 0 | I46: 0 | K46: =IF(ISERROR(+I46+'App.2-CC_MIFRS_DepExp_2012'!K46-J46), 0, +I46+'App.2-CC_MIFRS_DepExp_2012'!K46-J46) -> 0
A47: 1960 | B47: Miscellaneous Equipment | E47: 0 | F47: =IF(D47=0,+'App.2-CC_MIFRS_DepExp_2012'!K47,+'App.2-CC_MIFRS_DepExp_2012'!K47+((C47*0.5)/D47)) -> 0 | H47: 0 | I47: 0 | K47: =IF(ISERROR(+I47+'App.2-CC_MIFRS_DepExp_2012'!K47-J47), 0, +I47+'App.2-CC_MIFRS_DepExp_2012'!K47-J47) -> 0
A48: 1970 | B48: Load Management Controls Customer Premises | E48: 0 | F48: =IF(D48=0,+'App.2-CC_MIFRS_DepExp_2012'!K48,+'App.2-CC_MIFRS_DepExp_2012'!K48+((C48*0.5)/D48)) -> 0 | H48: 0 | I48: 0 | K48: =IF(ISERROR(+I48+'App.2-CC_MIFRS_DepExp_2012'!K48-J48), 0, +I48+'App.2-CC_MIFRS_DepExp_2012'!K48-J48) -> 0
A49: 1975 | B49: Load Management Controls Utility Premises | E49: 0 | F49: =IF(D49=0,+'App.2-CC_MIFRS_DepExp_2012'!K49,+'App.2-CC_MIFRS_DepExp_2012'!K49+((C49*0.5)/D49)) -> 0 | H49: 0 | I49: 0 | K49: =IF(ISERROR(+I49+'App.2-CC_MIFRS_DepExp_2012'!K49-J49), 0, +I49+'App.2-CC_MIFRS_DepExp_2012'!K49-J49) -> 0
A50: 1980 | B50: System Supervisor Equipment | E50: 0 | F50: =IF(D50=0,+'App.2-CC_MIFRS_DepExp_2012'!K50,+'App.2-CC_MIFRS_DepExp_2012'!K50+((C50*0.5)/D50)) -> 0 | H50: 0 | I50: 0 | K50: =IF(ISERROR(+I50+'App.2-CC_MIFRS_DepExp_2012'!K50-J50), 0, +I50+'App.2-CC_MIFRS_DepExp_2012'!K50-J50) -> 0
A51: 1985 | B51: Miscellaneous Fixed Assets | E51: 0 | F51: =IF(D51=0,+'App.2-CC_MIFRS_DepExp_2012'!K51,+'App.2-CC_MIFRS_DepExp_2012'!K51+((C51*0.5)/D51)) -> 0 | H51: 0 | I51: 0 | K51: =IF(ISERROR(+I51+'App.2-CC_MIFRS_DepExp_2012'!K51-J51), 0, +I51+'App.2-CC_MIFRS_DepExp_2012'!K51-J51) -> 0
A52: 1990 | B52: Other Tangible Property | E52: 0 | F52: =IF(D52=0,+'App.2-CC_MIFRS_DepExp_2012'!K52,+'App.2-CC_MIFRS_DepExp_2012'!K52+((C52*0.5)/D52)) -> 0 | H52: 0 | I52: 0 | K52: =IF(ISERROR(+I52+'App.2-CC_MIFRS_DepExp_2012'!K52-J52), 0, +I52+'App.2-CC_MIFRS_DepExp_2012'!K52-J52) -> 0
A53: 1995 | B53: Contributions & Grants | E53: 0 | F53: =IF(D53=0,+'App.2-CC_MIFRS_DepExp_2012'!K53,+'App.2-CC_MIFRS_DepExp_2012'!K53+((C53*0.5)/D53)) -> 0 | H53: 0 | I53: 0 | K53: =IF(ISERROR(+I53+'App.2-CC_MIFRS_DepExp_2012'!K53-J53), 0, +I53+'App.2-CC_MIFRS_DepExp_2012'!K53-J53) -> 0
A54: etc. | E54: 0 | F54: =IF(D54=0,+'App.2-CC_MIFRS_DepExp_2012'!K54,+'App.2-CC_MIFRS_DepExp_2012'!K54+((C54*0.5)/D54)) -> 0 | H54: 0 | I54: 0 | K54: =IF(ISERROR(+I54+'App.2-CC_MIFRS_DepExp_2012'!K54-J54), 0, +I54+'App.2-CC_MIFRS_DepExp_2012'!K54-J54) -> 0
E55: 0 | F55: =IF(D55=0,+'App.2-CC_MIFRS_DepExp_2012'!K55,+'App.2-CC_MIFRS_DepExp_2012'!K55+((C55*0.5)/D55)) -> 0 | H55: 0 | I55: 0 | K55: =IF(ISERROR(+I55+'App.2-CC_MIFRS_DepExp_2012'!K55-J55), 0, +I55+'App.2-CC_MIFRS_DepExp_2012'!K55-J55) -> 0
B56: Total | C56: =SUM(C16:C55) -> 0 | F56: =SUM(F16:F55) -> 0 | G56: 0 | H56: 0 | I56: 0 | J56: 0 | K56: 0
B57: Depreciation exp. adj. from gain or loss on the retirement of assets (pool of like assets) | F57: 0
B58: Total | F58: =+F57+F56 -> 0
A59: Notes:
A60: 1 | B60: Board policy of the "half-year" rule - the applicant must ensure that additions in the year attract a half-year depreciation expense in the first year. Deviations from this standard practice must be supported in the application.
A61: 2 | B61: The applicant must provide an explanation of material variances in evidence.
A62: 3 | B62: This column refers to the calculated full year depreciation but excludes the depreciation expense on assets fully depreciated during the year. This column is used for the purpose of calculating depreciation expense in the following year on the next worksheet.
A64: General: | B64: Applicants must provide a breakdown of depreciation and amortization expense in the above format for all relevant accounts. Asset Retirement Obligations (AROs), depreciation and accretion expense should be disclosed separately consistent with the Notes of historical Audited Financial Statements.

Sheet App.2-CE_MIFRS_DepExp_2014 (hidden)
G1: File Number: | H1: =EBNUMBER -> EB-2013-0134
G2: Exhibit:
G3: Tab:
G4: Schedule:
G5: Page:
G7: Date:
A9: Appendix 2-CE
A10: Depreciation and Amortization Expense
A11: Assumes the applicant adopted IFRS for financial reporting purposes January 1, 2012
C12: 2014 | D12: MIFRS
A14: Account | B14: Description | C14: Additions | D14: Years (new additions only) | E14: Depreciation Rate on New Additions | F14: 2014 Depreciation Expense 1 | G14: 2014 Depreciation Expense per Appendix 2-B Fixed Assets, Column K (l) | H14: Variance 2
C15: (d) | D15: (f) | E15: (g) = 1 / (f) | F15: (h)=2013 Full Year Depreciation + ((d)*0.5)/(f) | H15: (m) = (h) - (l)
A16: 1611 | B16: Computer Software (Formally known as Account 1925) | E16: =IF(D16=0,0,1/D16) -> 0 | F16: =IF(D16=0,'App.2-CD_MIFRS_DepExp_2013'!K16,+'App.2-CD_MIFRS_DepExp_2013'!K16+((C16*0.5)/D16)) -> 0 | H16: =IF(ISERROR(+F16-G16), 0, +F16-G16) -> 0
A17: 1612 | B17: Land Rights (Formally known as Account 1906) | E17: 0 | F17: =IF(D17=0,'App.2-CD_MIFRS_DepExp_2013'!K17,+'App.2-CD_MIFRS_DepExp_2013'!K17+((C17*0.5)/D17)) -> 0 | H17: 0
A18: 1805 | B18: Land | E18: 0 | F18: =IF(D18=0,'App.2-CD_MIFRS_DepExp_2013'!K18,+'App.2-CD_MIFRS_DepExp_2013'!K18+((C18*0.5)/D18)) -> 0 | H18: 0
A19: 1808 | B19: Buildings | E19: 0 | F19: =IF(D19=0,'App.2-CD_MIFRS_DepExp_2013'!K19,+'App.2-CD_MIFRS_DepExp_2013'!K19+((C19*0.5)/D19)) -> 0 | H19: 0
A20: 1810 | B20: Leasehold Improvements | E20: 0 | F20: =IF(D20=0,'App.2-CD_MIFRS_DepExp_2013'!K20,+'App.2-CD_MIFRS_DepExp_2013'!K20+((C20*0.5)/D20)) -> 0 | H20: 0
A21: 1815 | B21: Transformer Station Equipment >50 kV | E21: 0 | F21: =IF(D21=0,'App.2-CD_MIFRS_DepExp_2013'!K21,+'App.2-CD_MIFRS_DepExp_2013'!K21+((C21*0.5)/D21)) -> 0 | H21: 0
A22: 1820 | B22: Distribution Station Equipment <50 kV | E22: 0 | F22: =IF(D22=0,'App.2-CD_MIFRS_DepExp_2013'!K22,+'App.2-CD_MIFRS_DepExp_2013'!K22+((C22*0.5)/D22)) -> 0 | H22: 0
A23: 1825 | B23: Storage Battery Equipment | E23: 0 | F23: =IF(D23=0,'App.2-CD_MIFRS_DepExp_2013'!K23,+'App.2-CD_MIFRS_DepExp_2013'!K23+((C23*0.5)/D23)) -> 0 | H23: 0
A24: 1830 | B24: Poles, Towers & Fixtures | E24: 0 | F24: =IF(D24=0,'App.2-CD_MIFRS_DepExp_2013'!K24,+'App.2-CD_MIFRS_DepExp_2013'!K24+((C24*0.5)/D24)) -> 0 | H24: 0
A25: 1835 | B25: Overhead Conductors & Devices | E25: 0 | F25: =IF(D25=0,'App.2-CD_MIFRS_DepExp_2013'!K25,+'App.2-CD_MIFRS_DepExp_2013'!K25+((C25*0.5)/D25)) -> 0 | H25: 0
A26: 1840 | B26: Underground Conduit | E26: 0 | F26: =IF(D26=0,'App.2-CD_MIFRS_DepExp_2013'!K26,+'App.2-CD_MIFRS_DepExp_2013'!K26+((C26*0.5)/D26)) -> 0 | H26: 0
A27: 1845 | B27: Underground Conductors & Devices | E27: 0 | F27: =IF(D27=0,'App.2-CD_MIFRS_DepExp_2013'!K27,+'App.2-CD_MIFRS_DepExp_2013'!K27+((C27*0.5)/D27)) -> 0 | H27: 0
A28: 1850 | B28: Line Transformers | E28: 0 | F28: =IF(D28=0,'App.2-CD_MIFRS_DepExp_2013'!K28,+'App.2-CD_MIFRS_DepExp_2013'!K28+((C28*0.5)/D28)) -> 0 | H28: 0
A29: 1855 | B29: Services (Overhead & Underground) | E29: 0 | F29: =IF(D29=0,'App.2-CD_MIFRS_DepExp_2013'!K29,+'App.2-CD_MIFRS_DepExp_2013'!K29+((C29*0.5)/D29)) -> 0 | H29: 0
A30: 1860 | B30: Meters | E30: 0 | F30: =IF(D30=0,'App.2-CD_MIFRS_DepExp_2013'!K30,+'App.2-CD_MIFRS_DepExp_2013'!K30+((C30*0.5)/D30)) -> 0 | H30: 0
A31: 1860 | B31: Meters (Smart Meters) | E31: 0 | F31: =IF(D31=0,'App.2-CD_MIFRS_DepExp_2013'!K31,+'App.2-CD_MIFRS_DepExp_2013'!K31+((C31*0.5)/D31)) -> 0 | H31: 0
A32: 1905 | B32: Land | E32: 0 | F32: =IF(D32=0,'App.2-CD_MIFRS_DepExp_2013'!K32,+'App.2-CD_MIFRS_DepExp_2013'!K32+((C32*0.5)/D32)) -> 0 | H32: 0
A33: 1908 | B33: Buildings & Fixtures | E33: 0 | F33: =IF(D33=0,'App.2-CD_MIFRS_DepExp_2013'!K33,+'App.2-CD_MIFRS_DepExp_2013'!K33+((C33*0.5)/D33)) -> 0 | H33: 0
A34: 1910 | B34: Leasehold Improvements | E34: 0 | F34: =IF(D34=0,'App.2-CD_MIFRS_DepExp_2013'!K34,+'App.2-CD_MIFRS_DepExp_2013'!K34+((C34*0.5)/D34)) -> 0 | H34: 0
A35: 1915 | B35: Office Furniture & Equipment (10 years) | E35: 0 | F35: =IF(D35=0,'App.2-CD_MIFRS_DepExp_2013'!K35,+'App.2-CD_MIFRS_DepExp_2013'!K35+((C35*0.5)/D35)) -> 0 | H35: 0
A36: 1915 | B36: Office Furniture & Equipment (5 years) | E36: 0 | F36: =IF(D36=0,'App.2-CD_MIFRS_DepExp_2013'!K36,+'App.2-CD_MIFRS_DepExp_2013'!K36+((C36*0.5)/D36)) -> 0 | H36: 0
A37: 1920 | B37: Computer Equipment - Hardware | E37: 0 | F37: =IF(D37=0,'App.2-CD_MIFRS_DepExp_2013'!K37,+'App.2-CD_MIFRS_DepExp_2013'!K37+((C37*0.5)/D37)) -> 0 | H37: 0
A38: 1920 | B38: Computer Equip.-Hardware(Post Mar. 22/04) | E38: 0 | F38: =IF(D38=0,'App.2-CD_MIFRS_DepExp_2013'!K38,+'App.2-CD_MIFRS_DepExp_2013'!K38+((C38*0.5)/D38)) -> 0 | H38: 0
A39: 1920 | B39: Computer Equip.-Hardware(Post Mar. 19/07) | E39: 0 | F39: =IF(D39=0,'App.2-CD_MIFRS_DepExp_2013'!K39,+'App.2-CD_MIFRS_DepExp_2013'!K39+((C39*0.5)/D39)) -> 0 | H39: 0
A40: 1930 | B40: Transportation Equipment | E40: 0 | F40: =IF(D40=0,'App.2-CD_MIFRS_DepExp_2013'!K40,+'App.2-CD_MIFRS_DepExp_2013'!K40+((C40*0.5)/D40)) -> 0 | H40: 0
A41: 1935 | B41: Stores Equipment | E41: 0 | F41: =IF(D41=0,'App.2-CD_MIFRS_DepExp_2013'!K41,+'App.2-CD_MIFRS_DepExp_2013'!K41+((C41*0.5)/D41)) -> 0 | H41: 0
A42: 1940 | B42: Tools, Shop & Garage Equipment | E42: 0 | F42: =IF(D42=0,'App.2-CD_MIFRS_DepExp_2013'!K42,+'App.2-CD_MIFRS_DepExp_2013'!K42+((C42*0.5)/D42)) -> 0 | H42: 0
A43: 1945 | B43: Measurement & Testing Equipment | E43: 0 | F43: =IF(D43=0,'App.2-CD_MIFRS_DepExp_2013'!K43,+'App.2-CD_MIFRS_DepExp_2013'!K43+((C43*0.5)/D43)) -> 0 | H43: 0
A44: 1950 | B44: Power Operated Equipment | E44: 0 | F44: =IF(D44=0,'App.2-CD_MIFRS_DepExp_2013'!K44,+'App.2-CD_MIFRS_DepExp_2013'!K44+((C44*0.5)/D44)) -> 0 | H44: 0
A45: 1955 | B45: Communications Equipment | E45: 0 | F45: =IF(D45=0,'App.2-CD_MIFRS_DepExp_2013'!K45,+'App.2-CD_MIFRS_DepExp_2013'!K45+((C45*0.5)/D45)) -> 0 | H45: 0
A46: 1955 | B46: Communication Equipment (Smart Meters) | E46: 0 | F46: =IF(D46=0,'App.2-CD_MIFRS_DepExp_2013'!K46,+'App.2-CD_MIFRS_DepExp_2013'!K46+((C46*0.5)/D46)) -> 0 | H46: 0
A47: 1960 | B47: Miscellaneous Equipment | E47: 0 | F47: =IF(D47=0,'App.2-CD_MIFRS_DepExp_2013'!K47,+'App.2-CD_MIFRS_DepExp_2013'!K47+((C47*0.5)/D47)) -> 0 | H47: 0
A48: 1970 | B48: Load Management Controls Customer Premises | E48: 0 | F48: =IF(D48=0,'App.2-CD_MIFRS_DepExp_2013'!K48,+'App.2-CD_MIFRS_DepExp_2013'!K48+((C48*0.5)/D48)) -> 0 | H48: 0
A49: 1975 | B49: Load Management Controls Utility Premises | E49: 0 | F49: =IF(D49=0,'App.2-CD_MIFRS_DepExp_2013'!K49,+'App.2-CD_MIFRS_DepExp_2013'!K49+((C49*0.5)/D49)) -> 0 | H49: 0
A50: 1980 | B50: System Supervisor Equipment | E50: 0 | F50: =IF(D50=0,'App.2-CD_MIFRS_DepExp_2013'!K50,+'App.2-CD_MIFRS_DepExp_2013'!K50+((C50*0.5)/D50)) -> 0 | H50: 0
A51: 1985 | B51: Miscellaneous Fixed Assets | E51: 0 | F51: =IF(D51=0,'App.2-CD_MIFRS_DepExp_2013'!K51,+'App.2-CD_MIFRS_DepExp_2013'!K51+((C51*0.5)/D51)) -> 0 | H51: 0
A52: 1990 | B52: Other Tangible Property | E52: 0 | F52: =IF(D52=0,'App.2-CD_MIFRS_DepExp_2013'!K52,+'App.2-CD_MIFRS_DepExp_2013'!K52+((C52*0.5)/D52)) -> 0 | H52: 0
A53: 1995 | B53: Contributions & Grants | E53: 0 | F53: =IF(D53=0,'App.2-CD_MIFRS_DepExp_2013'!K53,+'App.2-CD_MIFRS_DepExp_2013'!K53+((C53*0.5)/D53)) -> 0 | H53: 0
A54: etc. | E54: 0 | F54: =IF(D54=0,'App.2-CD_MIFRS_DepExp_2013'!K54,+'App.2-CD_MIFRS_DepExp_2013'!K54+((C54*0.5)/D54)) -> 0 | H54: 0
E55: 0 | F55: =IF(D55=0,'App.2-CD_MIFRS_DepExp_2013'!K55,+'App.2-CD_MIFRS_DepExp_2013'!K55+((C55*0.5)/D55)) -> 0 | H55: 0
B56: Total | C56: =SUM(C16:C55) -> 0 | F56: =SUM(F16:F55) -> 0 | G56: =SUM(G16:G55) -> 0 | H56: =SUM(H16:H55) -> 0
B57: Depreciation exp. adj. from gain or loss on the retirement of assets (pool of like assets)
B58: Total Depreciation expense to be included in the test year revenue requirement | F58: =SUM(F56:F57) -> 0
A59: Notes:
A60: 1 | B60: Board policy of the "half-year" rule - the applicant must ensure that additions in the year attract a half-year depreciation expense in the first year. Deviations from this standard practice must be supported in the application.
A61: 2 | B61: The applicant must provide an explanation of material variances in evidence.
A63: General: | B63: Applicants must provide a breakdown of depreciation and amortization expense in the above format for all relevant accounts. Asset Retirement Obligations (AROs), depreciation and accretion expense should be disclosed separately consistent with the Notes of historical Audited Financial Statements.

Sheet App.2-CF_CGAAP_DepExp_2012 (hidden)
K1: File Number: | L1: =EBNUMBER -> EB-2013-0134
K2: Exhibit:
K3: Tab:
K4: Schedule:
K5: Page:
K7: Date:
A9: Appendix 2-CF
A10: Depreciation and Amortization Expense
A11: Assumes the applicant adopted IFRS for financial reporting purposes January 1, 2013
C12: Year | D12: 2012 | E12: CGAAP
A14: Account | B14: Description | C14: Opening Regulatory Gross PP&E as at Jan 1, 2012 | D14: Less Fully Depreciated | E14: Net for Depreciation | F14: Additions | G14: Total for Depreciation | H14: Years | I14: Depreciation Rate | J14: Depreciation Expense | K14: 2012 Depreciation Expense per Appendix 2-B Fixed Assets, Column K (l) | L14: Variance 2
C15: (a) | D15: (b) | E15: (c) | F15: (d) | G15: (e) = (c) + ½ x (d) 1 | H15: (f) | I15: (g) = 1 / (f) | J15: (h) = (e) / (f) | L15: (m) = (h) - (l)
A16: 1611 | B16: Computer Software (Formally known as Account 1925) | E16: =C16-D16 -> 0 | G16: =E16+0.5*F16 -> 0 | I16: =IF(H16=0,0,1/H16) -> 0 | J16: =IF(H16=0,0,G16/H16) -> 0 | L16: =IF(ISERROR(+J16-K16), 0, +J16-K16) -> 0
A17: 1612 | B17: Land Rights (Formally known as Account 1906) | E17: =C17-D17 -> 0 | G17: =E17+0.5*F17 -> 0 | I17: 0 | J17: 0 | L17: 0
A18: 1805 | B18: Land | E18: 0 | G18: 0 | I18: 0 | J18: 0 | L18: 0
A19: 1808 | B19: Buildings | E19: 0 | G19: 0 | I19: 0 | J19: 0 | L19: 0
A20: 1810 | B20: Leasehold Improvements | E20: 0 | G20: 0 | I20: 0 | J20: 0 | L20: 0
A21: 1815 | B21: Transformer Station Equipment >50 kV | E21: 0 | G21: 0 | I21: 0 | J21: 0 | L21: 0
A22: 1820 | B22: Distribution Station Equipment <50 kV | E22: 0 | G22: 0 | I22: 0 | J22: 0 | L22: 0
A23: 1825 | B23: Storage Battery Equipment | E23: 0 | G23: 0 | I23: 0 | J23: 0 | L23: 0
A24: 1830 | B24: Poles, Towers & Fixtures | E24: 0 | G24: 0 | I24: 0 | J24: 0 | L24: 0
A25: 1835 | B25: Overhead Conductors & Devices | E25: 0 | G25: 0 | I25: 0 | J25: 0 | L25: 0
A26: 1840 | B26: Underground Conduit | E26: 0 | G26: 0 | I26: 0 | J26: 0 | L26: 0
A27: 1845 | B27: Underground Conductors & Devices | E27: 0 | G27: 0 | I27: 0 | J27: 0 | L27: 0
A28: 1850 | B28: Line Transformers | E28: 0 | G28: 0 | I28: 0 | J28: 0 | L28: 0
A29: 1855 | B29: Services (Overhead & Underground) | E29: 0 | G29: 0 | I29: 0 | J29: 0 | L29: 0
A30: 1860 | B30: Meters | E30: 0 | G30: 0 | I30: 0 | J30: 0 | L30: 0
A31: 1860 | B31: Meters (Smart Meters) | E31: 0 | G31: 0 | I31: 0 | J31: 0 | L31: 0
A32: 1905 | B32: Land | E32: 0 | G32: 0 | I32: 0 | J32: 0 | L32: 0
A33: 1908 | B33: Buildings & Fixtures | E33: 0 | G33: 0 | I33: 0 | J33: 0 | L33: 0
A34: 1910 | B34: Leasehold Improvements | E34: 0 | G34: 0 | I34: 0 | J34: 0 | L34: 0
A35: 1915 | B35: Office Furniture & Equipment (10 years) | E35: 0 | G35: 0 | I35: 0 | J35: 0 | L35: 0
A36: 1915 | B36: Office Furniture & Equipment (5 years) | E36: 0 | G36: 0 | I36: 0 | J36: 0 | L36: 0
A37: 1920 | B37: Computer Equipment - Hardware | E37: 0 | G37: 0 | I37: 0 | J37: 0 | L37: 0
A38: 1920 | B38: Computer Equip.-Hardware(Post Mar. 22/04) | E38: 0 | G38: 0 | I38: 0 | J38: 0 | L38: 0
A39: 1920 | B39: Computer Equip.-Hardware(Post Mar. 19/07) | E39: 0 | G39: 0 | I39: 0 | J39: 0 | L39: 0
A40: 1930 | B40: Transportation Equipment | E40: 0 | G40: 0 | I40: 0 | J40: 0 | L40: 0
A41: 1935 | B41: Stores Equipment | E41: 0 | G41: 0 | I41: 0 | J41: 0 | L41: 0
A42: 1940 | B42: Tools, Shop & Garage Equipment | E42: 0 | G42: 0 | I42: 0 | J42: 0 | L42: 0
A43: 1945 | B43: Measurement & Testing Equipment | E43: 0 | G43: 0 | I43: 0 | J43: 0 | L43: 0
A44: 1950 | B44: Power Operated Equipment | E44: 0 | G44: 0 | I44: 0 | J44: 0 | L44: 0
A45: 1955 | B45: Communications Equipment | E45: 0 | G45: 0 | I45: 0 | J45: 0 | L45: 0
A46: 1955 | B46: Communication Equipment (Smart Meters) | E46: 0 | G46: 0 | I46: 0 | J46: 0 | L46: 0
A47: 1960 | B47: Miscellaneous Equipment | E47: 0 | G47: 0 | I47: 0 | J47: 0 | L47: 0
A48: 1970 | B48: Load Management Controls Customer Premises | E48: 0 | G48: 0 | I48: 0 | J48: 0 | L48: 0
A49: 1975 | B49: Load Management Controls Utility Premises | E49: 0 | G49: 0 | I49: 0 | J49: 0 | L49: 0
A50: 1980 | B50: System Supervisor Equipment | E50: 0 | G50: 0 | I50: 0 | J50: 0 | L50: 0
A51: 1985 | B51: Miscellaneous Fixed Assets | E51: 0 | G51: 0 | I51: 0 | J51: 0 | L51: 0
A52: 1990 | B52: Other Tangible Property | E52: 0 | G52: 0 | I52: 0 | J52: 0 | L52: 0
A53: 1995 | B53: Contributions & Grants | E53: 0 | G53: 0 | I53: 0 | J53: 0 | L53: 0
A54: etc. | E54: 0 | G54: 0 | I54: 0 | J54: 0 | L54: 0
E55: 0 | G55: 0 | I55: 0 | J55: 0 | L55: 0
B56: Total | C56: =SUM(C16:C55) -> 0 | D56: =SUM(D16:D55) -> 0 | E56: =SUM(E16:E55) -> 0 | F56: =SUM(F16:F55) -> 0 | G56: =SUM(G16:G55) -> 0 | J56: =SUM(J16:J55) -> 0 | K56: =SUM(K16:K55) -> 0 | L56: =SUM(L16:L55) -> 0
A58: Notes:
A60: 1 | B60: Board policy of the "half-year" rule - the applicant must ensure that additions in the year attract a half-year depreciation expense in the first year. Deviations from this standard practice must be supported in the application.
A61: 2 | B61: The applicant must provide an explanation of material variances in evidence.
A63: General | B63: Applicants must provide a breakdown of depreciation and amortization expense in the above format for all relevant accounts. Asset Retirement Obligations (AROs), depreciation and accretion expense should be disclosed separately consistent with the Notes of historical Audited Financial Statements.

Sheet App.2-CG_MIFRS_DepExp_2012 (hidden)
N1: File Number: | O1: =EBNUMBER -> EB-2013-0134
N2: Exhibit:
N3: Tab:
N4: Schedule:
N5: Page:
N7: Date:
A9: Appendix 2-CG
A10: Depreciation and Amortization Expense
A11: Assumes the applicant adopted IFRS for financial reporting purposes January 1, 2013
C12: Year | D12: 2012 | E12: MIFRS
A14: Account | B14: Description | C14: Opening NBV as at Jan 1, 2012 5 | D14: Additions | E14: Average Remaining Life of Opening NBV 4 | F14: Years (new additions only) 3 | G14: Depreciation Rate on New Additions | H14: Depreciation Expense on Opening NBV | I14: Depreciation Expense on Additions 1 | J14: 2012 Depreciation Expense | K14: 2012 Depreciation Expense per Appendix 2-B Fixed Assets, Column K (l) | L14: Variance 2 | M14: Depreciation Expense on 2012 Full Year Additions | N14: Less Depreciation Expense on Assets Fully Depreciated during the year (o) | O14: 2012 Full Year Depreciation 6
C15: (a) | D15: (d) | E15: (i) | F15: (f) | G15: (g) = 1 / (f) | H15: (j) = (a) / (i) | I15: (h)=((d)*0.5)/(f) | J15: (k) = (j) + (h) | L15: (m) = (k) - (l) | M15: (n) = (d)/(f) | O15: (p) = (j) + (n) - (o)
A16: 1611 | B16: Computer Software (Formally known as Account 1925) | G16: =IF(F16=0,0,1/F16) -> 0 | H16: =IF(E16=0,0,+C16/E16) -> 0 | I16: =IF(F16=0,0,+(D16*0.5)/F16) -> 0 | J16: =IF(ISERROR(+H16+I16), 0, +H16+I16) -> 0 | L16: =IF(ISERROR(+J16-K16), 0, +J16-K16) -> 0 | M16: =IF(F16=0,0,+(D16)/F16) -> 0 | O16: =IF(ISERROR(+M16+H16-N16), 0, +M16+H16-N16) -> 0
A17: 1612 | B17: Land Rights (Formally known as Account 1906) | G17: 0 | H17: 0 | I17: 0 | J17: 0 | L17: 0 | M17: 0 | O17: =IF(ISERROR(+M17+H17-N17), 0, +M17+H17-N17) -> 0
A18: 1805 | B18: Land | G18: 0 | H18: 0 | I18: 0 | J18: 0 | L18: 0 | M18: 0 | O18: 0
A19: 1808 | B19: Buildings | G19: 0 | H19: 0 | I19: 0 | J19: 0 | L19: 0 | M19: 0 | O19: 0
A20: 1810 | B20: Leasehold Improvements | G20: 0 | H20: 0 | I20: 0 | J20: 0 | L20: 0 | M20: 0 | O20: 0
A21: 1815 | B21: Transformer Station Equipment >50 kV | G21: 0 | H21: 0 | I21: 0 | J21: 0 | L21: 0 | M21: 0 | O21: 0
A22: 1820 | B22: Distribution Station Equipment <50 kV | G22: 0 | H22: 0 | I22: 0 | J22: 0 | L22: 0 | M22: 0 | O22: 0
A23: 1825 | B23: Storage Battery Equipment | G23: 0 | H23: 0 | I23: 0 | J23: 0 | L23: 0 | M23: 0 | O23: 0
A24: 1830 | B24: Poles, Towers & Fixtures | G24: 0 | H24: 0 | I24: 0 | J24: 0 | L24: 0 | M24: 0 | O24: 0
A25: 1835 | B25: Overhead Conductors & Devices | G25: 0 | H25: 0 | I25: 0 | J25: 0 | L25: 0 | M25: 0 | O25: 0
A26: 1840 | B26: Underground Conduit | G26: 0 | H26: 0 | I26: 0 | J26: 0 | L26: 0 | M26: 0 | O26: 0
A27: 1845 | B27: Underground Conductors & Devices | G27: 0 | H27: 0 | I27: 0 | J27: 0 | L27: 0 | M27: 0 | O27: 0
A28: 1850 | B28: Line Transformers | G28: 0 | H28: 0 | I28: 0 | J28: 0 | L28: 0 | M28: 0 | O28: 0
A29: 1855 | B29: Services (Overhead & Underground) | G29: 0 | H29: 0 | I29: 0 | J29: 0 | L29: 0 | M29: 0 | O29: 0
A30: 1860 | B30: Meters | G30: 0 | H30: 0 | I30: 0 | J30: 0 | L30: 0 | M30: 0 | O30: 0
A31: 1860 | B31: Meters (Smart Meters) | G31: 0 | H31: 0 | I31: 0 | J31: 0 | L31: 0 | M31: 0 | O31: 0
A32: 1905 | B32: Land | G32: 0 | H32: 0 | I32: 0 | J32: 0 | L32: 0 | M32: 0 | O32: 0
A33: 1908 | B33: Buildings & Fixtures | G33: 0 | H33: 0 | I33: 0 | J33: 0 | L33: 0 | M33: 0 | O33: 0
A34: 1910 | B34: Leasehold Improvements | G34: 0 | H34: 0 | I34: 0 | J34: 0 | L34: 0 | M34: 0 | O34: 0
A35: 1915 | B35: Office Furniture & Equipment (10 years) | G35: 0 | H35: 0 | I35: 0 | J35: 0 | L35: 0 | M35: 0 | O35: 0
A36: 1915 | B36: Office Furniture & Equipment (5 years) | G36: 0 | H36: 0 | I36: 0 | J36: 0 | L36: 0 | M36: 0 | O36: 0
A37: 1920 | B37: Computer Equipment - Hardware | G37: 0 | H37: 0 | I37: 0 | J37: 0 | L37: 0 | M37: 0 | O37: 0
A38: 1920 | B38: Computer Equip.-Hardware(Post Mar. 22/04) | G38: 0 | H38: 0 | I38: 0 | J38: 0 | L38: 0 | M38: 0 | O38: 0
A39: 1920 | B39: Computer Equip.-Hardware(Post Mar. 19/07) | G39: 0 | H39: 0 | I39: 0 | J39: 0 | L39: 0 | M39: 0 | O39: 0
A40: 1930 | B40: Transportation Equipment | G40: 0 | H40: 0 | I40: 0 | J40: 0 | L40: 0 | M40: 0 | O40: 0
A41: 1935 | B41: Stores Equipment | G41: 0 | H41: 0 | I41: 0 | J41: 0 | L41: 0 | M41: 0 | O41: 0
A42: 1940 | B42: Tools, Shop & Garage Equipment | G42: 0 | H42: 0 | I42: 0 | J42: 0 | L42: 0 | M42: 0 | O42: 0
A43: 1945 | B43: Measurement & Testing Equipment | G43: 0 | H43: 0 | I43: 0 | J43: 0 | L43: 0 | M43: 0 | O43: 0
A44: 1950 | B44: Power Operated Equipment | G44: 0 | H44: 0 | I44: 0 | J44: 0 | L44: 0 | M44: 0 | O44: 0
A45: 1955 | B45: Communications Equipment | G45: 0 | H45: 0 | I45: 0 | J45: 0 | L45: 0 | M45: 0 | O45: 0
A46: 1955 | B46: Communication Equipment (Smart Meters) | G46: 0 | H46: 0 | I46: 0 | J46: 0 | L46: 0 | M46: 0 | O46: 0
A47: 1960 | B47: Miscellaneous Equipment | G47: 0 | H47: 0 | I47: 0 | J47: 0 | L47: 0 | M47: 0 | O47: 0
A48: 1970 | B48: Load Management Controls Customer Premises | G48: 0 | H48: 0 | I48: 0 | J48: 0 | L48: 0 | M48: 0 | O48: 0
A49: 1975 | B49: Load Management Controls Utility Premises | G49: 0 | H49: 0 | I49: 0 | J49: 0 | L49: 0 | M49: 0 | O49: 0
A50: 1980 | B50: System Supervisor Equipment | G50: 0 | H50: 0 | I50: 0 | J50: 0 | L50: 0 | M50: 0 | O50: 0
A51: 1985 | B51: Miscellaneous Fixed Assets | G51: 0 | H51: 0 | I51: 0 | J51: 0 | L51: 0 | M51: 0 | O51: 0
A52: 1990 | B52: Other Tangible Property | G52: 0 | H52: 0 | I52: 0 | J52: 0 | L52: 0 | M52: 0 | O52: 0
A53: 1995 | B53: Contributions & Grants | G53: 0 | H53: 0 | I53: 0 | J53: 0 | L53: 0 | M53: 0 | O53: 0
A54: etc. | G54: 0 | H54: 0 | I54: 0 | J54: 0 | L54: 0 | M54: 0 | O54: 0
G55: 0 | H55: 0 | I55: 0 | J55: 0 | L55: 0 | M55: 0 | O55: 0
B56: Total | C56: =SUM(C16:C55) -> 0 | D56: =SUM(D16:D55) -> 0 | H56: =SUM(H16:H55) -> 0 | I56: 0 | J56: 0 | K56: 0 | L56: 0 | M56: 0 | N56: =SUM(N16:N55) -> 0 | O56: 0
B57: Depreciation exp. adj. from gain or loss on the retirement of assets (pool of like assets) | J57: 0
B58: Total | J58: =+J56+J57 -> 0
A59: Notes:
A61: 1 | B61: Board policy of the "half-year" rule - the applicant must ensure that additions in the year attract a half-year depreciation expense in the first year. Deviations from this standard practice must be supported in the application.
A62: 2 | B62: The applicant must provide an explanation of material variances in evidence.
A63: 3 | B63: The applicant should ensure that the years for new additions of assets are the asset useful lives determined by management in accordance with IFRS.
A64: 4 | B64: A recalculation should be performed to determine the average remaining life of opening balance of assets (i.e. excluding 2012 additions) under IFRS. For example, Asset A had a useful life of 20 years under CGAAP. On January 1, 2012, the date of transition, Asset A was 3 years depreciated. As a result, Asset A would have a remaining service life of 17 years (20 years less 3 years) under CGAAP as of January 1, 2012. Due to the transition to IFRS, management re-assessed the asset useful lives under IFRS principles and concluded that the revised useful life of Asset A is now 30 years. Therefore, the average remaining useful life of opening balance of Asset A is determined to be 27 years (30 years less 3 years) under IFRS as of January 1, 2012.
A65: 5 | B65: NBV must exclude assets still on the books but which have been fully amortized or depreciated.
A66: 6 | B66: This column refers to the calculated full year depreciation but excludes the depreciation expense on assets fully depreciated during the year. This column is used for the purpose of calculating depreciation expense in the following year on the next worksheet.
A68: General: | B68: Applicants must provide a breakdown of depreciation and amortization expense in the above format for all relevant accounts. Asset Retirement Obligations (AROs), depreciation and accretion expense should be disclosed separately consistent with the Notes of historical Audited Financial Statements.

Sheet App.2-CH_MIFRS_DepExp_2013 (hidden)
J1: File Number: | K1: =EBNUMBER -> EB-2013-0134
J2: Exhibit:
J3: Tab:
J4: Schedule:
J5: Page:
J7: Date:
A9: Appendix 2-CH
A10: Depreciation and Amortization Expense
A11: Assumes the applicant adopted IFRS for financial reporting purposes January 1, 2013
C12: 2013 | D12: MIFRS
A14: Account | B14: Description | C14: Additions | D14: Years (new additions only) | E14: Depreciation Rate on New Additions | F14: 2013 Depreciation Expense 1 | G14: 2013 Depreciation Expense per Apppendix 2-B Fixed Assets, Column K (l) | H14: Variance 2 | I14: Depreciation Expense on 2013 Full Year Additions | J14: Less Depreciation Expense on Assets Fully Depreciated during the year (o) | K14: 2013 Full Year Depreciation 3
C15: (d) | D15: (f) | E15: (g) = 1 / (f) | F15: (h)=2012 Full Year Deprecation + ((d)*0.5)/(f) | H15: (m) = (h) - (l) | I15: (n)=((d))/(f) | K15: (p) = 2012 Full Year Depreciation + (n) - (o)
A16: 1611 | B16: Computer Software (Formally known as Account 1925) | E16: =IF(D16=0,0,1/D16) -> 0 | F16: =IF(D16=0,+'App.2-CG_MIFRS_DepExp_2012'!O16,+'App.2-CG_MIFRS_DepExp_2012'!O16+((C16*0.5)/D16)) -> 0 | H16: =IF(ISERROR(+F16-G16), 0, +F16-G16) -> 0 | I16: =IF(D16=0,0,+(C16)/D16) -> 0 | K16: =IF(ISERROR(+I16+'App.2-CG_MIFRS_DepExp_2012'!O16-J16), 0, +I16+'App.2-CG_MIFRS_DepExp_2012'!O16-J16) -> 0
A17: 1612 | B17: Land Rights (Formally known as Account 1906) | E17: 0 | F17: =IF(D17=0,+'App.2-CG_MIFRS_DepExp_2012'!O17,+'App.2-CG_MIFRS_DepExp_2012'!O17+((C17*0.5)/D17)) -> 0 | H17: 0 | I17: 0 | K17: =IF(ISERROR(+I17+'App.2-CG_MIFRS_DepExp_2012'!O17-J17), 0, +I17+'App.2-CG_MIFRS_DepExp_2012'!O17-J17) -> 0
A18: 1805 | B18: Land | E18: 0 | F18: =IF(D18=0,+'App.2-CG_MIFRS_DepExp_2012'!O18,+'App.2-CG_MIFRS_DepExp_2012'!O18+((C18*0.5)/D18)) -> 0 | H18: 0 | I18: 0 | K18: =IF(ISERROR(+I18+'App.2-CG_MIFRS_DepExp_2012'!O18-J18), 0, +I18+'App.2-CG_MIFRS_DepExp_2012'!O18-J18) -> 0
A19: 1808 | B19: Buildings | E19: 0 | F19: =IF(D19=0,+'App.2-CG_MIFRS_DepExp_2012'!O19,+'App.2-CG_MIFRS_DepExp_2012'!O19+((C19*0.5)/D19)) -> 0 | H19: 0 | I19: 0 | K19: =IF(ISERROR(+I19+'App.2-CG_MIFRS_DepExp_2012'!O19-J19), 0, +I19+'App.2-CG_MIFRS_DepExp_2012'!O19-J19) -> 0
A20: 1810 | B20: Leasehold Improvements | E20: 0 | F20: =IF(D20=0,+'App.2-CG_MIFRS_DepExp_2012'!O20,+'App.2-CG_MIFRS_DepExp_2012'!O20+((C20*0.5)/D20)) -> 0 | H20: 0 | I20: 0 | K20: =IF(ISERROR(+I20+'App.2-CG_MIFRS_DepExp_2012'!O20-J20), 0, +I20+'App.2-CG_MIFRS_DepExp_2012'!O20-J20) -> 0
A21: 1815 | B21: Transformer Station Equipment >50 kV | E21: 0 | F21: =IF(D21=0,+'App.2-CG_MIFRS_DepExp_2012'!O21,+'App.2-CG_MIFRS_DepExp_2012'!O21+((C21*0.5)/D21)) -> 0 | H21: 0 | I21: 0 | K21: =IF(ISERROR(+I21+'App.2-CG_MIFRS_DepExp_2012'!O21-J21), 0, +I21+'App.2-CG_MIFRS_DepExp_2012'!O21-J21) -> 0
A22: 1820 | B22: Distribution Station Equipment <50 kV | E22: 0 | F22: =IF(D22=0,+'App.2-CG_MIFRS_DepExp_2012'!O22,+'App.2-CG_MIFRS_DepExp_2012'!O22+((C22*0.5)/D22)) -> 0 | H22: 0 | I22: 0 | K22: =IF(ISERROR(+I22+'App.2-CG_MIFRS_DepExp_2012'!O22-J22), 0, +I22+'App.2-CG_MIFRS_DepExp_2012'!O22-J22) -> 0
A23: 1825 | B23: Storage Battery Equipment | E23: 0 | F23: =IF(D23=0,+'App.2-CG_MIFRS_DepExp_2012'!O23,+'App.2-CG_MIFRS_DepExp_2012'!O23+((C23*0.5)/D23)) -> 0 | H23: 0 | I23: 0 | K23: =IF(ISERROR(+I23+'App.2-CG_MIFRS_DepExp_2012'!O23-J23), 0, +I23+'App.2-CG_MIFRS_DepExp_2012'!O23-J23) -> 0
A24: 1830 | B24: Poles, Towers & Fixtures | E24: 0 | F24: =IF(D24=0,+'App.2-CG_MIFRS_DepExp_2012'!O24,+'App.2-CG_MIFRS_DepExp_2012'!O24+((C24*0.5)/D24)) -> 0 | H24: 0 | I24: 0 | K24: =IF(ISERROR(+I24+'App.2-CG_MIFRS_DepExp_2012'!O24-J24), 0, +I24+'App.2-CG_MIFRS_DepExp_2012'!O24-J24) -> 0
A25: 1835 | B25: Overhead Conductors & Devices | E25: 0 | F25: =IF(D25=0,+'App.2-CG_MIFRS_DepExp_2012'!O25,+'App.2-CG_MIFRS_DepExp_2012'!O25+((C25*0.5)/D25)) -> 0 | H25: 0 | I25: 0 | K25: =IF(ISERROR(+I25+'App.2-CG_MIFRS_DepExp_2012'!O25-J25), 0, +I25+'App.2-CG_MIFRS_DepExp_2012'!O25-J25) -> 0
A26: 1840 | B26: Underground Conduit | E26: 0 | F26: =IF(D26=0,+'App.2-CG_MIFRS_DepExp_2012'!O26,+'App.2-CG_MIFRS_DepExp_2012'!O26+((C26*0.5)/D26)) -> 0 | H26: 0 | I26: 0 | K26: =IF(ISERROR(+I26+'App.2-CG_MIFRS_DepExp_2012'!O26-J26), 0, +I26+'App.2-CG_MIFRS_DepExp_2012'!O26-J26) -> 0
A27: 1845 | B27: Underground Conductors & Devices | E27: 0 | F27: =IF(D27=0,+'App.2-CG_MIFRS_DepExp_2012'!O27,+'App.2-CG_MIFRS_DepExp_2012'!O27+((C27*0.5)/D27)) -> 0 | H27: 0 | I27: 0 | K27: =IF(ISERROR(+I27+'App.2-CG_MIFRS_DepExp_2012'!O27-J27), 0, +I27+'App.2-CG_MIFRS_DepExp_2012'!O27-J27) -> 0
A28: 1850 | B28: Line Transformers | E28: 0 | F28: =IF(D28=0,+'App.2-CG_MIFRS_DepExp_2012'!O28,+'App.2-CG_MIFRS_DepExp_2012'!O28+((C28*0.5)/D28)) -> 0 | H28: 0 | I28: 0 | K28: =IF(ISERROR(+I28+'App.2-CG_MIFRS_DepExp_2012'!O28-J28), 0, +I28+'App.2-CG_MIFRS_DepExp_2012'!O28-J28) -> 0
A29: 1855 | B29: Services (Overhead & Underground) | E29: 0 | F29: =IF(D29=0,+'App.2-CG_MIFRS_DepExp_2012'!O29,+'App.2-CG_MIFRS_DepExp_2012'!O29+((C29*0.5)/D29)) -> 0 | H29: 0 | I29: 0 | K29: =IF(ISERROR(+I29+'App.2-CG_MIFRS_DepExp_2012'!O29-J29), 0, +I29+'App.2-CG_MIFRS_DepExp_2012'!O29-J29) -> 0
A30: 1860 | B30: Meters | E30: 0 | F30: =IF(D30=0,+'App.2-CG_MIFRS_DepExp_2012'!O30,+'App.2-CG_MIFRS_DepExp_2012'!O30+((C30*0.5)/D30)) -> 0 | H30: 0 | I30: 0 | K30: =IF(ISERROR(+I30+'App.2-CG_MIFRS_DepExp_2012'!O30-J30), 0, +I30+'App.2-CG_MIFRS_DepExp_2012'!O30-J30) -> 0
A31: 1860 | B31: Meters (Smart Meters) | E31: 0 | F31: =IF(D31=0,+'App.2-CG_MIFRS_DepExp_2012'!O31,+'App.2-CG_MIFRS_DepExp_2012'!O31+((C31*0.5)/D31)) -> 0 | H31: 0 | I31: 0 | K31: =IF(ISERROR(+I31+'App.2-CG_MIFRS_DepExp_2012'!O31-J31), 0, +I31+'App.2-CG_MIFRS_DepExp_2012'!O31-J31) -> 0
A32: 1905 | B32: Land | E32: 0 | F32: =IF(D32=0,+'App.2-CG_MIFRS_DepExp_2012'!O32,+'App.2-CG_MIFRS_DepExp_2012'!O32+((C32*0.5)/D32)) -> 0 | H32: 0 | I32: 0 | K32: =IF(ISERROR(+I32+'App.2-CG_MIFRS_DepExp_2012'!O32-J32), 0, +I32+'App.2-CG_MIFRS_DepExp_2012'!O32-J32) -> 0
A33: 1908 | B33: Buildings & Fixtures | E33: 0 | F33: =IF(D33=0,+'App.2-CG_MIFRS_DepExp_2012'!O33,+'App.2-CG_MIFRS_DepExp_2012'!O33+((C33*0.5)/D33)) -> 0 | H33: 0 | I33: 0 | K33: =IF(ISERROR(+I33+'App.2-CG_MIFRS_DepExp_2012'!O33-J33), 0, +I33+'App.2-CG_MIFRS_DepExp_2012'!O33-J33) -> 0
A34: 1910 | B34: Leasehold Improvements | E34: 0 | F34: =IF(D34=0,+'App.2-CG_MIFRS_DepExp_2012'!O34,+'App.2-CG_MIFRS_DepExp_2012'!O34+((C34*0.5)/D34)) -> 0 | H34: 0 | I34: 0 | K34: =IF(ISERROR(+I34+'App.2-CG_MIFRS_DepExp_2012'!O34-J34), 0, +I34+'App.2-CG_MIFRS_DepExp_2012'!O34-J34) -> 0
A35: 1915 | B35: Office Furniture & Equipment (10 years) | E35: 0 | F35: =IF(D35=0,+'App.2-CG_MIFRS_DepExp_2012'!O35,+'App.2-CG_MIFRS_DepExp_2012'!O35+((C35*0.5)/D35)) -> 0 | H35: 0 | I35: 0 | K35: =IF(ISERROR(+I35+'App.2-CG_MIFRS_DepExp_2012'!O35-J35), 0, +I35+'App.2-CG_MIFRS_DepExp_2012'!O35-J35) -> 0
A36: 1915 | B36: Office Furniture & Equipment (5 years) | E36: 0 | F36: =IF(D36=0,+'App.2-CG_MIFRS_DepExp_2012'!O36,+'App.2-CG_MIFRS_DepExp_2012'!O36+((C36*0.5)/D36)) -> 0 | H36: 0 | I36: 0 | K36: =IF(ISERROR(+I36+'App.2-CG_MIFRS_DepExp_2012'!O36-J36), 0, +I36+'App.2-CG_MIFRS_DepExp_2012'!O36-J36) -> 0
A37: 1920 | B37: Computer Equipment - Hardware | E37: 0 | F37: =IF(D37=0,+'App.2-CG_MIFRS_DepExp_2012'!O37,+'App.2-CG_MIFRS_DepExp_2012'!O37+((C37*0.5)/D37)) -> 0 | H37: 0 | I37: 0 | K37: =IF(ISERROR(+I37+'App.2-CG_MIFRS_DepExp_2012'!O37-J37), 0, +I37+'App.2-CG_MIFRS_DepExp_2012'!O37-J37) -> 0
A38: 1920 | B38: Computer Equip.-Hardware(Post Mar. 22/04) | E38: 0 | F38: =IF(D38=0,+'App.2-CG_MIFRS_DepExp_2012'!O38,+'App.2-CG_MIFRS_DepExp_2012'!O38+((C38*0.5)/D38)) -> 0 | H38: 0 | I38: 0 | K38: =IF(ISERROR(+I38+'App.2-CG_MIFRS_DepExp_2012'!O38-J38), 0, +I38+'App.2-CG_MIFRS_DepExp_2012'!O38-J38) -> 0
A39: 1920 | B39: Computer Equip.-Hardware(Post Mar. 19/07) | E39: 0 | F39: =IF(D39=0,+'App.2-CG_MIFRS_DepExp_2012'!O39,+'App.2-CG_MIFRS_DepExp_2012'!O39+((C39*0.5)/D39)) -> 0 | H39: 0 | I39: 0 | K39: =IF(ISERROR(+I39+'App.2-CG_MIFRS_DepExp_2012'!O39-J39), 0, +I39+'App.2-CG_MIFRS_DepExp_2012'!O39-J39) -> 0
A40: 1930 | B40: Transportation Equipment | E40: 0 | F40: =IF(D40=0,+'App.2-CG_MIFRS_DepExp_2012'!O40,+'App.2-CG_MIFRS_DepExp_2012'!O40+((C40*0.5)/D40)) -> 0 | H40: 0 | I40: 0 | K40: =IF(ISERROR(+I40+'App.2-CG_MIFRS_DepExp_2012'!O40-J40), 0, +I40+'App.2-CG_MIFRS_DepExp_2012'!O40-J40) -> 0
A41: 1935 | B41: Stores Equipment | E41: 0 | F41: =IF(D41=0,+'App.2-CG_MIFRS_DepExp_2012'!O41,+'App.2-CG_MIFRS_DepExp_2012'!O41+((C41*0.5)/D41)) -> 0 | H41: 0 | I41: 0 | K41: =IF(ISERROR(+I41+'App.2-CG_MIFRS_DepExp_2012'!O41-J41), 0, +I41+'App.2-CG_MIFRS_DepExp_2012'!O41-J41) -> 0
A42: 1940 | B42: Tools, Shop & Garage Equipment | E42: 0 | F42: =IF(D42=0,+'App.2-CG_MIFRS_DepExp_2012'!O42,+'App.2-CG_MIFRS_DepExp_2012'!O42+((C42*0.5)/D42)) -> 0 | H42: 0 | I42: 0 | K42: =IF(ISERROR(+I42+'App.2-CG_MIFRS_DepExp_2012'!O42-J42), 0, +I42+'App.2-CG_MIFRS_DepExp_2012'!O42-J42) -> 0
A43: 1945 | B43: Measurement & Testing Equipment | E43: 0 | F43: =IF(D43=0,+'App.2-CG_MIFRS_DepExp_2012'!O43,+'App.2-CG_MIFRS_DepExp_2012'!O43+((C43*0.5)/D43)) -> 0 | H43: 0 | I43: 0 | K43: =IF(ISERROR(+I43+'App.2-CG_MIFRS_DepExp_2012'!O43-J43), 0, +I43+'App.2-CG_MIFRS_DepExp_2012'!O43-J43) -> 0
A44: 1950 | B44: Power Operated Equipment | E44: 0 | F44: =IF(D44=0,+'App.2-CG_MIFRS_DepExp_2012'!O44,+'App.2-CG_MIFRS_DepExp_2012'!O44+((C44*0.5)/D44)) -> 0 | H44: 0 | I44: 0 | K44: =IF(ISERROR(+I44+'App.2-CG_MIFRS_DepExp_2012'!O44-J44), 0, +I44+'App.2-CG_MIFRS_DepExp_2012'!O44-J44) -> 0
A45: 1955 | B45: Communications Equipment | E45: 0 | F45: =IF(D45=0,+'App.2-CG_MIFRS_DepExp_2012'!O45,+'App.2-CG_MIFRS_DepExp_2012'!O45+((C45*0.5)/D45)) -> 0 | H45: 0 | I45: 0 | K45: =IF(ISERROR(+I45+'App.2-CG_MIFRS_DepExp_2012'!O45-J45), 0, +I45+'App.2-CG_MIFRS_DepExp_2012'!O45-J45) -> 0
A46: 1955 | B46: Communication Equipment (Smart Meters) | E46: 0 | F46: =IF(D46=0,+'App.2-CG_MIFRS_DepExp_2012'!O46,+'App.2-CG_MIFRS_DepExp_2012'!O46+((C46*0.5)/D46)) -> 0 | H46: 0 | I46: 0 | K46: =IF(ISERROR(+I46+'App.2-CG_MIFRS_DepExp_2012'!O46-J46), 0, +I46+'App.2-CG_MIFRS_DepExp_2012'!O46-J46) -> 0
A47: 1960 | B47: Miscellaneous Equipment | E47: 0 | F47: =IF(D47=0,+'App.2-CG_MIFRS_DepExp_2012'!O47,+'App.2-CG_MIFRS_DepExp_2012'!O47+((C47*0.5)/D47)) -> 0 | H47: 0 | I47: 0 | K47: =IF(ISERROR(+I47+'App.2-CG_MIFRS_DepExp_2012'!O47-J47), 0, +I47+'App.2-CG_MIFRS_DepExp_2012'!O47-J47) -> 0
A48: 1970 | B48: Load Management Controls Customer Premises | E48: 0 | F48: =IF(D48=0,+'App.2-CG_MIFRS_DepExp_2012'!O48,+'App.2-CG_MIFRS_DepExp_2012'!O48+((C48*0.5)/D48)) -> 0 | H48: 0 | I48: 0 | K48: =IF(ISERROR(+I48+'App.2-CG_MIFRS_DepExp_2012'!O48-J48), 0, +I48+'App.2-CG_MIFRS_DepExp_2012'!O48-J48) -> 0
A49: 1975 | B49: Load Management Controls Utility Premises | E49: 0 | F49: =IF(D49=0,+'App.2-CG_MIFRS_DepExp_2012'!O49,+'App.2-CG_MIFRS_DepExp_2012'!O49+((C49*0.5)/D49)) -> 0 | H49: 0 | I49: 0 | K49: =IF(ISERROR(+I49+'App.2-CG_MIFRS_DepExp_2012'!O49-J49), 0, +I49+'App.2-CG_MIFRS_DepExp_2012'!O49-J49) -> 0
A50: 1980 | B50: System Supervisor Equipment | E50: 0 | F50: =IF(D50=0,+'App.2-CG_MIFRS_DepExp_2012'!O50,+'App.2-CG_MIFRS_DepExp_2012'!O50+((C50*0.5)/D50)) -> 0 | H50: 0 | I50: 0 | K50: =IF(ISERROR(+I50+'App.2-CG_MIFRS_DepExp_2012'!O50-J50), 0, +I50+'App.2-CG_MIFRS_DepExp_2012'!O50-J50) -> 0
A51: 1985 | B51: Miscellaneous Fixed Assets | E51: 0 | F51: =IF(D51=0,+'App.2-CG_MIFRS_DepExp_2012'!O51,+'App.2-CG_MIFRS_DepExp_2012'!O51+((C51*0.5)/D51)) -> 0 | H51: 0 | I51: 0 | K51: =IF(ISERROR(+I51+'App.2-CG_MIFRS_DepExp_2012'!O51-J51), 0, +I51+'App.2-CG_MIFRS_DepExp_2012'!O51-J51) -> 0
A52: 1990 | B52: Other Tangible Property | E52: 0 | F52: =IF(D52=0,+'App.2-CG_MIFRS_DepExp_2012'!O52,+'App.2-CG_MIFRS_DepExp_2012'!O52+((C52*0.5)/D52)) -> 0 | H52: 0 | I52: 0 | K52: =IF(ISERROR(+I52+'App.2-CG_MIFRS_DepExp_2012'!O52-J52), 0, +I52+'App.2-CG_MIFRS_DepExp_2012'!O52-J52) -> 0
A53: 1995 | B53: Contributions & Grants | E53: 0 | F53: =IF(D53=0,+'App.2-CG_MIFRS_DepExp_2012'!O53,+'App.2-CG_MIFRS_DepExp_2012'!O53+((C53*0.5)/D53)) -> 0 | H53: 0 | I53: 0 | K53: =IF(ISERROR(+I53+'App.2-CG_MIFRS_DepExp_2012'!O53-J53), 0, +I53+'App.2-CG_MIFRS_DepExp_2012'!O53-J53) -> 0
A54: etc. | E54: 0 | F54: =IF(D54=0,+'App.2-CG_MIFRS_DepExp_2012'!O54,+'App.2-CG_MIFRS_DepExp_2012'!O54+((C54*0.5)/D54)) -> 0 | H54: 0 | I54: 0 | K54: =IF(ISERROR(+I54+'App.2-CG_MIFRS_DepExp_2012'!O54-J54), 0, +I54+'App.2-CG_MIFRS_DepExp_2012'!O54-J54) -> 0
E55: 0 | F55: =IF(D55=0,+'App.2-CG_MIFRS_DepExp_2012'!O55,+'App.2-CG_MIFRS_DepExp_2012'!O55+((C55*0.5)/D55)) -> 0 | H55: 0 | I55: 0 | K55: =IF(ISERROR(+I55+'App.2-CG_MIFRS_DepExp_2012'!O55-J55), 0, +I55+'App.2-CG_MIFRS_DepExp_2012'!O55-J55) -> 0
B56: Total | C56: =SUM(C16:C55) -> 0 | F56: =SUM(F16:F55) -> 0 | G56: 0 | H56: 0 | I56: 0 | J56: 0 | K56: 0
B57: Depreciation exp. adj. from gain or loss on the retirement of assets (pool of like assets) | F57: 0
B58: Total | F58: =+F57+F56 -> 0
A59: Notes:
A60: 1 | B60: Board policy of the "half-year" rule - the applicant must ensure that additions in the year attract a half-year depreciation expense in the first year. Deviations from this standard practice must be supported in the application.
A61: 2 | B61: The applicant must provide an explanation of material variances in evidence.
A62: 3 | B62: This column refers to the calculated full year depreciation but excludes the depreciation expense on assets fully depreciated during the year. This column is used for the purpose of calculating depreciation expense in the following year on the next worksheet.
A64: General: | B64: Applicants must provide a breakdown of depreciation and amortization expense in the above format for all relevant accounts. Asset Retirement Obligations (AROs), depreciation and accretion expense should be disclosed separately consistent with the Notes of historical Audited Financial Statements.

Sheet App.2-CI_MIFRS_DepExp_2014 (hidden)
G1: File Number: | H1: =EBNUMBER -> EB-2013-0134
G2: Exhibit:
G3: Tab:
G4: Schedule:
G5: Page:
G7: Date:
A9: Appendix 2-CI
A10: Depreciation and Amortization Expense
A11: Assumes the applicant adopted IFRS for financial reporting purposes January 1, 2013
C12: 2014 | D12: MIFRS
A14: Account | B14: Description | C14: Additions | D14: Years (new additions only) | E14: Depreciation Rate on New Additions | F14: 2014 Depreciation Expense 1 | G14: 2014 Depreciation Expense per Appendix 2-B Fixed Assets, Column K (l) | H14: Variance 2
C15: (d) | D15: (f) | E15: (g) = 1 / (f) | F15: (h)=2013 Full Year Depreciation + ((d)*0.5)/(f) | H15: (m) = (h) - (l)
A16: 1611 | B16: Computer Software (Formally known as Account 1925) | E16: =IF(D16=0,0,1/D16) -> 0 | F16: =IF(D16=0,'App.2-CH_MIFRS_DepExp_2013'!K16,+'App.2-CH_MIFRS_DepExp_2013'!K16+((C16*0.5)/D16)) -> 0 | H16: =IF(ISERROR(+F16-G16), 0, +F16-G16) -> 0
A17: 1612 | B17: Land Rights (Formally known as Account 1906) | E17: 0 | F17: =IF(D17=0,'App.2-CH_MIFRS_DepExp_2013'!K17,+'App.2-CH_MIFRS_DepExp_2013'!K17+((C17*0.5)/D17)) -> 0 | H17: 0
A18: 1805 | B18: Land | E18: 0 | F18: =IF(D18=0,'App.2-CH_MIFRS_DepExp_2013'!K18,+'App.2-CH_MIFRS_DepExp_2013'!K18+((C18*0.5)/D18)) -> 0 | H18: 0
A19: 1808 | B19: Buildings | E19: 0 | F19: =IF(D19=0,'App.2-CH_MIFRS_DepExp_2013'!K19,+'App.2-CH_MIFRS_DepExp_2013'!K19+((C19*0.5)/D19)) -> 0 | H19: 0
A20: 1810 | B20: Leasehold Improvements | E20: 0 | F20: =IF(D20=0,'App.2-CH_MIFRS_DepExp_2013'!K20,+'App.2-CH_MIFRS_DepExp_2013'!K20+((C20*0.5)/D20)) -> 0 | H20: 0
A21: 1815 | B21: Transformer Station Equipment >50 kV | E21: 0 | F21: =IF(D21=0,'App.2-CH_MIFRS_DepExp_2013'!K21,+'App.2-CH_MIFRS_DepExp_2013'!K21+((C21*0.5)/D21)) -> 0 | H21: 0
A22: 1820 | B22: Distribution Station Equipment <50 kV | E22: 0 | F22: =IF(D22=0,'App.2-CH_MIFRS_DepExp_2013'!K22,+'App.2-CH_MIFRS_DepExp_2013'!K22+((C22*0.5)/D22)) -> 0 | H22: 0
A23: 1825 | B23: Storage Battery Equipment | E23: 0 | F23: =IF(D23=0,'App.2-CH_MIFRS_DepExp_2013'!K23,+'App.2-CH_MIFRS_DepExp_2013'!K23+((C23*0.5)/D23)) -> 0 | H23: 0
A24: 1830 | B24: Poles, Towers & Fixtures | E24: 0 | F24: =IF(D24=0,'App.2-CH_MIFRS_DepExp_2013'!K24,+'App.2-CH_MIFRS_DepExp_2013'!K24+((C24*0.5)/D24)) -> 0 | H24: 0
A25: 1835 | B25: Overhead Conductors & Devices | E25: 0 | F25: =IF(D25=0,'App.2-CH_MIFRS_DepExp_2013'!K25,+'App.2-CH_MIFRS_DepExp_2013'!K25+((C25*0.5)/D25)) -> 0 | H25: 0
A26: 1840 | B26: Underground Conduit | E26: 0 | F26: =IF(D26=0,'App.2-CH_MIFRS_DepExp_2013'!K26,+'App.2-CH_MIFRS_DepExp_2013'!K26+((C26*0.5)/D26)) -> 0 | H26: 0
A27: 1845 | B27: Underground Conductors & Devices | E27: 0 | F27: =IF(D27=0,'App.2-CH_MIFRS_DepExp_2013'!K27,+'App.2-CH_MIFRS_DepExp_2013'!K27+((C27*0.5)/D27)) -> 0 | H27: 0
A28: 1850 | B28: Line Transformers | E28: 0 | F28: =IF(D28=0,'App.2-CH_MIFRS_DepExp_2013'!K28,+'App.2-CH_MIFRS_DepExp_2013'!K28+((C28*0.5)/D28)) -> 0 | H28: 0
A29: 1855 | B29: Services (Overhead & Underground) | E29: 0 | F29: =IF(D29=0,'App.2-CH_MIFRS_DepExp_2013'!K29,+'App.2-CH_MIFRS_DepExp_2013'!K29+((C29*0.5)/D29)) -> 0 | H29: 0
A30: 1860 | B30: Meters | E30: 0 | F30: =IF(D30=0,'App.2-CH_MIFRS_DepExp_2013'!K30,+'App.2-CH_MIFRS_DepExp_2013'!K30+((C30*0.5)/D30)) -> 0 | H30: 0
A31: 1860 | B31: Meters (Smart Meters) | E31: 0 | F31: =IF(D31=0,'App.2-CH_MIFRS_DepExp_2013'!K31,+'App.2-CH_MIFRS_DepExp_2013'!K31+((C31*0.5)/D31)) -> 0 | H31: 0
A32: 1905 | B32: Land | E32: 0 | F32: =IF(D32=0,'App.2-CH_MIFRS_DepExp_2013'!K32,+'App.2-CH_MIFRS_DepExp_2013'!K32+((C32*0.5)/D32)) -> 0 | H32: 0
A33: 1908 | B33: Buildings & Fixtures | E33: 0 | F33: =IF(D33=0,'App.2-CH_MIFRS_DepExp_2013'!K33,+'App.2-CH_MIFRS_DepExp_2013'!K33+((C33*0.5)/D33)) -> 0 | H33: 0
A34: 1910 | B34: Leasehold Improvements | E34: 0 | F34: =IF(D34=0,'App.2-CH_MIFRS_DepExp_2013'!K34,+'App.2-CH_MIFRS_DepExp_2013'!K34+((C34*0.5)/D34)) -> 0 | H34: 0
A35: 1915 | B35: Office Furniture & Equipment (10 years) | E35: 0 | F35: =IF(D35=0,'App.2-CH_MIFRS_DepExp_2013'!K35,+'App.2-CH_MIFRS_DepExp_2013'!K35+((C35*0.5)/D35)) -> 0 | H35: 0
A36: 1915 | B36: Office Furniture & Equipment (5 years) | E36: 0 | F36: =IF(D36=0,'App.2-CH_MIFRS_DepExp_2013'!K36,+'App.2-CH_MIFRS_DepExp_2013'!K36+((C36*0.5)/D36)) -> 0 | H36: 0
A37: 1920 | B37: Computer Equipment - Hardware | E37: 0 | F37: =IF(D37=0,'App.2-CH_MIFRS_DepExp_2013'!K37,+'App.2-CH_MIFRS_DepExp_2013'!K37+((C37*0.5)/D37)) -> 0 | H37: 0
A38: 1920 | B38: Computer Equip.-Hardware(Post Mar. 22/04) | E38: 0 | F38: =IF(D38=0,'App.2-CH_MIFRS_DepExp_2013'!K38,+'App.2-CH_MIFRS_DepExp_2013'!K38+((C38*0.5)/D38)) -> 0 | H38: 0
A39: 1920 | B39: Computer Equip.-Hardware(Post Mar. 19/07) | E39: 0 | F39: =IF(D39=0,'App.2-CH_MIFRS_DepExp_2013'!K39,+'App.2-CH_MIFRS_DepExp_2013'!K39+((C39*0.5)/D39)) -> 0 | H39: 0
A40: 1930 | B40: Transportation Equipment | E40: 0 | F40: =IF(D40=0,'App.2-CH_MIFRS_DepExp_2013'!K40,+'App.2-CH_MIFRS_DepExp_2013'!K40+((C40*0.5)/D40)) -> 0 | H40: 0
A41: 1935 | B41: Stores Equipment | E41: 0 | F41: =IF(D41=0,'App.2-CH_MIFRS_DepExp_2013'!K41,+'App.2-CH_MIFRS_DepExp_2013'!K41+((C41*0.5)/D41)) -> 0 | H41: 0
A42: 1940 | B42: Tools, Shop & Garage Equipment | E42: 0 | F42: =IF(D42=0,'App.2-CH_MIFRS_DepExp_2013'!K42,+'App.2-CH_MIFRS_DepExp_2013'!K42+((C42*0.5)/D42)) -> 0 | H42: 0
A43: 1945 | B43: Measurement & Testing Equipment | E43: 0 | F43: =IF(D43=0,'App.2-CH_MIFRS_DepExp_2013'!K43,+'App.2-CH_MIFRS_DepExp_2013'!K43+((C43*0.5)/D43)) -> 0 | H43: 0
A44: 1950 | B44: Power Operated Equipment | E44: 0 | F44: =IF(D44=0,'App.2-CH_MIFRS_DepExp_2013'!K44,+'App.2-CH_MIFRS_DepExp_2013'!K44+((C44*0.5)/D44)) -> 0 | H44: 0
A45: 1955 | B45: Communications Equipment | E45: 0 | F45: =IF(D45=0,'App.2-CH_MIFRS_DepExp_2013'!K45,+'App.2-CH_MIFRS_DepExp_2013'!K45+((C45*0.5)/D45)) -> 0 | H45: 0
A46: 1955 | B46: Communication Equipment (Smart Meters) | E46: 0 | F46: =IF(D46=0,'App.2-CH_MIFRS_DepExp_2013'!K46,+'App.2-CH_MIFRS_DepExp_2013'!K46+((C46*0.5)/D46)) -> 0 | H46: 0
A47: 1960 | B47: Miscellaneous Equipment | E47: 0 | F47: =IF(D47=0,'App.2-CH_MIFRS_DepExp_2013'!K47,+'App.2-CH_MIFRS_DepExp_2013'!K47+((C47*0.5)/D47)) -> 0 | H47: 0
A48: 1970 | B48: Load Management Controls Customer Premises | E48: 0 | F48: =IF(D48=0,'App.2-CH_MIFRS_DepExp_2013'!K48,+'App.2-CH_MIFRS_DepExp_2013'!K48+((C48*0.5)/D48)) -> 0 | H48: 0
A49: 1975 | B49: Load Management Controls Utility Premises | E49: 0 | F49: =IF(D49=0,'App.2-CH_MIFRS_DepExp_2013'!K49,+'App.2-CH_MIFRS_DepExp_2013'!K49+((C49*0.5)/D49)) -> 0 | H49: 0
A50: 1980 | B50: System Supervisor Equipment | E50: 0 | F50: =IF(D50=0,'App.2-CH_MIFRS_DepExp_2013'!K50,+'App.2-CH_MIFRS_DepExp_2013'!K50+((C50*0.5)/D50)) -> 0 | H50: 0
A51: 1985 | B51: Miscellaneous Fixed Assets | E51: 0 | F51: =IF(D51=0,'App.2-CH_MIFRS_DepExp_2013'!K51,+'App.2-CH_MIFRS_DepExp_2013'!K51+((C51*0.5)/D51)) -> 0 | H51: 0
A52: 1990 | B52: Other Tangible Property | E52: 0 | F52: =IF(D52=0,'App.2-CH_MIFRS_DepExp_2013'!K52,+'App.2-CH_MIFRS_DepExp_2013'!K52+((C52*0.5)/D52)) -> 0 | H52: 0
A53: 1995 | B53: Contributions & Grants | E53: 0 | F53: =IF(D53=0,'App.2-CH_MIFRS_DepExp_2013'!K53,+'App.2-CH_MIFRS_DepExp_2013'!K53+((C53*0.5)/D53)) -> 0 | H53: 0
A54: etc. | E54: 0 | F54: =IF(D54=0,'App.2-CH_MIFRS_DepExp_2013'!K54,+'App.2-CH_MIFRS_DepExp_2013'!K54+((C54*0.5)/D54)) -> 0 | H54: 0
E55: 0 | F55: =IF(D55=0,'App.2-CH_MIFRS_DepExp_2013'!K55,+'App.2-CH_MIFRS_DepExp_2013'!K55+((C55*0.5)/D55)) -> 0 | H55: 0
B56: Total | C56: =SUM(C16:C55) -> 0 | F56: =SUM(F16:F55) -> 0 | G56: =SUM(G16:G55) -> 0 | H56: =SUM(H16:H55) -> 0
B57: Depreciation exp. adj. from gain or loss on the retirement of assets (pool of like assets) | F57: 0
B58: Total Depreciation expense to be included in the test year revenue requirement | F58: =SUM(F56:F57) -> 0
A59: Notes:
A60: 1 | B60: Board policy of the "half-year" rule - the applicant must ensure that additions in the year attract a half-year depreciation expense in the first year. Deviations from this standard practice must be supported in the application.
A61: 2 | B61: The applicant must provide an explanation of material variances in evidence.
A63: General: | B63: Applicants must provide a breakdown of depreciation and amortization expense in the above format for all relevant accounts. Asset Retirement Obligations (AROs), depreciation and accretion expense should be disclosed separately consistent with the Notes of historical Audited Financial Statements.

Sheet App.2-CJ_CGAAP_DepExp_2012 (hidden)
K1: File Number: | L1: =EBNUMBER -> EB-2013-0134
K2: Exhibit:
K3: Tab:
K4: Schedule:
K5: Page:
K7: Date:
A9: Appendix 2-CJ
A10: Depreciation and Amortization Expense
A11: Assumes the applicant adopted IFRS for financial reporting purposes January 1, 2014
C12: Year | D12: 2012 | E12: CGAAP
A14: Account | B14: Description | C14: Opening Regulatory Gross PP&E as at Jan 1, 2012 | D14: Less Fully Depreciated | E14: Net for Depreciation | F14: Additions | G14: Total for Depreciation | H14: Years | I14: Depreciation Rate | J14: 2012 Depreciation Expense | K14: 2012 Depreciation Expense per Appendix 2-B Fixed Assets, Column K (l) | L14: Variance 2
C15: (a) | D15: (b) | E15: (c) | F15: (d) | G15: (e) = (c) + ½ x (d) 1 | H15: (f) | I15: (g) = 1 / (f) | J15: (h) = (e) / (f) | L15: (m) = (h) - (l)
A16: 1611 | B16: Computer Software (Formally known as Account 1925) | E16: =C16-D16 -> 0 | G16: =E16+0.5*F16 -> 0 | I16: =IF(H16=0,"",1/H16) ->  | J16: =IF(H16=0,0,G16/H16) -> 0 | L16: =IF(ISERROR(+J16-K16), "", +J16-K16) -> 0
A17: 1612 | B17: Land Rights (Formally known as Account 1906) | E17: =C17-D17 -> 0 | G17: =E17+0.5*F17 -> 0 | J17: 0 | L17: =IF(ISERROR(+J17-K17), "", +J17-K17) -> 0
A18: 1805 | B18: Land | E18: 0 | G18: 0 | J18: 0 | L18: 0
A19: 1808 | B19: Buildings | E19: 0 | G19: 0 | J19: 0 | L19: 0
A20: 1810 | B20: Leasehold Improvements | E20: 0 | G20: 0 | J20: 0 | L20: 0
A21: 1815 | B21: Transformer Station Equipment >50 kV | E21: 0 | G21: 0 | J21: 0 | L21: 0
A22: 1820 | B22: Distribution Station Equipment <50 kV | E22: 0 | G22: 0 | J22: 0 | L22: 0
A23: 1825 | B23: Storage Battery Equipment | E23: 0 | G23: 0 | J23: 0 | L23: 0
A24: 1830 | B24: Poles, Towers & Fixtures | E24: 0 | G24: 0 | J24: 0 | L24: 0
A25: 1835 | B25: Overhead Conductors & Devices | E25: 0 | G25: 0 | J25: 0 | L25: 0
A26: 1840 | B26: Underground Conduit | E26: 0 | G26: 0 | J26: 0 | L26: 0
A27: 1845 | B27: Underground Conductors & Devices | E27: 0 | G27: 0 | J27: 0 | L27: 0
A28: 1850 | B28: Line Transformers | E28: 0 | G28: 0 | J28: 0 | L28: 0
A29: 1855 | B29: Services (Overhead & Underground) | E29: 0 | G29: 0 | J29: 0 | L29: 0
A30: 1860 | B30: Meters | E30: 0 | G30: 0 | J30: 0 | L30: 0
A31: 1860 | B31: Meters (Smart Meters) | E31: 0 | G31: 0 | J31: 0 | L31: 0
A32: 1905 | B32: Land | E32: 0 | G32: 0 | J32: 0 | L32: 0
A33: 1908 | B33: Buildings & Fixtures | E33: 0 | G33: 0 | J33: 0 | L33: 0
A34: 1910 | B34: Leasehold Improvements | E34: 0 | G34: 0 | J34: 0 | L34: 0
A35: 1915 | B35: Office Furniture & Equipment (10 years) | E35: 0 | G35: 0 | J35: 0 | L35: 0
A36: 1915 | B36: Office Furniture & Equipment (5 years) | E36: 0 | G36: 0 | J36: 0 | L36: 0
A37: 1920 | B37: Computer Equipment - Hardware | E37: 0 | G37: 0 | J37: 0 | L37: 0
A38: 1920 | B38: Computer Equip.-Hardware(Post Mar. 22/04) | E38: 0 | G38: 0 | J38: 0 | L38: 0
A39: 1920 | B39: Computer Equip.-Hardware(Post Mar. 19/07) | E39: 0 | G39: 0 | J39: 0 | L39: 0
A40: 1930 | B40: Transportation Equipment | E40: 0 | G40: 0 | J40: 0 | L40: 0
A41: 1935 | B41: Stores Equipment | E41: 0 | G41: 0 | J41: 0 | L41: 0
A42: 1940 | B42: Tools, Shop & Garage Equipment | E42: 0 | G42: 0 | J42: 0 | L42: 0
A43: 1945 | B43: Measurement & Testing Equipment | E43: 0 | G43: 0 | J43: 0 | L43: 0
A44: 1950 | B44: Power Operated Equipment | E44: 0 | G44: 0 | J44: 0 | L44: 0
A45: 1955 | B45: Communications Equipment | E45: 0 | G45: 0 | J45: 0 | L45: 0
A46: 1955 | B46: Communication Equipment (Smart Meters) | E46: 0 | G46: 0 | J46: 0 | L46: 0
A47: 1960 | B47: Miscellaneous Equipment | E47: 0 | G47: 0 | J47: 0 | L47: 0
A48: 1970 | B48: Load Management Controls Customer Premises | E48: 0 | G48: 0 | J48: 0 | L48: 0
A49: 1975 | B49: Load Management Controls Utility Premises | E49: 0 | G49: 0 | J49: 0 | L49: 0
A50: 1980 | B50: System Supervisor Equipment | E50: 0 | G50: 0 | J50: 0 | L50: 0
A51: 1985 | B51: Miscellaneous Fixed Assets | E51: 0 | G51: 0 | J51: 0 | L51: 0
A52: 1990 | B52: Other Tangible Property | E52: 0 | G52: 0 | J52: 0 | L52: 0
A53: 1995 | B53: Contributions & Grants | E53: 0 | G53: 0 | J53: 0 | L53: 0
A54: etc. | E54: 0 | G54: 0 | J54: 0 | L54: 0
E55: 0 | G55: 0 | J55: 0 | L55: 0
B56: Total | C56: =SUM(C16:C55) -> 0 | D56: =SUM(D16:D55) -> 0 | E56: =SUM(E16:E55) -> 0 | F56: =SUM(F16:F55) -> 0 | G56: =SUM(G16:G55) -> 0 | J56: =SUM(J16:J55) -> 0 | K56: =SUM(K16:K55) -> 0 | L56: =SUM(L16:L55) -> 0
A58: Notes:
A59: 1 | B59: Board policy of the "half-year" rule - the applicant must ensure that additions in the year attract a half-year depreciation expense in the first year. Deviations from this standard practice must be supported in the application.
A60: 2 | B60: The applicant must provide an explanation of material variances in evidence.
A61: General: | B61: Applicants must provide a breakdown of depreciation and amortization expense in the above format for all relevant accounts. Asset Retirement Obligations (AROs), depreciation and accretion expense should be disclosed separately consistent with the Notes of historical Audited Financial Statements.

Sheet App.2-CK_CGAAP_DepExp_2013 (hidden)
K1: File Number: | L1: =EBNUMBER -> EB-2013-0134
K2: Exhibit:
K3: Tab:
K4: Schedule:
K5: Page:
K7: Date:
A9: Appendix 2-CK
A10: Depreciation and Amortization Expense
A11: Assumes the applicant adopted IFRS for financial reporting purposes January 1, 2014
C12: Year | D12: 2013 | E12: CGAAP
A14: Account | B14: Description | C14: Opening Regulatory Gross PP&E as at Jan 1, 2013 | D14: Less Fully Depreciated | E14: Net for Depreciation | F14: Additions | G14: Total for Depreciation | H14: Years | I14: Depreciation Rate | J14: 2013 Depreciation Expense | K14: 2013 Depreciation Expense per Appendix 2-B Fixed Assets, Column K (l) | L14: Variance 2
C15: (a) | D15: (b) | E15: (c) | F15: (d) | G15: (e) = (c) + ½ x (d) 1 | H15: (f) | I15: (g) = 1 / (f) | J15: (h) = (e) / (f) | L15: (m) = (h) - (l)
A16: 1611 | B16: Computer Software (Formally known as Account 1925) | E16: =C16-D16 -> 0 | G16: =E16+0.5*F16 -> 0 | I16: =IF(H16=0,0,1/H16) -> 0 | J16: =IF(H16=0,0,G16/H16) -> 0 | L16: =IF(ISERROR(+J16-K16), 0, +J16-K16) -> 0
A17: 1612 | B17: Land Rights (Formally known as Account 1906) | E17: =C17-D17 -> 0 | G17: =E17+0.5*F17 -> 0 | I17: 0 | J17: 0 | L17: 0
A18: 1805 | B18: Land | E18: 0 | G18: 0 | I18: 0 | J18: 0 | L18: 0
A19: 1808 | B19: Buildings | E19: 0 | G19: 0 | I19: 0 | J19: 0 | L19: 0
A20: 1810 | B20: Leasehold Improvements | E20: 0 | G20: 0 | I20: 0 | J20: 0 | L20: 0
A21: 1815 | B21: Transformer Station Equipment >50 kV | E21: 0 | G21: 0 | I21: 0 | J21: 0 | L21: 0
A22: 1820 | B22: Distribution Station Equipment <50 kV | E22: 0 | G22: 0 | I22: 0 | J22: 0 | L22: 0
A23: 1825 | B23: Storage Battery Equipment | E23: 0 | G23: 0 | I23: 0 | J23: 0 | L23: 0
A24: 1830 | B24: Poles, Towers & Fixtures | E24: 0 | G24: 0 | I24: 0 | J24: 0 | L24: 0
A25: 1835 | B25: Overhead Conductors & Devices | E25: 0 | G25: 0 | I25: 0 | J25: 0 | L25: 0
A26: 1840 | B26: Underground Conduit | E26: 0 | G26: 0 | I26: 0 | J26: 0 | L26: 0
A27: 1845 | B27: Underground Conductors & Devices | E27: 0 | G27: 0 | I27: 0 | J27: 0 | L27: 0
A28: 1850 | B28: Line Transformers | E28: 0 | G28: 0 | I28: 0 | J28: 0 | L28: 0
A29: 1855 | B29: Services (Overhead & Underground) | E29: 0 | G29: 0 | I29: 0 | J29: 0 | L29: 0
A30: 1860 | B30: Meters | E30: 0 | G30: 0 | I30: 0 | J30: 0 | L30: 0
A31: 1860 | B31: Meters (Smart Meters) | E31: 0 | G31: 0 | I31: 0 | J31: 0 | L31: 0
A32: 1905 | B32: Land | E32: 0 | G32: 0 | I32: 0 | J32: 0 | L32: 0
A33: 1908 | B33: Buildings & Fixtures | E33: 0 | G33: 0 | I33: 0 | J33: 0 | L33: 0
A34: 1910 | B34: Leasehold Improvements | E34: 0 | G34: 0 | I34: 0 | J34: 0 | L34: 0
A35: 1915 | B35: Office Furniture & Equipment (10 years) | E35: 0 | G35: 0 | I35: 0 | J35: 0 | L35: 0
A36: 1915 | B36: Office Furniture & Equipment (5 years) | E36: 0 | G36: 0 | I36: 0 | J36: 0 | L36: 0
A37: 1920 | B37: Computer Equipment - Hardware | E37: 0 | G37: 0 | I37: 0 | J37: 0 | L37: 0
A38: 1920 | B38: Computer Equip.-Hardware(Post Mar. 22/04) | E38: 0 | G38: 0 | I38: 0 | J38: 0 | L38: 0
A39: 1920 | B39: Computer Equip.-Hardware(Post Mar. 19/07) | E39: 0 | G39: 0 | I39: 0 | J39: 0 | L39: 0
A40: 1930 | B40: Transportation Equipment | E40: 0 | G40: 0 | I40: 0 | J40: 0 | L40: 0
A41: 1935 | B41: Stores Equipment | E41: 0 | G41: 0 | I41: 0 | J41: 0 | L41: 0
A42: 1940 | B42: Tools, Shop & Garage Equipment | E42: 0 | G42: 0 | I42: 0 | J42: 0 | L42: 0
A43: 1945 | B43: Measurement & Testing Equipment | E43: 0 | G43: 0 | I43: 0 | J43: 0 | L43: 0
A44: 1950 | B44: Power Operated Equipment | E44: 0 | G44: 0 | I44: 0 | J44: 0 | L44: 0
A45: 1955 | B45: Communications Equipment | E45: 0 | G45: 0 | I45: 0 | J45: 0 | L45: 0
A46: 1955 | B46: Communication Equipment (Smart Meters) | E46: 0 | G46: 0 | I46: 0 | J46: 0 | L46: 0
A47: 1960 | B47: Miscellaneous Equipment | E47: 0 | G47: 0 | I47: 0 | J47: 0 | L47: 0
A48: 1970 | B48: Load Management Controls Customer Premises | E48: 0 | G48: 0 | I48: 0 | J48: 0 | L48: 0
A49: 1975 | B49: Load Management Controls Utility Premises | E49: 0 | G49: 0 | I49: 0 | J49: 0 | L49: 0
A50: 1980 | B50: System Supervisor Equipment | E50: 0 | G50: 0 | I50: 0 | J50: 0 | L50: 0
A51: 1985 | B51: Miscellaneous Fixed Assets | E51: 0 | G51: 0 | I51: 0 | J51: 0 | L51: 0
A52: 1990 | B52: Other Tangible Property | E52: 0 | G52: 0 | I52: 0 | J52: 0 | L52: 0
A53: 1995 | B53: Contributions & Grants | E53: 0 | G53: 0 | I53: 0 | J53: 0 | L53: 0
A54: etc. | E54: 0 | G54: 0 | I54: 0 | J54: 0 | L54: 0
E55: 0 | G55: 0 | I55: 0 | J55: 0 | L55: 0
B56: Total | C56: =SUM(C16:C55) -> 0 | D56: =SUM(D16:D55) -> 0 | E56: =SUM(E16:E55) -> 0 | F56: =SUM(F16:F55) -> 0 | G56: =SUM(G16:G55) -> 0 | J56: =SUM(J16:J55) -> 0 | K56: =SUM(K16:K55) -> 0 | L56: =SUM(L16:L55) -> 0
A58: Notes:
A59: 1 | B59: Board policy of the "half-year" rule - the applicant must ensure that additions in the year attract a half-year depreciation expense in the first year. Deviations from this standard practice must be supported in the application.
A60: 2 | B60: The applicant must provide an explanation of material variances in evidence.
A62: General: | B62: Applicants must provide a breakdown of depreciation and amortization expense in the above format for all relevant accounts. Asset Retirement Obligations (AROs), depreciation and accretion expense should be disclosed separately consistent with the Notes of historical Audited Financial Statements.

Sheet App.2-CL_MIFRS_DepExp_2013 (hidden)
N1: File Number: | O1: =EBNUMBER -> EB-2013-0134
N2: Exhibit:
N3: Tab:
N4: Schedule:
N5: Page:
N7: Date:
A9: Appendix 2-CL
A10: Depreciation and Amortization Expense
A11: Assumes the applicant adopted IFRS for financial reporting purposes January 1, 2014
C12: Year | D12: 2013 | E12: MIFRS
A14: Account | B14: Description | C14: Opening NBV as at Jan 1, 2013 5 | D14: Additions | E14: Average Remaining Life of Opening NBV 4 | F14: Years (new additions only) 3 | G14: Depreciation Rate on New Additions | H14: Depreciation Expense on Opening NBV | I14: Depreciation Expense on Additions 1 | J14: 2013 Depreciation Expense | K14: 2013 Depreciation Expense per Appendix 2-B Fixed Assets, Column K (l) | L14: Variance 2 | M14: Depreciation Expense on 2013 Full Year Additions | N14: Less Depreciation Expense on Assets Fully Depreciated during the year (o) | O14: 2013 Full Year Depreciation 6
C15: (a) | D15: (d) | E15: (i) | F15: (f) | G15: (g) = 1 / (f) | H15: (j) = (a) / (i) | I15: (h)=((d)*0.5)/(f) | J15: (k) = (j) + (h) | L15: (m) = (k) - (l) | M15: (n)=((d))/(f) | O15: (p) = (j) + (n) - (o)
A16: 1611 | B16: Computer Software (Formally known as Account 1925) | G16: =IF(F16=0,0,1/F16) -> 0 | H16: =IF(E16=0,0,+C16/E16) -> 0 | I16: =IF(F16=0,0,+(D16*0.5)/F16) -> 0 | J16: =IF(ISERROR(+H16+I16), 0, +H16+I16) -> 0 | L16: =IF(ISERROR(+J16-K16), 0, +J16-K16) -> 0 | M16: =IF(F16=0,0,+(D16)/F16) -> 0 | O16: =IF(ISERROR(+M16+H16-N16), 0, +M16+H16-N16) -> 0
A17: 1612 | B17: Land Rights (Formally known as Account 1906) | G17: 0 | H17: 0 | I17: 0 | J17: 0 | L17: 0 | M17: 0 | O17: =IF(ISERROR(+M17+H17-N17), 0, +M17+H17-N17) -> 0
A18: 1805 | B18: Land | G18: 0 | H18: 0 | I18: 0 | J18: 0 | L18: 0 | M18: 0 | O18: 0
A19: 1808 | B19: Buildings | G19: 0 | H19: 0 | I19: 0 | J19: 0 | L19: 0 | M19: 0 | O19: 0
A20: 1810 | B20: Leasehold Improvements | G20: 0 | H20: 0 | I20: 0 | J20: 0 | L20: 0 | M20: 0 | O20: 0
A21: 1815 | B21: Transformer Station Equipment >50 kV | G21: 0 | H21: 0 | I21: 0 | J21: 0 | L21: 0 | M21: 0 | O21: 0
A22: 1820 | B22: Distribution Station Equipment <50 kV | G22: 0 | H22: 0 | I22: 0 | J22: 0 | L22: 0 | M22: 0 | O22: 0
A23: 1825 | B23: Storage Battery Equipment | G23: 0 | H23: 0 | I23: 0 | J23: 0 | L23: 0 | M23: 0 | O23: 0
A24: 1830 | B24: Poles, Towers & Fixtures | G24: 0 | H24: 0 | I24: 0 | J24: 0 | L24: 0 | M24: 0 | O24: 0
A25: 1835 | B25: Overhead Conductors & Devices | G25: 0 | H25: 0 | I25: 0 | J25: 0 | L25: 0 | M25: 0 | O25: 0
A26: 1840 | B26: Underground Conduit | G26: 0 | H26: 0 | I26: 0 | J26: 0 | L26: 0 | M26: 0 | O26: 0
A27: 1845 | B27: Underground Conductors & Devices | G27: 0 | H27: 0 | I27: 0 | J27: 0 | L27: 0 | M27: 0 | O27: 0
A28: 1850 | B28: Line Transformers | G28: 0 | H28: 0 | I28: 0 | J28: 0 | L28: 0 | M28: 0 | O28: 0
A29: 1855 | B29: Services (Overhead & Underground) | G29: 0 | H29: 0 | I29: 0 | J29: 0 | L29: 0 | M29: 0 | O29: 0
A30: 1860 | B30: Meters | G30: 0 | H30: 0 | I30: 0 | J30: 0 | L30: 0 | M30: 0 | O30: 0
A31: 1860 | B31: Meters (Smart Meters) | G31: 0 | H31: 0 | I31: 0 | J31: 0 | L31: 0 | M31: 0 | O31: 0
A32: 1905 | B32: Land | G32: 0 | H32: 0 | I32: 0 | J32: 0 | L32: 0 | M32: 0 | O32: 0
A33: 1908 | B33: Buildings & Fixtures | G33: 0 | H33: 0 | I33: 0 | J33: 0 | L33: 0 | M33: 0 | O33: 0
A34: 1910 | B34: Leasehold Improvements | G34: 0 | H34: 0 | I34: 0 | J34: 0 | L34: 0 | M34: 0 | O34: 0
A35: 1915 | B35: Office Furniture & Equipment (10 years) | G35: 0 | H35: 0 | I35: 0 | J35: 0 | L35: 0 | M35: 0 | O35: 0
A36: 1915 | B36: Office Furniture & Equipment (5 years) | G36: 0 | H36: 0 | I36: 0 | J36: 0 | L36: 0 | M36: 0 | O36: 0
A37: 1920 | B37: Computer Equipment - Hardware | G37: 0 | H37: 0 | I37: 0 | J37: 0 | L37: 0 | M37: 0 | O37: 0
A38: 1920 | B38: Computer Equip.-Hardware(Post Mar. 22/04) | G38: 0 | H38: 0 | I38: 0 | J38: 0 | L38: 0 | M38: 0 | O38: 0
A39: 1920 | B39: Computer Equip.-Hardware(Post Mar. 19/07) | G39: 0 | H39: 0 | I39: 0 | J39: 0 | L39: 0 | M39: 0 | O39: 0
A40: 1930 | B40: Transportation Equipment | G40: 0 | H40: 0 | I40: 0 | J40: 0 | L40: 0 | M40: 0 | O40: 0
A41: 1935 | B41: Stores Equipment | G41: 0 | H41: 0 | I41: 0 | J41: 0 | L41: 0 | M41: 0 | O41: 0
A42: 1940 | B42: Tools, Shop & Garage Equipment | G42: 0 | H42: 0 | I42: 0 | J42: 0 | L42: 0 | M42: 0 | O42: 0
A43: 1945 | B43: Measurement & Testing Equipment | G43: 0 | H43: 0 | I43: 0 | J43: 0 | L43: 0 | M43: 0 | O43: 0
A44: 1950 | B44: Power Operated Equipment | G44: 0 | H44: 0 | I44: 0 | J44: 0 | L44: 0 | M44: 0 | O44: 0
A45: 1955 | B45: Communications Equipment | G45: 0 | H45: 0 | I45: 0 | J45: 0 | L45: 0 | M45: 0 | O45: 0
A46: 1955 | B46: Communication Equipment (Smart Meters) | G46: 0 | H46: 0 | I46: 0 | J46: 0 | L46: 0 | M46: 0 | O46: 0
A47: 1960 | B47: Miscellaneous Equipment | G47: 0 | H47: 0 | I47: 0 | J47: 0 | L47: 0 | M47: 0 | O47: 0
A48: 1970 | B48: Load Management Controls Customer Premises | G48: 0 | H48: 0 | I48: 0 | J48: 0 | L48: 0 | M48: 0 | O48: 0
A49: 1975 | B49: Load Management Controls Utility Premises | G49: 0 | H49: 0 | I49: 0 | J49: 0 | L49: 0 | M49: 0 | O49: 0
A50: 1980 | B50: System Supervisor Equipment | G50: 0 | H50: 0 | I50: 0 | J50: 0 | L50: 0 | M50: 0 | O50: 0
A51: 1985 | B51: Miscellaneous Fixed Assets | G51: 0 | H51: 0 | I51: 0 | J51: 0 | L51: 0 | M51: 0 | O51: 0
A52: 1990 | B52: Other Tangible Property | G52: 0 | H52: 0 | I52: 0 | J52: 0 | L52: 0 | M52: 0 | O52: 0
A53: 1995 | B53: Contributions & Grants | G53: 0 | H53: 0 | I53: 0 | J53: 0 | L53: 0 | M53: 0 | O53: 0
A54: etc. | G54: 0 | H54: 0 | I54: 0 | J54: 0 | L54: 0 | M54: 0 | O54: 0
G55: 0 | H55: 0 | I55: 0 | J55: 0 | L55: 0 | M55: 0 | O55: 0
B56: Total | C56: =SUM(C16:C55) -> 0 | D56: =SUM(D16:D55) -> 0 | H56: =SUM(H16:H55) -> 0 | I56: 0 | J56: 0 | K56: 0 | L56: 0 | M56: 0 | N56: =SUM(N16:N55) -> 0 | O56: 0
B57: Depreciation exp. adj. from gain or loss on the retirement of assets (pool of like assets) | J57: 0
B58: Total | J58: =+J56+J57 -> 0
A59: Notes:
A61: 1 | B61: Board policy of the "half-year" rule - the applicant must ensure that additions in the year attract a half-year depreciation expense in the first year. Deviations from this standard practice must be supported in the application.
A62: 2 | B62: The applicant must provide an explanation of material variances in evidence.
A63: 3 | B63: The applicant should ensure that the years for new additions of assets are the asset useful lives determined by management in accordance with IFRS.
A64: 4 | B64: A recalculation should be performed to determine the average remaining life of opening balance of assets (i.e. excluding 2013 additions) under IFRS. For example, Asset A had a useful life of 20 years under CGAAP. On January 1, 2013, the date of transition, Asset A was 3 years depreciated. As a result, Asset A would have a remaining service life of 17 years (20 years less 3 years) under CGAAP as of January 1, 2013. Due to the transition to IFRS, management re-assessed the asset useful lives under IFRS principles and concluded that the revised useful life of Asset A is now 30 years. Therefore, the average remaining useful life of opening balance of Asset A is determined to be 27 years (30 years less 3 years) under IFRS as of January 1, 2013.
A65: 5 | B65: NBV must exclude assets still on the books but which have been fully amortized or depreciated.
A66: 6 | B66: This column refers to the calculated full year depreciation but excludes the depreciation expense on assets fully depreciated during the year. This column is used for the purpose of calculating depreciation expense in the following year on the next worksheet.
A68: General: | B68: Applicants must provide a breakdown of depreciation and amortization expense in the above format for all relevant accounts. Asset Retirement Obligations (AROs), depreciation and accretion expense should be disclosed separately consistent with the Notes of historical Audited Financial Statements.

Sheet App.2-CM_MIFRS_DepExp_2014 (hidden)
I1: File Number: | J1: =EBNUMBER -> EB-2013-0134
I2: Exhibit:
I3: Tab:
I4: Schedule:
I5: Page:
I7: Date:
A9: Appendix 2-CM
A10: Depreciation and Amortization Expense
A11: Assumes the applicant adopted IFRS for financial reporting purposes January 1, 2014
C12: Year | D12: 2014 | E12: MIFRS
A14: Account | B14: Description | C14: Additions | D14: Years (new additions only) | E14: Depreciation Rate on New Additions | F14: 2014 Depreciation Expense 1 | G14: 2014 Depreciation Expense per Appendix 2-B Fixed Assets, Column K (l) | H14: Variance 2
C15: (d) | D15: (f) | E15: (g) = 1 / (f) | F15: (h)=2013 Full Year Depreciation + ((d)*0.5)/(f) | H15: (m) = (h) - (l)
A16: 1611 | B16: Computer Software (Formally known as Account 1925) | E16: =IF(D16=0,0,1/D16) -> 0 | F16: =IF(D16=0,'App.2-CL_MIFRS_DepExp_2013'!O16,+'App.2-CL_MIFRS_DepExp_2013'!O16+((C16*0.5)/D16)) -> 0 | H16: =IF(ISERROR(+F16-G16), 0, +F16-G16) -> 0
A17: 1612 | B17: Land Rights (Formally known as Account 1906) | E17: 0 | F17: =IF(D17=0,'App.2-CL_MIFRS_DepExp_2013'!O17,+'App.2-CL_MIFRS_DepExp_2013'!O17+((C17*0.5)/D17)) -> 0 | H17: 0
A18: 1805 | B18: Land | E18: 0 | F18: =IF(D18=0,'App.2-CL_MIFRS_DepExp_2013'!O18,+'App.2-CL_MIFRS_DepExp_2013'!O18+((C18*0.5)/D18)) -> 0 | H18: 0
A19: 1808 | B19: Buildings | E19: 0 | F19: =IF(D19=0,'App.2-CL_MIFRS_DepExp_2013'!O19,+'App.2-CL_MIFRS_DepExp_2013'!O19+((C19*0.5)/D19)) -> 0 | H19: 0
A20: 1810 | B20: Leasehold Improvements | E20: 0 | F20: =IF(D20=0,'App.2-CL_MIFRS_DepExp_2013'!O20,+'App.2-CL_MIFRS_DepExp_2013'!O20+((C20*0.5)/D20)) -> 0 | H20: 0
A21: 1815 | B21: Transformer Station Equipment >50 kV | E21: 0 | F21: =IF(D21=0,'App.2-CL_MIFRS_DepExp_2013'!O21,+'App.2-CL_MIFRS_DepExp_2013'!O21+((C21*0.5)/D21)) -> 0 | H21: 0
A22: 1820 | B22: Distribution Station Equipment <50 kV | E22: 0 | F22: =IF(D22=0,'App.2-CL_MIFRS_DepExp_2013'!O22,+'App.2-CL_MIFRS_DepExp_2013'!O22+((C22*0.5)/D22)) -> 0 | H22: 0
A23: 1825 | B23: Storage Battery Equipment | E23: 0 | F23: =IF(D23=0,'App.2-CL_MIFRS_DepExp_2013'!O23,+'App.2-CL_MIFRS_DepExp_2013'!O23+((C23*0.5)/D23)) -> 0 | H23: 0
A24: 1830 | B24: Poles, Towers & Fixtures | E24: 0 | F24: =IF(D24=0,'App.2-CL_MIFRS_DepExp_2013'!O24,+'App.2-CL_MIFRS_DepExp_2013'!O24+((C24*0.5)/D24)) -> 0 | H24: 0
A25: 1835 | B25: Overhead Conductors & Devices | E25: 0 | F25: =IF(D25=0,'App.2-CL_MIFRS_DepExp_2013'!O25,+'App.2-CL_MIFRS_DepExp_2013'!O25+((C25*0.5)/D25)) -> 0 | H25: 0
A26: 1840 | B26: Underground Conduit | E26: 0 | F26: =IF(D26=0,'App.2-CL_MIFRS_DepExp_2013'!O26,+'App.2-CL_MIFRS_DepExp_2013'!O26+((C26*0.5)/D26)) -> 0 | H26: 0
A27: 1845 | B27: Underground Conductors & Devices | E27: 0 | F27: =IF(D27=0,'App.2-CL_MIFRS_DepExp_2013'!O27,+'App.2-CL_MIFRS_DepExp_2013'!O27+((C27*0.5)/D27)) -> 0 | H27: 0
A28: 1850 | B28: Line Transformers | E28: 0 | F28: =IF(D28=0,'App.2-CL_MIFRS_DepExp_2013'!O28,+'App.2-CL_MIFRS_DepExp_2013'!O28+((C28*0.5)/D28)) -> 0 | H28: 0
A29: 1855 | B29: Services (Overhead & Underground) | E29: 0 | F29: =IF(D29=0,'App.2-CL_MIFRS_DepExp_2013'!O29,+'App.2-CL_MIFRS_DepExp_2013'!O29+((C29*0.5)/D29)) -> 0 | H29: 0
A30: 1860 | B30: Meters | E30: 0 | F30: =IF(D30=0,'App.2-CL_MIFRS_DepExp_2013'!O30,+'App.2-CL_MIFRS_DepExp_2013'!O30+((C30*0.5)/D30)) -> 0 | H30: 0
A31: 1860 | B31: Meters (Smart Meters) | E31: 0 | F31: =IF(D31=0,'App.2-CL_MIFRS_DepExp_2013'!O31,+'App.2-CL_MIFRS_DepExp_2013'!O31+((C31*0.5)/D31)) -> 0 | H31: 0
A32: 1905 | B32: Land | E32: 0 | F32: =IF(D32=0,'App.2-CL_MIFRS_DepExp_2013'!O32,+'App.2-CL_MIFRS_DepExp_2013'!O32+((C32*0.5)/D32)) -> 0 | H32: 0
A33: 1908 | B33: Buildings & Fixtures | E33: 0 | F33: =IF(D33=0,'App.2-CL_MIFRS_DepExp_2013'!O33,+'App.2-CL_MIFRS_DepExp_2013'!O33+((C33*0.5)/D33)) -> 0 | H33: 0
A34: 1910 | B34: Leasehold Improvements | E34: 0 | F34: =IF(D34=0,'App.2-CL_MIFRS_DepExp_2013'!O34,+'App.2-CL_MIFRS_DepExp_2013'!O34+((C34*0.5)/D34)) -> 0 | H34: 0
A35: 1915 | B35: Office Furniture & Equipment (10 years) | E35: 0 | F35: =IF(D35=0,'App.2-CL_MIFRS_DepExp_2013'!O35,+'App.2-CL_MIFRS_DepExp_2013'!O35+((C35*0.5)/D35)) -> 0 | H35: 0
A36: 1915 | B36: Office Furniture & Equipment (5 years) | E36: 0 | F36: =IF(D36=0,'App.2-CL_MIFRS_DepExp_2013'!O36,+'App.2-CL_MIFRS_DepExp_2013'!O36+((C36*0.5)/D36)) -> 0 | H36: 0
A37: 1920 | B37: Computer Equipment - Hardware | E37: 0 | F37: =IF(D37=0,'App.2-CL_MIFRS_DepExp_2013'!O37,+'App.2-CL_MIFRS_DepExp_2013'!O37+((C37*0.5)/D37)) -> 0 | H37: 0
A38: 1920 | B38: Computer Equip.-Hardware(Post Mar. 22/04) | E38: 0 | F38: =IF(D38=0,'App.2-CL_MIFRS_DepExp_2013'!O38,+'App.2-CL_MIFRS_DepExp_2013'!O38+((C38*0.5)/D38)) -> 0 | H38: 0
A39: 1920 | B39: Computer Equip.-Hardware(Post Mar. 19/07) | E39: 0 | F39: =IF(D39=0,'App.2-CL_MIFRS_DepExp_2013'!O39,+'App.2-CL_MIFRS_DepExp_2013'!O39+((C39*0.5)/D39)) -> 0 | H39: 0
A40: 1930 | B40: Transportation Equipment | E40: 0 | F40: =IF(D40=0,'App.2-CL_MIFRS_DepExp_2013'!O40,+'App.2-CL_MIFRS_DepExp_2013'!O40+((C40*0.5)/D40)) -> 0 | H40: 0
A41: 1935 | B41: Stores Equipment | E41: 0 | F41: =IF(D41=0,'App.2-CL_MIFRS_DepExp_2013'!O41,+'App.2-CL_MIFRS_DepExp_2013'!O41+((C41*0.5)/D41)) -> 0 | H41: 0
A42: 1940 | B42: Tools, Shop & Garage Equipment | E42: 0 | F42: =IF(D42=0,'App.2-CL_MIFRS_DepExp_2013'!O42,+'App.2-CL_MIFRS_DepExp_2013'!O42+((C42*0.5)/D42)) -> 0 | H42: 0
A43: 1945 | B43: Measurement & Testing Equipment | E43: 0 | F43: =IF(D43=0,'App.2-CL_MIFRS_DepExp_2013'!O43,+'App.2-CL_MIFRS_DepExp_2013'!O43+((C43*0.5)/D43)) -> 0 | H43: 0
A44: 1950 | B44: Power Operated Equipment | E44: 0 | F44: =IF(D44=0,'App.2-CL_MIFRS_DepExp_2013'!O44,+'App.2-CL_MIFRS_DepExp_2013'!O44+((C44*0.5)/D44)) -> 0 | H44: 0
A45: 1955 | B45: Communications Equipment | E45: 0 | F45: =IF(D45=0,'App.2-CL_MIFRS_DepExp_2013'!O45,+'App.2-CL_MIFRS_DepExp_2013'!O45+((C45*0.5)/D45)) -> 0 | H45: 0
A46: 1955 | B46: Communication Equipment (Smart Meters) | E46: 0 | F46: =IF(D46=0,'App.2-CL_MIFRS_DepExp_2013'!O46,+'App.2-CL_MIFRS_DepExp_2013'!O46+((C46*0.5)/D46)) -> 0 | H46: 0
A47: 1960 | B47: Miscellaneous Equipment | E47: 0 | F47: =IF(D47=0,'App.2-CL_MIFRS_DepExp_2013'!O47,+'App.2-CL_MIFRS_DepExp_2013'!O47+((C47*0.5)/D47)) -> 0 | H47: 0
A48: 1970 | B48: Load Management Controls Customer Premises | E48: 0 | F48: =IF(D48=0,'App.2-CL_MIFRS_DepExp_2013'!O48,+'App.2-CL_MIFRS_DepExp_2013'!O48+((C48*0.5)/D48)) -> 0 | H48: 0
A49: 1975 | B49: Load Management Controls Utility Premises | E49: 0 | F49: =IF(D49=0,'App.2-CL_MIFRS_DepExp_2013'!O49,+'App.2-CL_MIFRS_DepExp_2013'!O49+((C49*0.5)/D49)) -> 0 | H49: 0
A50: 1980 | B50: System Supervisor Equipment | E50: 0 | F50: =IF(D50=0,'App.2-CL_MIFRS_DepExp_2013'!O50,+'App.2-CL_MIFRS_DepExp_2013'!O50+((C50*0.5)/D50)) -> 0 | H50: 0
A51: 1985 | B51: Miscellaneous Fixed Assets | E51: 0 | F51: =IF(D51=0,'App.2-CL_MIFRS_DepExp_2013'!O51,+'App.2-CL_MIFRS_DepExp_2013'!O51+((C51*0.5)/D51)) -> 0 | H51: 0
A52: 1990 | B52: Other Tangible Property | E52: 0 | F52: =IF(D52=0,'App.2-CL_MIFRS_DepExp_2013'!O52,+'App.2-CL_MIFRS_DepExp_2013'!O52+((C52*0.5)/D52)) -> 0 | H52: 0
A53: 1995 | B53: Contributions & Grants | E53: 0 | F53: =IF(D53=0,'App.2-CL_MIFRS_DepExp_2013'!O53,+'App.2-CL_MIFRS_DepExp_2013'!O53+((C53*0.5)/D53)) -> 0 | H53: 0
A54: etc. | E54: 0 | F54: =IF(D54=0,'App.2-CL_MIFRS_DepExp_2013'!O54,+'App.2-CL_MIFRS_DepExp_2013'!O54+((C54*0.5)/D54)) -> 0 | H54: 0
E55: 0 | F55: =IF(D55=0,'App.2-CL_MIFRS_DepExp_2013'!O55,+'App.2-CL_MIFRS_DepExp_2013'!O55+((C55*0.5)/D55)) -> 0 | H55: 0
B56: Total | C56: =SUM(C16:C55) -> 0 | F56: =SUM(F16:F55) -> 0 | G56: =SUM(G16:G55) -> 0 | H56: =SUM(H16:H55) -> 0
B57: Depreciation exp. adj. from gain or loss on the retirement of assets (pool of like assets) | F57: 0
B58: Total Depreciation expense to be included in the test year revenue requirement | F58: =SUM(F56:F57) -> 0
A60: Notes:
A61: 1 | B61: Board policy of the "half-year" rule - the applicant must ensure that additions in the year attract a half-year depreciation expense in the first year. Deviations from this standard practice must be supported in the application.
A62: 2 | B62: The applicant must provide an explanation of material variances in evidence.
A65: General: | B65: Applicants must provide a breakdown of depreciation and amortization expense in the above format for all relevant accounts. Asset Retirement Obligations (AROs), depreciation and accretion expense should be disclosed separately consistent with the Notes of historical Audited Financial Statements.

Sheet Instruction for App. 2-C CGAAP
A1: General Instructions to CGAAP - ASPE Appendices
A2: Types of Schedules to File
A5: Applicants filing a CGAAP or ASPE application should provide the following information:
A7: Depreciation and Amortization - Appendix 2-C
A8: If an applicant chooses to remain on CGAAP or adopt ASPE and make the changes to capitalization and depreciation expense policies in 2012, the applicant must complete Appendix 2-CN to Appendix 2-CQ (inclusive).
A9: If an applicant chooses to remain on CGAAP or adopt ASPE and make the changes to capitalization and depreciation expense policies in 2013, the applicant must complete Appendix 2-CR to Appendix 2-CU (inclusive).
A11: Account 1576, Accounting Changes Under CGAAP - Appendix 2-ED, Appendix 2-EE
A12: Please refer to section 2.12.5 of the Filing Requirements.

Sheet App.2-CN_OldCGAAP_DepExp_2012 (hidden)
K1: File Number: | L1: =EBNUMBER -> EB-2013-0134
K2: Exhibit:
K3: Tab:
K4: Schedule:
K5: Page:
K7: Date:
A9: Appendix 2-CN
A10: Depreciation and Amortization Expense
A11: Assumes the applicant made capitalization and depreciation expense accounting policy changes under CGAAP effective January 1, 2012
C12: Year | D12: 2012 | E12: Former CGAAP - CGAAP without the changes to the policies
A14: Account | B14: Description | C14: Opening Regulatory Gross PP&E as at Jan 1, 2012 | D14: Less Fully Depreciated | E14: Net for Depreciation | F14: Additions | G14: Total for Depreciation | H14: Years | I14: Depreciation Rate | J14: Depreciation Expense | K14: 2012 Depreciation Expense per Appendix 2-B Fixed Assets, Column K (l) | L14: Variance 2
C15: (a) | D15: (b) | E15: (c) | F15: (d) | G15: (e) = (c) + ½ x (d) 1 | H15: (f) | I15: (g) = 1 / (f) | J15: (h) = (e) / (f) | L15: (m) = (h) - (l)
A16: 1611 | B16: Computer Software (Formally known as Account 1925) | E16: =C16-D16 -> 0 | G16: =E16+0.5*F16 -> 0 | I16: =IF(H16=0,0,1/H16) -> 0 | J16: =IF(H16=0,0,G16/H16) -> 0 | L16: =IF(ISERROR(+J16-K16), 0, +J16-K16) -> 0
A17: 1612 | B17: Land Rights (Formally known as Account 1906) | E17: =C17-D17 -> 0 | G17: =E17+0.5*F17 -> 0 | I17: 0 | J17: 0 | L17: 0
A18: 1805 | B18: Land | E18: 0 | G18: 0 | I18: 0 | J18: 0 | L18: 0
A19: 1808 | B19: Buildings | E19: 0 | G19: 0 | I19: 0 | J19: 0 | L19: 0
A20: 1810 | B20: Leasehold Improvements | E20: 0 | G20: 0 | I20: 0 | J20: 0 | L20: 0
A21: 1815 | B21: Transformer Station Equipment >50 kV | E21: 0 | G21: 0 | I21: 0 | J21: 0 | L21: 0
A22: 1820 | B22: Distribution Station Equipment <50 kV | E22: 0 | G22: 0 | I22: 0 | J22: 0 | L22: 0
A23: 1825 | B23: Storage Battery Equipment | E23: 0 | G23: 0 | I23: 0 | J23: 0 | L23: 0
A24: 1830 | B24: Poles, Towers & Fixtures | E24: 0 | G24: 0 | I24: 0 | J24: 0 | L24: 0
A25: 1835 | B25: Overhead Conductors & Devices | E25: 0 | G25: 0 | I25: 0 | J25: 0 | L25: 0
A26: 1840 | B26: Underground Conduit | E26: 0 | G26: 0 | I26: 0 | J26: 0 | L26: 0
A27: 1845 | B27: Underground Conductors & Devices | E27: 0 | G27: 0 | I27: 0 | J27: 0 | L27: 0
A28: 1850 | B28: Line Transformers | E28: 0 | G28: 0 | I28: 0 | J28: 0 | L28: 0
A29: 1855 | B29: Services (Overhead & Underground) | E29: 0 | G29: 0 | I29: 0 | J29: 0 | L29: 0
A30: 1860 | B30: Meters | E30: 0 | G30: 0 | I30: 0 | J30: 0 | L30: 0
A31: 1860 | B31: Meters (Smart Meters) | E31: 0 | G31: 0 | I31: 0 | J31: 0 | L31: 0
A32: 1905 | B32: Land | E32: 0 | G32: 0 | I32: 0 | J32: 0 | L32: 0
A33: 1908 | B33: Buildings & Fixtures | E33: 0 | G33: 0 | I33: 0 | J33: 0 | L33: 0
A34: 1910 | B34: Leasehold Improvements | E34: 0 | G34: 0 | I34: 0 | J34: 0 | L34: 0
A35: 1915 | B35: Office Furniture & Equipment (10 years) | E35: 0 | G35: 0 | I35: 0 | J35: 0 | L35: 0
A36: 1915 | B36: Office Furniture & Equipment (5 years) | E36: 0 | G36: 0 | I36: 0 | J36: 0 | L36: 0
A37: 1920 | B37: Computer Equipment - Hardware | E37: 0 | G37: 0 | I37: 0 | J37: 0 | L37: 0
A38: 1920 | B38: Computer Equip.-Hardware(Post Mar. 22/04) | E38: 0 | G38: 0 | I38: 0 | J38: 0 | L38: 0
A39: 1920 | B39: Computer Equip.-Hardware(Post Mar. 19/07) | E39: 0 | G39: 0 | I39: 0 | J39: 0 | L39: 0
A40: 1930 | B40: Transportation Equipment | E40: 0 | G40: 0 | I40: 0 | J40: 0 | L40: 0
A41: 1935 | B41: Stores Equipment | E41: 0 | G41: 0 | I41: 0 | J41: 0 | L41: 0
A42: 1940 | B42: Tools, Shop & Garage Equipment | E42: 0 | G42: 0 | I42: 0 | J42: 0 | L42: 0
A43: 1945 | B43: Measurement & Testing Equipment | E43: 0 | G43: 0 | I43: 0 | J43: 0 | L43: 0
A44: 1950 | B44: Power Operated Equipment | E44: 0 | G44: 0 | I44: 0 | J44: 0 | L44: 0
A45: 1955 | B45: Communications Equipment | E45: 0 | G45: 0 | I45: 0 | J45: 0 | L45: 0
A46: 1955 | B46: Communication Equipment (Smart Meters) | E46: 0 | G46: 0 | I46: 0 | J46: 0 | L46: 0
A47: 1960 | B47: Miscellaneous Equipment | E47: 0 | G47: 0 | I47: 0 | J47: 0 | L47: 0
A48: 1970 | B48: Load Management Controls - Customer Premises | E48: 0 | G48: 0 | I48: 0 | J48: 0 | L48: 0
A49: 1975 | B49: Load Management Controls Utility Premises | E49: 0 | G49: 0 | I49: 0 | J49: 0 | L49: 0
A50: 1980 | B50: System Supervisor Equipment | E50: 0 | G50: 0 | I50: 0 | J50: 0 | L50: 0
A51: 1985 | B51: Miscellaneous Fixed Assets | E51: 0 | G51: 0 | I51: 0 | J51: 0 | L51: 0
A52: 1990 | B52: Other Tangible Property | E52: 0 | G52: 0 | I52: 0 | J52: 0 | L52: 0
A53: 1995 | B53: Contributions & Grants | E53: 0 | G53: 0 | I53: 0 | J53: 0 | L53: 0
A54: etc. | E54: 0 | G54: 0 | I54: 0 | J54: 0 | L54: 0
E55: 0 | G55: 0 | I55: 0 | J55: 0 | L55: 0
B56: Total | C56: =SUM(C16:C55) -> 0 | D56: =SUM(D16:D55) -> 0 | E56: =SUM(E16:E55) -> 0 | F56: =SUM(F16:F55) -> 0 | G56: =SUM(G16:G55) -> 0 | J56: =SUM(J16:J55) -> 0 | K56: =SUM(K16:K55) -> 0 | L56: =SUM(L16:L55) -> 0
A58: Notes:
A60: 1 | B60: Board policy of the "half-year" rule - the applicant must ensure that additions in the year attract a half-year depreciation expense in the first year. Deviations from this standard practice must be supported in the application.
A61: 2 | B61: The applicant must provide an explanation of material variances in evidence.
A63: General | B63: Applicants must provide a breakdown of depreciation and amortization expense in the above format for all relevant accounts. Asset Retirement Obligations (AROs), depreciation and accretion expense should be disclosed separately consistent with the Notes of historical Audited Financial Statements.

Sheet App.2-CO_NewCGAAP_DepExp_2012 (hidden)
N1: File Number: | O1: =EBNUMBER -> EB-2013-0134
N2: Exhibit:
N3: Tab:
N4: Schedule:
N5: Page:
N7: Date:
A9: Appendix 2-CO
A10: Depreciation and Amortization Expense
A11: Assumes the applicant made capitalization and depreciation expense accounting policy changes under CGAAP effective January 1, 2012
C13: Year | D13: 2012 | E13: Revised CGAAP or ASPE - CGAAP or ASPE with the changes to the policies
A15: Account | B15: Description | C15: Opening NBV as at Jan 1, 2012 5 | D15: Additions | E15: Average Remaining Life of Opening NBV 4 | F15: Years (new additions only) 3 | G15: Depreciation Rate on New Additions | H15: Depreciation Expense on Opening NBV | I15: Depreciation Expense on Additions 1 | J15: 2012 Depreciation Expense | K15: 2012 Depreciation Expense per Appendix 2-B Fixed Assets, Column K (l) | L15: Variance 2 | M15: Depreciation Expense on 2012 Full Year Additions | N15: Less Depreciation Expense on Assets Fully Depreciated during the year (o) | O15: 2012 Full Year Depreciation 6
C16: (a) | D16: (d) | E16: (i) | F16: (f) | G16: (g) = 1 / (f) | H16: (j) = (a) / (i) | I16: (h)=((d)*0.5)/(f) | J16: (k) = (j) + (h) | L16: (m) = (k) - (l) | M16: (n) = (d)/(f) | O16: (p) = (j) + (n) - (o)
A17: 1611 | B17: Computer Software (Formally known as Account 1925) | G17: =IF(F17=0,0,1/F17) -> 0 | H17: =IF(E17=0,0,+C17/E17) -> 0 | I17: =IF(F17=0,0,+(D17*0.5)/F17) -> 0 | J17: =IF(ISERROR(+H17+I17), 0, +H17+I17) -> 0 | L17: =IF(ISERROR(+J17-K17), 0, +J17-K17) -> 0 | M17: =IF(F17=0,0,+(D17)/F17) -> 0 | O17: =IF(ISERROR(+M17+H17-N17), 0, +M17+H17-N17) -> 0
A18: 1612 | B18: Land Rights (Formally known as Account 1906) | G18: 0 | H18: 0 | I18: 0 | J18: 0 | L18: 0 | M18: 0 | O18: =IF(ISERROR(+M18+H18-N18), 0, +M18+H18-N18) -> 0
A19: 1805 | B19: Land | G19: 0 | H19: 0 | I19: 0 | J19: 0 | L19: 0 | M19: 0 | O19: 0
A20: 1808 | B20: Buildings | G20: 0 | H20: 0 | I20: 0 | J20: 0 | L20: 0 | M20: 0 | O20: 0
A21: 1810 | B21: Leasehold Improvements | G21: 0 | H21: 0 | I21: 0 | J21: 0 | L21: 0 | M21: 0 | O21: 0
A22: 1815 | B22: Transformer Station Equipment >50 kV | G22: 0 | H22: 0 | I22: 0 | J22: 0 | L22: 0 | M22: 0 | O22: 0
A23: 1820 | B23: Distribution Station Equipment <50 kV | G23: 0 | H23: 0 | I23: 0 | J23: 0 | L23: 0 | M23: 0 | O23: 0
A24: 1825 | B24: Storage Battery Equipment | G24: 0 | H24: 0 | I24: 0 | J24: 0 | L24: 0 | M24: 0 | O24: 0
A25: 1830 | B25: Poles, Towers & Fixtures | G25: 0 | H25: 0 | I25: 0 | J25: 0 | L25: 0 | M25: 0 | O25: 0
A26: 1835 | B26: Overhead Conductors & Devices | G26: 0 | H26: 0 | I26: 0 | J26: 0 | L26: 0 | M26: 0 | O26: 0
A27: 1840 | B27: Underground Conduit | G27: 0 | H27: 0 | I27: 0 | J27: 0 | L27: 0 | M27: 0 | O27: 0
A28: 1845 | B28: Underground Conductors & Devices | G28: 0 | H28: 0 | I28: 0 | J28: 0 | L28: 0 | M28: 0 | O28: 0
A29: 1850 | B29: Line Transformers | G29: 0 | H29: 0 | I29: 0 | J29: 0 | L29: 0 | M29: 0 | O29: 0
A30: 1855 | B30: Services (Overhead & Underground) | G30: 0 | H30: 0 | I30: 0 | J30: 0 | L30: 0 | M30: 0 | O30: 0
A31: 1860 | B31: Meters | G31: 0 | H31: 0 | I31: 0 | J31: 0 | L31: 0 | M31: 0 | O31: 0
A32: 1860 | B32: Meters (Smart Meters) | G32: 0 | H32: 0 | I32: 0 | J32: 0 | L32: 0 | M32: 0 | O32: 0
A33: 1905 | B33: Land | G33: 0 | H33: 0 | I33: 0 | J33: 0 | L33: 0 | M33: 0 | O33: 0
A34: 1908 | B34: Buildings & Fixtures | G34: 0 | H34: 0 | I34: 0 | J34: 0 | L34: 0 | M34: 0 | O34: 0
A35: 1910 | B35: Leasehold Improvements | G35: 0 | H35: 0 | I35: 0 | J35: 0 | L35: 0 | M35: 0 | O35: 0
A36: 1915 | B36: Office Furniture & Equipment (10 years) | G36: 0 | H36: 0 | I36: 0 | J36: 0 | L36: 0 | M36: 0 | O36: 0
A37: 1915 | B37: Office Furniture & Equipment (5 years) | G37: 0 | H37: 0 | I37: 0 | J37: 0 | L37: 0 | M37: 0 | O37: 0
A38: 1920 | B38: Computer Equipment - Hardware | G38: 0 | H38: 0 | I38: 0 | J38: 0 | L38: 0 | M38: 0 | O38: 0
A39: 1920 | B39: Computer Equip.-Hardware(Post Mar. 22/04) | G39: 0 | H39: 0 | I39: 0 | J39: 0 | L39: 0 | M39: 0 | O39: 0
A40: 1920 | B40: Computer Equip.-Hardware(Post Mar. 19/07) | G40: 0 | H40: 0 | I40: 0 | J40: 0 | L40: 0 | M40: 0 | O40: 0
A41: 1930 | B41: Transportation Equipment | G41: 0 | H41: 0 | I41: 0 | J41: 0 | L41: 0 | M41: 0 | O41: 0
A42: 1935 | B42: Stores Equipment | G42: 0 | H42: 0 | I42: 0 | J42: 0 | L42: 0 | M42: 0 | O42: 0
A43: 1940 | B43: Tools, Shop & Garage Equipment | G43: 0 | H43: 0 | I43: 0 | J43: 0 | L43: 0 | M43: 0 | O43: 0
A44: 1945 | B44: Measurement & Testing Equipment | G44: 0 | H44: 0 | I44: 0 | J44: 0 | L44: 0 | M44: 0 | O44: 0
A45: 1950 | B45: Power Operated Equipment | G45: 0 | H45: 0 | I45: 0 | J45: 0 | L45: 0 | M45: 0 | O45: 0
A46: 1955 | B46: Communications Equipment | G46: 0 | H46: 0 | I46: 0 | J46: 0 | L46: 0 | M46: 0 | O46: 0
A47: 1955 | B47: Communication Equipment (Smart Meters) | G47: 0 | H47: 0 | I47: 0 | J47: 0 | L47: 0 | M47: 0 | O47: 0
A48: 1960 | B48: Miscellaneous Equipment | G48: 0 | H48: 0 | I48: 0 | J48: 0 | L48: 0 | M48: 0 | O48: 0
A49: 1970 | B49: Load Management Controls - Customer Premises | G49: 0 | H49: 0 | I49: 0 | J49: 0 | L49: 0 | M49: 0 | O49: 0
A50: 1975 | B50: Load Management Controls Utility Premises | G50: 0 | H50: 0 | I50: 0 | J50: 0 | L50: 0 | M50: 0 | O50: 0
A51: 1980 | B51: System Supervisor Equipment | G51: 0 | H51: 0 | I51: 0 | J51: 0 | L51: 0 | M51: 0 | O51: 0
A52: 1985 | B52: Miscellaneous Fixed Assets | G52: 0 | H52: 0 | I52: 0 | J52: 0 | L52: 0 | M52: 0 | O52: 0
A53: 1990 | B53: Other Tangible Property | G53: 0 | H53: 0 | I53: 0 | J53: 0 | L53: 0 | M53: 0 | O53: 0
A54: 1995 | B54: Contributions & Grants | G54: 0 | H54: 0 | I54: 0 | J54: 0 | L54: 0 | M54: 0 | O54: 0
A55: etc. | G55: 0 | H55: 0 | I55: 0 | J55: 0 | L55: 0 | M55: 0 | O55: 0
G56: 0 | H56: 0 | I56: 0 | J56: 0 | L56: 0 | M56: 0 | O56: 0
B57: Total | C57: =SUM(C17:C56) -> 0 | D57: =SUM(D17:D56) -> 0 | H57: =SUM(H17:H56) -> 0 | I57: 0 | J57: 0 | K57: 0 | L57: 0 | M57: 0 | N57: =SUM(N17:N56) -> 0 | O57: 0
A59: Notes:
A61: 1 | B61: Board policy of the "half-year" rule - the applicant must ensure that additions in the year attract a half-year depreciation expense in the first year. Deviations from this standard practice must be supported in the application.
A62: 2 | B62: The applicant must provide an explanation of material variances in evidence.
A63: 3 | B63: The applicant should ensure that the years for new additions of assets are the asset useful lives determined by management in accordance with the Board's regulatory accounting policies. The capitalization and depreciation expense accounting changes should be implemented consistent with the Board’s regulatory accounting policies as set out for modified IFRS as contained in the Report of the Board, Transition to International Financial Reporting Standards, EB-2008-0408, the Kinectrics Report, and the Revised 2012 Accounting Procedures Handbook for Electricity Distributors (“APH”).
A64: 4 | B64: A recalculation should be performed to determine the average remaining life of opening balance of assets (i.e. excluding 2012 additions) under the change in policies under CGAAP. For example, Asset A had a useful life of 20 years under CGAAP without the change in policies. On January 1, 2012, the effective date of the changes in policies, Asset A was 3 years depreciated. As a result, Asset A would have a remaining service life of 17 years (20 years less 3 years) as of January 1, 2012. Due to making the change in policies under CGAAP, management re-assessed the asset useful lives and concluded that the revised useful life of Asset A is now 30 years. Therefore, the average remaining useful life of the opening balance of Asset A is determined to be 27 years (30 years less 3 years) under the revised CGAAP as of January 1, 2012.
A65: 5 | B65: NBV must exclude assets still on the books but which have been fully amortized or depreciated.
A66: 6 | B66: This column refers to the calculated full year depreciation but excludes the depreciation expense on assets fully depreciated during the year. This column is used for the purpose of calculating depreciation expense in the following year on the next worksheet.
A68: General: | B68: Applicants must provide a breakdown of depreciation and amortization expense in the above format for all relevant accounts. Asset Retirement Obligations (AROs), depreciation and accretion expense should be disclosed separately consistent with the Notes of historical Audited Financial Statements.

Sheet App.2-CP_NewCGAAP_DepExp_2013 (hidden)
J1: File Number: | K1: =EBNUMBER -> EB-2013-0134
J2: Exhibit:
J3: Tab:
J4: Schedule:
J5: Page:
J7: Date:
A9: Appendix 2-CP
A10: Depreciation and Amortization Expense
A11: Assumes the applicant made capitalization and depreciation expense accounting policy changes under CGAAP effective January 1, 2012
C12: 2013 | D12: Revised CGAAP or ASPE - CGAAP or ASPE with the changes to the policies
A14: Account | B14: Description | C14: Additions | D14: Years (new additions only) | E14: Depreciation Rate on New Additions | F14: 2013 Depreciation Expense 1 | G14: 2013 Depreciation Expense per Apppendix 2-B Fixed Assets, Column K (l) | H14: Variance 2 | I14: Depreciation Expense on 2013 Full Year Additions | J14: Less Depreciation Expense on Assets Fully Depreciated during the year (o) | K14: 2013 Full Year Depreciation 3
C15: (d) | D15: (f) | E15: (g) = 1 / (f) | F15: (h)=2012 Full Year Deprecation + ((d)*0.5)/(f) | H15: (m) = (h) - (l) | I15: (n)=((d))/(f) | K15: (p) = 2012 Full Year Depreciation + (n) - (o)
A16: 1611 | B16: Computer Software (Formally known as Account 1925) | E16: =IF(D16=0,0,1/D16) -> 0 | F16: =IF(D16=0,+'App.2-CO_NewCGAAP_DepExp_2012'!O17,+'App.2-CO_NewCGAAP_DepExp_2012'!O17+((C16*0.5)/D16)) -> 0 | H16: =IF(ISERROR(+F16-G16), 0, +F16-G16) -> 0 | I16: =IF(D16=0,0,+(C16)/D16) -> 0 | K16: =IF(ISERROR(+I16+'App.2-CO_NewCGAAP_DepExp_2012'!O17-J16), 0, +I16+'App.2-CO_NewCGAAP_DepExp_2012'!O17-J16) -> 0
A17: 1612 | B17: Land Rights (Formally known as Account 1906) | E17: 0 | F17: =IF(D17=0,+'App.2-CO_NewCGAAP_DepExp_2012'!O18,+'App.2-CO_NewCGAAP_DepExp_2012'!O18+((C17*0.5)/D17)) -> 0 | H17: 0 | I17: 0 | K17: =IF(ISERROR(+I17+'App.2-CO_NewCGAAP_DepExp_2012'!O18-J17), 0, +I17+'App.2-CO_NewCGAAP_DepExp_2012'!O18-J17) -> 0
A18: 1805 | B18: Land | E18: 0 | F18: =IF(D18=0,+'App.2-CO_NewCGAAP_DepExp_2012'!O19,+'App.2-CO_NewCGAAP_DepExp_2012'!O19+((C18*0.5)/D18)) -> 0 | H18: 0 | I18: 0 | K18: =IF(ISERROR(+I18+'App.2-CO_NewCGAAP_DepExp_2012'!O19-J18), 0, +I18+'App.2-CO_NewCGAAP_DepExp_2012'!O19-J18) -> 0
A19: 1808 | B19: Buildings | E19: 0 | F19: =IF(D19=0,+'App.2-CO_NewCGAAP_DepExp_2012'!O20,+'App.2-CO_NewCGAAP_DepExp_2012'!O20+((C19*0.5)/D19)) -> 0 | H19: 0 | I19: 0 | K19: =IF(ISERROR(+I19+'App.2-CO_NewCGAAP_DepExp_2012'!O20-J19), 0, +I19+'App.2-CO_NewCGAAP_DepExp_2012'!O20-J19) -> 0
A20: 1810 | B20: Leasehold Improvements | E20: 0 | F20: =IF(D20=0,+'App.2-CO_NewCGAAP_DepExp_2012'!O21,+'App.2-CO_NewCGAAP_DepExp_2012'!O21+((C20*0.5)/D20)) -> 0 | H20: 0 | I20: 0 | K20: =IF(ISERROR(+I20+'App.2-CO_NewCGAAP_DepExp_2012'!O21-J20), 0, +I20+'App.2-CO_NewCGAAP_DepExp_2012'!O21-J20) -> 0
A21: 1815 | B21: Transformer Station Equipment >50 kV | E21: 0 | F21: =IF(D21=0,+'App.2-CO_NewCGAAP_DepExp_2012'!O22,+'App.2-CO_NewCGAAP_DepExp_2012'!O22+((C21*0.5)/D21)) -> 0 | H21: 0 | I21: 0 | K21: =IF(ISERROR(+I21+'App.2-CO_NewCGAAP_DepExp_2012'!O22-J21), 0, +I21+'App.2-CO_NewCGAAP_DepExp_2012'!O22-J21) -> 0
A22: 1820 | B22: Distribution Station Equipment <50 kV | E22: 0 | F22: =IF(D22=0,+'App.2-CO_NewCGAAP_DepExp_2012'!O23,+'App.2-CO_NewCGAAP_DepExp_2012'!O23+((C22*0.5)/D22)) -> 0 | H22: 0 | I22: 0 | K22: =IF(ISERROR(+I22+'App.2-CO_NewCGAAP_DepExp_2012'!O23-J22), 0, +I22+'App.2-CO_NewCGAAP_DepExp_2012'!O23-J22) -> 0
A23: 1825 | B23: Storage Battery Equipment | E23: 0 | F23: =IF(D23=0,+'App.2-CO_NewCGAAP_DepExp_2012'!O24,+'App.2-CO_NewCGAAP_DepExp_2012'!O24+((C23*0.5)/D23)) -> 0 | H23: 0 | I23: 0 | K23: =IF(ISERROR(+I23+'App.2-CO_NewCGAAP_DepExp_2012'!O24-J23), 0, +I23+'App.2-CO_NewCGAAP_DepExp_2012'!O24-J23) -> 0
A24: 1830 | B24: Poles, Towers & Fixtures | E24: 0 | F24: =IF(D24=0,+'App.2-CO_NewCGAAP_DepExp_2012'!O25,+'App.2-CO_NewCGAAP_DepExp_2012'!O25+((C24*0.5)/D24)) -> 0 | H24: 0 | I24: 0 | K24: =IF(ISERROR(+I24+'App.2-CO_NewCGAAP_DepExp_2012'!O25-J24), 0, +I24+'App.2-CO_NewCGAAP_DepExp_2012'!O25-J24) -> 0
A25: 1835 | B25: Overhead Conductors & Devices | E25: 0 | F25: =IF(D25=0,+'App.2-CO_NewCGAAP_DepExp_2012'!O26,+'App.2-CO_NewCGAAP_DepExp_2012'!O26+((C25*0.5)/D25)) -> 0 | H25: 0 | I25: 0 | K25: =IF(ISERROR(+I25+'App.2-CO_NewCGAAP_DepExp_2012'!O26-J25), 0, +I25+'App.2-CO_NewCGAAP_DepExp_2012'!O26-J25) -> 0
A26: 1840 | B26: Underground Conduit | E26: 0 | F26: =IF(D26=0,+'App.2-CO_NewCGAAP_DepExp_2012'!O27,+'App.2-CO_NewCGAAP_DepExp_2012'!O27+((C26*0.5)/D26)) -> 0 | H26: 0 | I26: 0 | K26: =IF(ISERROR(+I26+'App.2-CO_NewCGAAP_DepExp_2012'!O27-J26), 0, +I26+'App.2-CO_NewCGAAP_DepExp_2012'!O27-J26) -> 0
A27: 1845 | B27: Underground Conductors & Devices | E27: 0 | F27: =IF(D27=0,+'App.2-CO_NewCGAAP_DepExp_2012'!O28,+'App.2-CO_NewCGAAP_DepExp_2012'!O28+((C27*0.5)/D27)) -> 0 | H27: 0 | I27: 0 | K27: =IF(ISERROR(+I27+'App.2-CO_NewCGAAP_DepExp_2012'!O28-J27), 0, +I27+'App.2-CO_NewCGAAP_DepExp_2012'!O28-J27) -> 0
A28: 1850 | B28: Line Transformers | E28: 0 | F28: =IF(D28=0,+'App.2-CO_NewCGAAP_DepExp_2012'!O29,+'App.2-CO_NewCGAAP_DepExp_2012'!O29+((C28*0.5)/D28)) -> 0 | H28: 0 | I28: 0 | K28: =IF(ISERROR(+I28+'App.2-CO_NewCGAAP_DepExp_2012'!O29-J28), 0, +I28+'App.2-CO_NewCGAAP_DepExp_2012'!O29-J28) -> 0
A29: 1855 | B29: Services (Overhead & Underground) | E29: 0 | F29: =IF(D29=0,+'App.2-CO_NewCGAAP_DepExp_2012'!O30,+'App.2-CO_NewCGAAP_DepExp_2012'!O30+((C29*0.5)/D29)) -> 0 | H29: 0 | I29: 0 | K29: =IF(ISERROR(+I29+'App.2-CO_NewCGAAP_DepExp_2012'!O30-J29), 0, +I29+'App.2-CO_NewCGAAP_DepExp_2012'!O30-J29) -> 0
A30: 1860 | B30: Meters | E30: 0 | F30: =IF(D30=0,+'App.2-CO_NewCGAAP_DepExp_2012'!O31,+'App.2-CO_NewCGAAP_DepExp_2012'!O31+((C30*0.5)/D30)) -> 0 | H30: 0 | I30: 0 | K30: =IF(ISERROR(+I30+'App.2-CO_NewCGAAP_DepExp_2012'!O31-J30), 0, +I30+'App.2-CO_NewCGAAP_DepExp_2012'!O31-J30) -> 0
A31: 1860 | B31: Meters (Smart Meters) | E31: 0 | F31: =IF(D31=0,+'App.2-CO_NewCGAAP_DepExp_2012'!O32,+'App.2-CO_NewCGAAP_DepExp_2012'!O32+((C31*0.5)/D31)) -> 0 | H31: 0 | I31: 0 | K31: =IF(ISERROR(+I31+'App.2-CO_NewCGAAP_DepExp_2012'!O32-J31), 0, +I31+'App.2-CO_NewCGAAP_DepExp_2012'!O32-J31) -> 0
A32: 1905 | B32: Land | E32: 0 | F32: =IF(D32=0,+'App.2-CO_NewCGAAP_DepExp_2012'!O33,+'App.2-CO_NewCGAAP_DepExp_2012'!O33+((C32*0.5)/D32)) -> 0 | H32: 0 | I32: 0 | K32: =IF(ISERROR(+I32+'App.2-CO_NewCGAAP_DepExp_2012'!O33-J32), 0, +I32+'App.2-CO_NewCGAAP_DepExp_2012'!O33-J32) -> 0
A33: 1908 | B33: Buildings & Fixtures | E33: 0 | F33: =IF(D33=0,+'App.2-CO_NewCGAAP_DepExp_2012'!O34,+'App.2-CO_NewCGAAP_DepExp_2012'!O34+((C33*0.5)/D33)) -> 0 | H33: 0 | I33: 0 | K33: =IF(ISERROR(+I33+'App.2-CO_NewCGAAP_DepExp_2012'!O34-J33), 0, +I33+'App.2-CO_NewCGAAP_DepExp_2012'!O34-J33) -> 0
A34: 1910 | B34: Leasehold Improvements | E34: 0 | F34: =IF(D34=0,+'App.2-CO_NewCGAAP_DepExp_2012'!O35,+'App.2-CO_NewCGAAP_DepExp_2012'!O35+((C34*0.5)/D34)) -> 0 | H34: 0 | I34: 0 | K34: =IF(ISERROR(+I34+'App.2-CO_NewCGAAP_DepExp_2012'!O35-J34), 0, +I34+'App.2-CO_NewCGAAP_DepExp_2012'!O35-J34) -> 0
A35: 1915 | B35: Office Furniture & Equipment (10 years) | E35: 0 | F35: =IF(D35=0,+'App.2-CO_NewCGAAP_DepExp_2012'!O36,+'App.2-CO_NewCGAAP_DepExp_2012'!O36+((C35*0.5)/D35)) -> 0 | H35: 0 | I35: 0 | K35: =IF(ISERROR(+I35+'App.2-CO_NewCGAAP_DepExp_2012'!O36-J35), 0, +I35+'App.2-CO_NewCGAAP_DepExp_2012'!O36-J35) -> 0
A36: 1915 | B36: Office Furniture & Equipment (5 years) | E36: 0 | F36: =IF(D36=0,+'App.2-CO_NewCGAAP_DepExp_2012'!O37,+'App.2-CO_NewCGAAP_DepExp_2012'!O37+((C36*0.5)/D36)) -> 0 | H36: 0 | I36: 0 | K36: =IF(ISERROR(+I36+'App.2-CO_NewCGAAP_DepExp_2012'!O37-J36), 0, +I36+'App.2-CO_NewCGAAP_DepExp_2012'!O37-J36) -> 0
A37: 1920 | B37: Computer Equipment - Hardware | E37: 0 | F37: =IF(D37=0,+'App.2-CO_NewCGAAP_DepExp_2012'!O38,+'App.2-CO_NewCGAAP_DepExp_2012'!O38+((C37*0.5)/D37)) -> 0 | H37: 0 | I37: 0 | K37: =IF(ISERROR(+I37+'App.2-CO_NewCGAAP_DepExp_2012'!O38-J37), 0, +I37+'App.2-CO_NewCGAAP_DepExp_2012'!O38-J37) -> 0
A38: 1920 | B38: Computer Equip.-Hardware(Post Mar. 22/04) | E38: 0 | F38: =IF(D38=0,+'App.2-CO_NewCGAAP_DepExp_2012'!O39,+'App.2-CO_NewCGAAP_DepExp_2012'!O39+((C38*0.5)/D38)) -> 0 | H38: 0 | I38: 0 | K38: =IF(ISERROR(+I38+'App.2-CO_NewCGAAP_DepExp_2012'!O39-J38), 0, +I38+'App.2-CO_NewCGAAP_DepExp_2012'!O39-J38) -> 0
A39: 1920 | B39: Computer Equip.-Hardware(Post Mar. 19/07) | E39: 0 | F39: =IF(D39=0,+'App.2-CO_NewCGAAP_DepExp_2012'!O40,+'App.2-CO_NewCGAAP_DepExp_2012'!O40+((C39*0.5)/D39)) -> 0 | H39: 0 | I39: 0 | K39: =IF(ISERROR(+I39+'App.2-CO_NewCGAAP_DepExp_2012'!O40-J39), 0, +I39+'App.2-CO_NewCGAAP_DepExp_2012'!O40-J39) -> 0
A40: 1930 | B40: Transportation Equipment | E40: 0 | F40: =IF(D40=0,+'App.2-CO_NewCGAAP_DepExp_2012'!O41,+'App.2-CO_NewCGAAP_DepExp_2012'!O41+((C40*0.5)/D40)) -> 0 | H40: 0 | I40: 0 | K40: =IF(ISERROR(+I40+'App.2-CO_NewCGAAP_DepExp_2012'!O41-J40), 0, +I40+'App.2-CO_NewCGAAP_DepExp_2012'!O41-J40) -> 0
A41: 1935 | B41: Stores Equipment | E41: 0 | F41: =IF(D41=0,+'App.2-CO_NewCGAAP_DepExp_2012'!O42,+'App.2-CO_NewCGAAP_DepExp_2012'!O42+((C41*0.5)/D41)) -> 0 | H41: 0 | I41: 0 | K41: =IF(ISERROR(+I41+'App.2-CO_NewCGAAP_DepExp_2012'!O42-J41), 0, +I41+'App.2-CO_NewCGAAP_DepExp_2012'!O42-J41) -> 0
A42: 1940 | B42: Tools, Shop & Garage Equipment | E42: 0 | F42: =IF(D42=0,+'App.2-CO_NewCGAAP_DepExp_2012'!O43,+'App.2-CO_NewCGAAP_DepExp_2012'!O43+((C42*0.5)/D42)) -> 0 | H42: 0 | I42: 0 | K42: =IF(ISERROR(+I42+'App.2-CO_NewCGAAP_DepExp_2012'!O43-J42), 0, +I42+'App.2-CO_NewCGAAP_DepExp_2012'!O43-J42) -> 0
A43: 1945 | B43: Measurement & Testing Equipment | E43: 0 | F43: =IF(D43=0,+'App.2-CO_NewCGAAP_DepExp_2012'!O44,+'App.2-CO_NewCGAAP_DepExp_2012'!O44+((C43*0.5)/D43)) -> 0 | H43: 0 | I43: 0 | K43: =IF(ISERROR(+I43+'App.2-CO_NewCGAAP_DepExp_2012'!O44-J43), 0, +I43+'App.2-CO_NewCGAAP_DepExp_2012'!O44-J43) -> 0
A44: 1950 | B44: Power Operated Equipment | E44: 0 | F44: =IF(D44=0,+'App.2-CO_NewCGAAP_DepExp_2012'!O45,+'App.2-CO_NewCGAAP_DepExp_2012'!O45+((C44*0.5)/D44)) -> 0 | H44: 0 | I44: 0 | K44: =IF(ISERROR(+I44+'App.2-CO_NewCGAAP_DepExp_2012'!O45-J44), 0, +I44+'App.2-CO_NewCGAAP_DepExp_2012'!O45-J44) -> 0
A45: 1955 | B45: Communications Equipment | E45: 0 | F45: =IF(D45=0,+'App.2-CO_NewCGAAP_DepExp_2012'!O46,+'App.2-CO_NewCGAAP_DepExp_2012'!O46+((C45*0.5)/D45)) -> 0 | H45: 0 | I45: 0 | K45: =IF(ISERROR(+I45+'App.2-CO_NewCGAAP_DepExp_2012'!O46-J45), 0, +I45+'App.2-CO_NewCGAAP_DepExp_2012'!O46-J45) -> 0
A46: 1955 | B46: Communication Equipment (Smart Meters) | E46: 0 | F46: =IF(D46=0,+'App.2-CO_NewCGAAP_DepExp_2012'!O47,+'App.2-CO_NewCGAAP_DepExp_2012'!O47+((C46*0.5)/D46)) -> 0 | H46: 0 | I46: 0 | K46: =IF(ISERROR(+I46+'App.2-CO_NewCGAAP_DepExp_2012'!O47-J46), 0, +I46+'App.2-CO_NewCGAAP_DepExp_2012'!O47-J46) -> 0
A47: 1960 | B47: Miscellaneous Equipment | E47: 0 | F47: =IF(D47=0,+'App.2-CO_NewCGAAP_DepExp_2012'!O48,+'App.2-CO_NewCGAAP_DepExp_2012'!O48+((C47*0.5)/D47)) -> 0 | H47: 0 | I47: 0 | K47: =IF(ISERROR(+I47+'App.2-CO_NewCGAAP_DepExp_2012'!O48-J47), 0, +I47+'App.2-CO_NewCGAAP_DepExp_2012'!O48-J47) -> 0
A48: 1970 | B48: Load Management Controls - Customer Premises | E48: 0 | F48: =IF(D48=0,+'App.2-CO_NewCGAAP_DepExp_2012'!O49,+'App.2-CO_NewCGAAP_DepExp_2012'!O49+((C48*0.5)/D48)) -> 0 | H48: 0 | I48: 0 | K48: =IF(ISERROR(+I48+'App.2-CO_NewCGAAP_DepExp_2012'!O49-J48), 0, +I48+'App.2-CO_NewCGAAP_DepExp_2012'!O49-J48) -> 0
A49: 1975 | B49: Load Management Controls Utility Premises | E49: 0 | F49: =IF(D49=0,+'App.2-CO_NewCGAAP_DepExp_2012'!O50,+'App.2-CO_NewCGAAP_DepExp_2012'!O50+((C49*0.5)/D49)) -> 0 | H49: 0 | I49: 0 | K49: =IF(ISERROR(+I49+'App.2-CO_NewCGAAP_DepExp_2012'!O50-J49), 0, +I49+'App.2-CO_NewCGAAP_DepExp_2012'!O50-J49) -> 0
A50: 1980 | B50: System Supervisor Equipment | E50: 0 | F50: =IF(D50=0,+'App.2-CO_NewCGAAP_DepExp_2012'!O51,+'App.2-CO_NewCGAAP_DepExp_2012'!O51+((C50*0.5)/D50)) -> 0 | H50: 0 | I50: 0 | K50: =IF(ISERROR(+I50+'App.2-CO_NewCGAAP_DepExp_2012'!O51-J50), 0, +I50+'App.2-CO_NewCGAAP_DepExp_2012'!O51-J50) -> 0
A51: 1985 | B51: Miscellaneous Fixed Assets | E51: 0 | F51: =IF(D51=0,+'App.2-CO_NewCGAAP_DepExp_2012'!O52,+'App.2-CO_NewCGAAP_DepExp_2012'!O52+((C51*0.5)/D51)) -> 0 | H51: 0 | I51: 0 | K51: =IF(ISERROR(+I51+'App.2-CO_NewCGAAP_DepExp_2012'!O52-J51), 0, +I51+'App.2-CO_NewCGAAP_DepExp_2012'!O52-J51) -> 0
A52: 1990 | B52: Other Tangible Property | E52: 0 | F52: =IF(D52=0,+'App.2-CO_NewCGAAP_DepExp_2012'!O53,+'App.2-CO_NewCGAAP_DepExp_2012'!O53+((C52*0.5)/D52)) -> 0 | H52: 0 | I52: 0 | K52: =IF(ISERROR(+I52+'App.2-CO_NewCGAAP_DepExp_2012'!O53-J52), 0, +I52+'App.2-CO_NewCGAAP_DepExp_2012'!O53-J52) -> 0
A53: 1995 | B53: Contributions & Grants | E53: 0 | F53: =IF(D53=0,+'App.2-CO_NewCGAAP_DepExp_2012'!O54,+'App.2-CO_NewCGAAP_DepExp_2012'!O54+((C53*0.5)/D53)) -> 0 | H53: 0 | I53: 0 | K53: =IF(ISERROR(+I53+'App.2-CO_NewCGAAP_DepExp_2012'!O54-J53), 0, +I53+'App.2-CO_NewCGAAP_DepExp_2012'!O54-J53) -> 0
A54: etc. | E54: 0 | F54: =IF(D54=0,+'App.2-CO_NewCGAAP_DepExp_2012'!O55,+'App.2-CO_NewCGAAP_DepExp_2012'!O55+((C54*0.5)/D54)) -> 0 | H54: 0 | I54: 0 | K54: =IF(ISERROR(+I54+'App.2-CO_NewCGAAP_DepExp_2012'!O55-J54), 0, +I54+'App.2-CO_NewCGAAP_DepExp_2012'!O55-J54) -> 0
E55: 0 | F55: =IF(D55=0,+'App.2-CO_NewCGAAP_DepExp_2012'!O56,+'App.2-CO_NewCGAAP_DepExp_2012'!O56+((C55*0.5)/D55)) -> 0 | H55: 0 | I55: 0 | K55: =IF(ISERROR(+I55+'App.2-CO_NewCGAAP_DepExp_2012'!O56-J55), 0, +I55+'App.2-CO_NewCGAAP_DepExp_2012'!O56-J55) -> 0
B56: Total | C56: =SUM(C16:C55) -> 0 | F56: =SUM(F16:F55) -> 0 | G56: 0 | H56: 0 | I56: 0 | J56: 0 | K56: 0
A58: Notes:
A59: 1 | B59: Board policy of the "half-year" rule - the applicant must ensure that additions in the year attract a half-year depreciation expense in the first year. Deviations from this standard practice must be supported in the application.
A60: 2 | B60: The applicant must provide an explanation of material variances in evidence.
A61: 3 | B61: This column refers to the calculated full year depreciation but excludes the depreciation expense on assets fully depreciated during the year. This column is used for the purpose of calculating depreciation expense in the following year on the next worksheet.
A63: General: | B63: Applicants must provide a breakdown of depreciation and amortization expense in the above format for all relevant accounts. Asset Retirement Obligations (AROs), depreciation and accretion expense should be disclosed separately consistent with the Notes of historical Audited Financial Statements.

Sheet App.2-CQ NewCGAAP_DepExp_2014 (hidden)
G1: File Number: | H1: =EBNUMBER -> EB-2013-0134
G2: Exhibit:
G3: Tab:
G4: Schedule:
G5: Page:
G7: Date:
A9: Appendix 2-CQ
A10: Depreciation and Amortization Expense
A11: Assumes the applicant made capitalization and depreciation expense accounting policy changes under CGAAP effective January 1, 2012
B12: 2014 | C12: Revised CGAAP or ASPE - CGAAP or ASPE with the changes to the policies
A14: Account | B14: Description | C14: Additions | D14: Years (new additions only) | E14: Depreciation Rate on New Additions | F14: 2014 Depreciation Expense 1 | G14: 2014 Depreciation Expense per Appendix 2-B Fixed Assets, Column K (l) | H14: Variance 2
C15: (d) | D15: (f) | E15: (g) = 1 / (f) | F15: (h)=2013 Full Year Depreciation + ((d)*0.5)/(f) | H15: (m) = (h) - (l)
A16: 1611 | B16: Computer Software (Formally known as Account 1925) | E16: =IF(D16=0,0,1/D16) -> 0 | F16: =IF(D16=0,'App.2-CP_NewCGAAP_DepExp_2013'!K16,+'App.2-CP_NewCGAAP_DepExp_2013'!K16+((C16*0.5)/D16)) -> 0 | H16: =IF(ISERROR(+F16-G16), 0, +F16-G16) -> 0
A17: 1612 | B17: Land Rights (Formally known as Account 1906) | E17: 0 | F17: =IF(D17=0,'App.2-CP_NewCGAAP_DepExp_2013'!K17,+'App.2-CP_NewCGAAP_DepExp_2013'!K17+((C17*0.5)/D17)) -> 0 | H17: 0
A18: 1805 | B18: Land | E18: 0 | F18: =IF(D18=0,'App.2-CP_NewCGAAP_DepExp_2013'!K18,+'App.2-CP_NewCGAAP_DepExp_2013'!K18+((C18*0.5)/D18)) -> 0 | H18: 0
A19: 1808 | B19: Buildings | E19: 0 | F19: =IF(D19=0,'App.2-CP_NewCGAAP_DepExp_2013'!K19,+'App.2-CP_NewCGAAP_DepExp_2013'!K19+((C19*0.5)/D19)) -> 0 | H19: 0
A20: 1810 | B20: Leasehold Improvements | E20: 0 | F20: =IF(D20=0,'App.2-CP_NewCGAAP_DepExp_2013'!K20,+'App.2-CP_NewCGAAP_DepExp_2013'!K20+((C20*0.5)/D20)) -> 0 | H20: 0
A21: 1815 | B21: Transformer Station Equipment >50 kV | E21: 0 | F21: =IF(D21=0,'App.2-CP_NewCGAAP_DepExp_2013'!K21,+'App.2-CP_NewCGAAP_DepExp_2013'!K21+((C21*0.5)/D21)) -> 0 | H21: 0
A22: 1820 | B22: Distribution Station Equipment <50 kV | E22: 0 | F22: =IF(D22=0,'App.2-CP_NewCGAAP_DepExp_2013'!K22,+'App.2-CP_NewCGAAP_DepExp_2013'!K22+((C22*0.5)/D22)) -> 0 | H22: 0
A23: 1825 | B23: Storage Battery Equipment | E23: 0 | F23: =IF(D23=0,'App.2-CP_NewCGAAP_DepExp_2013'!K23,+'App.2-CP_NewCGAAP_DepExp_2013'!K23+((C23*0.5)/D23)) -> 0 | H23: 0
A24: 1830 | B24: Poles, Towers & Fixtures | E24: 0 | F24: =IF(D24=0,'App.2-CP_NewCGAAP_DepExp_2013'!K24,+'App.2-CP_NewCGAAP_DepExp_2013'!K24+((C24*0.5)/D24)) -> 0 | H24: 0
A25: 1835 | B25: Overhead Conductors & Devices | E25: 0 | F25: =IF(D25=0,'App.2-CP_NewCGAAP_DepExp_2013'!K25,+'App.2-CP_NewCGAAP_DepExp_2013'!K25+((C25*0.5)/D25)) -> 0 | H25: 0
A26: 1840 | B26: Underground Conduit | E26: 0 | F26: =IF(D26=0,'App.2-CP_NewCGAAP_DepExp_2013'!K26,+'App.2-CP_NewCGAAP_DepExp_2013'!K26+((C26*0.5)/D26)) -> 0 | H26: 0
A27: 1845 | B27: Underground Conductors & Devices | E27: 0 | F27: =IF(D27=0,'App.2-CP_NewCGAAP_DepExp_2013'!K27,+'App.2-CP_NewCGAAP_DepExp_2013'!K27+((C27*0.5)/D27)) -> 0 | H27: 0
A28: 1850 | B28: Line Transformers | E28: 0 | F28: =IF(D28=0,'App.2-CP_NewCGAAP_DepExp_2013'!K28,+'App.2-CP_NewCGAAP_DepExp_2013'!K28+((C28*0.5)/D28)) -> 0 | H28: 0
A29: 1855 | B29: Services (Overhead & Underground) | E29: 0 | F29: =IF(D29=0,'App.2-CP_NewCGAAP_DepExp_2013'!K29,+'App.2-CP_NewCGAAP_DepExp_2013'!K29+((C29*0.5)/D29)) -> 0 | H29: 0
A30: 1860 | B30: Meters | E30: 0 | F30: =IF(D30=0,'App.2-CP_NewCGAAP_DepExp_2013'!K30,+'App.2-CP_NewCGAAP_DepExp_2013'!K30+((C30*0.5)/D30)) -> 0 | H30: 0
A31: 1860 | B31: Meters (Smart Meters) | E31: 0 | F31: =IF(D31=0,'App.2-CP_NewCGAAP_DepExp_2013'!K31,+'App.2-CP_NewCGAAP_DepExp_2013'!K31+((C31*0.5)/D31)) -> 0 | H31: 0
A32: 1905 | B32: Land | E32: 0 | F32: =IF(D32=0,'App.2-CP_NewCGAAP_DepExp_2013'!K32,+'App.2-CP_NewCGAAP_DepExp_2013'!K32+((C32*0.5)/D32)) -> 0 | H32: 0
A33: 1908 | B33: Buildings & Fixtures | E33: 0 | F33: =IF(D33=0,'App.2-CP_NewCGAAP_DepExp_2013'!K33,+'App.2-CP_NewCGAAP_DepExp_2013'!K33+((C33*0.5)/D33)) -> 0 | H33: 0
A34: 1910 | B34: Leasehold Improvements | E34: 0 | F34: =IF(D34=0,'App.2-CP_NewCGAAP_DepExp_2013'!K34,+'App.2-CP_NewCGAAP_DepExp_2013'!K34+((C34*0.5)/D34)) -> 0 | H34: 0
A35: 1915 | B35: Office Furniture & Equipment (10 years) | E35: 0 | F35: =IF(D35=0,'App.2-CP_NewCGAAP_DepExp_2013'!K35,+'App.2-CP_NewCGAAP_DepExp_2013'!K35+((C35*0.5)/D35)) -> 0 | H35: 0
A36: 1915 | B36: Office Furniture & Equipment (5 years) | E36: 0 | F36: =IF(D36=0,'App.2-CP_NewCGAAP_DepExp_2013'!K36,+'App.2-CP_NewCGAAP_DepExp_2013'!K36+((C36*0.5)/D36)) -> 0 | H36: 0
A37: 1920 | B37: Computer Equipment - Hardware | E37: 0 | F37: =IF(D37=0,'App.2-CP_NewCGAAP_DepExp_2013'!K37,+'App.2-CP_NewCGAAP_DepExp_2013'!K37+((C37*0.5)/D37)) -> 0 | H37: 0
A38: 1920 | B38: Computer Equip.-Hardware(Post Mar. 22/04) | E38: 0 | F38: =IF(D38=0,'App.2-CP_NewCGAAP_DepExp_2013'!K38,+'App.2-CP_NewCGAAP_DepExp_2013'!K38+((C38*0.5)/D38)) -> 0 | H38: 0
A39: 1920 | B39: Computer Equip.-Hardware(Post Mar. 19/07) | E39: 0 | F39: =IF(D39=0,'App.2-CP_NewCGAAP_DepExp_2013'!K39,+'App.2-CP_NewCGAAP_DepExp_2013'!K39+((C39*0.5)/D39)) -> 0 | H39: 0
A40: 1930 | B40: Transportation Equipment | E40: 0 | F40: =IF(D40=0,'App.2-CP_NewCGAAP_DepExp_2013'!K40,+'App.2-CP_NewCGAAP_DepExp_2013'!K40+((C40*0.5)/D40)) -> 0 | H40: 0
A41: 1935 | B41: Stores Equipment | E41: 0 | F41: =IF(D41=0,'App.2-CP_NewCGAAP_DepExp_2013'!K41,+'App.2-CP_NewCGAAP_DepExp_2013'!K41+((C41*0.5)/D41)) -> 0 | H41: 0
A42: 1940 | B42: Tools, Shop & Garage Equipment | E42: 0 | F42: =IF(D42=0,'App.2-CP_NewCGAAP_DepExp_2013'!K42,+'App.2-CP_NewCGAAP_DepExp_2013'!K42+((C42*0.5)/D42)) -> 0 | H42: 0
A43: 1945 | B43: Measurement & Testing Equipment | E43: 0 | F43: =IF(D43=0,'App.2-CP_NewCGAAP_DepExp_2013'!K43,+'App.2-CP_NewCGAAP_DepExp_2013'!K43+((C43*0.5)/D43)) -> 0 | H43: 0
A44: 1950 | B44: Power Operated Equipment | E44: 0 | F44: =IF(D44=0,'App.2-CP_NewCGAAP_DepExp_2013'!K44,+'App.2-CP_NewCGAAP_DepExp_2013'!K44+((C44*0.5)/D44)) -> 0 | H44: 0
A45: 1955 | B45: Communications Equipment | E45: 0 | F45: =IF(D45=0,'App.2-CP_NewCGAAP_DepExp_2013'!K45,+'App.2-CP_NewCGAAP_DepExp_2013'!K45+((C45*0.5)/D45)) -> 0 | H45: 0
A46: 1955 | B46: Communication Equipment (Smart Meters) | E46: 0 | F46: =IF(D46=0,'App.2-CP_NewCGAAP_DepExp_2013'!K46,+'App.2-CP_NewCGAAP_DepExp_2013'!K46+((C46*0.5)/D46)) -> 0 | H46: 0
A47: 1960 | B47: Miscellaneous Equipment | E47: 0 | F47: =IF(D47=0,'App.2-CP_NewCGAAP_DepExp_2013'!K47,+'App.2-CP_NewCGAAP_DepExp_2013'!K47+((C47*0.5)/D47)) -> 0 | H47: 0
A48: 1970 | B48: Load Management Controls - Customer Premises | E48: 0 | F48: =IF(D48=0,'App.2-CP_NewCGAAP_DepExp_2013'!K48,+'App.2-CP_NewCGAAP_DepExp_2013'!K48+((C48*0.5)/D48)) -> 0 | H48: 0
A49: 1975 | B49: Load Management Controls Utility Premises | E49: 0 | F49: =IF(D49=0,'App.2-CP_NewCGAAP_DepExp_2013'!K49,+'App.2-CP_NewCGAAP_DepExp_2013'!K49+((C49*0.5)/D49)) -> 0 | H49: 0
A50: 1980 | B50: System Supervisor Equipment | E50: 0 | F50: =IF(D50=0,'App.2-CP_NewCGAAP_DepExp_2013'!K50,+'App.2-CP_NewCGAAP_DepExp_2013'!K50+((C50*0.5)/D50)) -> 0 | H50: 0
A51: 1985 | B51: Miscellaneous Fixed Assets | E51: 0 | F51: =IF(D51=0,'App.2-CP_NewCGAAP_DepExp_2013'!K51,+'App.2-CP_NewCGAAP_DepExp_2013'!K51+((C51*0.5)/D51)) -> 0 | H51: 0
A52: 1990 | B52: Other Tangible Property | E52: 0 | F52: =IF(D52=0,'App.2-CP_NewCGAAP_DepExp_2013'!K52,+'App.2-CP_NewCGAAP_DepExp_2013'!K52+((C52*0.5)/D52)) -> 0 | H52: 0
A53: 1995 | B53: Contributions & Grants | E53: 0 | F53: =IF(D53=0,'App.2-CP_NewCGAAP_DepExp_2013'!K53,+'App.2-CP_NewCGAAP_DepExp_2013'!K53+((C53*0.5)/D53)) -> 0 | H53: 0
A54: etc. | E54: 0 | F54: =IF(D54=0,'App.2-CP_NewCGAAP_DepExp_2013'!K54,+'App.2-CP_NewCGAAP_DepExp_2013'!K54+((C54*0.5)/D54)) -> 0 | H54: 0
E55: 0 | F55: =IF(D55=0,'App.2-CP_NewCGAAP_DepExp_2013'!K55,+'App.2-CP_NewCGAAP_DepExp_2013'!K55+((C55*0.5)/D55)) -> 0 | H55: 0
B56: Total | C56: =SUM(C16:C55) -> 0 | F56: =SUM(F16:F55) -> 0 | G56: =SUM(G16:G55) -> 0 | H56: =SUM(H16:H55) -> 0
B57: Total Depreciation expense to be included in the test year revenue requirement | F57: =+F56 -> 0
A58: Notes:
A59: 1 | B59: Board policy of the "half-year" rule - the applicant must ensure that additions in the year attract a half-year depreciation expense in the first year. Deviations from this standard practice must be supported in the application.
A60: 2 | B60: The applicant must provide an explanation of material variances in evidence.
A62: General: | B62: Applicants must provide a breakdown of depreciation and amortization expense in the above format for all relevant accounts. Asset Retirement Obligations (AROs), depreciation and accretion expense should be disclosed separately consistent with the Notes of historical Audited Financial Statements.

Sheet App.2-CR_OldCGAAP_DepExp_2012
K1: File Number: | L1: =EBNUMBER -> EB-2013-0134
K2: Exhibit: | L2: 4
K3: Tab: | L3: 3
K4: Schedule: | L4: 2
K5: Page: | L5: 4
K7: Date: | L7: 2013-11-15
A9: Appendix 2-CR
A10: Depreciation and Amortization Expense
A11: Assumes the applicant made capitalization and depreciation expense accounting policy changes under CGAAP effective January 1, 2013
C12: Year | D12: 2012 | E12: Former CGAAP - CGAAP without the changes to the policies
A14: Account | B14: Description | C14: Opening Regulatory Gross PP&E as at Jan 1, 2012 | D14: Less Fully Depreciated | E14: Net for Depreciation | F14: Additions | G14: Total for Depreciation | H14: Years | I14: Depreciation Rate | J14: 2012 Depreciation Expense | K14: 2012 Depreciation Expense per Appendix 2-B Fixed Assets, Column K (l) | L14: Variance 2
C15: (a) | D15: (b) | E15: (c) | F15: (d) | G15: (e) = (c) + ½ x (d) 1 | H15: (f) | I15: (g) = 1 / (f) | J15: (h) = (e) / (f) | L15: (m) = (h) - (l)
A16: 1820 | B16: Distribution Station Equipment <50 kV | C16: 466497 | E16: =C16-D16 -> 466497 | F16: 0 | G16: =E16+0.5*F16 -> 466497 | H16: 30 | I16: =IF(H16=0,"",1/H16) -> 0.03333333333 | J16: =IF(H16=0,0,G16/H16) -> 15549.9 | K16: 17295 | L16: =IF(ISERROR(+J16-K16), "", +J16-K16) -> -1745.1
A17: 1830 | B17: Poles, Towers & Fixtures | C17: 19408683 | E17: 19408683 | F17: 1218769 | G17: 20018067.5 | H17: 25 | I17: 0.04 | J17: 800722.7 | K17: 922254 | L17: -121531.3
A18: 1835 | B18: Overhead Conductors & Devices | C18: 11757488 | E18: 11757488 | F18: 1799487 | G18: 12657231.5 | H18: 25 | I18: 0.04 | J18: 506289.26 | K18: 555459 | L18: -49169.74
A19: 1840 | B19: Underground Conduit | C19: 633781 | E19: 633781 | F19: 732415 | G19: 999988.5 | H19: 25 | I19: 0.04 | J19: 39999.54 | K19: 28384 | L19: 11615.54
A20: 1845 | B20: Underground Conductors & Devices | C20: 7292189 | E20: 7292189 | F20: 410064 | G20: 7497221 | H20: 25 | I20: 0.04 | J20: 299888.84 | K20: 313961 | L20: -14072.16
A21: 1850 | B21: Line Transformers | C21: 11614068 | E21: 11614068 | F21: 773837 | G21: 12000986.5 | H21: 25 | I21: 0.04 | J21: 480039.46 | K21: 492175 | L21: -12135.54
A22: 1855 | B22: Services (Overhead & Underground) | C22: 2551801 | E22: 2551801 | F22: 131291 | G22: 2617446.5 | H22: 25 | I22: 0.04 | J22: 104697.86 | K22: 105464 | L22: -766.14
A23: 1860 | B23: Meters | C23: 3131706 | E23: 3131706 | F23: =-55040-1651-40893 -> -97584 | G23: 3082914 | H23: 25 | I23: 0.04 | J23: 123316.56 | K23: 117787 | L23: 5529.56
A24: 1860 | B24: Meters (Smart Meters) | C24: 0 | E24: 0 | F24: 3724761 | G24: 1862380.5 | H24: 15 | I24: 0.06666666667 | J24: 124158.7 | K24: 757661 | L24: -633502.3
A25: 1905 | B25: Land | C25: 131279 | E25: 131279 | F25: -4140 | G25: 129209 | J25: 0 | K25: 0 | L25: 0
A26: 1612 | B26: Land Rights (Formally known as Account 1906) | C26: 695389 | E26: =C26-D26 -> 695389 | F26: 0 | G26: =E26+0.5*F26 -> 695389 | H26: 50 | I26: =IF(H26=0,"",1/H26) -> 0.02 | J26: =IF(H26=0,0,G26/H26) -> 13907.78 | K26: 20777 | L26: =IF(ISERROR(+J26-K26), "", +J26-K26) -> -6869.22
A27: 1908 | B27: Buildings & Fixtures | C27: 2168016 | E27: 2168016 | F27: 22502 | G27: 2179267 | H27: 50 | I27: 0.02 | J27: 43585.34 | K27: 51520 | L27: -7934.66
A28: 1915 | B28: Office Furniture & Equipment (10 years) | C28: 363142 | D28: =136065-6885 -> 129180 | E28: 233962 | F28: =4711-2217 -> 2494 | G28: 235209 | H28: 10 | I28: 0.1 | J28: 23520.9 | K28: 29830 | L28: -6309.1
A29: 1920 | B29: Computer Equipment - Hardware | C29: 517537 | D29: =255206-6365 -> 248841 | E29: 268696 | F29: =118989-51431 -> 67558 | G29: 302475 | H29: 5 | I29: 0.2 | J29: 60495 | K29: 79968 | L29: -19473
A30: 1611 | B30: Computer Software (Formally known as Account 1925) | C30: 2584483 | D30: =1094488-32481 -> 1062007 | E30: =C30-D30 -> 1522476 | F30: =231088-50502 -> 180586 | G30: =E30+0.5*F30 -> 1612769 | H30: 5 | I30: =IF(H30=0,"",1/H30) -> 0.2 | J30: =IF(H30=0,0,G30/H30) -> 322553.8 | K30: 360638 | L30: =IF(ISERROR(+J30-K30), "", +J30-K30) -> -38084.2
A31: 1930 | B31: Transportation Equipment | C31: 2087570 | D31: =597615-4633 -> 592982 | E31: 1494588 | F31: =186784-66708 -> 120076 | G31: 1554626 | H31: 8 | I31: 0.125 | J31: 194328.25 | K31: 188244 | L31: 6084.25
A32: 1940 | B32: Tools, Shop & Garage Equipment | C32: 707839 | D32: =227949-3804 -> 224145 | E32: 483694 | F32: 87199 | G32: 527293.5 | H32: 10 | I32: 0.1 | J32: 52729.35 | K32: 56592 | L32: -3862.65
A33: 1955 | B33: Communications Equipment | C33: 68074 | D33: 48770 | E33: 19304 | F33: 0 | G33: 19304 | H33: 5 | I33: 0.2 | J33: 3860.8 | K33: 3861 | L33: -0.2
A34: 1995 | B34: Contributions & Grants | C34: -3953284 | E34: -3953284 | F34: -190388 | G34: -4048478 | H34: 25 | I34: 0.04 | J34: -161939.12 | K34: -161263 | L34: -676.12
A35: etc.
B36: Total | C36: =SUM(C16:C35) -> 62226258 | D36: =SUM(D16:D35) -> 2305925 | E36: =SUM(E16:E35) -> 59920333 | F36: =SUM(F16:F35) -> 8978927 | G36: =SUM(G16:G35) -> 64409796.5 | J36: =SUM(J16:J35) -> 3047704.92 | K36: =SUM(K16:K35) -> 3940607 | L36: =SUM(L16:L35) -> -892902.08
A38: Notes:
A39: 1 | B39: Board policy of the "half-year" rule - the applicant must ensure that additions in the year attract a half-year depreciation expense in the first year. Deviations from this standard practice must be supported in the application.
A40: 2 | B40: The applicant must provide an explanation of material variances in evidence.
A42: General: | B42: Applicants must provide a breakdown of depreciation and amortization expense in the above format for all relevant accounts. Asset Retirement Obligations (AROs), depreciation and accretion expense should be disclosed separately consistent with the Notes of historical Audited Financial Statements.

Sheet App.2-CS_OldCGAAP_DepExp_2013
K1: File Number: | L1: =EBNUMBER -> EB-2013-0134
K2: Exhibit: | L2: 4
K3: Tab: | L3: 3
K4: Schedule: | L4: 2
K5: Page: | L5: 5
K7: Date: | L7: 2013-11-15
A9: Appendix 2-CS
A10: Depreciation and Amortization Expense
A11: Assumes the applicant made capitalization and depreciation expense accounting policy changes under CGAAP effective January 1, 2013
C12: Year | D12: 2013 | E12: Former CGAAP - CGAAP without the changes to the policies
A14: Account | B14: Description | C14: Opening Regulatory Gross PP&E as at Jan 1, 2013 | D14: Less Fully Depreciated | E14: Net for Depreciation | F14: Additions | G14: Total for Depreciation | H14: Years | I14: Depreciation Rate | J14: 2013 Depreciation Expense | K14: 2013 Depreciation Expense per Appendix 2-B Fixed Assets, Column K (l) | L14: Variance 2
C15: (a) | D15: (b) | E15: (c) | F15: (d) | G15: (e) = (c) + ½ x (d) 1 | H15: (f) | I15: (g) = 1 / (f) | J15: (h) = (e) / (f) | L15: (m) = (h) - (l)
A16: 1609 | B16: Distribution Station Equipment <50 kV - Capital Contributions Paid | C16: 0 | E16: =C16-D16 -> 0 | F16: 29835 | G16: =E16+0.5*F16 -> 14917.5 | H16: 30 | I16: =IF(H16=0,0,1/H16) -> 0.03333333333 | J16: =IF(H16=0,0,G16/H16) -> 497.25 | K16: 497 | L16: =IF(ISERROR(+J16-K16), 0, +J16-K16) -> 0.25
A17: 1820 | B17: Distribution Station Equipment <50 kV | C17: 466497 | E17: 466497 | F17: 0 | G17: 466497 | H17: 30 | I17: 0.03333333333 | J17: 15549.9 | K17: =17763-K16 -> 17266 | L17: -1716.1
A18: 1830 | B18: Poles, Towers & Fixtures | C18: 20627452 | E18: 20627452 | F18: 1907831 | G18: 21581367.5 | H18: 25 | I18: 0.04 | J18: 863254.7 | K18: 995416 | L18: -132161.3
A19: 1835 | B19: Overhead Conductors & Devices | C19: 13556975 | E19: 13556975 | F19: 1249008 | G19: 14181479 | H19: 25 | I19: 0.04 | J19: 567259.16 | K19: 612066 | L19: -44806.84
A20: 1840 | B20: Underground Conduit | C20: 1366196 | E20: 1366196 | F20: 456855 | G20: 1594623.5 | H20: 25 | I20: 0.04 | J20: 63784.94 | K20: 65486 | L20: -1701.06
A21: 1845 | B21: Underground Conductors & Devices | C21: 7702253 | E21: 7702253 | F21: 749544 | G21: 8077025 | H21: 25 | I21: 0.04 | J21: 323081 | K21: 336723 | L21: -13642
A22: 1850 | B22: Line Transformers | C22: 12387905 | E22: 12387905 | F22: 859557 | G22: 12817683.5 | H22: 25 | I22: 0.04 | J22: 512707.34 | K22: 520610 | L22: -7902.66
A23: 1855 | B23: Services (Overhead & Underground) | C23: 2683092 | E23: 2683092 | F23: 240643 | G23: 2803413.5 | H23: 25 | I23: 0.04 | J23: 112136.54 | K23: 112750 | L23: -613.46
A24: 1860 | B24: Meters | C24: =6758883-C25 -> 3034122 | E24: 3034122 | F24: =148450-F25 -> 30060 | G24: 3049152 | H24: 25 | I24: 0.04 | J24: 121966.08 | K24: =369870-K25 -> 126744 | L24: -4777.92
A25: 1860 | B25: Meters (Smart Meters) | C25: 3724761 | E25: 3724761 | F25: 118390 | G25: 3783956 | H25: 15 | I25: 0.06666666667 | J25: 252263.7333 | K25: 243126 | L25: 9137.733333
A26: 1905 | B26: Land | C26: 127139 | E26: 127139 | F26: 0 | G26: 127139 | I26: 0 | J26: 0 | K26: 0 | L26: 0
A27: 1612 | B27: Land Rights (Formally known as Account 1906) | C27: 695389 | E27: =C27-D27 -> 695389 | F27: 0 | G27: =E27+0.5*F27 -> 695389 | H27: 50 | I27: =IF(H27=0,0,1/H27) -> 0.02 | J27: =IF(H27=0,0,G27/H27) -> 13907.78 | K27: 20720 | L27: =IF(ISERROR(+J27-K27), 0, +J27-K27) -> -6812.22
A28: 1908 | B28: Buildings & Fixtures | C28: 2190518 | E28: 2190518 | F28: 0 | G28: 2190518 | H28: 50 | I28: 0.02 | J28: 43810.36 | K28: 51715 | L28: -7904.64
A29: 1915 | B29: Office Furniture & Equipment (10 years) | C29: 365636 | D29: =136065 -> 136065 | E29: 229571 | F29: 5000 | G29: 232071 | H29: 10 | I29: 0.1 | J29: 23207.1 | K29: 23021 | L29: 186.1
A30: 1920 | B30: Computer Equipment - Hardware | C30: 585095 | D30: =255206 -> 255206 | E30: 329889 | F30: 57125 | G30: 358451.5 | H30: 5 | I30: 0.2 | J30: 71690.3 | K30: 67921 | L30: 3769.3
A31: 1611 | B31: Computer Software (Formally known as Account 1925) | C31: 2765069 | D31: =1094488 -> 1094488 | E31: =C31-D31 -> 1670581 | F31: 196000 | G31: =E31+0.5*F31 -> 1768581 | H31: 5 | I31: =IF(H31=0,0,1/H31) -> 0.2 | J31: =IF(H31=0,0,G31/H31) -> 353716.2 | K31: 324494 | L31: =IF(ISERROR(+J31-K31), 0, +J31-K31) -> 29222.2
A32: 1930 | B32: Transportation Equipment | C32: 2207646 | D32: =597615 -> 597615 | E32: 1610031 | F32: 247281 | G32: 1733671.5 | H32: 8 | I32: 0.125 | J32: 216708.9375 | K32: 206206 | L32: 10502.9375
A33: 1940 | B33: Tools, Shop & Garage Equipment | C33: 795038 | D33: =227949 -> 227949 | E33: 567089 | F33: 35685 | G33: 584931.5 | H33: 10 | I33: 0.1 | J33: 58493.15 | K33: 59581 | L33: -1087.85
A34: 1955 | B34: Communications Equipment | C34: 68074 | D34: 48770 | E34: 19304 | F34: 0 | G34: 19304 | H34: 5 | I34: 0.2 | J34: 3860.8 | K34: 3860 | L34: 0.8
A35: 1995 | B35: Contributions & Grants | C35: -4143672 | E35: -4143672 | F35: -681804 | G35: -4484574 | H35: 25 | I35: 0.04 | J35: -179382.96 | K35: -171665 | L35: -7717.96
A36: etc.
B37: Total | C37: =SUM(C16:C36) -> 71205185 | D37: =SUM(D16:D36) -> 2360093 | E37: =SUM(E16:E36) -> 68845092 | F37: =SUM(F16:F36) -> 5501010 | G37: =SUM(G16:G36) -> 71595597 | J37: =SUM(J16:J36) -> 3438512.311 | K37: =SUM(K16:K36) -> 3616537 | L37: =SUM(L16:L36) -> -178024.6892
A39: Notes:
A40: 1 | B40: Board policy of the "half-year" rule - the applicant must ensure that additions in the year attract a half-year depreciation expense in the first year. Deviations from this standard practice must be supported in the application.
A41: 2 | B41: The applicant must provide an explanation of material variances in evidence.
A43: General: | B43: Applicants must provide a breakdown of depreciation and amortization expense in the above format for all relevant accounts. Asset Retirement Obligations (AROs), depreciation and accretion expense should be disclosed separately consistent with the Notes of historical Audited Financial Statements.

Sheet App.2-CT_NewCGAAP_DepExp_2013
N1: File Number: | O1: =EBNUMBER -> EB-2013-0134
N2: Exhibit: | O2: 4
N3: Tab: | O3: 3
N4: Schedule: | O4: 2
N5: Page: | O5: 6
N7: Date: | O7: 2013-11-15
A9: Appendix 2-CT
A10: Depreciation and Amortization Expense
A11: Assumes the applicant made capitalization and depreciation expense accounting policy changes under CGAAP effective January 1, 2013
C12: Year | D12: 2013 | E12: Revised CGAAP or ASPE - CGAAP or ASPE with the changes to the policies
A14: Account | B14: Description | C14: Opening NBV as at Jan 1, 2013 5 | D14: Additions | E14: Average Remaining Life of Opening NBV 4 | F14: Years (new additions only) 3 | G14: Depreciation Rate on New Additions | H14: Depreciation Expense on Opening NBV | I14: Depreciation Expense on Additions 1 | J14: 2013 Depreciation Expense | K14: 2013 Depreciation Expense per Appendix 2-B Fixed Assets, Column K (l) | L14: Variance 2 | M14: Depreciation Expense on 2013 Full Year Additions | N14: Less Depreciation Expense on Assets Fully Depreciated during the year (o) | O14: 2013 Full Year Depreciation 6
C15: (a) | D15: (d) | E15: (i) | F15: (f) | G15: (g) = 1 / (f) | H15: (j) = (a) / (i) | I15: (h)=((d)*0.5)/(f) | J15: (k) = (j) + (h) | L15: (m) = (k) - (l) | M15: (n)=((d))/(f) | O15: (p) = (j) + (n) - (o)
A16: 1609 | B16: Distribution Station Equipment <50 kV - Capital Contributions Paid | C16: 0 | D16: 29835 | F16: 45 | G16: =IF(F16=0,0,1/F16) -> 0.02222222222 | H16: =IF(E16=0,0,+C16/E16) -> 0 | I16: =IF(F16=0,0,+(D16*0.5)/F16) -> 331.5 | J16: =IF(ISERROR(+H16+I16), 0, +H16+I16) -> 331.5 | K16: 332 | L16: =IF(ISERROR(+J16-K16), 0, +J16-K16) -> -0.5 | M16: =IF(F16=0,0,+(D16)/F16) -> 663 | O16: =IF(ISERROR(+M16+H16-N16), 0, +M16+H16-N16) -> 663
A17: 1820 | B17: Distribution Station Equipment <50 kV | C17: =466497-185350 -> 281147 | E17: =ROUND(C17/8035,0) -> 35 | F17: 45 | G17: 0.02222222222 | H17: 8032.771429 | I17: 0 | J17: 8032.771429 | K17: 8035 | L17: -2.228571429 | M17: 0 | O17: 8032.771429
A18: 1830 | B18: Poles, Towers & Fixtures - Wood Poles | C18: =20543025-9281040 -> 11261985 | D18: 1907831 | E18: =ROUND(C18/268524,0) -> 42 | F18: 50 | G18: 0.02 | H18: 268142.5 | I18: 19078.31 | J18: 287220.81 | K18: =19078+268524-2 -> 287600 | L18: -379.19 | M18: 38156.62 | O18: 306299.12
A19: 1830 | B19: Poles, Towers & Fixtures - Metal/Concrete Poles | C19: =84427-44568 -> 39859 | E19: =ROUND(C19/835,0) -> 48 | F19: 60 | G19: 0.01666666667 | H19: 830.3958333 | I19: 0 | J19: 830.3958333 | K19: 835 | L19: -4.604166667 | M19: 0 | O19: 830.3958333
A20: 1835 | B20: Overhead Conductors & Devices - Conductor | C20: =12599263-3718103 -> 8881160 | D20: 1249008 | E20: =ROUND(C20/198263,0) -> 45 | F20: 50 | G20: 0.02 | H20: 197359.1111 | I20: 12490.08 | J20: 209849.1911 | K20: =12490+198263+1 -> 210754 | L20: -904.8088889 | M20: 24980.16 | O20: 222339.2711
A21: 1835 | B21: Overhead Conductors & Devices - Line Switches | C21: =510902-273141 -> 237761 | E21: =ROUND(C21/7260,0) -> 33 | F21: 45 | G21: 0.02222222222 | H21: 7204.878788 | I21: 0 | J21: 7204.878788 | K21: 7260 | L21: -55.12121212 | M21: 0 | O21: 7204.878788
A22: 1835 | B22: Overhead Conductors & Devices - Reclosers | C22: =446811-183166 -> 263645 | E22: =ROUND(C22/8446,0) -> 31 | F22: 40 | G22: =IF(F22=0,0,1/F22) -> 0.025 | H22: =IF(E22=0,0,+C22/E22) -> 8504.677419 | I22: =IF(F22=0,0,+(D22*0.5)/F22) -> 0 | J22: =IF(ISERROR(+H22+I22), 0, +H22+I22) -> 8504.677419 | K22: 8446 | L22: =IF(ISERROR(+J22-K22), 0, +J22-K22) -> 58.67741935 | M22: =IF(F22=0,0,+(D22)/F22) -> 0 | O22: =IF(ISERROR(+M22+H22-N22), 0, +M22+H22-N22) -> 8504.677419
A23: 1840 | B23: Underground Conduit - Duct | C23: =1366196-147380 -> 1218816 | D23: 456855 | E23: =ROUND(C23/25556,0) -> 48 | F23: 50 | G23: 0.02 | H23: 25392 | I23: 4568.55 | J23: 29960.55 | K23: =25556+4569 -> 30125 | L23: -164.45 | M23: 9137.1 | O23: 34529.1
A24: 1845 | B24: Underground Conductors & Devices - Non-Duct | C24: =6219026-2961122 -> 3257904 | D24: 33369 | E24: =ROUND(C24/173411,0) -> 19 | F24: 30 | G24: 0.03333333333 | H24: 171468.6316 | I24: 556.15 | J24: 172024.7816 | K24: =556+173411+1 -> 173968 | L24: -1943.218421 | M24: 1112.3 | O24: 172580.9316
A25: 1845 | B25: Underground Conductors & Devices - In Duct | C25: =1428183-682394 -> 745789 | D25: 639620 | E25: =ROUND(C25/25443,0) -> 29 | F25: 40 | G25: =IF(F25=0,0,1/F25) -> 0.025 | H25: =IF(E25=0,0,+C25/E25) -> 25716.86207 | I25: =IF(F25=0,0,+(D25*0.5)/F25) -> 7995.25 | J25: =IF(ISERROR(+H25+I25), 0, +H25+I25) -> 33712.11207 | K25: =7995+25443 -> 33438 | L25: =IF(ISERROR(+J25-K25), 0, +J25-K25) -> 274.112069 | M25: =IF(F25=0,0,+(D25)/F25) -> 15990.5 | O25: =IF(ISERROR(+M25+H25-N25), 0, +M25+H25-N25) -> 41707.36207
A26: 1845 | B26: Underground Conductors & Devices - Switchgear | C26: =55043-22945 -> 32098 | D26: 76555 | E26: =ROUND(C26/1639,0) -> 20 | F26: 30 | G26: =IF(F26=0,0,1/F26) -> 0.03333333333 | H26: =IF(E26=0,0,+C26/E26) -> 1604.9 | I26: =IF(F26=0,0,+(D26*0.5)/F26) -> 1275.916667 | J26: =IF(ISERROR(+H26+I26), 0, +H26+I26) -> 2880.816667 | K26: =1276+1639 -> 2915 | L26: =IF(ISERROR(+J26-K26), 0, +J26-K26) -> -34.18333333 | M26: =IF(F26=0,0,+(D26)/F26) -> 2551.833333 | O26: =IF(ISERROR(+M26+H26-N26), 0, +M26+H26-N26) -> 4156.733333
A27: 1850 | B27: Line Transformers - Pole-Top | C27: =9439683-3943725 -> 5495958 | D27: 581783 | E27: =ROUND(C27/181314,0) -> 30 | F27: 40 | G27: 0.025 | H27: 183198.6 | I27: 7272.2875 | J27: 190470.8875 | K27: =7272+181314 -> 188586 | L27: 1884.8875 | M27: 14544.575 | O27: 197743.175
A28: 1850 | B28: Line Transformers - Padmount | C28: =2420047-703172 -> 1716875 | D28: 216524 | E28: =ROUND(C28/51217,0) -> 34 | F28: 40 | G28: 0.025 | H28: 50496.32353 | I28: 2706.55 | J28: 53202.87353 | K28: =2707+51217 -> 53924 | L28: -721.1264706 | M28: 5413.1 | O28: 55909.42353
A29: 1850 | B29: Line Transformers - Step-Down (Rabbits) | C29: =314345-91369 -> 222976 | D29: 61250 | E29: =ROUND(C29/6652,0) -> 34 | F29: 40 | G29: =IF(F29=0,0,1/F29) -> 0.025 | H29: =IF(E29=0,0,+C29/E29) -> 6558.117647 | I29: =IF(F29=0,0,+(D29*0.5)/F29) -> 765.625 | J29: =IF(ISERROR(+H29+I29), 0, +H29+I29) -> 7323.742647 | K29: =766+6652 -> 7418 | L29: =IF(ISERROR(+J29-K29), 0, +J29-K29) -> -94.25735294 | M29: =IF(F29=0,0,+(D29)/F29) -> 1531.25 | O29: =IF(ISERROR(+M29+H29-N29), 0, +M29+H29-N29) -> 8089.367647
A30: 1850 | B30: Line Transformers - Spare Capital | C30: =213830-0 -> 213830 | G30: =IF(F30=0,0,1/F30) -> 0 | H30: =IF(E30=0,0,+C30/E30) -> 0 | I30: =IF(F30=0,0,+(D30*0.5)/F30) -> 0 | J30: =IF(ISERROR(+H30+I30), 0, +H30+I30) -> 0 | L30: =IF(ISERROR(+J30-K30), 0, +J30-K30) -> 0 | M30: =IF(F30=0,0,+(D30)/F30) -> 0 | O30: =IF(ISERROR(+M30+H30-N30), 0, +M30+H30-N30) -> 0
A31: 1855 | B31: Services - Overhead | C31: =984278-294207 -> 690071 | D31: 110516 | E31: =ROUND(C31/13010,0) -> 53 | F31: 60 | G31: 0.01666666667 | H31: 13020.20755 | I31: 920.9666667 | J31: 13941.17421 | K31: =921+13010 -> 13931 | L31: 10.17421384 | M31: 1841.933333 | O31: 14862.14088
A32: 1855 | B32: Services - Underground | C32: =1698814-536237 -> 1162577 | D32: 130127 | E32: =ROUND(C32/42481,0) -> 27 | F32: 35 | G32: 0.02857142857 | H32: 43058.40741 | I32: 1858.957143 | J32: 44917.36455 | K32: =1859+42481 -> 44340 | L32: 577.3645503 | M32: 3717.914286 | O32: 46776.32169
A33: 1860 | B33: Meters - Primary Metering Untis | C33: =129969-22207 -> 107762 | D33: 9480 | E33: =ROUND(C33/6599,0) -> 16 | F33: 20 | G33: 0.05 | H33: 6735.125 | I33: 237 | J33: 6972.125 | K33: =237+6599 -> 6836 | L33: 136.125 | M33: 474 | O33: 7209.125
A34: 1860 | B34: Meters - Interval Meters & Other Metering Equipment | C34: =1142904-150783 -> 992121 | D34: 20580 | E34: =ROUND(C34/217463,0) -> 5 | F34: 15 | G34: 0.06666666667 | H34: 198424.2 | I34: 686 | J34: 199110.2 | K34: =686+217463 -> 218149 | L34: -19038.8 | M34: 1372 | O34: 199796.2
A35: 1860 | B35: Meters - Smart Meters | C35: =3724761-757661 -> 2967100 | D35: 118390 | E35: =ROUND(C35/243126,0) -> 12 | F35: 15 | G35: =IF(F35=0,0,1/F35) -> 0.06666666667 | H35: =IF(E35=0,0,+C35/E35) -> 247258.3333 | I35: =IF(F35=0,0,+(D35*0.5)/F35) -> 3946.333333 | J35: =IF(ISERROR(+H35+I35), 0, +H35+I35) -> 251204.6667 | K35: =3946+243126+1 -> 247073 | L35: =IF(ISERROR(+J35-K35), 0, +J35-K35) -> 4131.666667 | M35: =IF(F35=0,0,+(D35)/F35) -> 7892.666667 | O35: =IF(ISERROR(+M35+H35-N35), 0, +M35+H35-N35) -> 255151
A36: 1860 | B36: Meters - Stranded Meters | C36: =1666572-1140139 -> 526433 | E36: =ROUND(C36/42501,0) -> 12 | F36: 25 | G36: 0.04 | H36: 43869.41667 | I36: 0 | J36: 43869.41667 | K36: 42501 | L36: 1368.416667 | M36: 0 | O36: 43869.41667
A37: 1860 | B37: Meters - Spare Capital | C37: =94676-0 -> 94676 | G37: =IF(F37=0,0,1/F37) -> 0 | H37: =IF(E37=0,0,+C37/E37) -> 0 | I37: =IF(F37=0,0,+(D37*0.5)/F37) -> 0 | J37: =IF(ISERROR(+H37+I37), 0, +H37+I37) -> 0 | L37: =IF(ISERROR(+J37-K37), 0, +J37-K37) -> 0 | M37: =IF(F37=0,0,+(D37)/F37) -> 0 | O37: =IF(ISERROR(+M37+H37-N37), 0, +M37+H37-N37) -> 0
A38: 1905 | B38: Land | C38: =127139-0 -> 127139 | G38: 0 | H38: 0 | I38: 0 | J38: 0 | L38: 0 | M38: 0 | O38: 0
A39: 1612 | B39: Land Rights (Formally known as Account 1906) | C39: =695389-259892 -> 435497 | E39: =ROUND(C39/20720,0) -> 21 | F39: 50 | G39: =IF(F39=0,0,1/F39) -> 0.02 | H39: =IF(E39=0,0,+C39/E39) -> 20737.95238 | I39: =IF(F39=0,0,+(D39*0.5)/F39) -> 0 | J39: =IF(ISERROR(+H39+I39), 0, +H39+I39) -> 20737.95238 | K39: 20720 | L39: =IF(ISERROR(+J39-K39), 0, +J39-K39) -> 17.95238095 | M39: =IF(F39=0,0,+(D39)/F39) -> 0 | O39: =IF(ISERROR(+M39+H39-N39), 0, +M39+H39-N39) -> 20737.95238
A40: 1908 | B40: Buildings & Fixtures | C40: =2190518-467768 -> 1722750 | E40: =ROUND(C40/51715,0) -> 33 | F40: 50 | G40: 0.02 | H40: 52204.54545 | I40: 0 | J40: 52204.54545 | K40: 51715 | L40: 489.5454545 | M40: 0 | O40: 52204.54545
A41: 1915 | B41: Office Furniture & Equipment (10 years) | C41: =365636-261240 -> 104396 | D41: 5000 | E41: =ROUND(C41/22771,0) -> 5 | F41: 10 | G41: 0.1 | H41: 20879.2 | I41: 250 | J41: 21129.2 | K41: =250+22771 -> 23021 | L41: -1891.8 | M41: 500 | N41: 125 | O41: 21254.2
A42: 1920 | B42: Computer Equipment - Hardware | C42: =585095-395997 -> 189098 | D42: 57125 | E42: =ROUND(C42/62208,0) -> 3 | F42: 5 | G42: 0.2 | H42: 63032.66667 | I42: 5712.5 | J42: 68745.16667 | K42: =5713+62208 -> 67921 | L42: 824.1666667 | M42: 11425 | N42: 7390 | O42: 67067.66667
A43: 1611 | B43: Computer Software (Formally known as Account 1925) | C43: =2765069-2101504 -> 663565 | D43: 196000 | E43: =ROUND(C43/304894,0) -> 2 | F43: 5 | G43: =IF(F43=0,0,1/F43) -> 0.2 | H43: =IF(E43=0,0,+C43/E43) -> 331782.5 | I43: =IF(F43=0,0,+(D43*0.5)/F43) -> 19600 | J43: =IF(ISERROR(+H43+I43), 0, +H43+I43) -> 351382.5 | K43: =19600+304894 -> 324494 | L43: =IF(ISERROR(+J43-K43), 0, +J43-K43) -> 26888.5 | M43: =IF(F43=0,0,+(D43)/F43) -> 39200 | N43: 24199 | O43: =IF(ISERROR(+M43+H43-N43), 0, +M43+H43-N43) -> 346783.5
A44: 1930 | B44: Transportation Equipment - Bucket Trucks | C44: =1759603-904828 -> 854775 | D44: 207000 | E44: =ROUND(C44/88609,0) -> 10 | F44: 12 | G44: 0.08333333333 | H44: 85477.5 | I44: 8625 | J44: 94102.5 | K44: =8625+88609 -> 97234 | L44: -3131.5 | M44: 17250 | O44: 102727.5
A45: 1930 | B45: Transportation Equipment - Pickups / Vans | C45: =364206-227321 -> 136885 | D45: 40281 | E45: =ROUND(C45/36487,0) -> 4 | F45: 8 | G45: =IF(F45=0,0,1/F45) -> 0.125 | H45: =IF(E45=0,0,+C45/E45) -> 34221.25 | I45: =IF(F45=0,0,+(D45*0.5)/F45) -> 2517.5625 | J45: =IF(ISERROR(+H45+I45), 0, +H45+I45) -> 36738.8125 | K45: =2518+36487 -> 39005 | L45: =IF(ISERROR(+J45-K45), 0, +J45-K45) -> -2266.1875 | M45: =IF(F45=0,0,+(D45)/F45) -> 5035.125 | O45: =IF(ISERROR(+M45+H45-N45), 0, +M45+H45-N45) -> 39256.375
A46: 1930 | B46: Transportation Equipment - Trailers | C46: =83837-51151 -> 32686 | E46: =ROUND(C46/2000,0) -> 16 | F46: 20 | G46: 0.05 | H46: 2042.875 | I46: 0 | J46: 2042.875 | K46: 2000 | L46: 42.875 | M46: 0 | O46: 2042.875
A47: 1940 | B47: Tools, Shop & Garage Equipment | C47: =795038-451778 -> 343260 | D47: 35685 | E47: =ROUND(C47/57797,0) -> 6 | F47: 10 | G47: 0.1 | H47: 57210 | I47: 1784.25 | J47: 58994.25 | K47: =1784+57797 -> 59581 | L47: -586.75 | M47: 3568.5 | N47: 50 | O47: 60728.5
A48: 1955 | B48: Communications Equipment | C48: =68074-57942 -> 10132 | E48: =ROUND(C48/3860,0) -> 3 | F48: 5 | G48: 0.2 | H48: 3377.333333 | I48: 0 | J48: 3377.333333 | K48: 3860 | L48: -482.6666667 | M48: 0 | O48: 3377.333333
A49: 1995 | B49: Contributions & Grants - Wood Poles | C49: =-739793+184802 -> -554991 | D49: -88153 | E49: =ROUND(C49/-12647,0) -> 44 | F49: 50 | G49: 0.02 | H49: -12613.43182 | I49: -881.53 | J49: -13494.96182 | K49: =-882-12647+1 -> -13528 | L49: 33.03818182 | M49: -1763.06 | O49: -14376.49182
A50: 1995 | B50: Contributions & Grants - O/H Conductor | C50: =-206948+39943 -> -167005 | D50: -5254 | E50: =ROUND(C50/-3705,0) -> 45 | F50: 50 | G50: 0.02 | H50: -3711.222222 | I50: -52.54 | J50: -3763.762222 | K50: =-53-3705 -> -3758 | L50: -5.762222222 | M50: -105.08 | O50: -3816.302222
A51: 1995 | B51: Contributions & Grants - O/H Line Switches | C51: =-8391+1722 -> -6669 | E51: =ROUND(C51/-167,0) -> 40 | F51: 45 | G51: 0.02222222222 | H51: -166.725 | I51: 0 | J51: -166.725 | K51: -167 | L51: 0.275 | M51: 0 | O51: -166.725
A52: 1995 | B52: Contributions & Grants - O/H Reclosures | C52: =-7345+1507 -> -5838 | E52: =ROUND(C52/-167,0) -> 35 | F52: 40 | G52: 0.025 | H52: -166.8 | I52: 0 | J52: -166.8 | K52: -167 | L52: 0.2 | M52: 0 | O52: -166.8
A53: 1995 | B53: Contributions & Grants - U/G Conduit - Duct | C53: =-303943+66336 -> -237607 | D53: -116303 | E53: =ROUND(C53/-5331,0) -> 45 | F53: 50 | G53: 0.02 | H53: -5280.155556 | I53: -1163.03 | J53: -6443.185556 | K53: =-1163-5331 -> -6494 | L53: 50.81444444 | M53: -2326.06 | O53: -7606.215556
A54: 1995 | B54: Contributions & Grants - U/G Conductor - Non-Duct | C54: =-1081893+263019 -> -818874 | E54: =ROUND(C54/-34702,0) -> 24 | F54: 30 | G54: 0.03333333333 | H54: -34119.75 | I54: 0 | J54: -34119.75 | K54: -34702 | L54: 582.25 | M54: 0 | O54: -34119.75
A55: 1995 | B55: Contributions & Grants - U/G Conductor - In Duct | C55: =-242982+59071 -> -183911 | D55: -310010 | E55: =ROUND(C55/-5458,0) -> 34 | F55: 40 | G55: 0.025 | H55: -5409.147059 | I55: -3875.125 | J55: -9284.272059 | K55: =-3875-5458 -> -9333 | L55: 48.72794118 | M55: -7750.25 | O55: -13159.39706
A56: 1995 | B56: Contributions & Grants - Pole TopTransformers | C56: =-668018+179942 -> -488076 | D56: -31658 | E56: =ROUND(C56/-14713,0) -> 33 | F56: 40 | G56: 0.025 | H56: -14790.18182 | I56: -395.725 | J56: -15185.90682 | K56: =-396-14713 -> -15109 | L56: -76.90681818 | M56: -791.45 | O56: -15581.63182
A57: 1995 | B57: Contributions & Grants - Padmount Transformers | C57: =-171269+46091 -> -125178 | D57: -78787 | E57: =ROUND(C57/-3773,0) -> 33 | F57: 40 | G57: 0.025 | H57: -3793.272727 | I57: -984.8375 | J57: -4778.110227 | K57: =-985-3773 -> -4758 | L57: -20.11022727 | M57: -1969.675 | O57: -5762.947727
A58: 1995 | B58: Contributions & Grants - Step-Down Transformers | C58: =-22227+5982 -> -16245 | E58: =ROUND(C58/-490,0) -> 33 | F58: 40 | G58: =IF(F58=0,0,1/F58) -> 0.025 | H58: =IF(E58=0,0,+C58/E58) -> -492.2727273 | I58: =IF(F58=0,0,+(D58*0.5)/F58) -> 0 | J58: =IF(ISERROR(+H58+I58), 0, +H58+I58) -> -492.2727273 | K58: -490 | L58: =IF(ISERROR(+J58-K58), 0, +J58-K58) -> -2.272727273 | M58: =IF(F58=0,0,+(D58)/F58) -> 0 | O58: =IF(ISERROR(+M58+H58-N58), 0, +M58+H58-N58) -> -492.2727273
A59: 1995 | B59: Contributions & Grants - O/H Services | C59: =-149478+40101 -> -109377 | D59: -20126 | E59: =ROUND(C59/-2055,0) -> 53 | F59: 60 | G59: 0.01666666667 | H59: -2063.716981 | I59: -167.7166667 | J59: -2231.433648 | K59: =-168-2055 -> -2223 | L59: -8.433647799 | M59: -335.4333333 | O59: -2399.150314
A60: 1995 | B60: Contributions & Grants - U/G Services | C60: =-258042+69225 -> -188817 | D60: -23692 | E60: =ROUND(C60/-6718,0) -> 28 | F60: 35 | G60: 0.02857142857 | H60: -6743.464286 | I60: -338.4571429 | J60: -7081.921429 | K60: =-338-6718 -> -7056 | L60: -25.92142857 | M60: -676.9142857 | O60: -7420.378571
A61: 1995 | B61: Contributions & Grants - Primary Metering Units | C61: =-156852+21959 -> -134893 | E61: =ROUND(C61/-8431,0) -> 16 | F61: 20 | G61: 0.05 | H61: -8430.8125 | I61: 0 | J61: -8430.8125 | K61: -8431 | L61: 0.1875 | M61: 0 | O61: -8430.8125
A62: 1995 | B62: Contributions & Grants - Interval & Other Metering Equip | C62: =-28461+6242 -> -22219 | D62: -1158 | E62: =ROUND(C62/-2742,0) -> 8 | F62: 15 | G62: =IF(F62=0,0,1/F62) -> 0.06666666667 | H62: =IF(E62=0,0,+C62/E62) -> -2777.375 | I62: =IF(F62=0,0,+(D62*0.5)/F62) -> -38.6 | J62: =IF(ISERROR(+H62+I62), 0, +H62+I62) -> -2815.975 | K62: =-39-2742 -> -2781 | L62: =IF(ISERROR(+J62-K62), 0, +J62-K62) -> -34.975 | M62: =IF(F62=0,0,+(D62)/F62) -> -77.2 | O62: =IF(ISERROR(+M62+H62-N62), 0, +M62+H62-N62) -> -2854.575
A63: 1995 | B63: Contributions & Grants - Smart Meters | C63: =-98031+21501 -> -76530 | D63: -6663 | E63: =ROUND(C63/-9445,0) -> 8 | F63: 15 | G63: =IF(F63=0,0,1/F63) -> 0.06666666667 | H63: =IF(E63=0,0,+C63/E63) -> -9566.25 | I63: =IF(F63=0,0,+(D63*0.5)/F63) -> -222.1 | J63: =IF(ISERROR(+H63+I63), 0, +H63+I63) -> -9788.35 | K63: =-222-9445 -> -9667 | L63: =IF(ISERROR(+J63-K63), 0, +J63-K63) -> -121.35 | M63: =IF(F63=0,0,+(D63)/F63) -> -444.2 | O63: =IF(ISERROR(+M63+H63-N63), 0, +M63+H63-N63) -> -10010.45
A64: etc.
B65: Total | C65: =SUM(C16:C64) -> 41894496 | D65: =SUM(D16:D64) -> 5501010 | H65: =SUM(H16:H64) -> 2067716.705 | I65: 95059.1275 | J65: 2162775.832 | K65: 2157353 | L65: 5422.832 | M65: 190118.255 | N65: 31764 | O65: 2226070.96
A67: Notes:
A69: 1 | B69: Board policy of the "half-year" rule - the applicant must ensure that additions in the year attract a half-year depreciation expense in the first year. Deviations from this standard practice must be supported in the application.
A70: 2 | B70: The applicant must provide an explanation of material variances in evidence.
A71: 3 | B71: The applicant should ensure that the years for new additions of assets are the asset useful lives determined by management in accordance with the Board's regulatory accounting policies. The capitalization and depreciation expense accounting changes should be implemented consistent with the Board’s regulatory accounting policies as set out for modified IFRS as contained in the Report of the Board, Transition to International Financial Reporting Standards, EB-2008-0408, the Kinectrics Report, and the Revised 2012 Accounting Procedures Handbook for Electricity Distributors (“APH”).
A72: 4 | B72: A recalculation should be performed to determine the average remaining life of opening balance of assets (i.e. excluding 2013 additions) under the change in policies under CGAAP. For example, Asset A had a useful life of 20 years under CGAAP without the change in policies. On January 1, 2013, the effective date of the changes in poliices, Asset A was 3 years depreciated. As a result, Asset A would have a remaining service life of 17 years (20 years less 3 years) as of January 1, 2013. Due to making the change in policies under CGAAP, management re-assessed the asset useful lives and concluded that the revised useful life of Asset A is now 30 years. Therefore, the average remaining useful life of the opening balance of Asset A is determined to be 27 years (30 years less 3 years) under the revised CGAAP as of January 1, 2013.
A73: 5 | B73: NBV must exclude assets still on the books but which have been fully amortized or depreciated.
A74: 6 | B74: This column refers to the calculated full year depreciation but excludes the depreciation expense on assets fully depreciated during the year. This column is used for the purpose of calculating depreciation expense in the following year on the next worksheet.
A76: General: | B76: Applicants must provide a breakdown of depreciation and amortization expense in the above format for all relevant accounts. Asset Retirement Obligations (AROs), depreciation and accretion expense should be disclosed separately consistent with the Notes of historical Audited Financial Statements.

Sheet App.2-CU_NewCGAAP_DepExp_2014
I1: File Number: | J1: =EBNUMBER -> EB-2013-0134
I2: Exhibit: | J2: 4
I3: Tab: | J3: 3
I4: Schedule: | J4: 2
I5: Page: | J5: 7
I7: Date: | J7: 2013-11-15
A9: Appendix 2-CU
A10: Depreciation and Amortization Expense
A11: Assumes the applicant made capitalization and depreciation expense accounting policy changes under CGAAP effective January 1, 2013
B12: Year 2014 Revised CGAAP or ASPE - CGAAP or ASPE with the changes to the policies
A14: Account | B14: Description | C14: Additions | D14: Years (new additions only) | E14: Depreciation Rate on New Additions | F14: 2014 Depreciation Expense 1 | G14: 2014 Depreciation Expense per Appendix 2-B Fixed Assets, Column K (l) | H14: Variance 2
C15: (d) | D15: (f) | E15: (g) = 1 / (f) | F15: (h)=2013 Full Year Depreciation + ((d)*0.5)/(f) | H15: (m) = (h) - (l)
A16: 1609 | B16: Distribution Station Equipment <50 kV - Capital Contributions Paid | C16: 441675 | D16: 45 | E16: =IF(D16=0,0,1/D16) -> 0.02222222222 | F16: =IF(D16=0,'App.2-CT_NewCGAAP_DepExp_2013'!O16,+'App.2-CT_NewCGAAP_DepExp_2013'!O16+((C16*0.5)/D16)) -> 5570.5 | G16: 5571 | H16: =IF(ISERROR(+F16-G16), 0, +F16-G16) -> -0.5
A17: 1820 | B17: Distribution Station Equipment <50 kV | C17: 5000 | D17: 45 | E17: 0.02222222222 | F17: =IF(D17=0,'App.2-CT_NewCGAAP_DepExp_2013'!O17,+'App.2-CT_NewCGAAP_DepExp_2013'!O17+((C17*0.5)/D17)) -> 8088.326984 | G17: 8091 | H17: -2.673015873
A18: 1830 | B18: Poles, Towers & Fixtures - Wood Poles | C18: 1615483 | D18: 50 | E18: 0.02 | F18: =IF(D18=0,'App.2-CT_NewCGAAP_DepExp_2013'!O18,+'App.2-CT_NewCGAAP_DepExp_2013'!O18+((C18*0.5)/D18)) -> 322453.95 | G18: 322835 | H18: -381.05
A19: 1830 | B19: Poles, Towers & Fixtures - Metal/Concrete Poles | D19: 60 | E19: 0.01666666667 | F19: =IF(D19=0,'App.2-CT_NewCGAAP_DepExp_2013'!O19,+'App.2-CT_NewCGAAP_DepExp_2013'!O19+((C19*0.5)/D19)) -> 830.3958333 | G19: 835 | H19: -4.604166667
A20: 1835 | B20: Overhead Conductors & Devices - Conductor | C20: 1117956 | D20: 50 | E20: 0.02 | F20: =IF(D20=0,'App.2-CT_NewCGAAP_DepExp_2013'!O20,+'App.2-CT_NewCGAAP_DepExp_2013'!O20+((C20*0.5)/D20)) -> 233518.8311 | G20: 234423 | H20: -904.1688889
A21: 1835 | B21: Overhead Conductors & Devices - Line Switches | C21: 15900 | D21: 45 | E21: =IF(D21=0,0,1/D21) -> 0.02222222222 | F21: =IF(D21=0,'App.2-CT_NewCGAAP_DepExp_2013'!O21,+'App.2-CT_NewCGAAP_DepExp_2013'!O21+((C21*0.5)/D21)) -> 7381.545455 | G21: 7437 | H21: =IF(ISERROR(+F21-G21), 0, +F21-G21) -> -55.45454545
A22: 1835 | B22: Overhead Conductors & Devices - Reclosers | D22: 40 | E22: 0.025 | F22: =IF(D22=0,'App.2-CT_NewCGAAP_DepExp_2013'!O22,+'App.2-CT_NewCGAAP_DepExp_2013'!O22+((C22*0.5)/D22)) -> 8504.677419 | G22: 8446 | H22: 58.67741935
A23: 1840 | B23: Underground Conduit - Duct | C23: 641971 | D23: 50 | E23: 0.02 | F23: =IF(D23=0,'App.2-CT_NewCGAAP_DepExp_2013'!O23,+'App.2-CT_NewCGAAP_DepExp_2013'!O23+((C23*0.5)/D23)) -> 40948.81 | G23: 41113 | H23: -164.19
A24: 1845 | B24: Underground Conductors & Devices - Non-Duct | D24: 30 | E24: 0.03333333333 | F24: =IF(D24=0,'App.2-CT_NewCGAAP_DepExp_2013'!O24,+'App.2-CT_NewCGAAP_DepExp_2013'!O24+((C24*0.5)/D24)) -> 172580.9316 | G24: 174523 | H24: -1942.068421
A25: 1845 | B25: Underground Conductors & Devices - In Duct | C25: 570260 | D25: 40 | E25: =IF(D25=0,0,1/D25) -> 0.025 | F25: =IF(D25=0,'App.2-CT_NewCGAAP_DepExp_2013'!O25,+'App.2-CT_NewCGAAP_DepExp_2013'!O25+((C25*0.5)/D25)) -> 48835.61207 | G25: 48562 | H25: =IF(ISERROR(+F25-G25), 0, +F25-G25) -> 273.612069
A26: 1845 | B26: Underground Conductors & Devices - Switchgear | C26: 41600 | D26: 30 | E26: 0.03333333333 | F26: =IF(D26=0,'App.2-CT_NewCGAAP_DepExp_2013'!O26,+'App.2-CT_NewCGAAP_DepExp_2013'!O26+((C26*0.5)/D26)) -> 4850.066667 | G26: 4884 | H26: -33.93333333
A27: 1850 | B27: Line Transformers - Pole-Top | C27: 499028 | D27: 40 | E27: 0.025 | F27: =IF(D27=0,'App.2-CT_NewCGAAP_DepExp_2013'!O27,+'App.2-CT_NewCGAAP_DepExp_2013'!O27+((C27*0.5)/D27)) -> 203981.025 | G27: 202097 | H27: 1884.025
A28: 1850 | B28: Line Transformers - Padmount | C28: 178699 | D28: 40 | E28: =IF(D28=0,0,1/D28) -> 0.025 | F28: =IF(D28=0,'App.2-CT_NewCGAAP_DepExp_2013'!O28,+'App.2-CT_NewCGAAP_DepExp_2013'!O28+((C28*0.5)/D28)) -> 58143.16103 | G28: 58864 | H28: =IF(ISERROR(+F28-G28), 0, +F28-G28) -> -720.8389706
A29: 1850 | B29: Line Transformers - Step-Down (Rabbits) | C29: 29250 | D29: 40 | E29: 0.025 | F29: =IF(D29=0,'App.2-CT_NewCGAAP_DepExp_2013'!O29,+'App.2-CT_NewCGAAP_DepExp_2013'!O29+((C29*0.5)/D29)) -> 8454.992647 | G29: 8550 | H29: -95.00735294
A30: 1850 | B30: Line Transformers - Spare Capital | E30: 0 | F30: =IF(D30=0,'App.2-CT_NewCGAAP_DepExp_2013'!O30,+'App.2-CT_NewCGAAP_DepExp_2013'!O30+((C30*0.5)/D30)) -> 0 | H30: 0
A31: 1855 | B31: Services - Overhead | C31: 113572 | D31: 60 | E31: =IF(D31=0,0,1/D31) -> 0.01666666667 | F31: =IF(D31=0,'App.2-CT_NewCGAAP_DepExp_2013'!O31,+'App.2-CT_NewCGAAP_DepExp_2013'!O31+((C31*0.5)/D31)) -> 15808.57421 | G31: 15798 | H31: =IF(ISERROR(+F31-G31), 0, +F31-G31) -> 10.57421384
A32: 1855 | B32: Services - Underground | C32: 136725 | D32: 35 | E32: 0.02857142857 | F32: =IF(D32=0,'App.2-CT_NewCGAAP_DepExp_2013'!O32,+'App.2-CT_NewCGAAP_DepExp_2013'!O32+((C32*0.5)/D32)) -> 48729.53598 | G32: 48152 | H32: 577.5359788
A33: 1860 | B33: Meters - Primary Metering Untis | C33: 77540 | D33: 20 | E33: =IF(D33=0,0,1/D33) -> 0.05 | F33: =IF(D33=0,'App.2-CT_NewCGAAP_DepExp_2013'!O33,+'App.2-CT_NewCGAAP_DepExp_2013'!O33+((C33*0.5)/D33)) -> 9147.625 | G33: 9012 | H33: =IF(ISERROR(+F33-G33), 0, +F33-G33) -> 135.625
A34: 1860 | B34: Meters - Interval Meters & Other Metering Equipment | C34: 34660 | D34: 15 | E34: 0.06666666667 | F34: =IF(D34=0,'App.2-CT_NewCGAAP_DepExp_2013'!O34,+'App.2-CT_NewCGAAP_DepExp_2013'!O34+((C34*0.5)/D34)) -> 200951.5333 | G34: 192515 | H34: 8436.533333
A35: 1860 | B35: Meters - Smart Meters | C35: 133025 | D35: 15 | E35: =IF(D35=0,0,1/D35) -> 0.06666666667 | F35: =IF(D35=0,'App.2-CT_NewCGAAP_DepExp_2013'!O35,+'App.2-CT_NewCGAAP_DepExp_2013'!O35+((C35*0.5)/D35)) -> 259585.1667 | G35: 252371 | H35: =IF(ISERROR(+F35-G35), 0, +F35-G35) -> 7214.166667
A36: 1860 | B36: Meters - Spare Capital | E36: 0 | F36: =IF(D36=0,'App.2-CT_NewCGAAP_DepExp_2013'!O37,+'App.2-CT_NewCGAAP_DepExp_2013'!O37+((C36*0.5)/D36)) -> 0 | H36: 0
A37: 1905 | B37: Land | E37: 0 | F37: =IF(D37=0,'App.2-CT_NewCGAAP_DepExp_2013'!O38,+'App.2-CT_NewCGAAP_DepExp_2013'!O38+((C37*0.5)/D37)) -> 0 | H37: 0
A38: 1612 | B38: Land Rights (Formally known as Account 1906) | D38: 50 | E38: =IF(D38=0,0,1/D38) -> 0.02 | F38: =IF(D38=0,'App.2-CT_NewCGAAP_DepExp_2013'!O39,+'App.2-CT_NewCGAAP_DepExp_2013'!O39+((C38*0.5)/D38)) -> 20737.95238 | G38: 20720 | H38: =IF(ISERROR(+F38-G38), 0, +F38-G38) -> 17.95238095
A39: 1908 | B39: Buildings & Fixtures | D39: 50 | E39: 0.02 | F39: =IF(D39=0,'App.2-CT_NewCGAAP_DepExp_2013'!O40,+'App.2-CT_NewCGAAP_DepExp_2013'!O40+((C39*0.5)/D39)) -> 52204.54545 | G39: 51730 | H39: 474.5454545
A40: 1915 | B40: Office Furniture & Equipment (10 years) | C40: 5000 | D40: 10 | E40: 0.1 | F40: =IF(D40=0,'App.2-CT_NewCGAAP_DepExp_2013'!O41,+'App.2-CT_NewCGAAP_DepExp_2013'!O41+((C40*0.5)/D40)) -> 21504.2 | G40: 22044 | H40: -539.8
A41: 1920 | B41: Computer Equipment - Hardware | C41: 109344 | D41: 5 | E41: 0.2 | F41: =IF(D41=0,'App.2-CT_NewCGAAP_DepExp_2013'!O42,+'App.2-CT_NewCGAAP_DepExp_2013'!O42+((C41*0.5)/D41)) -> 78002.06667 | G41: 65786 | H41: 12216.06667
A42: 1611 | B42: Computer Software (Formally known as Account 1925) | C42: 280645 | D42: 5 | E42: =IF(D42=0,0,1/D42) -> 0.2 | F42: =IF(D42=0,'App.2-CT_NewCGAAP_DepExp_2013'!O43,+'App.2-CT_NewCGAAP_DepExp_2013'!O43+((C42*0.5)/D42)) -> 374848 | G42: 221292 | H42: =IF(ISERROR(+F42-G42), 0, +F42-G42) -> 153556
A43: 1930 | B43: Transportation Equipment - Bucket Trucks | D43: 12 | E43: 0.08333333333 | F43: =IF(D43=0,'App.2-CT_NewCGAAP_DepExp_2013'!O44,+'App.2-CT_NewCGAAP_DepExp_2013'!O44+((C43*0.5)/D43)) -> 102727.5 | G43: 105859 | H43: -3131.5
A44: 1930 | B44: Transportation Equipment - Pickups / Vans | C44: 218400 | D44: 8 | E44: =IF(D44=0,0,1/D44) -> 0.125 | F44: =IF(D44=0,'App.2-CT_NewCGAAP_DepExp_2013'!O45,+'App.2-CT_NewCGAAP_DepExp_2013'!O45+((C44*0.5)/D44)) -> 52906.375 | G44: 55172 | H44: =IF(ISERROR(+F44-G44), 0, +F44-G44) -> -2265.625
A45: 1930 | B45: Transportation Equipment - Trailers | D45: 20 | E45: 0.05 | F45: =IF(D45=0,'App.2-CT_NewCGAAP_DepExp_2013'!O46,+'App.2-CT_NewCGAAP_DepExp_2013'!O46+((C45*0.5)/D45)) -> 2042.875 | G45: 2000 | H45: 42.875
A46: 1940 | B46: Tools, Shop & Garage Equipment | C46: 67250 | D46: 10 | E46: 0.1 | F46: =IF(D46=0,'App.2-CT_NewCGAAP_DepExp_2013'!O47,+'App.2-CT_NewCGAAP_DepExp_2013'!O47+((C46*0.5)/D46)) -> 64091 | G46: 56600 | H46: 7491
A47: 1955 | B47: Communications Equipment | D47: 5 | E47: 0.2 | F47: =IF(D47=0,'App.2-CT_NewCGAAP_DepExp_2013'!O48,+'App.2-CT_NewCGAAP_DepExp_2013'!O48+((C47*0.5)/D47)) -> 3377.333333 | G47: 3861 | H47: -483.6666667
A48: 1995 | B48: Contributions & Grants - Wood Poles | C48: -38153 | D48: 50 | E48: 0.02 | F48: =IF(D48=0,'App.2-CT_NewCGAAP_DepExp_2013'!O49,+'App.2-CT_NewCGAAP_DepExp_2013'!O49+((C48*0.5)/D48)) -> -14758.02182 | G48: -14792 | H48: 33.97818182
A49: 1995 | B49: Contributions & Grants - O/H Conductor | C49: -5254 | D49: 50 | E49: 0.02 | F49: =IF(D49=0,'App.2-CT_NewCGAAP_DepExp_2013'!O50,+'App.2-CT_NewCGAAP_DepExp_2013'!O50+((C49*0.5)/D49)) -> -3868.842222 | G49: -3863 | H49: -5.842222222
A50: 1995 | B50: Contributions & Grants - O/H Line Switches | D50: 45 | E50: 0.02222222222 | F50: =IF(D50=0,'App.2-CT_NewCGAAP_DepExp_2013'!O51,+'App.2-CT_NewCGAAP_DepExp_2013'!O51+((C50*0.5)/D50)) -> -166.725 | G50: -167 | H50: 0.275
A51: 1995 | B51: Contributions & Grants - O/H Reclosures | D51: 40 | E51: 0.025 | F51: =IF(D51=0,'App.2-CT_NewCGAAP_DepExp_2013'!O52,+'App.2-CT_NewCGAAP_DepExp_2013'!O52+((C51*0.5)/D51)) -> -166.8 | G51: -167 | H51: 0.2
A52: 1995 | B52: Contributions & Grants - U/G Conduit - Duct | C52: -16303 | D52: 50 | E52: 0.02 | F52: =IF(D52=0,'App.2-CT_NewCGAAP_DepExp_2013'!O53,+'App.2-CT_NewCGAAP_DepExp_2013'!O53+((C52*0.5)/D52)) -> -7769.245556 | G52: -7820 | H52: 50.75444444
A53: 1995 | B53: Contributions & Grants - U/G Conductor - Non-Duct | D53: 30 | E53: 0.03333333333 | F53: =IF(D53=0,'App.2-CT_NewCGAAP_DepExp_2013'!O54,+'App.2-CT_NewCGAAP_DepExp_2013'!O54+((C53*0.5)/D53)) -> -34119.75 | G53: -34702 | H53: 582.25
A54: 1995 | B54: Contributions & Grants - U/G Conductor - In Duct | C54: -166761 | D54: 40 | E54: 0.025 | F54: =IF(D54=0,'App.2-CT_NewCGAAP_DepExp_2013'!O55,+'App.2-CT_NewCGAAP_DepExp_2013'!O55+((C54*0.5)/D54)) -> -15243.90956 | G54: -15293 | H54: 49.09044118
A55: 1995 | B55: Contributions & Grants - Pole TopTransformers | C55: -31658 | D55: 40 | E55: 0.025 | F55: =IF(D55=0,'App.2-CT_NewCGAAP_DepExp_2013'!O56,+'App.2-CT_NewCGAAP_DepExp_2013'!O56+((C55*0.5)/D55)) -> -15977.35682 | G55: -15900 | H55: -77.35681818
A56: 1995 | B56: Contributions & Grants - Padmount Transformers | C56: -44297 | D56: 40 | E56: 0.025 | F56: =IF(D56=0,'App.2-CT_NewCGAAP_DepExp_2013'!O57,+'App.2-CT_NewCGAAP_DepExp_2013'!O57+((C56*0.5)/D56)) -> -6316.660227 | G56: -6297 | H56: -19.66022727
A57: 1995 | B57: Contributions & Grants - Step-Down Transformers | D57: 40 | E57: 0.025 | F57: =IF(D57=0,'App.2-CT_NewCGAAP_DepExp_2013'!O58,+'App.2-CT_NewCGAAP_DepExp_2013'!O58+((C57*0.5)/D57)) -> -492.2727273 | G57: -490 | H57: -2.272727273
A58: 1995 | B58: Contributions & Grants - O/H Services | C58: -19639 | D58: 60 | E58: 0.01666666667 | F58: =IF(D58=0,'App.2-CT_NewCGAAP_DepExp_2013'!O59,+'App.2-CT_NewCGAAP_DepExp_2013'!O59+((C58*0.5)/D58)) -> -2562.808648 | G58: -2555 | H58: -7.808647799
A59: 1995 | B59: Contributions & Grants - U/G Services | C59: -24179 | D59: 35 | E59: =IF(D59=0,0,1/D59) -> 0.02857142857 | F59: =IF(D59=0,'App.2-CT_NewCGAAP_DepExp_2013'!O60,+'App.2-CT_NewCGAAP_DepExp_2013'!O60+((C59*0.5)/D59)) -> -7765.792857 | G59: -7740 | H59: =IF(ISERROR(+F59-G59), 0, +F59-G59) -> -25.79285714
A60: 1995 | B60: Contributions & Grants - Primary Metering Units | D60: 20 | E60: 0.05 | F60: =IF(D60=0,'App.2-CT_NewCGAAP_DepExp_2013'!O61,+'App.2-CT_NewCGAAP_DepExp_2013'!O61+((C60*0.5)/D60)) -> -8430.8125 | G60: -8431 | H60: 0.1875
A61: 1995 | B61: Contributions & Grants - Interval & Other Metering Equip | C61: -1672 | D61: 15 | E61: 0.06666666667 | F61: =IF(D61=0,'App.2-CT_NewCGAAP_DepExp_2013'!O62,+'App.2-CT_NewCGAAP_DepExp_2013'!O62+((C61*0.5)/D61)) -> -2910.308333 | G61: -2875 | H61: -35.30833333
A62: 1995 | B62: Contributions & Grants - Smart Meters | C62: -6149 | D62: 15 | E62: =IF(D62=0,0,1/D62) -> 0.06666666667 | F62: =IF(D62=0,'App.2-CT_NewCGAAP_DepExp_2013'!O63,+'App.2-CT_NewCGAAP_DepExp_2013'!O63+((C62*0.5)/D62)) -> -10215.41667 | G62: -10094 | H62: =IF(ISERROR(+F62-G62), 0, +F62-G62) -> -121.4166667
A63: etc. | E63: 0
B64: Total | C64: =SUM(C16:C63) -> 5978918 | F64: =SUM(F16:F63) -> 2300042.386 | G64: =SUM(G16:G63) -> 2117957 | H64: =SUM(H16:H63) -> 182085.3859
B65: Total Depreciation expense to be included in the test year revenue requirement | F65: =+F64 -> 2300042.386
A67: Notes:
A68: 1 | B68: Board policy of the "half-year" rule - the applicant must ensure that additions in the year attract a half-year depreciation expense in the first year. Deviations from this standard practice must be supported in the application.
A69: 2 | B69: The applicant must provide an explanation of material variances in evidence.
A71: General: | B71: Applicants must provide a breakdown of depreciation and amortization expense in the above format for all relevant accounts. Asset Retirement Obligations (AROs), depreciation and accretion expense should be disclosed separately consistent with the Notes of historical Audited Financial Statements.

Sheet App.2-CV_USGAAP_DepExp (hidden)
K1: File Number: | L1: =EBNUMBER -> EB-2013-0134
K2: Exhibit:
K3: Tab:
K4: Schedule:
K5: Page:
K7: Date:
A9: Appendix 2-CV
A10: Depreciation and Amortization Expense
A11: Assumes the applicant adopted USGAAP for financial reporting purposes. For applicants adopting USGAAP for financial reporting purposes January 1, 2012, applicants must complete 5 versions of the table below (2011 CGAAP, 2011 USGAAP, 2012 USGAAP, 2013 USGAAP, and 2014 USGAAP). For applicants adopting USGAAP for financial reporting purposes January 1, 2013, applicants must complete 4 versions of the table below (2012 CGAAP, 2012 USGAAP, 2013 USGAAP, and 2014 USGAAP). For applicants adopting USGAAP for financial reporting purposes January 1, 2014, applicants must complete 4 versions of the table below (2012 CGAAP, 2013 CGAAP, 2013 USGAAP, and 2014 USGAAP).
B12: Year | D12: USGAAP
A14: Account | B14: Description | C14: Opening Regulatory Gross PP&E | D14: Less Fully Depreciated | E14: Net for Depreciation | F14: Additions | G14: Total for Depreciation | H14: Years | I14: Depreciation Rate | J14: Depreciation Expense | K14: Depreciation Expense per Appendix 2-B Fixed Assets, Column K (l) | L14: Variance 2
C15: (a) | D15: (b) | E15: (c) | F15: (d) | G15: (e) = (c) + ½ x (d) 1 | H15: (f) | I15: (g) = 1 / (f) | J15: (h) = (e) / (f) | L15: (m) = (h) - (l)
A16: 1611 | B16: Computer Software (Formally known as Account 1925) | E16: =C16-D16 -> 0 | G16: =E16+0.5*F16 -> 0 | I16: =IF(H16=0,0,1/H16) -> 0 | J16: =IF(H16=0,0,G16/H16) -> 0 | L16: =IF(ISERROR(+J16-K16), 0, +J16-K16) -> 0
A17: 1612 | B17: Land Rights (Formally known as Account 1906) | E17: =C17-D17 -> 0 | G17: =E17+0.5*F17 -> 0 | I17: 0 | J17: 0 | L17: 0
A18: 1805 | B18: Land | E18: 0 | G18: 0 | I18: 0 | J18: 0 | L18: 0
A19: 1808 | B19: Buildings | E19: 0 | G19: 0 | I19: 0 | J19: 0 | L19: 0
A20: 1810 | B20: Leasehold Improvements | E20: 0 | G20: 0 | I20: 0 | J20: 0 | L20: 0
A21: 1815 | B21: Transformer Station Equipment >50 kV | E21: 0 | G21: 0 | I21: 0 | J21: 0 | L21: 0
A22: 1820 | B22: Distribution Station Equipment <50 kV | E22: 0 | G22: 0 | I22: 0 | J22: 0 | L22: 0
A23: 1825 | B23: Storage Battery Equipment | E23: 0 | G23: 0 | I23: 0 | J23: 0 | L23: 0
A24: 1830 | B24: Poles, Towers & Fixtures | E24: 0 | G24: 0 | I24: 0 | J24: 0 | L24: 0
A25: 1835 | B25: Overhead Conductors & Devices | E25: 0 | G25: 0 | I25: 0 | J25: 0 | L25: 0
A26: 1840 | B26: Underground Conduit | E26: 0 | G26: 0 | I26: 0 | J26: 0 | L26: 0
A27: 1845 | B27: Underground Conductors & Devices | E27: 0 | G27: 0 | I27: 0 | J27: 0 | L27: 0
A28: 1850 | B28: Line Transformers | E28: 0 | G28: 0 | I28: 0 | J28: 0 | L28: 0
A29: 1855 | B29: Services (Overhead & Underground) | E29: 0 | G29: 0 | I29: 0 | J29: 0 | L29: 0
A30: 1860 | B30: Meters | E30: 0 | G30: 0 | I30: 0 | J30: 0 | L30: 0
A31: 1860 | B31: Meters (Smart Meters) | E31: 0 | G31: 0 | I31: 0 | J31: 0 | L31: 0
A32: 1905 | B32: Land | E32: 0 | G32: 0 | I32: 0 | J32: 0 | L32: 0
A33: 1908 | B33: Buildings & Fixtures | E33: 0 | G33: 0 | I33: 0 | J33: 0 | L33: 0
A34: 1910 | B34: Leasehold Improvements | E34: 0 | G34: 0 | I34: 0 | J34: 0 | L34: 0
A35: 1915 | B35: Office Furniture & Equipment (10 years) | E35: 0 | G35: 0 | I35: 0 | J35: 0 | L35: 0
A36: 1915 | B36: Office Furniture & Equipment (5 years) | E36: 0 | G36: 0 | I36: 0 | J36: 0 | L36: 0
A37: 1920 | B37: Computer Equipment - Hardware | E37: 0 | G37: 0 | I37: 0 | J37: 0 | L37: 0
A38: 1920 | B38: Computer Equip.-Hardware(Post Mar. 22/04) | E38: 0 | G38: 0 | I38: 0 | J38: 0 | L38: 0
A39: 1920 | B39: Computer Equip.-Hardware(Post Mar. 19/07) | E39: 0 | G39: 0 | I39: 0 | J39: 0 | L39: 0
A40: 1930 | B40: Transportation Equipment | E40: 0 | G40: 0 | I40: 0 | J40: 0 | L40: 0
A41: 1935 | B41: Stores Equipment | E41: 0 | G41: 0 | I41: 0 | J41: 0 | L41: 0
A42: 1940 | B42: Tools, Shop & Garage Equipment | E42: 0 | G42: 0 | I42: 0 | J42: 0 | L42: 0
A43: 1945 | B43: Measurement & Testing Equipment | E43: 0 | G43: 0 | I43: 0 | J43: 0 | L43: 0
A44: 1950 | B44: Power Operated Equipment | E44: 0 | G44: 0 | I44: 0 | J44: 0 | L44: 0
A45: 1955 | B45: Communications Equipment | E45: 0 | G45: 0 | I45: 0 | J45: 0 | L45: 0
A46: 1955 | B46: Communication Equipment (Smart Meters) | E46: 0 | G46: 0 | I46: 0 | J46: 0 | L46: 0
A47: 1960 | B47: Miscellaneous Equipment | E47: 0 | G47: 0 | I47: 0 | J47: 0 | L47: 0
A48: 1970 | B48: Load Management Controls - Customer Premises | E48: 0 | G48: 0 | I48: 0 | J48: 0 | L48: 0
A49: 1975 | B49: Load Management Controls Utility Premises | E49: 0 | G49: 0 | I49: 0 | J49: 0 | L49: 0
A50: 1980 | B50: System Supervisor Equipment | E50: 0 | G50: 0 | I50: 0 | J50: 0 | L50: 0
A51: 1985 | B51: Miscellaneous Fixed Assets | E51: 0 | G51: 0 | I51: 0 | J51: 0 | L51: 0
A52: 1990 | B52: Other Tangible Property | E52: 0 | G52: 0 | I52: 0 | J52: 0 | L52: 0
A53: 1995 | B53: Contributions & Grants | E53: 0 | G53: 0 | I53: 0 | J53: 0 | L53: 0
A54: etc. | E54: 0 | G54: 0 | I54: 0 | J54: 0 | L54: 0
E55: 0 | G55: 0 | I55: 0 | J55: 0 | L55: 0
B56: Total | C56: =SUM(C16:C55) -> 0 | D56: =SUM(D16:D55) -> 0 | E56: =SUM(E16:E55) -> 0 | F56: 0 | G56: 0 | J56: =SUM(J16:J55) -> 0 | K56: =SUM(K16:K55) -> 0 | L56: =SUM(L16:L55) -> 0
A58: Notes:
A60: 1 | B60: Board policy of the "half-year" rule - the applicant must ensure that additions in the year attract a half-year depreciation expense in the first year. Deviations from this standard practice must be supported in the application.
A61: 2 | B61: The applicant must provide an explanation of material variances in evidence.
A64: General: | B64: Applicants must provide a breakdown of depreciation and amortization expense in the above format for all relevant accounts. Asset Retirement Obligations (AROs), depreciation and accretion expense should be disclosed separately consistent with the Notes of historical Audited Financial Statements.

Sheet App.2-DA_Overhead (hidden)
L1: File Number: | M1: =EBNUMBER -> EB-2013-0134
L2: Exhibit:
L3: Tab:
L4: Schedule:
L5: Page:
L7: Date:
A9: Appendix 2-DA
A10: Overhead Expense
A12: The following table should be completed based on the information requested below. An explanation should be provided for any blank entries. The entries should include overhead costs that are currently capitalized on self-constructed assets under MIFRS.
E13: (A) 1 | F13: (B) | G13: (C) | H13: (D) | I13: (E) 1 | J13: (F) | K13: (G)
A14: Nature of the Overhead Costs | E14: Dollar | F14: Dollar | G14: Dollar | H14: Dollar Impact - | I14: Dollar Impact - | J14: Directly | K14: Reasons why the overhead costs are allowed to be
E15: Impact on PP&E | F15: Impact on PP&E | G15: Impact on PP&E | H15: PP&E Variance | I15: PP&E Variance | J15: Attributable? | K15: capitalized under MIFRS or an alternate accounting
E16: Historic Year | F16: Bridge Year | G16: Test Year | H16: Test versus Bridge | I16: Test versus Historic | J16: (Y/N) | K16: standard given limitations on capitalized overhead
A17: employee benefits | H17: =+G17-F17 -> 0 | I17: =+G17-E17 -> 0
A18: costs of site preparation | H18: 0 | I18: 0
A19: initial delivery and handling costs | H19: 0 | I19: 0
A20: costs of testing whether the asset is functioning properly | H20: 0 | I20: 0
A21: professional fees | H21: 0 | I21: 0
H22: 0 | I22: 0
A23: costs of opening a new facility | H23: 0 | I23: 0
A24: costs of introducing a new product or service (including costs of advertising and promotional activities) | H24: 0 | I24: 0
A25: costs of conducting business in a new location or with a new class of customer (including costs of staff training) | H25: 0 | I25: 0
A26: administration and other general overhead costs | H26: 0 | I26: 0
H27: 0 | I27: 0
H28: 0 | I28: 0
H29: 0 | I29: 0
A30: Insert description of additional item(s) and new rows if needed. | H30: 0 | I30: 0
A31: Total | E31: =SUM(E17:E30) -> 0 | F31: =SUM(F17:F30) -> 0 | G31: =SUM(G17:G30) -> 0 | H31: =SUM(H17:H30) -> 0 | I31: =SUM(I17:I30) -> 0
A34: The following table should be completed based on the information requested below. An explanation should be provided for any blank entries. The entries should include overhead costs that were capitalized on self-constructed assets under CGAAP but are no longer capitalized under MIFRS or an alternate accounting standard and are included in OM&A.
E35: (A) 1 | F35: (B) | G35: (C) | H35: (D) | I35: (E) 1 | J35: (F) | K35: (G)
A36: Nature of the Overhead Costs | E36: Dollar | F36: Dollar | G36: Dollar | H36: Dollar Impact - | I36: Dollar Impact - | J36: Directly | K36: Reasons why the overhead costs are not allowed to be
E37: Impact on OM&A | F37: Impact on OM&A | G37: Impact on OM&A | H37: OM&A Variance | I37: OM&A Variance | J37: Attributable? | K37: capitalized under MIFRS or an alternate accounting
E38: Historic Year | F38: Bridge Year | G38: Test Year | H38: Test versus Bridge | I38: Test versus Historic | J38: (Y/N) | K38: standard given limitations on capitalized overhead
A39: employee benefits | H39: =+G39-F39 -> 0 | I39: =+G39-E39 -> 0
A40: costs of site preparation | H40: =+G40-F40 -> 0 | I40: =+G40-E40 -> 0
A41: initial delivery and handling costs | H41: =+G41-F41 -> 0 | I41: =+G41-E41 -> 0
A42: costs of testing whether the asset is functioning properly | H42: =+G42-F42 -> 0 | I42: =+G42-E42 -> 0
A43: professional fees | H43: =+G43-F43 -> 0 | I43: =+G43-E43 -> 0
A45: costs of opening a new facility | H45: =+G45-F45 -> 0 | I45: =+G45-E45 -> 0
A46: costs of introducing a new product or service (including costs of advertising and promotional activities) | H46: 0 | I46: 0
A47: costs of conducting business in a new location or with a new class of customer (including costs of staff training) | H47: 0 | I47: 0
A48: administration and other general overhead costs | H48: 0 | I48: 0
H49: 0 | I49: 0
H50: 0 | I50: 0
H51: 0 | I51: 0
A52: Insert description of additional item(s) and new rows if needed. | H52: 0 | I52: 0
A53: Total | E53: =SUM(E39:E52) -> 0 | F53: =SUM(F39:F52) -> 0 | G53: =SUM(G39:G52) -> 0 | H53: =SUM(H39:H52) -> 0 | I53: =SUM(I39:I52) -> 0
A55: Notes:
A56: 1 | B56: If the applicant chooses to adopt IFRS for financial reporting purposes in 2014, the applicant does not need to complete Columns A, E. If the applicant adopts IFRS for financial reporting purposes in 2012 or 2013, the applicant must complete all columns.

Sheet App.2-DB_Overhead
L1: File Number: | M1: =EBNUMBER -> EB-2013-0134
L2: Exhibit: | M2: 2
L3: Tab: | M3: 5
L4: Schedule: | M4: 5
L5: Page: | M5: 2 to 3
L7: Date: | M7: 2013-11-15
A9: Appendix 2-DB
A10: Overhead Expense
A12: The following table should be completed based on the information requested below. An explanation should be provided for any blank entries. The entries should include overhead costs that are currently capitalized on self-constructed assets under revised CGAAP or ASPE (with the changes in capitalization and depreciation expense policies).
E13: (A) | F13: (B) | G13: (C) | H13: (D) | I13: (E) | J13: (F) | K13: (G)
A14: Nature of the Overhead Costs | E14: Dollar | F14: Dollar | G14: Dollar | H14: Dollar Impact - | I14: Dollar Impact - | J14: Directly | K14: Reasons why the overhead costs are allowed to be
E15: Impact on PP&E | F15: Impact on PP&E | G15: Impact on PP&E | H15: PP&E Variance | I15: PP&E Variance | J15: Attributable? | K15: capitalized under CGAAP or ASPE (with the changes in
E16: Historic Year | F16: Bridge Year | G16: Test Year | H16: Test versus Bridge | I16: Test versus Historic | J16: (Y/N) | K16: policies) given limitations on capitalized overhead
A17: employee benefits | H17: =+G17-F17 -> 0 | I17: =+G17-E17 -> 0
A18: costs of site preparation | H18: 0 | I18: 0
A19: initial delivery and handling costs | H19: 0 | I19: 0
A20: costs of testing whether the asset is functioning properly | H20: 0 | I20: 0
A21: professional fees | H21: 0 | I21: 0
H22: 0 | I22: 0
A23: costs of opening a new facility | H23: 0 | I23: 0
A24: costs of introducing a new product or service (including costs of advertising and promotional activities) | H24: 0 | I24: 0
A25: costs of conducting business in a new location or with a new class of customer (including costs of staff training) | H25: 0 | I25: 0
A26: administration and other general overhead costs | H26: 0 | I26: 0
H27: 0 | I27: 0
H28: 0 | I28: 0
H29: 0 | I29: 0
A30: Insert description of additional item(s) and new rows if needed. | H30: 0 | I30: 0
A31: Total | E31: =SUM(E17:E30) -> 0 | F31: =SUM(F17:F30) -> 0 | G31: =SUM(G17:G30) -> 0 | H31: =SUM(H17:H30) -> 0 | I31: =SUM(I17:I30) -> 0
A34: The following table should be completed based on the information requested below. An explanation should be provided for any blank entries. The entries should include overhead costs that were capitalized on self-constructed assets under CGAAP but are no longer capitalized under revised CGAAP or ASPE (with the changes in capitalization and depreciation expense policies) and are included in OM&A.
E35: (A) | F35: (B) | G35: (C) | H35: (D) | I35: (E) | J35: (F) | K35: (G)
A36: Nature of the Overhead Costs | E36: Dollar | F36: Dollar | G36: Dollar | H36: Dollar Impact - | I36: Dollar Impact - | J36: Directly | K36: Reasons why the overhead costs are allowed to be
E37: Impact on OM&A | F37: Impact on OM&A | G37: Impact on OM&A | H37: OM&A Variance | I37: OM&A Variance | J37: Attributable? | K37: capitalized under CGAAP or ASPE (with the changes in
E38: Historic Year | F38: Bridge Year | G38: Test Year | H38: Test versus Bridge | I38: Test versus Historic | J38: (Y/N) | K38: policies) given limitations on capitalized overhead
A39: employee benefits | H39: =+G39-F39 -> 0 | I39: =+G39-E39 -> 0
A40: costs of site preparation | H40: =+G40-F40 -> 0 | I40: =+G40-E40 -> 0
A41: initial delivery and handling costs | H41: =+G41-F41 -> 0 | I41: =+G41-E41 -> 0
A42: costs of testing whether the asset is functioning properly | H42: =+G42-F42 -> 0 | I42: =+G42-E42 -> 0
A43: professional fees | H43: =+G43-F43 -> 0 | I43: =+G43-E43 -> 0
A45: costs of opening a new facility | H45: =+G45-F45 -> 0 | I45: =+G45-E45 -> 0
A46: costs of introducing a new product or service (including costs of advertising and promotional activities) | H46: 0 | I46: 0
A47: costs of conducting business in a new location or with a new class of customer (including costs of staff training) | H47: 0 | I47: 0
A48: administration and other general overhead costs | H48: 0 | I48: 0
H49: 0 | I49: 0
H50: 0 | I50: 0
H51: 0 | I51: 0
A52: Insert description of additional item(s) and new rows if needed. | H52: 0 | I52: 0
A53: Total | E53: =SUM(E39:E52) -> 0 | F53: =SUM(F39:F52) -> 0 | G53: =SUM(G39:G52) -> 0 | H53: =SUM(H39:H52) -> 0 | I53: =SUM(I39:I52) -> 0

Sheet App.2-EA_PP&E Deferral Account (hidden)
H1: File Number: | I1: =EBNUMBER -> EB-2013-0134
H2: Exhibit:
H3: Tab:
H4: Schedule:
H5: Page:
H7: Date:
A9: Appendix 2-EA
A10: Account 1575 - IFRS-CGAAP Transitional PP&E Amounts
A11: 2012 Adopters of IFRS for Financial Reporting Purposes
A13: For applicants that adopt IFRS on January 1, 2012 for financial reporting purposes
A15: Note: this sheet should be filled out if the applicant adopts IFRS for its financial reporting purpose as of January 1, 2012.
B17: =RebaseYear &" Rebasing Year" -> 2010 Rebasing Year | C17: 2011 | D17: 2012 | E17: 2013 | F17: 2014 Rebasing Year | G17: 2015 | H17: 2016 | I17: 2017 | J17: 2018
A18: Reporting Basis | B18: CGAAP | C18: IRM | D18: IRM | E18: IRM | F18: MIFRS | G18: IRM | H18: IRM | I18: IRM | J18: IRM
A19: Forecast vs. Actual Used in Rebasing Year | B19: Forecast | C19: Actual | D19: Actual | E19: Forecast | F19: Forecast
